Workbook

Sheet Feuil1 (hidden)
A1: nom onglet TALEND IORGA | B1: nom mapping | C1: nom onglet TALEND IORGA | F1: nom onglet TALEND IORGA
A2: 110 | B2: 110 | C2: 110 | F2: 110 | G2: =VLOOKUP(F2,B:B,1,FALSE) -> 110
A3: 111 | B3: 111 | C3: 111 | F3: 111 | G3: =VLOOKUP(F3,B:B,1,FALSE) -> 111
A4: 114 | B4: 114 | C4: 114 | F4: 114 | G4: 114
A5: 121 | B5: 121 | C5: 121 | F5: 124 | G5: 124
A6: 124 | B6: 124 | C6: 124 | F6: 132 | G6: 132
A7: 125 | B7: 125 | C7: 125 | F7: 161 | G7: 161
A8: 131 | B8: 131 | C8: 131 | F8: 191 | G8: 191
A9: 132 | B9: 132 | C9: 132 | F9: 197 | G9: 197
A10: 140 | B10: 140 | C10: 140 | F10: 121 | G10: 121
A11: 141 | B11: 141 | C11: 141 | F11: 125 | G11: 125
A12: 142_143_144 | B12: 142_143_144 | C12: 142_143_144 | F12: 131 | G12: 131
A13: 161 | B13: 161 | C13: 161 | F13: 140 | G13: 140
A14: 162 | B14: 162 | C14: 162 | F14: 141 | G14: 141
A15: 181 | B15: 181 | C15: 181 | F15: 142_143_144 | G15: 142_143_144
A16: 191 | B16: 191 | C16: 191 | F16: 162 | G16: 162
A17: 192 | B17: 192 | C17: 192 | F17: 181 | G17: 181
A18: 193 | B18: 193 | C18: 193 | F18: 193 | G18: 193
A19: 1940 | B19: 1940 | C19: 1940 | F19: 1941_1942 | G19: 1941_1942
A20: 1941_1942 | B20: 1941_1942 | C20: 1941_1942 | F20: 195 | G20: 195
A21: 195 | B21: 195 | C21: 195 | F21: 198 | G21: 198
A22: 1961_1962 | B22: 1961_1962 | C22: 1961_1962 | F22: 199 | G22: 199
A23: 197 | B23: 197 | C23: 197 | F23: 210 | G23: 210
A24: 199 | B24: 199 | C24: 199 | F24: 211 | G24: 211
A25: 210 | B25: 210 | C25: 210 | F25: 212 | G25: 212
A26: 211 | B26: 211 | C26: 211 | F26: 217 | G26: 217
A27: 212 | B27: 212 | C27: 212 | F27: 513 | G27: 513
A28: 213 | B28: 213 | C28: 213 | F28: 424 | G28: 424
A29: 217 | B29: 217 | C29: 217 | F29: 213 | G29: 213
A30: 218 | B30: 218 | C30: 218 | F30: 214_215_216 | G30: 214_215_216
A31: 219 | B31: 219 | C31: 219 | F31: 218 | G31: 218
A32: 220 | B32: 220 | C32: 220 | F32: 219 | G32: 219
A33: 221 | B33: 221 | C33: 221 | F33: 220 | G33: 220
A34: 222 | B34: 222 | C34: 222 | F34: 221 | G34: 221
A35: 214_215_216 | B35: 214_215_216 | C35: 214_215_216 | F35: 223 | G35: 223
A36: 223 | B36: 223 | C36: 223 | F36: 222 | G36: 222
A37: 224 | B37: 224 | C37: 224 | F37: 224 | G37: 224
A38: 228 | B38: 228 | C38: 228 | F38: 220 | G38: 220
A39: 229 | B39: 229 | C39: 229 | F39: 225 | G39: 225
A40: 231 | B40: 231 | C40: 231 | F40: 229 | G40: 229
A41: 232 | B41: 232 | C41: 232 | F41: 231 | G41: 231
A42: 233 | B42: 233 | C42: 233 | F42: 241 | G42: 241
A43: 234 | B43: 234 | C43: 234 | F43: 242 | G43: 242
A44: 235 | B44: 235 | C44: 235 | F44: 811 | G44: 811
A45: 236 | B45: 236 | C45: 236 | F45: 612 | G45: 612
A46: 241 | B46: 241 | C46: 241 | F46: 610 | G46: 610
A47: 242 | B47: 242 | C47: 242 | F47: 514 | G47: 514
A48: 311 | B48: 311 | C48: 311 | F48: 451 | G48: 451
A49: 321 | B49: 321 | C49: 321 | F49: 441 | G49: 441
A50: 331 | B50: 331 | C50: 331 | F50: 427 | G50: 427
A51: 339 | B51: 339 | C51: 339 | F51: 426 | G51: 426
A52: 3401 | B52: 3401 | C52: 3401 | F52: 428 | G52: 428
A53: 341_342_343 | B53: 341_342_343 | C53: 341_342_343 | F53: 911_913 | G53: =VLOOKUP(F53,B:B,1,FALSE) -> 911_913
A54: 347 | B54: 347 | C54: 347 | F54: 912
A55: 411_412 | B55: 411_412 | C55: 411_412 | F55: 913
A56: 413 | B56: 413 | C56: 413
A57: 414_415_416_417_418 | B57: 414_415_416_417_418 | C57: 414_415_416_417_418
A58: 421 | B58: 421 | C58: 421
A59: 422 | B59: 422 | C59: 422
A60: 424 | B60: 424 | C60: 424
A61: 425 | B61: 425 | C61: 425
A62: 426 | B62: 426 | C62: 426
A63: 427 | B63: 427 | C63: 427
A64: 431 | B64: 431 | C64: 431
A65: 432 | B65: 432 | C65: 432
A66: 451 | B66: 451 | C66: 451
A67: 511 | B67: 511 | C67: 511
A68: 512 | B68: 512 | C68: 512
A69: 513 | B69: 513 | C69: 513
A70: 610 | B70: 610 | C70: 610
A71: 611 | B71: 611 | C71: 611
A72: 612 | B72: 612 | C72: 612
A73: 616_613 | B73: 616_613 | C73: 616_613
A74: 711_712_713 | B74: 711_712_713 | C74: 711_712_713
A75: 720_721_722 | B75: 720_721_722 | C75: 720_721_722
A76: 811 | B76: 811 | C76: 811
B77: 225 | C77: 225
B78: 514 | C78: 514
B79: 198 | C79: 198
B80: 441 | C80: 441
B81: 615 | C81: 615
B82: 428 | C82: 428
B83: 911_913 | C83: 911_913

Sheet logs (hidden)
A1: Log | B1: Question
A2: IND 1.1.0Temps d'exécution : 7,421875E-02 secondes.
A3: IND 1.1.4Temps d'exécution : 1,226563 secondes.
A4: IND 1.2.4Temps d'exécution : 1,683594 secondes.
A5: IND 1.3.2Temps d'exécution : 2,25 secondes.
A6: IND 1.6.1Temps d'exécution : 2,300781 secondes.
A7: IND 1.9.1Temps d'exécution : 2,496094 secondes.
A8: IND 1.9.7Temps d'exécution : 3,683594 secondes.
A9: IND 1.2.1Temps d'exécution : 3,75 secondes.
A10: IND 1.2.5Temps d'exécution : 11,62109 secondes.
A11: IND 1.3.1Temps d'exécution : 11,92188 secondes.
A12: IND 1.4.0Temps d'exécution : 12,32422 secondes.
A13: IND 1.4.1-1.4.2-1.4.4Temps d'exécution : 12,68359 secondes.
A14: IND 1.6.2Temps d'exécution : 13,03516 secondes.
A15: IND 1.8.1Temps d'exécution : 13,05469 secondes.
A16: IND 1.9.3Temps d'exécution : 13,53516 secondes.
A17: IND 1.9.4.1-1.9.4.2Temps d'exécution : 15,10547 secondes.
A18: IND 1.9.5 - 1.9.6.1Temps d'exécution : 15,14844 secondes.
A19: IND 1.9.8Temps d'exécution : 15,24219 secondes.
A20: IND 1.9.9Temps d'exécution : 15,42969 secondes.
A21: IND 2.1.0Temps d'exécution : 15,44531 secondes.
A22: IND 2.1.1Temps d'exécution : 15,46094 secondes.
A23: IND 2.1.2Temps d'exécution : 17,12891 secondes.
A24: IND 2.1.7Temps d'exécution : 18,53906 secondes.
A25: IND 4.2.4Temps d'exécution : 18,58594 secondes.
A26: IND 2.1.3Temps d'exécution : 18,62109 secondes.
A27: IND 2.1.4-2.1.6Temps d'exécution : 20,01563 secondes.
A28: IND 2.1.8Temps d'exécution : 20,17578 secondes.
A29: IND 2.1.9Temps d'exécution : 21,02344 secondes.
A30: IND 2.2.0Temps d'exécution : 21,03516 secondes.
A31: IND 2.2.1 et 2.2.3Temps d'exécution : 21,10547 secondes.
A32: IND 2.2.2Temps d'exécution : 21,46484 secondes.
A33: IND 2.2.4Temps d'exécution : 23,5 secondes.
A34: IND 2.2.5Temps d'exécution : 23,52344 secondes.
A35: IND 2.2.9Temps d'exécution : 23,53125 secondes.
A36: IND 2.3.1Temps d'exécution : 23,88672 secondes.
A37: IND 2.4.1Temps d'exécution : 23,96094 secondes.
A38: IND 2.4.2Temps d'exécution : 24,99219 secondes.
A39: IND 8.1.1Temps d'exécution : 25,42969 secondes.
A40: IND 6.1.1-6.1.3Temps d'exécution : 25,70313 secondes.
A41: IND 6.1.0Temps d'exécution : 25,71875 secondes.
A42: IND 5.1.4Temps d'exécution : 25,78125 secondes.
A43: IND 4.5.1Temps d'exécution : 25,8125 secondes.
A44: IND 4.4.1Temps d'exécution : 25,85156 secondes.
A45: IND 4.2.7Temps d'exécution : 26,11719 secondes.
A46: IND 4.2.6Temps d'exécution : 26,16406 secondes.
A47: IND 5.1.3Temps d'exécution : 26,46484 secondes.
A48: IND 1.9.2Temps d'exécution : 26,63672 secondes.
A49: IND 1.9.4.0Temps d'exécution : 33,76172 secondes.
A50: IND 2.2.8Temps d'exécution : 34,96484 secondes.
A51: IND 2.3.2Temps d'exécution : 38,77734 secondes.
A52: IND 2.3.3Temps d'exécution : 41,44922 secondes.
A53: IND 2.3.4Temps d'exécution : 41,51953 secondes.
A54: IND 2.3.5Temps d'exécution : 44,12109 secondes.
A55: IND 2.3.6Temps d'exécution : 44,1875 secondes.
A56: IND 3.1.1-3.3.1 et 3.4.1-3.4.3Temps d'exécution : 44,20313 secondes.
A57: IND 3.3.9Temps d'exécution : 47,99609 secondes.
A58: IND 3.4.0.1Temps d'exécution : 50,84766 secondes.
A59: IND 3.4.7Temps d'exécution : 50,88281 secondes.
A60: IND 4.3.2Temps d'exécution : 50,89844 secondes.
A61: IND 2.3.6Temps d'exécution : 51,13281 secondes.
A62: IND 1.9.5 - 1.9.6.1Temps d'exécution : 51,14453 secondes.
A63: IND 4.1.3Temps d'exécution : 51,27344 secondes.
A64: IND 4.1.4-4.1.8Temps d'exécution : 51,28906 secondes.
A65: IND 4.2.1Temps d'exécution : 51,33594 secondes.
A66: IND 4.2.2Temps d'exécution : 55,66797 secondes.
A67: IND 4.2.5Temps d'exécution : 58,17578 secondes.
A68: IND 4.3.1Temps d'exécution : 58,1875 secondes.
A69: IND 6.1.1-6.1.3Temps d'exécution : 58,35156 secondes.
A70: IND 7.1.1-7.1.3Temps d'exécution : 58,44141 secondes.
A71: IND 7.2.0-7.2.2Temps d'exécution : 58,9375 secondes.
A72: IND 5.1.2Temps d'exécution : 59,06641 secondes.
A73: IND 5.1.1Temps d'exécution : 59,45703 secondes.
A74: IND 4.2.4Temps d'exécution : 60,96484 secondes.
A75: IND 4.1.1-4.1.2Temps d'exécution : 61 secondes.
A76: IND 1.2.1Temps d'exécution : 61,12891 secondes.
A77: IND 1.9.3Temps d'exécution : 61,73828 secondes.
A78: IND 1.9.6.2Temps d'exécution : 62,07031 secondes.
A79: IND 1.3.2Temps d'exécution : 62,38672 secondes.
A80: IND 6.1.6Temps d'exécution : 62,39844 secondes.
A81: IND 2.2.1 et 2.2.3Temps d'exécution : 62,41406 secondes.
A82: IND 6.1.5Temps d'exécution : 62,42188 secondes.
A83: IND 3.4.0.1Temps d'exécution : 62,76172 secondes.
A84: IND 1.2.1Temps d'exécution : 62,81641 secondes.
A85: IND 1.2.5Temps d'exécution : 62,98438 secondes.
A86: IND 1.9.2Temps d'exécution : 63 secondes.
A87: IND 1.9.3Temps d'exécution : 63,12109 secondes.
A88: IND 1.9.8Temps d'exécution : 63,14844 secondes.
A89: IND 2.2.2Temps d'exécution : 63,15625 secondes.
A90: IND 2.2.8Temps d'exécution : 63,20313 secondes.
A91: IND 2.2.9Temps d'exécution : 63,26953 secondes.
A92: IND 2.3.2Temps d'exécution : 63,28516 secondes.
A93: IND 2.3.4Temps d'exécution : 63,33203 secondes.
A94: IND 3.3.9Temps d'exécution : 63,38281 secondes.
A95: IND 4.2.1Temps d'exécution : 63,43359 secondes.
A96: IND 4.2.2Temps d'exécution : 63,5 secondes.
A97: IND 1.9.5 - 1.9.6.1Temps d'exécution : 63,54688 secondes.
A98: IND 3.1.1-3.3.1 et 3.4.1-3.4.3Temps d'exécution : 63,57422 secondes.
A99: IND 3.3.9Temps d'exécution : 65,51563 secondes.
A100: IND 4.1.1-4.1.2Temps d'exécution : 66,15234 secondes.
A101: IND 4.1.4-4.1.8Temps d'exécution : 66,22266 secondes.
A102: IND 4.2.8Temps d'exécution : 66,23438 secondes.
A103: IND 4.5.1Temps d'exécution : 66,23828 secondes.
A104: IND 5.1.1Temps d'exécution : 66,25781 secondes.
A105: IND 5.1.2Temps d'exécution : 66,61328 secondes.
A106: IND 6.1.0Temps d'exécution : 66,71484 secondes.
A107: IND 9.1.1-9.1.3Temps d'exécution : 66,76953 secondes.
A108: IND 1.1.1Temps d'exécution : 66,80859 secondes.
B143: Indicateur: IND 4.3.2 Cellule: B8 Aucune réponse à la question actuellement
B165: Indicateur: IND 6.1.6 Cellule: C9 Aucune réponse à la question actuellement
B225: Indicateur: IND 4.3.2 Cellule: B8 Aucune réponse à la question actuellement
B247: Indicateur: IND 6.1.6 Cellule: C9 Aucune réponse à la question actuellement
B307: Indicateur: IND 4.3.2 Cellule: B8 Aucune réponse à la question actuellement
B329: Indicateur: IND 6.1.6 Cellule: C9 Aucune réponse à la question actuellement
B389: Indicateur: IND 4.3.2 Cellule: B8 Aucune réponse à la question actuellement
B411: Indicateur: IND 6.1.6 Cellule: C9 Aucune réponse à la question actuellement
B471: Indicateur: IND 4.3.2 Cellule: B8 Aucune réponse à la question actuellement
B493: Indicateur: IND 6.1.6 Cellule: C9 Aucune réponse à la question actuellement
B553: Indicateur: IND 4.3.2 Cellule: B8 Aucune réponse à la question actuellement
B575: Indicateur: IND 6.1.6 Cellule: C9 Aucune réponse à la question actuellement
B635: Indicateur: IND 4.3.2 Cellule: B8 Aucune réponse à la question actuellement
B657: Indicateur: IND 6.1.6 Cellule: C9 Aucune réponse à la question actuellement
B719: Indicateur: IND 4.3.2 Cellule: B8 Aucune réponse à la question actuellement
B741: Indicateur: IND 6.1.6 Cellule: C9 Aucune réponse à la question actuellement

Sheet ref_question (hidden)
A1: ID_QMODAMALA | B1: LB_QMODAMALA | C1: ID_QMODAMALA | D1: ID_QINDECHOM2 | E1: LB_QINDECHOM2 | F1: 3411 | G1: 3421 | H1: ID_QINDECHOM | I1: ID_QMODADISPSIGN | J1: LB_QMODADISPSIGN | K1: ID_QMODADISPSIGN | L1: ID_QINDECHOM1 | M1: LB_QINDECHOM | N1: 3411 | O1: 01 | P1: 01 - Région (y compris collectivités territoriales uniques de Martinique, de Guyane et de Corse) | Q1: 01
A2: 0 | B2: Non | C2: 0 | D2: 1 | E2: Vous êtes en auto-assurance avec convention de gestion avec Pôle Emploi | F2: 1 | G2: 1 | H2: 1 | I2: 1 | J2: Assuré en propre par la collectivité | K2: 1 | L2: 1 | M2: En auto-assurance avec convention de gestion avec Pôle Emploi | N2: 1 | O2: 02 | P2: 02 - Département | Q2: 02
A3: 1 | B3: Oui | C3: 1 | D3: 2 | E3: Vous êtes en auto-assurance sans convention de gestion avec Pôle Emploi | F3: 2 | G3: 2 | H3: 2 | I3: 2 | J3: Mutualisé par voie de convention | K3: 2 | L3: 2 | M3: En auto-assurance sans convention de gestion avec Pôle Emploi | N3: 2 | O3: 03 | P3: 03 - Service départemental d'incendie et de secours | Q3: 03
A4: 2 | B4: Ne sait pas | C4: 2 | D4: 3 | E4: Ne sait pas | F4: 3 | G4: 3 | H4: 3 | I4: 3 | J4: Confié à un centre de gestion | K4: 3 | L4: 3 | M4: Ne sait pas | N4: 3 | O4: 04 | P4: 04 - Centre de gestion de la fonction publique territoriale | Q4: 04
A5: 3 | B5: En cours | C5: 3 | D5: 4 | E5: Vous avez adhéré au régime d'assurance chômage | F5: 4 | G5: 4 | H5: 4 | I5: 4 | J5: Aucun dispositif | K5: 4 | L5: 1 | M5: En auto-assurance avec convention de gestion avec Pôle Emploi | N5: 1 | O5: 05 | P5: 05 - Centre national de la fonction publique territoriale | Q5: 05
B6: (Vide) | E6: (Vide) | J6: (Vide) | L6: 2 | M6: En auto-assurance sans convention de gestion avec Pôle Emploi | N6: 2 | O6: 06 | P6: 06 - Commune (y compris commune nouvelle) | Q6: 06
A7: 0 | B7: Non | C7: 0 | D7: 1 | E7: Vous êtes en auto-assurance avec convention de gestion avec Pôle Emploi | F7: 1 | G7: 1 | H7: 1 | I7: 1 | J7: Assuré en propre par la collectivité | K7: 1 | L7: 3 | M7: Ne sait pas | N7: 3 | O7: 07 | P7: 07 - Centre communal d'action sociale (CCAS) | Q7: 07
A8: 1 | B8: Oui | C8: 1 | D8: 2 | E8: Vous êtes en auto-assurance sans convention de gestion avec Pôle Emploi | F8: 2 | G8: 2 | H8: 2 | I8: 2 | J8: Mutualisé par voie de convention | K8: 2 | O8: 08 | P8: 08 - Caisse des écoles (CDE) | Q8: 08
A9: 2 | B9: Ne sait pas | C9: 2 | D9: 3 | E9: Ne sait pas | F9: 3 | G9: 3 | H9: 3 | I9: 3 | J9: Confié à un centre de gestion | K9: 3 | O9: 09 | P9: 09 - Caisse de crédit municipal | Q9: 09
A10: 3 | B10: En cours | C10: 3 | D10: 4 | E10: Vous avez adhéré au régime d'assurance chômage | F10: 4 | G10: 4 | H10: 4 | I10: 4 | J10: Aucun dispositif | K10: 4 | O10: 10 | P10: 10 - Métropole (y compris métropole de Lyon) | Q10: 10
E11: (Vide) | J11: (Vide) | O11: 11 | P11: 11 - Communauté urbaine | Q11: 11
O12: 12 | P12: 12 - Communauté d'agglomération | Q12: 12
O13: 13 | P13: 13 - Communauté de communes | Q13: 13
O14: 14 | P14: 14 - Centre intercommunal d'action sociale (CIAS) | Q14: 14
O15: 15 | P15: 15 - Syndicat de communes à vocation multiple | Q15: 15
O16: 16 | P16: 16 - Syndicat de communes à vocation unique | Q16: 16
O17: 17 | P17: 17 - Syndicat mixte | Q17: 17
O18: 18 | P18: 18 - Pôle d'équilibre territorial et rural (PETR) | Q18: 18
O19: 19 | P19: 19 - Office public de l'habitat (OPHLM - ODHLM) | Q19: 19
O20: 20 | P20: 20 - Pôle métropolitain | Q20: 20
O21: 21 | P21: 21 - Autre établissement public intercommunal | Q21: 21
O22: 22 | P22: 22 - Autre | Q22: 22

Sheet notes_version (hidden)
A1: version | B1: titre modification | C1: commentaires | D1: dates
A2: v2 | B2: Corrections ETPR format cellule | C2: Permettre la visualisation des décimales sur les cellules des tableaux relatifs aux ETPR | D2: 25 07 2022
A3: v2 | B3: Référentiel chom2 et 1 | C3: Correction du référentiel mapping questions liées à l'assurance chômage | D3: 25 07 2022

Sheet listcollindex (hidden)
D1: emp_siren_final | E1: rs_ul_empl | F1: dept | G1: emp_pmun_final | H1: nb_ep
D2: 217500016 | E2: VILLE DE PARIS | F2: 75 | G2: 2145906 | H2: 51862
D3: 211300553 | E3: COMMUNE DE MARSEILLE | F3: 13 | G3: 870321 | H3: 12159
D4: 216901231 | E4: COMMUNE DE LYON | F4: 69 | G4: 522228 | H4: 8033
D5: 213105554 | E5: COMMUNE DE TOULOUSE | F5: 31 | G5: 498003 | H5: 8401
D6: 210600888 | E6: COMMUNE DE NICE | F6: 06 | G6: 343477 | H6: 6188
D7: 214401093 | E7: COMMUNE DE NANTES | F7: 44 | G7: 320732 | H7: 3618
D8: 213401722 | E8: COMMUNE DE MONTPELLIER | F8: 34 | G8: 299096 | H8: 3822
D9: 216704825 | E9: COMMUNE DE STRASBOURG | F9: 67 | G9: 290576 | H9: 12
D10: 213300635 | E10: COMMUNE DE BORDEAUX | F10: 33 | G10: 259809 | H10: 3823
D11: 215903501 | E11: COMMUNE DE LILLE | F11: 59 | G11: 236234 | H11: 4397
D12: 213502388 | E12: COMMUNE DE RENNES | F12: 35 | G12: 222485 | H12: 3297
D13: 215104217 | E13: COMMUNE DE REIMS | F13: 51 | G13: 180318 | H13: 2296
D14: 218301372 | E14: COMMUNE DE TOULON | F14: 83 | G14: 179659 | H14: 2662
D15: 214202186 | E15: COMMUNE DE SAINT ETIENNE | F15: 42 | G15: 174082 | H15: 3084
D16: 217603513 | E16: COMMUNE DE LE HAVRE | F16: 76 | G16: 165830 | H16: 3245
D17: 212102313 | E17: COMMUNE DE DIJON | F17: 21 | G17: 159106 | H17: 1797
D18: 213801855 | E18: COMMUNE DE GRENOBLE | F18: 38 | G18: 158240 | H18: 3107
D19: 214900078 | E19: COMMUNE D ANGERS | F19: 49 | G19: 155876 | H19: 3030
D20: 216902668 | E20: AGENCE DE SERVICES ET DE PAIEMENT | F20: 69 | G20: 154781 | H20: 2149
D21: 219740115 | E21: COMMUNE DE SAINT DENIS | F21: 974 | G21: 153001 | H21: 2341
D22: 213001894 | E22: COMMUNE DE NIMES | F22: 30 | G22: 147496 | H22: 2283
D23: 216301135 | E23: COMMUNE DE CLERMONT FERRAND | F23: 63 | G23: 147284 | H23: 2427
D24: 211300017 | E24: COMMUNE D AIX EN PROVENCE | F24: 13 | G24: 147122 | H24: 2243
D25: 217201813 | E25: COMMUNE DU MANS | F25: 72 | G25: 145155 | H25: 2018
D26: 212900195 | E26: COMMUNE DE BREST | F26: 29 | G26: 139456 | H26: 6
D27: 213702616 | E27: COMMUNE DE TOURS | F27: 37 | G27: 137850 | H27: 2280
D28: 218000198 | E28: COMMUNE D AMIENS | F28: 80 | G28: 134167 | H28: 13
D29: 200063402 | E29: COMMUNE D ANNECY | F29: 74 | G29: 131766 | H29: 2857
D30: 218708501 | E30: COMMUNE DE LIMOGES | F30: 87 | G30: 130592 | H30: 2370
D31: 219200128 | E31: COMMUNE DE BOULOGNE BILLANCOURT | F31: 92 | G31: 120911 | H31: 1798
D32: 215704636 | E32: COMMUNE DE METZ | F32: 57 | G32: 120211 | H32: 2041
D33: 212500565 | E33: COMMUNE DE BESANCON | F33: 25 | G33: 118258 | H33: 1981
D34: 216601369 | E34: COMMUNE DE PERPIGNAN | F34: 66 | G34: 118032 | H34: 2280
D35: 214502346 | E35: COMMUNE D ORLEANS | F35: 45 | G35: 117026 | H35: 1624
D36: 217605401 | E36: COMMUNE DE ROUEN | F36: 76 | G36: 114187 | H36: 2197
D37: 219300662 | E37: COMMUNE DE ST DENIS | F37: 93 | G37: 113116 | H37: 2704
D38: 219300480 | E38: COMMUNE DE MONTREUIL | F38: 93 | G38: 111367 | H38: 2546
D39: 219500188 | E39: COMMUNE D ARGENTEUIL | F39: 95 | G39: 108567 | H39: 2351
D40: 216802249 | E40: COMMUNE DE MULHOUSE | F40: 68 | G40: 108038 | H40: 1671
D41: 211401187 | E41: COMMUNE DE CAEN | F41: 14 | G41: 107250 | H41: 1202
D42: 215403957 | E42: COMMUNE DE NANCY | F42: 54 | G42: 104403 | H42: 1722
D43: 219740156 | E43: COMMUNE DE SAINT PAUL | F43: 974 | G43: 104301 | H43: 2388
D44: 215905993 | E44: COMMUNE DE TOURCOING | F44: 59 | G44: 99165 | H44: 1740
D45: 215905126 | E45: COMMUNE DE ROUBAIX | F45: 59 | G45: 98066 | H45: 2067
D46: 219200508 | E46: COMMUNE DE NANTERRE | F46: 92 | G46: 95782 | H46: 2769
D47: 219400819 | E47: COMMUNE DE VITRY SUR SEINE | F47: 94 | G47: 95649 | H47: 2115
D48: 219400280 | E48: COMMUNE DE CRETEIL | F48: 94 | G48: 92566 | H48: 2015
D49: 218400075 | E49: COMMUNE D AVIGNON | F49: 84 | G49: 90597 | H49: 2251
D50: 218601946 | E50: COMMUNE DE POITIERS | F50: 86 | G50: 90033 | H50: 1020
D51: 219300019 | E51: COMMUNE D AUBERVILLIERS | F51: 93 | G51: 89401 | H51: 1794
D52: 219200045 | E52: COMMUNE D ASNIERES SUR SEINE | F52: 92 | G52: 88004 | H52: 1419
D53: 219200250 | E53: COMMUNE DE COLOMBES | F53: 92 | G53: 86775 | H53: 1724
D54: 200027159 | E54: COMMUNE DE DUNKERQUE | F54: 59 | G54: 86545 | H54: 1813
D55: 219300050 | E55: COMMUNE D AULNAY SOUS BOIS | F55: 93 | G55: 86485 | H55: 1932
D56: 219740164 | E56: COMMUNE DE SAINT PIERRE | F56: 974 | G56: 83930 | H56: 1946
D57: 217806462 | E57: COMMUNE DE VERSAILLES | F57: 78 | G57: 83583 | H57: 1567
D58: 219200268 | E58: COMMUNE DE COURBEVOIE | F58: 92 | G58: 82074 | H58: 1792
D59: 219740222 | E59: COMMUNE DU TAMPON | F59: 974 | G59: 80778 | H59: 886
D60: 213400328 | E60: COMMUNE DE BEZIERS | F60: 34 | G60: 78683 | H60: 1470
D61: 219200631 | E61: COMMUNE DE RUEIL MALMAISON | F61: 92 | G61: 78265 | H61: 1945
D62: 200056844 | E62: COMMUNE DE CHERBOURG EN COTENTIN | F62: 50 | G62: 77789 | H62: 1931
D63: 219400173 | E63: COMMUNE DE CHAMPIGNY SUR MARNE | F63: 94 | G63: 77439 | H63: 1528
D64: 211703004 | E64: COMMUNE DE LA ROCHELLE | F64: 17 | G64: 77210 | H64: 1396
D65: 216404459 | E65: COMMUNE DE PAU | F65: 64 | G65: 75665 | H65: 1469
D66: 219722097 | E66: COMMUNE DE FORT DE FRANCE | F66: 972 | G66: 75286 | H66: 1857
D67: 210600045 | E67: COMMUNE D ANTIBES | F67: 06 | G67: 74709 | H67: 2110
D68: 219400686 | E68: COMMUNE DE SAINT MAUR DES FOSSES | F68: 94 | G68: 74520 | H68: 1518
D69: 213302813 | E69: COMMUNE DE MERIGNAC | F69: 33 | G69: 74009 | H69: 1167
D70: 212000046 | E70: COMMUNE D AJACCIO | F70: 2A | G70: 72647 | H70: 1631
D71: 210600292 | E71: COMMUNE DE CANNES | F71: 06 | G71: 72435 | H71: 2301
D72: 214401846 | E72: COMMUNE DE SAINT NAZAIRE | F72: 44 | G72: 71887 | H72: 1484
D73: 219300290 | E73: COMMUNE DE DRANCY | F73: 93 | G73: 71276 | H73: 1400
D74: 219300514 | E74: COMMUNE DE NOISY LE GRAND | F74: 93 | G74: 68930 | H74: 1392
D75: 216800664 | E75: COMMUNE DE COLMAR | F75: 68 | G75: 68294 | H75: 1047
D76: 219200409 | E76: COMMUNE D ISSY LES MOULINEAUX | F76: 92 | G76: 67937 | H76: 935
D77: 219501277 | E77: COMMUNE DE CERGY | F77: 95 | G77: 67790 | H77: 1270
D78: 216201939 | E78: COMMUNE DE CALAIS | F78: 62 | G78: 67544 | H78: 1071
D79: 219200441 | E79: COMMUNE DE LEVALLOIS PERRET | F79: 92 | G79: 67258 | H79: 1710
D80: 216902593 | E80: COMMUNE DE VENISSIEUX | F80: 69 | G80: 66765 | H80: 1591
D81: 200083525 | E81: COMMUNE DE EVRY COURCOURONNES | F81: 91 | G81: 66106 | H81: 1339
D82: 219733029 | E82: COMMUNE DE CAYENNE | F82: 973 | G82: 65956 | H82: 1128
D83: 213303183 | E83: COMMUNE DE PESSAC | F83: 33 | G83: 65866 | H83: 777
D84: 212603625 | E84: COMMUNE DE VALENCE | F84: 26 | G84: 64431 | H84: 1017
D85: 211800339 | E85: COMMUNE DE BOURGES | F85: 18 | G85: 64362 | H85: 1148
D86: 219400413 | E86: COMMUNE D IVRY SUR SEINE | F86: 94 | G86: 64016 | H86: 1827
D87: 212902324 | E87: COMMUNE DE QUIMPER | F87: 29 | G87: 63473 | H87: 623
D88: 219200243 | E88: COMMUNE DE CLICHY | F88: 92 | G88: 62933 | H88: 1504
D89: 219200029 | E89: COMMUNE D ANTONY | F89: 92 | G89: 62906 | H89: 1204
D90: 211003744 | E90: COMMUNE DE TROYES | F90: 10 | G90: 62597 | H90: 1173
D91: 218301265 | E91: COMMUNE DE LA SEYNE SUR MER | F91: 83 | G91: 62232 | H91: 1332
D92: 218201218 | E92: COMMUNE DE MONTAUBAN | F92: 82 | G92: 61677 | H92: 960
D93: 215900093 | E93: COMMUNE DE VILLENEUVE D ASCQ | F93: 59 | G93: 61258 | H93: 1299
D94: 219300555 | E94: COMMUNE DE PANTIN | F94: 93 | G94: 60419 | H94: 1376
D95: 219200516 | E95: COMMUNE DE NEUILLY SUR SEINE | F95: 92 | G95: 59388 | H95: 1209
D96: 217300656 | E96: COMMUNE DE CHAMBERY | F96: 73 | G96: 59172 | H96: 1321
D97: 217901917 | E97: COMMUNE DE NIORT | F97: 79 | G97: 58966 | H97: 964
D98: 219505856 | E98: COMMUNE DE SARCELLES | F98: 95 | G98: 58483 | H98: 1411
D99: 219300076 | E99: COMMUNE DE BLANC MESNIL | F99: 93 | G99: 57989 | H99: 1083
D100: 219400462 | E100: COMMUNE DE MAISONS ALFORT | F100: 94 | G100: 57639 | H100: 918
D101: 215601212 | E101: COMMUNE DE LORIENT | F101: 56 | G101: 57412 | H101: 1170
D102: 216000562 | E102: COMMUNE DE BEAUVAIS | F102: 60 | G102: 56889 | H102: 1025
D103: 219740099 | E103: COMMUNE DE SAINT ANDRE | F103: 974 | G103: 56857 | H103: 1554
D104: 219400769 | E104: COMMUNE DE VILLEJUIF | F104: 94 | G104: 56349 | H104: 1115
D105: 211102629 | E105: COMMUNE DE NARBONNE | F105: 11 | G105: 56123 | H105: 1075
D106: 218300614 | E106: COMMUNE DE FREJUS | F106: 83 | G106: 55750 | H106: 1082
D107: 217702844 | E107: COMMUNE MEAUX | F107: 77 | G107: 55709 | H107: 1232
D108: 218501914 | E108: COMMUNE DE LA ROCHE SUR YON | F108: 85 | G108: 55213 | H108: 1007
D109: 219300084 | E109: COMMUNE DE BOBIGNY | F109: 93 | G109: 54906 | H109: 1570
D110: 218300697 | E110: COMMUNE D HYERES | F110: 83 | G110: 54615 | H110: 873
D111: 219300316 | E111: COMMUNE D EPINAY SUR SEINE | F111: 93 | G111: 54419 | H111: 840
D112: 217701085 | E112: COMMUNE DE CHELLES | F112: 77 | G112: 54372 | H112: 834
D113: 214900995 | E113: COMMUNE DE CHOLET | F113: 49 | G113: 54357 | H113: 390
D114: 215602608 | E114: COMMUNE DE VANNES | F114: 56 | G114: 54017 | H114: 1038
D115: 219740149 | E115: COMMUNE DE SAINT LOUIS | F115: 974 | G115: 53744 | H115: 1602
D116: 219300100 | E116: COMMUNE DE BONDY | F116: 93 | G116: 53342 | H116: 1130
D117: 219200235 | E117: COMMUNE DE CLAMART | F117: 92 | G117: 53179 | H117: 983
D118: 210206660 | E118: COMMUNE DE SAINT QUENTIN | F118: 02 | G118: 53100 | H118: 884
D119: 219711017 | E119: COMMUNE DES ABYMES | F119: 971 | G119: 52948 | H119: 1100
D120: 219101748 | E120: COMMUNE DE CORBEIL ESSONNES | F120: 91 | G120: 52340 | H120: 1041
D121: 210600276 | E121: COMMUNE DE CAGNES SUR MER | F121: 06 | G121: 52100 | H121: 666
D122: 216401026 | E122: COMMUNE DE BAYONNE | F122: 64 | G122: 52006 | H122: 921
D123: 219300712 | E123: COMMUNE DE SEVRAN | F123: 93 | G123: 51778 | H123: 1196
D124: 216902569 | E124: COMMUNE DE VAULX EN VELIN | F124: 69 | G124: 51761 | H124: 1178
D125: 217805860 | E125: COMMUNE DE SARTROUVILLE | F125: 78 | G125: 51746 | H125: 708
D126: 219300704 | E126: COMMUNE DE ST OUEN SUR SEINE | F126: 93 | G126: 51547 | H126: 1261
D127: 219400330 | E127: COMMUNE DE FONTENAY SOUS BOIS | F127: 94 | G127: 51386 | H127: 1356
D128: 211300041 | E128: COMMUNE D ARLES | F128: 13 | G128: 50968 | H128: 1121
D129: 219103777 | E129: COMMUNE DE MASSY | F129: 91 | G129: 50506 | H129: 1117
D130: 219200367 | E130: COMMUNE DE GENNEVILLIERS | F130: 92 | G130: 49880 | H130: 1873
D131: 219400801 | E131: COMMUNE DE VINCENNES | F131: 94 | G131: 49697 | H131: 694
D132: 215301300 | E132: COMMUNE DE LAVAL | F132: 53 | G132: 49617 | H132: 976
D133: 219200730 | E133: COMMUNE DE SURESNES | F133: 92 | G133: 49482 | H133: 1063
D134: 219733110 | E134: COMMUNE DE SAINT LAURENT DU MARONI | F134: 973 | G134: 49173 | H134: 517
D135: 218100048 | E135: COMMUNE D ALBI | F135: 81 | G135: 49094 | H135: 732
D136: 214401622 | E136: COMMUNE DE SAINT HERBLAIN | F136: 44 | G136: 49067 | H136: 1131
D137: 210600698 | E137: COMMUNE DE GRASSE | F137: 06 | G137: 48708 | H137: 816
D138: 211300561 | E138: COMMUNE DE MARTIGUES | F138: 13 | G138: 48506 | H138: 1981
D139: 216902908 | E139: COMMUNE DE SAINT PRIEST | F139: 69 | G139: 48318 | H139: 871
D140: 212000335 | E140: COMMUNE DE BASTIA | F140: 2B | G140: 48296 | H140: 731
D141: 219200490 | E141: COMMUNE DE MONTROUGE | F141: 92 | G141: 47907 | H141: 1123
D142: 211300058 | E142: COMMUNE D AUBAGNE | F142: 13 | G142: 47190 | H142: 963
D143: 213502883 | E143: COMMUNE DE SAINT MALO | F143: 35 | G143: 46995 | H143: 870
D144: 200082139 | E144: COMMUNE LES SABLES D OLONNE | F144: 85 | G144: 46941 | H144: 443
D145: 212702294 | E145: COMMUNE DE EVREUX | F145: 27 | G145: 46869 | H145: 996
D146: 219300274 | E146: COMMUNE DE LA COURNEUVE | F146: 93 | G146: 46828 | H146: 1038
D147: 211100698 | E147: COMMUNE DE CARCASSONNE | F147: 11 | G147: 46673 | H147: 861
D148: 214100182 | E148: COMMUNE DE BLOIS | F148: 41 | G148: 46660 | H148: 1148
D149: 210800967 | E149: COMMUNE DE CHARLEVILLE MEZIERES | F149: 08 | G149: 46388 | H149: 914
D150: 219400223 | E150: COMMUNE DE CHOISY LE ROI | F150: 94 | G150: 46229 | H150: 939
D151: 211903109 | E151: COMMUNE DE BRIVE LA GAILLARDE | F151: 19 | G151: 45910 | H151: 1028
D152: 219200482 | E152: COMMUNE DE MEUDON | F152: 92 | G152: 45825 | H152: 715
D153: 219300464 | E153: COMMUNE DE LIVRY GARGAN | F153: 93 | G153: 45618 | H153: 926
D154: 219000106 | E154: COMMUNE DE BELFORT | F154: 90 | G154: 45458 | H154: 824
D155: 219300647 | E155: COMMUNE DE ROSNY SOUS BOIS | F155: 93 | G155: 45442 | H155: 899
D156: 219400025 | E156: COMMUNE D ALFORTVILLE | F156: 94 | G156: 45151 | H156: 661
D157: 217100767 | E157: COMMUNE DE CHALON SUR SAONE | F157: 71 | G157: 45094 | H157: 797
D158: 219300530 | E158: COMMUNE DE NOISY LE SEC | F158: 93 | G158: 45043 | H158: 924
D159: 211301031 | E159: COMMUNE DE SALON DE PROVENCE | F159: 13 | G159: 45009 | H159: 931
D160: 213403017 | E160: COMMUNE DE SETE | F160: 34 | G160: 44576 | H160: 779
D161: 211300470 | E161: COMMUNE D ISTRES | F161: 13 | G161: 44438 | H161: 1477
D162: 200086924 | E162: COMMUNE DE SAINT GERMAIN EN LAYE | F162: 78 | G162: 44410 | H162: 747
D163: 213305220 | E163: COMMUNE DE TALENCE | F163: 33 | G163: 44359 | H163: 685
D164: 215101015 | E164: COMMUNE DE CHALONS EN CHAMPAGNE | F164: 51 | G164: 44336 | H164: 723
D165: 212202782 | E165: COMMUNE DE SAINT BRIEUC | F165: 22 | G165: 44166 | H165: 903
D166: 219200623 | E166: COMMUNE DE PUTEAUX | F166: 92 | G166: 44009 | H166: 1606
D167: 217803618 | E167: COMMUNE DE MANTES LA JOLIE | F167: 78 | G167: 43945 | H167: 847
D168: 216900340 | E168: COMMUNE DE CALUIRE ET CUIRE | F168: 69 | G168: 43355 | H168: 639
D169: 213600448 | E169: COMMUNE DE CHATEAUROUX | F169: 36 | G169: 43331 | H169: 560
D170: 219502689 | E170: COMMUNE DE GARGES LES GONESSE | F170: 95 | G170: 43215 | H170: 848
D171: 214401432 | E171: COMMUNE DE REZE | F171: 44 | G171: 42993 | H171: 939
D172: 216504407 | E172: COMMUNE DE TARBES | F172: 65 | G172: 42925 | H172: 887
D173: 213000078 | E173: COMMUNE D ALES | F173: 30 | G173: 42867 | H173: 522
D174: 215906066 | E174: COMMUNE DE VALENCIENNES | F174: 59 | G174: 42738 | H174: 812
D175: 216900290 | E175: COMMUNE DE BRON | F175: 69 | G175: 42442 | H175: 555
D176: 218100659 | E176: COMMUNE DE CASTRES | F176: 81 | G176: 42394 | H176: 777
D177: 216200410 | E177: COMMUNE D ARRAS | F177: 62 | G177: 42337 | H177: 803
D178: 210600300 | E178: COMMUNE LE CANNET | F178: 06 | G178: 42125 | H178: 691
D179: 219200078 | E179: COMMUNE DE BAGNEUX | F179: 92 | G179: 41967 | H179: 987
D180: 210100533 | E180: COMMUNE DE BOURG EN BRESSE | F180: 01 | G180: 41681 | H180: 867
D181: 217702885 | E181: COMMUNE MELUN | F181: 77 | G181: 41609 | H181: 1011
D182: 211600150 | E182: COMMUNE D ANGOULEME | F182: 16 | G182: 41407 | H182: 976
D183: 215706722 | E183: COMMUNE DE THIONVILLE | F183: 57 | G183: 41383 | H183: 656
D184: 215906504 | E184: COMMUNE DE WATTRELOS | F184: 59 | G184: 41015 | H184: 882
D185: 216201608 | E185: COMMUNE DE BOULOGNE SUR MER | F185: 62 | G185: 40588 | H185: 795
D186: 216001586 | E186: COMMUNE DE COMPIEGNE | F186: 60 | G186: 40453 | H186: 717
D187: 216400242 | E187: COMMUNE D ANGLET | F187: 64 | G187: 40310 | H187: 690
D188: 210500617 | E188: COMMUNE DE GAP | F188: 05 | G188: 40111 | H188: 643
D189: 213101496 | E189: COMMUNE DE COLOMIERS | F189: 31 | G189: 39866 | H189: 1213
D190: 215901786 | E190: COMMUNE DE DOUAI | F190: 59 | G190: 39842 | H190: 728
D191: 212601983 | E191: COMMUNE DE MONTELIMAR | F191: 26 | G191: 39790 | H191: 376
D192: 217804988 | E192: COMMUNE DE POISSY | F192: 78 | G192: 39731 | H192: 689
D193: 219722139 | E193: COMMUNE DU LAMENTIN | F193: 972 | G193: 39628 | H193: 720
D194: 219300324 | E194: COMMUNE DE GAGNY | F194: 93 | G194: 39588 | H194: 623
D195: 218300507 | E195: COMMUNE DE DRAGUIGNAN | F195: 83 | G195: 39434 | H195: 626
D196: 219300720 | E196: COMMUNE DE STAINS | F196: 93 | G196: 39193 | H196: 840
D197: 200046977 | E197: Métropole de Lyon | F197: 69 - Rhône | G197: 1432690 | H197: 9123
D198: 200054807 | E198: Métropole d'Aix-Marseille-Provence | F198: 13 - Bouches-du-Rhône | G198: 1925136 | H198: 7900
D199: 246700488 | E199: Eurométropole de Strasbourg | F199: 67 - Bas-Rhin | G199: 517033 | H199: 7328
D200: 243300316 | E200: Bordeaux Métropole | F200: 33 - Gironde | G200: 830284 | H200: 5728
... 503 more rows

Sheet A_LIRE
U1: 1
U2: 1
A23: Cette fiche synthétique reprend les principaux indicateurs sociaux issus du RSU 2023. Ces données ont pour objectif de bénéficier d'une vue d'ensemble sur les effectifs de la collectivité. L'outil automatisé permettant la réalisation de cette synthèse a été développé par le Comité Technique des Chargés d'études des Observatoires Régionaux des Centres de Gestion.
A33: Version 1
A35: Votre collectivité est-elle concernée par l'index DGCL égalité femme homme ? | F35: =IF(U1="","",IF(I44="OK","OUI","NON")) -> OUI | J35: >>> Documentation explicative
A37: L'obligation pour les employeurs de produire un index répond à trois conditions cumulatives: La première condition dépend de la nature juridique de la structure, ainsi un index doit être établi chaque année par les régions, les départements et le Conseil national de la fonction publique territoriale. Pour les communes et les établissements publics de coopération intercommunale cette condition s'accompagne d'un seuil de plus de 40 000 habitants en 2022 et 2023. Dans le cas des communes surclassées démographiquement, c'est la population sur pondérée qui est prise en compte. La deuxième condition est relative au nombre d'agents de la structure. Pour qu'une des structures mentionnées ci-dessus produise un index, celle-ci doit avoir rémunéré au moins 50 agents permanents en 2022 et 2023, et que la structure existe depuis le 1er janvier 2022. La troisième et dernière condition est qu'il y ait au moins deux des quatres indicateurs de l'index qui soient calculables.
I44: =IF(AND((synthese!D69+synthese!D70)>49,ISNA(VLOOKUP(VALUE(LEFT(Infos_col!D3,9)),listcollindex!D:D,1,FALSE))=FALSE),"OK","KO") -> OK

Sheet operasiret (hidden)
A1: siret
A2: 20005650500015
A3: 44042396000010

Sheet Page de garde
A2: NOM DE LA COLLECTIVITE TERRITORIALE :
A3: CC DE LACQ-ORTHEZ
A6: Nom du correspondant : | H6: Chartier Sylvain
A8: N° Département : | G8: 64 | P8: Téléphone : | T8: 0559607351
A10: Code postal : | F10: 64150 | P10: Adresse mail : | S10: s-chartier@cc-lacqorthez.fr
A13: RAPPORT SOCIAL UNIQUE
A14: PRÉSENTÉ AU COMITÉ SOCIAL TERRITORIAL ET À l'ASSEMBLÉE DÉLIBÉRANTE
A15: AU 31 DECEMBRE 2023
A17: LISTE NORMALISÉE DES INFORMATIONS DISPONIBLES
A19: Conformément à la loi du 6 août 2020 et au décret n° 2020-1493 du 30 novembre 2020 relatif à la base de données sociales et au rapport social unique dans la fonction publique
A23: Informations complémentaires pour l'exploitation statistique du rapport
A26: N° SIRET de la collectivité : | H26: 20003920400017
A29: Type de collectivité : | H29: 13 - Communauté de communes
A33: Veuillez préciser :
A37: * Est-elle affiliée au Centre de gestion ? | Y37: Oui
A39: * Dispose-t-elle de son propre CST ? | Y39: Oui
A48: 01 - Région (y compris collectivités territoriales uniques de Martinique, de Guyane et de Corse)
A49: 02 - Département
A50: 03 - Service départemental d'incendie et de secours
A51: 04 - Centre de gestion de la fonction publique territoriale
A52: 05 - Centre national de la fonction publique territoriale
A53: 06 - Commune (y compris commune nouvelle)
A54: 07 - Centre communal d'action sociale (CCAS)
A55: 08 - Caisse des écoles (CDE)
A56: 09 - Caisse de crédit municipal
A57: 10 - Métropole (y compris métropole de Lyon)
A58: 11 - Communauté urbaine
A59: 12 - Communauté d'agglomération
A60: 13 - Communauté de communes
A61: 14 - Centre intercommunal d'action sociale (CIAS)
A62: 15 - Syndicat de communes à vocation multiple
A63: 16 - Syndicat de communes à vocation unique
A64: 17 - Syndicat mixte
A65: 18 - Pôle d'équilibre territorial et rural (PETR)
A66: 19 - Office public de l'habitat (OPHLM - ODHLM)
A67: 20 - Pôle métropolitain
A68: 21 - Autre établissement public intercommunal
A69: 22 - Autre

Sheet Infos_col
A1: LB_COLL | B1: CD_DEPA | C1: CD_POST | D1: NM_SIRE | E1: LB_TYPE_COLL | F1: CD_DGCL | G1: BL_AFFI_COLL | H1: BL_CT_CDG | I1: LB_NOM | J1: LB_PREN | K1: LB_TELE | L1: LB_MAIL | M1: FICHIER | N1: BSC
D2: 11111111111111
A3: CC DE LACQ-ORTHEZ | B3: 64 | C3: 64150 | D3: 20003920400017 | E3: Communauté de communes | F3: 13 | G3: Oui | H3: Oui | I3: Chartier | J3: Sylvain | K3: 0559607351 | L3: s-chartier@cc-lacqorthez.fr | M3: RSU_2023_20003920400017 | N3: 10533

Sheet Handitorial (hidden)

Sheet RASSCT (hidden)

Sheet RASSCT (actions) (2) (hidden)

Sheet RASSCT (actions) (3) (hidden)

Sheet RASSCT (actions) (4) (hidden)

Sheet RASSCT (actions) (5) (hidden)

Sheet GPEEC (hidden)

Sheet Sommaire
A1: Sommaire
A3: Cliquez dans la colonne "onglet" pour accéder directement à l'onglet désiré. | B3: Onglet
A5: A - L'EMPLOI
A7: Agents sur des emplois fonctionnels de direction
A8: - IND 1.1.0 - Nombre d'agents occupant un emploi fonctionnel rémunérés au 31/12/2023, par statut d'origine, cadre d'emplois, sexe et grade de détachement | B8: IND 1.1.0
A10: Les effectifs physiques et les effectifs en équivalent temps plein de fonctionnaires et caractéristiques des emplois
A11: - IND 1.1.1 - Nombre de fonctionnaires occupant un emploi permanent rémunérés au 31/12/2023 par filière, cadre d'emploi et grade, selon les caractéristiques de l'emploi et selon le sexe | B11: IND 1.1.1
A12: - IND 1.1.4 - Nombre de fonctionnaires en Equivalent Temps Plein Rémunéré (ETPR) en 2023 par filière déclinée par catégorie hiérarchique et par sexe | B12: IND 1.1.4
A14: Les effectifs physiques et les effectifs en équivalent temps plein des contractuels et caractéristiques des emplois
A15: - IND 1.2.1 - Nombre d'agents contractuels occupant un emploi permanent rémunérés au 31/12/2023 par filière et cadre d'emplois, selon le type de contrat et le type de recrutement | B15: IND 1.2.1
A16: - IND 1.2.4 - Nombre de contractuels en Equivalent Temps Plein Rémunéré (ETPR) en 2023 par filière déclinée par catégorie et par sexe | B16: IND 1.2.4
A17: - IND 1.2.5 - Nombre de CDI conclus au cours de l'année 2023 | B17: IND 1.2.5
A18: - IND 1.3.1 - Autres contractuels sur emploi non permanent, en effectif physique et en ETPR, selon le sexe | B18: IND 1.3.1
A20: Les autres personnels
A21: - IND 1.3.2 - Recours à du personnel temporaire, mis à disposition par les CDG par filière ou intérimaires, selon le sexe | B21: IND 1.3.2
A23: Pyramide des âges des agents
A24: - IND 1.4.0 - Répartition par sexe et tranche d'âge des effectifs des fonctionnaires et des contractuels présents dans les effectifs au 31/12/2023 | B24: IND 1.4.0
A26: Positions statutaires particulières au 31 décembre 2023 des agents gérés par la collectivité territoriale
A27: - IND 1.4.1 - Nombre d'agents originaires de la collectivité | B27: IND 1.4.1-1.4.4
A28: - IND 1.4.2 - Nombre d'agents originaires d'une autre structure | B28: IND 1.4.1-1.4.4
A29: - IND 1.4.3 - Nombre d'agents originaires d'une autre structure mis à disposition | B29: IND 1.4.1-1.4.4
A30: - IND 1.4.4 - Fonctionnaires pris en charge par le CDG ou le CNFPT (articles 53 et 97) | B30: IND 1.4.1-1.4.4
A32: Bénéficiaires de l'obligation d'emploi (travailleurs en situation de handicap)
A33: - IND 1.6.1 - Nombre d'agents en situation de handicap bénéficiant de l'obligation d'emploi des travailleurs handicapés (y compris reclassés) par catégorie hiérarchique, statut et sexe | B33: IND 1.6.1
A34: - IND 1.6.2 - Respect des obligations d'emploi : dépenses couvrant partiellement l'obligation d'emploi et taux d'emploi | B34: IND 1.6.2
A36: Autorisation d'exercice d'une activité accessoire
A37: - IND 1.8.1 - Nombre de fonctionnaires et de contractuels sur emploi permanent autorisés à exercer une activité accessoire | B37: IND 1.8.1
A40: B - RECRUTEMENT
A43: - IND 1.9.0 - Bilan des arrivées et départs dans l'année 2023 | B43: IND 1.9.0
A44: - IND 1.9.1 - Arrivées d'agents sur emploi fonctionnel au cours de l'année 2023, par statut d'origine, selon le grade de détachement et le sexe | B44: IND 1.9.1
A45: - IND 1.9.2 - Arrivées de fonctionnaires dans l'année 2023, par cadre d'emplois, selon le motif de recrutement | B45: IND 1.9.2
A46: - IND 1.9.3 - Arrivées de contractuels sur emploi permanent dans l'année 2023, par filière et cadre d'emplois, selon les caractéristiques de l'emploi et le sexe | B46: IND 1.9.3
A50: C - PARCOURS PROFESSIONNEL
A52: Flux de sortie des agents occupant un emploi permanent
A53: - IND 1.9.4.0 - Départs dans l'année 2023, par motif de départ et selon le sexe et la catégorie | B53: IND 1.9.4.0
A54: - IND 1.9.4.1 - Nombre de procédure de rupture conventionnelle au cours de l'année 2023, par sexe et catégorie hiérarchique | B54: IND 1.9.4.1-1.9.4.2
A55: - IND 1.9.4.2 - Nombre de conventions de rupture conventionnelle signées au cours de l'année 2023, par sexe et par catégorie hiérarchique | B55: IND 1.9.4.1-1.9.4.2
A57: Evolution de carrière
A58: - IND 1.9.5 - Titularisation et stages au cours de l'année 2023 | B58: IND 1.9.5-1.9.6.1
A59: - IND 1.9.6.1. - Avancements et promotion interne dans l'année 2023 | B59: IND 1.9.5-1.9.6.1
A60: - IND 1.9.6.2 - Avancements de grade dans l'année 2023 par filière et catégorie hiérarchique | B60: IND 1.9.6.2
A61: - IND 1.9.7 - Nombre d'agents fonctionnaires et contractuels sur emploi permanent ayant bénéficié d'un accompagnement par un conseiller en évolution professionnelle en 2023 | B61: IND 1.9.7
A62: - IND 1.9.8 - Nombre de lauréats sur les listes d’aptitude des concours et examens professionnels, par filière, cadre d’emplois, sexe | B62: IND 1.9.8
A63: - IND 1.9.9 - Nombre de fonctionnaires bénéficiaires des modalités dérogatoires d'accès par la voie du détachement à un cadre d'emplois de niveau supérieur ou de catégorie supérieure | B63: IND 1.9.9
A68: D - ORGANISATION DU TRAVAIL
A70: Congés et absences
A71: - IND 2.1.0 - Nombre de journées de congés supplémentaires accordées à l'ensemble des agents | B71: IND 2.1.0
A72: - IND 2.1.1 - Nombre de fonctionnaires ayant été absents au moins un jour dans l'année par motif (hors formation, journées de grève et absences syndicales), présents dans les effectifs au 31/12/2023 | B72: IND 2.1.1
A73: - IND 2.1.2 - Nombre de contractuels sur emploi permanent ayant été absents au moins un jour dans l'année par motif (hors formation, journées de grève et absences syndicales), présents au 31/12/2023 | B73: IND 2.1.2
A74: - IND 2.1.3 - Nombre de contractuels sur emploi non permanent ayant été absents au moins un jour dans l'année, par motif (hors formation, journées de grève et absences syndicales), présents au 31/12/2023 | B74: IND 2.1.3
A75: - IND 2.1.4 - Congés de paternité et d'accueil de l'enfant des agents fonctionnaires et contractuels sur emploi permanent, par catégorie hiérarchique | B75: IND 2.1.4-2.1.6
A76: - IND 2.1.5 - Congés de présence parentale des fonctionnaires et contractuels sur emploi permanent, par sexe et par catégorie hiérarchique | B76: IND 2.1.4-2.1.6
A77: - IND 2.1.6 - Congés de solidarité familiale des fonctionnaires et contractuels sur emploi permanent, par sexe et catégorie hiérarchique | B77: IND 2.1.4-2.1.6
A78: - IND 2.1.7 - Entretiens avant et après des congés de six mois ou plus | B78: IND 2.1.7
A79: - IND 2.1.8 - Nombre de jours de carence par sexe,par tranche d'âge, par catégorie hiérarchique et montants des sommes brutes retenues | B79: IND 2.1.8
A80: - IND 2.1.9 - Modalités de contrôle des arrêts maladie | B80: IND 2.1.9
A81: - IND 2.2.0 - Congés de proche aidant des fonctionnaires et contractuels sur emploi permanent, par sexe et par catégorie hiérarchique | B81: IND 2.2.0
A83: Temps de travail
A84: - IND 2.2.1 - Modalités d'organisation du temps de travail | B84: IND 2.2.1-2.2.3
A85: - IND 2.2.2 - Contraintes particulières concernant le temps de travail | B85: IND 2.2.1-2.2.3
A86: - IND 2.2.3 - Compte épargne-temps | B86: IND 2.2.1-2.2.3
A87: - IND 2.2.4 - Nombre de jours donnés dans le cadre du dispositif de don de jours par type de jours | B87: IND 2.2.4
A88: - IND 2.2.5 - Charte du temps | B88: IND 2.2.5
A89: - IND 2.2.8 - Nombre d'heures supplémentaires et complémentaires réalisées et rémunérées en 2023, par sexe, filière et cadre d'emplois | B89: IND 2.2.8
A90: - IND 2.2.9 - Nombre d’heures réalisées au-delà des bornes horaires définies par le cycle de travail n’ayant donné lieu ni à rémunération ni à récupération en 2023 | B90: IND 2.2.9
A93: Temps partiel
A94: - IND 2.3.1 - Informations relatives au temps partiel prévu par l'article 60 de la loi du 26 janvier 1984 | B94: IND 2.3.1
A95: - IND 2.3.2 - Quotité de temps de travail des fonctionnaires occupant un emploi à temps complet rémunérés au 31/12/2023 par filière, cadre d'emplois et selon le sexe | B95: IND 2.3.2
A96: - IND 2.3.3 - Nombre de fonctionnaires bénéficiaires d'un temps partiel de droit ou sur autorisation par catégorie et sexe | B96: IND 2.3.3
A97: - IND 2.3.4 - Nombre d'agents contractuels occupant un emploi permanent à temps complet rémunérés au 31/12/2023 par filière, cadre d'emplois et selon la quotité de temps de travail et le sexe | B97: IND 2.3.4
A98: - IND 2.3.5 - Nombre d'agents contractuels bénéficiaires d'un temps partiel de droit ou sur autorisation par catégorie et sexe | B98: IND 2.3.5
A99: - IND 2.3.6 - Nombre de fonctionnaires et d’agents contractuels bénéficiaires de plein droit d’un temps partiel annualisé à l'issue de leur congé de maternité, d'adoption ou de paternité et d'accueil de l'enfant | B99: IND 2.3.6
A101: Télétravail
A102: - IND 2.4.1 - Nombre de demandes d’exercice des fonctions dans le cadre du télétravail, de refus prononcés et d'agents exerçant leur fonctions dans le cadre du télétravail par sexe, par catégorie hiérarchique et par filière | B102: IND 2.4.1
A103: - IND 2.4.2 - Modalités d'exercice des fonctions exercées dans le cadre du télétravail | B103: IND 2.4.2
A107: E - REMUNERATIONS
A109: Rémunérations
A110: - IND 3.1.1 - Rémunérations des fonctionnaires ayant travaillé au moins un jour durant l'année 2023 | B110: IND 3.1.1-3.3.1 et 3.4.1-3.4.3
A111: - IND 3.2.1 - Rémunérations des contractuels occupant un emploi permanent ayant travaillé au moins un jour durant l'année 2023 | B111: IND 3.1.1-3.3.1 et 3.4.1-3.4.3
A112: - IND 3.3.1 - Rémunérations des agents sur emploi non permanent ayant travaillé au moins un jour durant l'année 2023 | B112: IND 3.1.1-3.3.1 et 3.4.1-3.4.3
A113: - IND 3.3.9 - Nombre de contractuels ayant bénéficié d’une indemnité de fin de contrat | B113: IND 3.3.9
A114: - IND 3.4.0 - Ecart de rémunération hommes-femmes | B114: IND 3.4.0
A115: - IND 3.4.0.1 - Masse salariale brute annuelle cumulée des dix rémunérations les plus élevées en 2023 | B115: IND 3.4.0.1
A117: Indemnisation chômage
A118: - IND 3.4.1 - Indemnisation du chômage pour les titulaires | B118: IND 3.1.1-3.3.1 et 3.4.1-3.4.3
A119: - IND 3.4.2 - Indemnisation du chômage pour les contractuels | B119: IND 3.1.1-3.3.1 et 3.4.1-3.4.3
A120: - IND 3.4.3 - Maintien des primes en cas de congé de maladie ordinaire | B120: IND 3.1.1-3.3.1 et 3.4.1-3.4.3
A122: Dépenses de fonctionnement
A123: - IND 3.4.7 - Dépenses de fonctionnement de la collectivité et dépenses de personnel | B123: IND 3.4.7
A125: F - SANTE ET SECURITE AU TRAVAIL
A127: Risques professionnels et mesures en matière de sécurité
A128: - IND 4.1.1 - Agents affectés à la prévention | B128: IND 4.1.1-4.1.2
A129: - IND 4.1.2 - Actions liées à la prévention dans l'année 2023 | B129: IND 4.1.1-4.1.2
A130: - IND 4.1.3 - Nombre de visites médicales sur demande de l'agent | B130: IND 4.1.3
A131: - IND 4.1.4 - Existence d'un document unique d'évaluation des risques professionnels | B131: IND 4.1.4-4.1.8
A132: - IND 4.1.5 - Existence d'un plan de prévention des Risques psychosociaux | B132: IND 4.1.4-4.1.8
A133: - IND 4.1.6 - Existence de démarche de prévention des risques | B133: IND 4.1.4-4.1.8
A134: - IND 4.1.7 - Existence d'un registre de santé et sécurité | B134: IND 4.1.4-4.1.8
A135: - IND 4.1.8 - Existence d'un registre de danger grave et imminent | B135: IND 4.1.4-4.1.8
A136: - IND 4.2.5 - Contrat d'assurance statutaire pour la prise en charge du risque maladie | B136: IND 4.2.5
A137: - IND 4.2.6 - Nombre d'agents bénéficiant d'une surveillance médicale particulière et nombre d'agents occupant des postes dans des services comportant des risques spéciaux | B137: IND 4.2.6
A139: Protection fonctionnelle
A140: - IND 4.2.7 - Nombre de demandes de protection fonctionnelle et nombre de décisions accordant la protection fonctionnelle selon que l’agent soit mis en cause ou qu’il soit victime. | B140: IND 4.2.7
A141: - IND 4.2.8 - Nombre d’accidents mortels selon le genre | B141: IND 4.2.8
A142: Accidents du travail, maladies professionnelles et violences physiques sur agents
A143: - IND 4.2.1 - Accidents du travail reconnus dans l'année 2023 et jours d'arrêts de travail liés aux accidents survenus en 2023 ou avant | B143: IND 4.2.1
A144: - IND 4.2.2 - Maladies professionnelles reconnues en 2023 et jours d'arrêts de travail liés à l'ensemble des maladies professionnelles reconnues | B144: IND 4.2.2
A145: - IND 4.2.4 - Nombre d'allocations temporaires d'invalidité (ATI) attribuées au cours de l'année 2023 | B145: IND 4.2.4
A146: - IND 4.3.1 - Nombre de signalements pour actes de violences physiques, de violences sexuelles, de discrimination, harcèlement moral et harcèlement sexuel, agissement sexistes, menaces ou actes d'intimidation envers le personnel au cours de l'année 2023 | B146: IND 4.3.1
A147: - IND 4.3.2 - Modalités de mise en œuvre du dispositif de signalement | B147: IND 4.3.2
A149: Inaptitudes
A150: - IND 4.4.1 - Inaptitudes au cours de l'année 2023 | B150: IND 4.4.1
A152: Suicides
A153: - IND 4.5.1 - Suicides au cours de l'année 2023 | B153: IND 4.5.1
A155: G - FORMATION
A157: - IND 5.1.1.1 - Tableau récapitulatif - Fonctionnaires et contractuels sur un emploi permanent présents dans les effectifs au 31/12/2023 ayant participé à au moins une formation en 2023 | B157: IND 5.1.1
A158: - IND 5.1.1.2 - Journées de formation suivies par les fonctionnaires et contractuels sur un emploi permanent présents au 31/12/2023 et nombre d'agents sur emploi permanent ayant participé à au moins une journée de formation en 2023 | B158: IND 5.1.1
A160: - IND 5.1.2.1 - Journées de formation suivies par les agents sur un emploi non permanent au cours de l'année 2023 | B160: IND 5.1.2
A161: - IND 5.1.3 - Validation de l'expérience, bilan de compétence et congé de formation dans l'année 2023 | B161: IND 5.1.3
A162: - IND 5.1.4 - Coûts de formation | B162: IND 5.1.4
A164: H - ACTION SOCIALE ET PROTECTION SOCIALE
A166: Action Sociale
A167: - IND 7.1.1 - Dépenses engagées pour la réalisation des prestations d'action sociale | B167: IND 7.1.1-7.1.3
A168: - IND 7.1.2 - Modalités de mise en œuvre de l'action sociale | B168: IND 7.1.1-7.1.3
A169: - IND 7.1.3 - Nombre de bénéficiaires des prestations d'action sociale par type de prestation | B169: IND 7.1.1-7.1.3
A171: Protection Sociale
A172: - IND 7.2.0 - Existence d'un accord collectif sur la protection sociale complémentaire | B172: IND 7.2.0-7.2.2
A173: - IND 7.2.1 - Procédure retenue par la collectivité pour la protection sociale complémentaire santé et prévoyance | B173: IND 7.2.0-7.2.2
A174: - IND 7.2.2 - Nombre de bénéficiaires et montants de participations | B174: IND 7.2.0-7.2.2
A176: I - DIALOGUE SOCIAL
A178: Réunions statutaires
A179: - IND 6.1.0 - Nombre de représentants du personnel par type d'instance | B179: IND 6.1.0
A180: - IND 6.1.1 - Nombre de réunions au cours de l'année | B180: IND 6.1.1-6.1.3
A181: - IND 6.1.1.4 - Nombre de saisine de la CAP ou de la CCP | B181: IND 6.1.1-6.1.3
A183: Droits syndicaux
A184: - IND 6.1.2 - Droits syndicaux | B184: IND 6.1.1-6.1.3
A186: Négociations et accords collectifs
A187: - IND 6.1.5 Nombre de négociations engagées et nombre d’accords collectifs conclus et signés au cours de l’année | B187: IND 6.1.5
A189: Conflits du travail
A190: - IND 6.1.6 - Existence d’un accord visant à assurer la continuité des services publics en cas de grève des agents ou, à défaut, d’une délibération de l’organe délibérant. | B190: IND 6.1.6
A191: - IND 6.1.3 - Nombre de jours de grêves en heure agent | B191: IND 6.1.1-6.1.3
A194: J - DISCIPLINE
A196: - IND 8.1.1 - Nombre de sanctions disciplinaires prononcées dans l'année | B196: IND 8.1.1
A199: H- MESURES INDIVIDUELLES EN FAVEUR DE L'ENVIRONNEMENT
A201: - IND 9.1.1 - Nombre d'agents, par sexe, qui bénéficient du remboursement des frais de trajets domicile – travail en transport en commun | B201: IND 9.1.1-9.1.3
A202: - IND 9.1.2 - Nombre d'agents, par sexe, qui bénéficient du forfait de mobilité durable | B202: IND 9.1.1-9.1.3
A203: - IND 9.1.2 -Nombre d'agents, par sexe, qui bénéficient de la prime de covoiturage | B203: IND 9.1.1-9.1.3

Sheet synthese (hidden)
B1: SYNTHÈSE DU RAPPORT SOCIAL UNIQUE 2023 | GO1: Cadre d'emploi F | GP1: Fonctionnaires | GQ1: Contractuel P | GR1: tt agent | GS1: Rang | GT1: Rang 2 | GU1: % | GV1: Cadre | GW1: Catégorie | GX1: tt agent | GY1: Fonctionnaires | GZ1: Contractuel P
GO2: Administrateurs | GP2: ='IND 1.1.1'!I23 -> 0 | GQ2: ='IND 1.2.1'!L15 -> 0 | GR2: =GP2+GQ2 -> 0 | GS2: =RANK(GR2,$GR$1:$GR$60,0)+COUNTIF(GR$1:GR2,GR2)-1 -> 21 | GT2: =GS2 -> 21 | GU2: =$GX2/SUM($GX$2:$GX$60) -> 0 | GV2: =GO2 -> Administrateurs | GW2: A | GX2: =GR2 -> 0 | GY2: =GP2 -> 0 | GZ2: =GQ2 -> 0
L3: Æ | M3: =IF(D69+D70<2,"Répartition par temps de travail, complet ou non complet ","Répartition des agents à temps complet ou non complet") -> Répartition des agents à temps complet ou non complet | R3: Æ | S3: =IF(AND('IND 1.1.1'!B385+'IND 1.2.1'!M94=0),"Aucun agent à temps complet ", IF(D69+D70<2,"Répartition des temps travail, temps plein ou temps partiel ","Répartition des agents à temps plein ou à temps partiel")) -> Répartition des agents à temps plein ou à temps partiel | X3: Æ | Y3: ="En 2023, "& IF(AF126+AG126=0, "aucune arrivée d'agent permanent", IF(AF126+AG126<2,AF126+AG126&" arrivée d'agent permanent", TEXT(AF126+AG126,"# ##0")&" arrivées d'agents permanents")) & IF(AF106+AG106=0, " et aucun départ ", IF(AF106+AG106<2, " et "&AF106+AG106&" départ ", " et "&TEXT(AF106+AG106,"# ##0")&" départs ")) -> En 2023, 16 arrivées d'agents permanents et 55 départs | AD3: Æ | AE3: =IF(AF106+AG106=0, "Aucun départ d'agent permanent en 2023", "Principales causes de départ d'agents permanents") -> Principales causes de départ d'agents permanents | AW3: Æ | AX3: =IF(D69+D70=0,"Aucun agent dans la collectivité",IF(D69=0,BD3,IF(SUM('IND 2.1.1'!$F$15:$G$21)=0, "Aucun jour d’absence pour motif médical concernant les fonctionnaires en 2023", IF(ROUND(SUM('IND 2.1.1'!$F$15:$G$21)/D69,1)>2, "En moyenne, "&ROUND((SUM('IND 2.1.1'!$F$15:$G$21))/D69,1)&" jours d’absence pour tout motif médical en 2023 par fonctionnaire ", "En moyenne, "&ROUND((SUM('IND 2.1.1'!$F$15:$G$21))/D69,1)&" jour d’absence pour tout motif médical en 2023 par fonctionnaire")))) -> En moyenne, 39,7 jours d’absence pour tout motif médical en 2023 par fonctionnaire | BC3: =IF(D69=0,"",IF(D70=0,"",">")) -> > | BD3: =IF(D70=0,"",IF(SUM('IND 2.1.2'!$F$15:$G$20)=0,"Aucun jour d’absence pour motif médical concernant les agents contractuels en 2023", IF(SUM('IND 2.1.2'!$F$15:$G$20)/D70>1,"En moyenne, "&ROUND(SUM('IND 2.1.2'!$F$15:$G$20)/D70,1)&" jours d’absence pour tout motif médical en 2023 par agent contractuel permanent ","En moyenne, "&ROUND(SUM('IND 2.1.2'!$F$15:$G$20)/D70,1)&" jour d’absence pour tout motif médical en 2023 par agent contractuel permanent " ))) -> En moyenne, 10,1 jours d’absence pour tout motif médical en 2023 par agent contractuel permanent | BI3: Æ | BJ3: =IF('IND 5.1.1'!$F$15=0,"Aucun agent titulaire ou contractuel permanent n'a bénéficié d'un départ en formation en 2023", "En 2023, "&TEXT(BK102*100,"##,0")&"% des agents permanents ont suivi une formation "&CHAR(10)&"d'au moins un jour") -> En 2023, 63,5% des agents permanents ont suivi une formation d'au moins un jour | BP3: =IF(BQ3=" "," ","Æ") -> Æ | BQ3: =IF(D69+D70=0," ",IF(D69+D70<2, IF(BS102=0,"Aucun jour de formation suivi en 2023",IF(BS102<2,ROUND(BS102,0)&" jour de formation suivi en 2023",TEXT(ROUND(BS102,0),"# ##0")&" jours de formation suivis par l'agents permanents en 2023")), IF(BS102=0,"Aucun jour de formation suivi par des agents permanents en 2023",IF(BS102<2,ROUND(BS102,0)&" jour de formation suivi en 2023",TEXT(ROUND(BS102,0),"# ##0")&" jours de formation suivis par les agents sur emploi permanent en 2023")))) -> 1 078 jours de formation suivis par les agents sur emploi permanent en 2023 | BU3: Æ | BV3: 1Formules de calcul - Effectif théorique au 31/12/2022 | GO3: Attachés | GP3: ='IND 1.1.1'!I30 -> 18 | GQ3: ='IND 1.2.1'!L16 -> 2 | GR3: =GP3+GQ3 -> 20 | GS3: =RANK(GR3,$GR$1:$GR$60,0)+COUNTIF(GR$1:GR3,GR3)-1 -> 6 | GT3: =GS3 -> 6 | GU3: =$GX3/SUM($GX$2:$GX$60) -> 0.04901960784 | GV3: =GO3 -> Attachés | GW3: A | GX3: =GR3 -> 20 | GY3: =GP3 -> 18 | GZ3: =GQ3 -> 2
AI4: Æ | AJ4: =IF(AL6="0 €","Informations manquantes","Les charges de personnel représentent "&ROUND($AP$62,2)&" % des dépenses de fonctionnement") -> Les charges de personnel représentent 38,06 % des dépenses de fonctionnement | GJ4: Numéro | GK4: Région | GL4: Colonne2 | GO4: Secrétaires de mairie | GP4: ='IND 1.1.1'!I33 -> 0 | GQ4: ='IND 1.2.1'!L17 -> 0 | GR4: 0 | GS4: =RANK(GR4,$GR$1:$GR$60,0)+COUNTIF(GR$1:GR4,GR4)-1 -> 22 | GT4: 22 | GU4: 0 | GV4: Secrétaires de mairie | GW4: A | GX4: 0 | GY4: 0 | GZ4: 0
B5: Æ | C5: ='Page de garde'!A3 -> CC DE LACQ-ORTHEZ | BV5: Pour les fonctionnaires : Total de l'effectif physique rémunéré des fonctionnaires au 31/12/2023 + Départs définitifs de titulaires ou de stagiaires + Départs temporaires non rémunérés - Arrivées de titulaires ou de stagiaires - Stagiairisation de contractuels de la collectivité - Retours de titulaires stagiaires | CA5: Pour les contractuels permanents : Total de l'effectif physique rémunéré des contractuels au 31/12/2023 + Départs définitifs de contractuels + Départs temporaires non rémunérés + Stagiairisation de contractuels de la collectivité - Arrivées de contractuels - Retours de contractuels | CG5: =IF(BM36="","","Santé") -> Santé | GJ5: 67 | GK5: Alsace | GL5: Centre de Gestion du Bas-Rhin | GO5: Rédacteurs | GP5: ='IND 1.1.1'!I40 -> 15 | GQ5: ='IND 1.2.1'!L18 -> 3 | GR5: 18 | GS5: =RANK(GR5,$GR$1:$GR$60,0)+COUNTIF(GR$1:GR5,GR5)-1 -> 7 | GT5: 7 | GU5: 0.04411764706 | GV5: Rédacteurs | GW5: B | GX5: 18 | GY5: 15 | GZ5: 3
Y6: =IF(AF128+AF129+AF130=0,"Aucun contractuel permanent nommé stagiaire",IF(AF128+AF129+AF130<2,AF128+AF129+AF130&" contractuel permanent nommé stagiaire",AF128+AF129+AF130&" contractuels permanents nommés stagiaires")) -> 17 contractuels permanents nommés stagiaires | AD6: 1 | AE6: =IF(ISNA(VLOOKUP(AD6,$AA$87:$AG$105,2,FALSE))=TRUE,"",VLOOKUP(AD6,$AA$87:$AG$105,2,FALSE)) -> Fin de contrats remplacants | AH6: =IF(AE6>"",VLOOKUP(AD6,$AA$86:$AE$105,5,FALSE),"") -> 0.4545454545 | AJ6: Budget de fonctionnement* | AL6: ='IND 3.4.7'!C7 -> 49797547 | AN6: Charges de personnel* | AP6: ='IND 3.4.7'!C8 -> 18954032 | AS6: =IF(AL6="0 €","Informations manquantes","Soit "&ROUND($AP$62,2)&" % des dépenses de fonctionnement") -> Soit 38,06 % des dépenses de fonctionnement | BQ6: =IF('IND 5.1.1'!$F$14=0," ","Répartition des jours de formation"&CHAR(10)&"par catégorie hiérarchique") -> Répartition des jours de formation par catégorie hiérarchique | GJ6: 68 | GK6: Alsace | GL6: Centre de Gestion du Haut-Rhin | GO6: Adjoints administratifs | GP6: ='IND 1.1.1'!I47 -> 34 | GQ6: ='IND 1.2.1'!L19 -> 2 | GR6: 36 | GS6: =RANK(GR6,$GR$1:$GR$60,0)+COUNTIF(GR$1:GR6,GR6)-1 -> 4 | GT6: 4 | GU6: 0.08823529412 | GV6: Adjoints administratifs | GW6: C | GX6: 36 | GY6: 34 | GZ6: 2
AD7: 2 | AE7: =IF(ISNA(VLOOKUP(AD7,$AA$87:$AG$105,2,FALSE))=TRUE,"",VLOOKUP(AD7,$AA$87:$AG$105,2,FALSE)) -> Départ à la retraite | AH7: =IF(AE7>"",VLOOKUP(AD7,$AA$86:$AE$105,5,FALSE),"") -> 0.2363636364 | BA7: =IF($D$69=0," ","Fonctionnaires") -> Fonctionnaires | BC7: =IF($D$70=0," ","Contractuels"& CHAR(10)& "permanents") -> Contractuels permanents | BE7: Ensemble agents permanents | BG7: =IF($D$71=0," ","Contractuels"& CHAR(10)& " non permanents") -> Contractuels non permanents | BJ7: =IF('IND 5.1.1'!$F$14=0," ","Pourcentage d'agents par catégorie et par statut ayant bénéficié d'au moins un jour de formation en 2023") -> Pourcentage d'agents par catégorie et par statut ayant bénéficié d'au moins un jour de formation en 2023 | GJ7: 24 | GK7: Aquitaine | GL7: Centre de Gestion de la Dordogne | GO7: Ingénieurs en chef | GP7: ='IND 1.1.1'!I56 -> 1 | GQ7: ='IND 1.2.1'!L22 -> 0 | GR7: 1 | GS7: =RANK(GR7,$GR$1:$GR$60,0)+COUNTIF(GR$1:GR7,GR7)-1 -> 16 | GT7: 16 | GU7: 0.002450980392 | GV7: Ingénieurs en chef | GW7: A | GX7: 1 | GY7: 1 | GZ7: 0
Y8: Emplois permanents rémunérés | AD8: 3 | AE8: =IF(ISNA(VLOOKUP(AD8,$AA$87:$AG$105,2,FALSE))=TRUE,"",VLOOKUP(AD8,$AA$87:$AG$105,2,FALSE)) -> Mise en disponibilité | AH8: =IF(AE8>"",VLOOKUP(AD8,$AA$86:$AE$105,5,FALSE),"") -> 0.07272727273 | AJ8: * Montant global | GJ8: 33 | GK8: Aquitaine | GL8: Centre de Gestion de la Gironde | GO8: Ingénieurs | GP8: ='IND 1.1.1'!I62 -> 10 | GQ8: ='IND 1.2.1'!L23 -> 0 | GR8: 10 | GS8: =RANK(GR8,$GR$1:$GR$60,0)+COUNTIF(GR$1:GR8,GR8)-1 -> 10 | GT8: 10 | GU8: 0.02450980392 | GV8: Ingénieurs | GW8: A | GX8: 10 | GY8: 10 | GZ8: 0
AD9: 4 | AE9: =IF(ISNA(VLOOKUP(AD9,$AA$87:$AG$105,2,FALSE))=TRUE,"",VLOOKUP(AD9,$AA$87:$AG$105,2,FALSE)) -> Démission | AH9: =IF(AE9>"",VLOOKUP(AD9,$AA$86:$AE$105,5,FALSE),"") -> 0.07272727273 | AX9: Taux d'absentéisme « compressible » (maladies ordinaires et accidents de travail) | BA9: =IF($D$69=0," ",SUM('IND 2.1.1'!$F$15:$G$17)/($D$69*365)) -> 0.06114302548 | BC9: =IF($D$70=0," ",SUM('IND 2.1.2'!$F$15:$G$17)/($D$70*365)) -> 0.02770167428 | BE9: =IF($D$69+$D$70=0," ",SUM('IND 2.1.1'!$F$15:$G$17,'IND 2.1.2'!$F$15:$G$17)/(($D$69+$D$70)*365)) -> 0.05819231802 | BG9: =IF($D$71=0," ",SUM('IND 2.1.3'!$F$16:$G$18)/($D$71*365)) -> 0.01495240306 | GJ9: 40 | GK9: Aquitaine | GL9: Centre de Gestion des Landes | GO9: Techniciens | GP9: ='IND 1.1.1'!I69 -> 21 | GQ9: ='IND 1.2.1'!L24 -> 2 | GR9: 23 | GS9: =RANK(GR9,$GR$1:$GR$60,0)+COUNTIF(GR$1:GR9,GR9)-1 -> 5 | GT9: 5 | GU9: 0.05637254902 | GV9: Techniciens | GW9: B | GX9: 23 | GY9: 21 | GZ9: 2
B10: =IFERROR("Cette synthèse du Rapport sur l'État de la Collectivité reprend les principaux indicateurs du Rapport Social Unique au 31 décembre 2023. Elle a été réalisée via l'application www.bs.donnees-sociales"&" des Centres de Gestion par extraction des données 2023 transmises en 2024 par la collectivité au "&VLOOKUP(VALUE('Page de garde'!G8),$GJ$4:$GL$110,3,FALSE)&".","") -> Cette synthèse du Rapport sur l'État de la Collectivité reprend les principaux indicateurs du Rapport Social Unique au 31 décembre 2023. Elle a été réalisée via l'application www.bs.donnees-sociales des Centres de Gestion par extraction des données 2023 transmises en 2024 par la collectivité au Centre de Gestion des Pyrénées-Atlantiques. | Y10: Effectif physique théorique au 31/12/2022 1 | AA10: Effectif physique au 31/12/2023 | AD10: 5 | AE10: =IF(ISNA(VLOOKUP(AD10,$AA$87:$AG$105,2,FALSE))=TRUE,"",VLOOKUP(AD10,$AA$87:$AG$105,2,FALSE)) -> Mutation | AH10: =IF(AE10>"",VLOOKUP(AD10,$AA$86:$AE$105,5,FALSE),"") -> 0.05454545455 | AJ10: Rémunérations annuelles brutes - emploi permanent : | AP10: ='IND 3.1.1-3.3.1 et 3.4.1-3.4.3'!B58+'IND 3.1.1-3.3.1 et 3.4.1-3.4.3'!C58+'IND 3.1.1-3.3.1 et 3.4.1-3.4.3'!B106+'IND 3.1.1-3.3.1 et 3.4.1-3.4.3'!C106 -> 12497432 | AS10: =IF(AS12<2,"Rémunération - emploi non permanent :","Rémunérations des agents sur emploi non permanent :") -> Rémunérations des agents sur emploi non permanent : | GJ10: 47 | GK10: Aquitaine | GL10: Centre de Gestion du Lot-et-Garonne | GO10: Agents de maîtrise | GP10: ='IND 1.1.1'!I74 -> 36 | GQ10: ='IND 1.2.1'!L25 -> 1 | GR10: 37 | GS10: =RANK(GR10,$GR$1:$GR$60,0)+COUNTIF(GR$1:GR10,GR10)-1 -> 2 | GT10: 2 | GU10: 0.09068627451 | GV10: Agents de maîtrise | GW10: C | GX10: 37 | GY10: 36 | GZ10: 1
BA11: =BA9 -> 0.06114302548 | BC11: =BC9 -> 0.02770167428 | BE11: =BE9 -> 0.05819231802 | BG11: =BG9 -> 0.01495240306 | GJ11: 64 | GK11: Aquitaine | GL11: Centre de Gestion des Pyrénées-Atlantiques | GO11: Adjoints techniques | GP11: ='IND 1.1.1'!I81 -> 169 | GQ11: ='IND 1.2.1'!L26 -> 10 | GR11: 179 | GS11: =RANK(GR11,$GR$1:$GR$60,0)+COUNTIF(GR$1:GR11,GR11)-1 -> 1 | GT11: 1 | GU11: 0.4387254902 | GV11: Adjoints techniques | GW11: C | GX11: 179 | GY11: 169 | GZ11: 10
Y12: =IF(Z140< 2, TEXT(Z140, "# ##0") & " agent",TEXT(Z140, "# ##0") & " agents") -> 447 agents | AA12: =IF(D69+D70< 2, TEXT(D69+D70, "# ##0") & " agent",TEXT(D69+D70, "# ##0") & " agents") -> 408 agents | AJ12: Primes et indemnités versées : | AP12: ='IND 3.1.1-3.3.1 et 3.4.1-3.4.3'!D58+'IND 3.1.1-3.3.1 et 3.4.1-3.4.3'!E58+'IND 3.1.1-3.3.1 et 3.4.1-3.4.3'!D106+'IND 3.1.1-3.3.1 et 3.4.1-3.4.3'!E106 -> 2638787 | AS12: ='IND 3.1.1-3.3.1 et 3.4.1-3.4.3'!D122+'IND 3.1.1-3.3.1 et 3.4.1-3.4.3'!E122 -> 797714 | AX12: Taux d'absentéisme médical (toutes absences pour motif médical) | BA12: =IF($D$69=0," ",SUM('IND 2.1.1'!$F$15:$G$21)/($D$69*365)) -> 0.1088525556 | BC12: =IF($D$70=0," ",SUM('IND 2.1.2'!$F$15:$G$20)/($D$70*365)) -> 0.02770167428 | BE12: =IF($D$69+$D$70=0," ",SUM('IND 2.1.1'!$F$15:$G$21,'IND 2.1.2'!$F$15:$G$20)/(($D$69+$D$70)*365)) -> 0.1016921837 | BG12: =IF($D$71=0," ",SUM('IND 2.1.3'!$F$16:$G$21)/($D$71*365)) -> 0.01495240306 | GJ12: 3 | GK12: Auvergne | GL12: Centre de Gestion de l'Allier | GO12: Adjoints techniques des établissements d'enseignement | GP12: ='IND 1.1.1'!I88 -> 0 | GQ12: ='IND 1.2.1'!L27 -> 0 | GR12: 0 | GS12: =RANK(GR12,$GR$1:$GR$60,0)+COUNTIF(GR$1:GR12,GR12)-1 -> 23 | GT12: 23 | GU12: 0 | GV12: Adjoints techniques des établissements d'enseignement | GW12: C | GX12: 0 | GY12: 0 | GZ12: 0
AD13: Æ | AE13: =IF(AF126+AG126=0, "Aucune arrivée d'agent permanent en 2023", "Principaux modes d'arrivée d'agents permanents") -> Principaux modes d'arrivée d'agents permanents | AJ13: IFSE : | AP13: ='IND 3.1.1-3.3.1 et 3.4.1-3.4.3'!F58+'IND 3.1.1-3.3.1 et 3.4.1-3.4.3'!G58+'IND 3.1.1-3.3.1 et 3.4.1-3.4.3'!F106+'IND 3.1.1-3.3.1 et 3.4.1-3.4.3'!G106 -> 2136783 | GJ13: 15 | GK13: Auvergne | GL13: Centre de Gestion du Cantal | GO13: Conservateurs du patrimoine | GP13: ='IND 1.1.1'!I96 -> 0 | GQ13: ='IND 1.2.1'!L30 -> 0 | GR13: 0 | GS13: =RANK(GR13,$GR$1:$GR$60,0)+COUNTIF(GR$1:GR13,GR13)-1 -> 24 | GT13: 24 | GU13: 0 | GV13: Conservateurs du patrimoine | GW13: A | GX13: 0 | GY13: 0 | GZ13: 0
AA14: 1 cf. page 7 | AJ14: CIA : | AP14: ='IND 3.1.1-3.3.1 et 3.4.1-3.4.3'!H58+'IND 3.1.1-3.3.1 et 3.4.1-3.4.3'!I58+'IND 3.1.1-3.3.1 et 3.4.1-3.4.3'!H106+'IND 3.1.1-3.3.1 et 3.4.1-3.4.3'!I106 -> 194292 | BA14: =BA12 -> 0.1088525556 | BC14: =BC12 -> 0.02770167428 | BE14: =BE12 -> 0.1016921837 | BG14: =BG12 -> 0.01495240306 | BV14: Pour l'ensemble des agents permanents : Effectif théorique des fonctionnaires au 31/12/2022 + Effectif théorique des contractuels permanents au 31/12/2022 | GJ14: 43 | GK14: Auvergne | GL14: Centre de Gestion de la Haute-Loire | GO14: Conservateurs des bibliothèques | GP14: ='IND 1.1.1'!I101 -> 0 | GQ14: ='IND 1.2.1'!L31 -> 0 | GR14: 0 | GS14: =RANK(GR14,$GR$1:$GR$60,0)+COUNTIF(GR$1:GR14,GR14)-1 -> 25 | GT14: 25 | GU14: 0 | GV14: Conservateurs des bibliothèques | GW14: A | GX14: 0 | GY14: 0 | GZ14: 0
L15: =IF(M15="","","Æ") -> Æ | M15: =IF(SUM(V72:W72)=0,"",IF(L20="","La filière la plus concernée par le temps non complet",IF(L21="","Les 2 filières les plus concernées par le temps non complet","Les 3 filières les plus concernées par le temps non complet"))) -> Les 2 filières les plus concernées par le temps non complet | R15: =IF(S15="","","Æ") -> Æ | S15: =IF(SUM(V73:W73)=0,"","Part des agents permanents à temps partiel selon le genre") -> Part des agents permanents à temps partiel selon le genre | AJ15: Heures supplémentaires et/ou complémentaires : | AP15: ='IND 3.1.1-3.3.1 et 3.4.1-3.4.3'!$N$58+'IND 3.1.1-3.3.1 et 3.4.1-3.4.3'!$O$58+'IND 3.1.1-3.3.1 et 3.4.1-3.4.3'!$L$106+'IND 3.1.1-3.3.1 et 3.4.1-3.4.3'!$M$106 -> 66101 | AX15: Taux d'absentéisme global (toutes absences y compris maternité, paternité et autre) | BA15: =IF($D$69=0," ",SUM('IND 2.1.1'!$F$15:$G$24)/($D$69*365)) -> 0.1143356901 | BC15: =IF($D$70=0," ",SUM('IND 2.1.2'!$F$15:$G$23)/($D$70*365)) -> 0.03127853881 | BE15: =IF($D$69+$D$70=0," ",SUM('IND 2.1.1'!$F$15:$G$24,'IND 2.1.2'!$F$15:$G$23)/(($D$69+$D$70)*365)) -> 0.1070071179 | BG15: =IF($D$71=0," ",SUM('IND 2.1.3'!$F$16:$G$24)/($D$71*365)) -> 0.01506849315 | GJ15: 63 | GK15: Auvergne | GL15: Centre de Gestion du Puy-de-Dôme | GO15: Attachés de conservation du patrimoine | GP15: ='IND 1.1.1'!I106 -> 0 | GQ15: ='IND 1.2.1'!L32 -> 0 | GR15: 0 | GS15: =RANK(GR15,$GR$1:$GR$60,0)+COUNTIF(GR$1:GR15,GR15)-1 -> 26 | GT15: 26 | GU15: 0 | GV15: Attachés de conservation du patrimoine | GW15: A | GX15: 0 | GY15: 0 | GZ15: 0
Y16: Variation des effectifs* | AD16: 1 | AE16: =IF(ISNA(VLOOKUP(AD16,$AA$115:$AB$125,2,FALSE))=TRUE,"",VLOOKUP(AD16,$AA$115:$AB$125,2,FALSE)) -> Remplacements (contractuels) | AH16: =IF(AE16>"",VLOOKUP(AE16,$AB$115:$AE$124,4,FALSE),"") -> 0.625 | AJ16: Nouvelle Bonification Indiciaire : | AP16: ='IND 3.1.1-3.3.1 et 3.4.1-3.4.3'!J58+'IND 3.1.1-3.3.1 et 3.4.1-3.4.3'!K58 -> 88920 | BQ16: =IF('IND 5.1.1'!$F$15=0,"","Nombre moyen de jours de formation" & CHAR(10) & "par agent permanent : ") -> Nombre moyen de jours de formation par agent permanent : | GJ16: 14 | GK16: Basse-Normandie | GL16: Centre de Gestion du Calvados | GO16: Bibliothécaires | GP16: ='IND 1.1.1'!I111 -> 1 | GQ16: ='IND 1.2.1'!L33 -> 0 | GR16: 1 | GS16: =RANK(GR16,$GR$1:$GR$60,0)+COUNTIF(GR$1:GR16,GR16)-1 -> 17 | GT16: 17 | GU16: 0.002450980392 | GV16: Bibliothécaires | GW16: A | GX16: 1 | GY16: 1 | GZ16: 0
A17: Æ | B17: =IF(D69+D70+D71=0,"Aucun agent employé par la collectivité au 31 décembre 2023",IF(D69+D70+D71<2,D69+D70+D71&" agent employé par la collectivité au 31 décembre 2023",TEXT(D69+D70+D71,"# ##0")&" agents employés par la collectivité au 31 décembre 2023")) -> 526 agents employés par la collectivité au 31 décembre 2023 | Y17: entre le 1er janvier et le 31 décembre 2023 | AD17: 2 | AE17: =IF(ISNA(VLOOKUP(AD17,$AA$115:$AB$125,2,FALSE))=TRUE,"",VLOOKUP(AD17,$AA$115:$AB$125,2,FALSE)) -> Recrutement direct | AH17: =IF(AE17>"",VLOOKUP(AE17,$AB$115:$AE$124,4,FALSE),"") -> 0.1875 | AJ17: Supplément familial de traitement : | AP17: ='IND 3.1.1-3.3.1 et 3.4.1-3.4.3'!P58+'IND 3.1.1-3.3.1 et 3.4.1-3.4.3'!Q58 -> 144296 | BA17: =BA15 -> 0.1143356901 | BC17: =BC15 -> 0.03127853881 | BE17: =BE15 -> 0.1070071179 | BG17: =BG15 -> 0.01506849315 | GJ17: 61 | GK17: Basse-Normandie | GL17: Centre de Gestion de l'Orne | GO17: Directeurs d'établissements d'enseignement artistique | GP17: ='IND 1.1.1'!I117 -> 0 | GQ17: ='IND 1.2.1'!L34 -> 0 | GR17: 0 | GS17: =RANK(GR17,$GR$1:$GR$60,0)+COUNTIF(GR$1:GR17,GR17)-1 -> 27 | GT17: 27 | GU17: 0 | GV17: Directeurs d'établissements d'enseignement artistique | GW17: A | GX17: 0 | GY17: 0 | GZ17: 0
L18: =IF(M15="","","Filière") -> Filière | N18: =IF(M15="","",IF(D69=0,"","Fonctionnaires")) -> Fonctionnaires | P18: =IF(M15="","",IF(D70=0,"","Contractuels")) -> Contractuels | Y18: =IF(D69<2,"Fonctionnaire","Fonctionnaires") -> Fonctionnaires | AA18: =IF($AB$18="","",IF(AB18>0%,"æ",IF(AB18<0,"è","â"))) -> è | AB18: =AH142 -> -0.01846965699 | AD18: 3 | AE18: =IF(ISNA(VLOOKUP(AD18,$AA$115:$AB$125,2,FALSE))=TRUE,"",VLOOKUP(AD18,$AA$115:$AB$125,2,FALSE)) -> Voie de mutation | AH18: =IF(AE18>"",VLOOKUP(AE18,$AB$115:$AE$124,4,FALSE),"") -> 0.125 | AJ18: Complément de traitement indiciaire (CTI) | AP18: ='IND 3.1.1-3.3.1 et 3.4.1-3.4.3'!$L$58+'IND 3.1.1-3.3.1 et 3.4.1-3.4.3'!$M$58+'IND 3.1.1-3.3.1 et 3.4.1-3.4.3'!$J$106+'IND 3.1.1-3.3.1 et 3.4.1-3.4.3'!$K$106 -> 0 | AX18: Cf. p7 Précisions méthodologiques pour les groupes d'absences Taux d'absentéisme : nombre de jours d'absence / (nombre total d'agents x 365) | BI18: =IF(BJ18=" "," ","Æ") -> Æ | BJ18: =IF('IND 5.1.4'!D16=0, " ",TEXT(ROUND('IND 5.1.4'!$D$16,0),"# ##0") &" € ont été consacrés à la formation en 2023") -> 206 812 € ont été consacrés à la formation en 2023 | BU18: Æ | BV18: 2Formules de calcul - Taux d'absentéisme | CB18: Note de lecture : Si le taux d’absentéisme est de 8 %, cela signifie que pour 100 agents de la collectivité, un équivalent de 8 agents a été absent toute l’année. | GJ18: 21 | GK18: Bourgogne | GL18: Centre de Gestion de la Côte d'Or | GO18: Professeurs d'enseignement artistique | GP18: ='IND 1.1.1'!I122 -> 0 | GQ18: ='IND 1.2.1'!L35 -> 0 | GR18: 0 | GS18: =RANK(GR18,$GR$1:$GR$60,0)+COUNTIF(GR$1:GR18,GR18)-1 -> 28 | GT18: 28 | GU18: 0 | GV18: Professeurs d'enseignement artistique | GW18: A | GX18: 0 | GY18: 0 | GZ18: 0
L19: =IF(ISNA(VLOOKUP(1,$L$73:$O$80,2,FALSE))=FALSE,VLOOKUP(1,$L$73:$O$80,2,FALSE),"") -> Médico-sociale | N19: =IF(L19="","",VLOOKUP(1,$L$73:$O$80,3,FALSE)) -> 0.05128205128 | P19: =IF(L19="","",VLOOKUP(1,$L$73:$O$80,4,FALSE)) -> 0.4166666667 | S19: =IF(S15="","",O85) -> 0 | T19: =IF(S15="","","des hommes à temps partiel") -> des hommes à temps partiel | AD19: 4 | AE19: =IF(ISNA(VLOOKUP(AD19,$AA$115:$AB$125,2,FALSE))=TRUE,"",VLOOKUP(AD19,$AA$115:$AB$125,2,FALSE)) -> Arrivées de contractuels | AH19: =IF(AE19>"",VLOOKUP(AE19,$AB$115:$AE$124,4,FALSE),"") -> 0.0625 | AI19: Æ | AJ19: Rémunération moyenne par équivalent temps plein rémunéré des agents permanents | AW19: =IF(AX19="","","Æ") ->  | AX19: =IF('IND 2.1.0'!$B$8=0,"",IF('IND 2.1.0'!$B$8=1,"Les agents ont bénéficié d'un jour de congés au titre des droits acquis (cycles de travail antérieurs au 1er janvier 2002).","Les agents ont bénéficié de "&'IND 2.1.0'!$B$8&" jours de congés au titre des droits acquis (cycles de travail antérieurs au 1er janvier 2002).")) ->  | BR19: =IF((D69+D70)=0,"","> "& IF(AND(BS102/(D69+D70)<2,BS102/(D69+D70)>0),ROUND((BS102/(D69+D70)),1)&" jour par agent",IF(BS102/(D69+D70)>=2,ROUND((BS102/(D69+D70)),1)&" jours par agent"," Aucun jour de formation"))) -> > 2,6 jours par agent | GJ19: 58 | GK19: Bourgogne | GL19: Centre de Gestion de la Nièvre | GO19: Assistants de conservation du patrimoine et des bibliothèque | GP19: ='IND 1.1.1'!I129 -> 4 | GQ19: ='IND 1.2.1'!L36 -> 0 | GR19: 4 | GS19: =RANK(GR19,$GR$1:$GR$60,0)+COUNTIF(GR$1:GR19,GR19)-1 -> 12 | GT19: 12 | GU19: 0.009803921569 | GV19: Assistants de conservation du patrimoine et des bibliothèque | GW19: B | GX19: 4 | GY19: 4 | GZ19: 0
B20: =D69 -> 372 | D20: =IF(D69<2,"fonctionnaire","fonctionnaires") -> fonctionnaires | L20: =IF(ISNA(VLOOKUP(2,$L$73:$O$80,2,FALSE))=FALSE,VLOOKUP(2,$L$73:$O$80,2,FALSE),"") -> Technique | N20: =IF(L20="","",VLOOKUP(2,$L$73:$O$80,3,FALSE)) -> 0.0253164557 | P20: =IF(L20="","",VLOOKUP(2,$L$73:$O$80,4,FALSE)) -> 0.07692307692 | S20: =IF(OR(K64=0,S15=""),"",O86) -> 0.2235294118 | T20: =IF(S15="","","des femmes à temps partiel") -> des femmes à temps partiel | Y20: =IF(D70<2,"Contractuel","Contractuels") -> Contractuels | AA20: =IF($AB$20="", "",IF(AB20>0%,"æ",IF(AB20<0,"è","â"))) -> è | AB20: =AH144 -> -0.4705882353 | AD20: 5 | AE20: =IF(ISNA(VLOOKUP(AD20,$AA$115:$AB$125,2,FALSE))=TRUE,"",VLOOKUP(AD20,$AA$115:$AB$125,2,FALSE)) ->  | AH20: =IF(AE20>"",VLOOKUP(AE20,$AB$115:$AE$124,4,FALSE),"") ->  | BV20: Nombre de jours calendaires d'absence | BZ20: x 100 | GJ20: 71 | GK20: Bourgogne | GL20: Centre de Gestion de Saône-et-Loire | GO20: Assistants d'enseignement artistique | GP20: ='IND 1.1.1'!I136 -> 0 | GQ20: ='IND 1.2.1'!L37 -> 0 | GR20: 0 | GS20: =RANK(GR20,$GR$1:$GR$60,0)+COUNTIF(GR$1:GR20,GR20)-1 -> 29 | GT20: 29 | GU20: 0 | GV20: Assistants d'enseignement artistique | GW20: B | GX20: 0 | GY20: 0 | GZ20: 0
B21: =D70 -> 36 | D21: =IF(D70<2,"contractuel permanent","contractuels permanents") -> contractuels permanents | L21: =IF(ISNA(VLOOKUP(3,$L$73:$O$80,2,FALSE))=FALSE,VLOOKUP(3,$L$73:$O$80,2,FALSE),"") ->  | N21: =IF(L21="","",VLOOKUP(3,$L$73:$O$80,3,FALSE)) ->  | P21: =IF(L21="","",VLOOKUP(3,$L$73:$O$80,4,FALSE)) ->  | AE21: * Variation des effectifs : | AK21: Catégorie A | AO21: Catégorie B | AS21: Catégorie C | AW21: Æ | AX21: =IF('IND 2.1.0'!$B$10=0,"Aucune journée de congés supplémentaires accordée au-delà des congés légaux (exemple : journée du maire)",IF('IND 2.1.0'!$B$10=1,"Une journée de congés supplémentaires accordée au-delà des congés légaux (exemple : journée du maire)",'IND 2.1.0'!$B$10 &" journées de congés supplémentaires accordées au-delà des congés légaux (exemple : journée du maire)")) -> Aucune journée de congés supplémentaires accordée au-delà des congés légaux (exemple : journée du maire) | BJ21: =IF('IND 5.1.4'!D16=0," ","Répartition des dépenses de formation") -> Répartition des dépenses de formation | BQ21: =IF(BS102=0, "","Répartition des jours de formation"&CHAR(10)&"par organisme") -> Répartition des jours de formation par organisme | BV21: Nombre d'agents au 31/12/2023 x 365 | GJ21: 89 | GK21: Bourgogne | GL21: Centre de Gestion de l'Yonne | GO21: Adjoints du patrimoine | GP21: ='IND 1.1.1'!I143 -> 8 | GQ21: ='IND 1.2.1'!L38 -> 4 | GR21: 12 | GS21: =RANK(GR21,$GR$1:$GR$60,0)+COUNTIF(GR$1:GR21,GR21)-1 -> 9 | GT21: 9 | GU21: 0.02941176471 | GV21: Adjoints du patrimoine | GW21: C | GX21: 12 | GY21: 8 | GZ21: 4
B22: =D71 -> 118 | D22: =IF(D71<2,"contractuel non permanent","contractuels non permanents") -> contractuels non permanents | Y22: Ensemble | AA22: =IF($AB$22="","",IF(AB22>0%,"æ",IF(AB22<0,"è","â"))) -> è | AB22: =AH140 -> -0.08724832215 | AE22: (effectif physique rémunéré au 31/12/2023 - effectif physique théorique rémunéré au 31/12/2022) / | AK22: Titulaire | AM22: Contractuel | AO22: Titulaire | AQ22: Contractuel | AS22: Titulaire | AU22: Contractuel | BV22: Les journées d’absence sont décomptées en jours calendaires pour respecter les saisies réalisées dans les logiciels de paie | GJ22: 22 | GK22: Bretagne | GL22: Centre de Gestion des Côtes d'Armor | GO22: Conseillers des APS | GP22: ='IND 1.1.1'!I151 -> 0 | GQ22: ='IND 1.2.1'!L41 -> 0 | GR22: 0 | GS22: =RANK(GR22,$GR$1:$GR$60,0)+COUNTIF(GR$1:GR22,GR22)-1 -> 30 | GT22: 30 | GU22: 0 | GV22: Conseillers des APS | GW22: A | GX22: 0 | GY22: 0 | GZ22: 0
AI23: Administrative | AK23: =IF(AK161>=2,AK148/AK161,IF(AK161=0,"","s")) -> 53320.26144 | AM23: =IF(AN161>=2,AN148/AN161,IF(AN161=0,"","s")) -> 28068.96552 | AO23: =IF(AO161>=2,AO148/AO161,IF(AO161=0,"","s")) -> 34327.75087 | AQ23: =IF(AP161>=2,AP148/AP161,IF(AP161=0,"","s")) -> 29770.27027 | AS23: =IF(AR161>=2,AR148/AR161,IF(AR161=0,"","s")) -> 30604.2053 | AU23: =IF(AT161>=2,AT148/AT161,IF(AT161=0,"","s")) -> s | AW23: Æ | AX23: =IF(BF76=0,"Aucun jour de carence prélevé pour les agents permanents",TEXT((BF76/BF75)*100,"##0,0")&" % des agents permanents ayant été absents ont eu au moins un jour de carence prélevé") -> 44,6 % des agents permanents ayant été absents ont eu au moins un jour de carence prélevé | BJ23: =IF('IND 5.1.4'!$D$11+'IND 5.1.4'!$D$12=0,"", "CNFPT ") -> CNFPT | BN23: =IF(BM108=0,"",ROUND(((BM108/'IND 5.1.4'!$D$16)*100),0) & " %") -> 45 % | GJ23: 29 | GK23: Bretagne | GL23: Centre de Gestion du Finistère | GO23: Educateurs des APS | GP23: ='IND 1.1.1'!I158 -> 0 | GQ23: ='IND 1.2.1'!L42 -> 0 | GR23: 0 | GS23: =RANK(GR23,$GR$1:$GR$60,0)+COUNTIF(GR$1:GR23,GR23)-1 -> 31 | GT23: 31 | GU23: 0 | GV23: Educateurs des APS | GW23: B | GX23: 0 | GY23: 0 | GZ23: 0
A24: =IF($B$24="","","Æ") -> Æ | B24: =IF($D$70=0,"",IF($I$70=0,"Aucun contractuel permanent en CDI", (IF($I$70>5,ROUND($I$70/$D$70*100,0)&" % des contractuels permanents en CDI", IF($I$70=1,"1 contractuel permanent en CDI",$I$70&" contractuels permanents en CDI"))))) -> 2 contractuels permanents en CDI | G24: =IF($H$24="","","Æ") -> Æ | H24: =IF($D$74=0,"",IF($D$74<2,"Un agent sur emploi fonctionnel dans la collectivité",$D$74&" agents sur emploi fonctionnel dans la collectivité"&IF($D$75>0," dont "&IF($D$75<2,"un contractuel",$D$75&" contractuels"),""))) -> 6 agents sur emploi fonctionnel dans la collectivité | AE24: (Effectif physique théorique rémunéré au 31/12/2022) | AI24: Technique | AK24: 56683.25624 | AO24: 36961.72316 | AQ24: 28834 | AS24: 29299.67427 | AU24: 25020.83916 | BJ24: =IF('IND 5.1.4'!$D$15=0,"","Coût de la formation des apprentis") -> Coût de la formation des apprentis | BN24: =IF(BM111=0,"",ROUND(((BM111/'IND 5.1.4'!$D$16)*100),0) & " %") -> 20 % | BQ24: =IF(BS102=0,"",IF(BT24="","", "CNFPT")) -> CNFPT | BT24: =IF(BS107=0,"",BS107) -> 0.7050092764 | BV24: 3 « groupes d’absences » | GJ24: 35 | GK24: Bretagne | GL24: Centre de Gestion d'Ille-et-Vilaine | GO24: Opérateurs des APS | GP24: ='IND 1.1.1'!I164 -> 0 | GQ24: ='IND 1.2.1'!L43 -> 0 | GR24: 0 | GS24: =RANK(GR24,$GR$1:$GR$60,0)+COUNTIF(GR$1:GR24,GR24)-1 -> 32 | GT24: 32 | GU24: 0 | GV24: Opérateurs des APS | GW24: C | GX24: 0 | GY24: 0 | GZ24: 0
L25: Æ | M25: =IF(D69+D70=0,"Aucun agent",IF(D69+D70<2,"L'agent employé a "&G89&" ans","En moyenne, les agents de la collectivité ont "&ROUND($O$33,0)&" ans")) -> En moyenne, les agents de la collectivité ont 47 ans | AI25: Culturelle | AK25: s | AO25: 41471.47436 | AQ25: s | AS25: 26877.01613 | AU25: 24113.84615 | AW25: =IF(AX25="","","Æ") ->  | AX25: =IF('IND 4.2.5'!$I$5="Oui", "La collectivité adhère à un contrat d'assurance groupe pour la gestion du risque maladie",IF('IND 4.2.5'!$I$4="Non","La collectivité n'est pas assurée pour la gestion du risque maladie","")) ->  | BJ25: =IF('IND 5.1.4'!$D$14=0,"","Frais de déplacement ") -> Frais de déplacement | BN25: =IF(BM110=0,"",ROUND(((BM110/'IND 5.1.4'!$D$16)*100),0) & " %") -> 4 % | BQ25: =IF(BS102=0,"",IF(BT25="","","Autres organismes ")) -> Autres organismes | BT25: =IF(BS108=0,"",BS108) -> 0.2949907236 | GJ25: 56 | GK25: Bretagne | GL25: Centre de Gestion du Morbihan | GO25: Conseillers socio-éducatifs | GP25: ='IND 1.1.1'!I173 -> 1 | GQ25: ='IND 1.2.1'!L46 -> 0 | GR25: 1 | GS25: =RANK(GR25,$GR$1:$GR$60,0)+COUNTIF(GR$1:GR25,GR25)-1 -> 18 | GT25: 18 | GU25: 0.002450980392 | GV25: Conseillers socio-éducatifs | GW25: A | GX25: 1 | GY25: 1 | GZ25: 0
AI26: Sportive | BJ26: =IF('IND 5.1.4'!$D$13=0,"","Autres organismes ") -> Autres organismes | BN26: =IF(BM109=0,"",ROUND(((BM109/'IND 5.1.4'!$D$16)*100),0) & " %") -> 31 % | BQ26: =IF(BS102=0,"",IF(BT26="","","Interne à la collectivité ")) ->  | BT26: =IF(BS109=0,"",BS109) ->  | BV26: 1. Absences compressibles : Maladie ordinaire et accidents du travail | BY26: 2. Absences médicales : Absences compressibles + longue maladie, maladie de longue durée, grave maladie, maladie professionnelle | CC26: 3. Absences Globales : Absences médicales + maternité, paternité adoption, autres raisons* | GJ26: 18 | GK26: Centre | GL26: Centre de Gestion du Cher | GO26: Assistants socio-éducatifs | GP26: ='IND 1.1.1'!I179 -> 1 | GQ26: ='IND 1.2.1'!L47 -> 0 | GR26: 1 | GS26: =RANK(GR26,$GR$1:$GR$60,0)+COUNTIF(GR$1:GR26,GR26)-1 -> 19 | GT26: 19 | GU26: 0.002450980392 | GV26: Assistants socio-éducatifs | GW26: A | GX26: 1 | GY26: 1 | GZ26: 0
A27: =IF($B$27="","","Æ") -> Æ | B27: =IF($D$71=0,"",IF($D$71<2,"Précisions emploi non permanent","Précisions emplois non permanents")) -> Précisions emplois non permanents | M27: =IF(D69+D70<2,"Tranche d'âge","Âge moyen*"&CHAR(10)&"des agents permanents") -> Âge moyen* des agents permanents | R27: Pyramide des âges des agents sur emploi permanent | X27: Æ | Y27: =IF(B20=0," ", IF((AF62+AG62)=0,"Aucun bénéficiaire d'une promotion interne sans examen professionnel",IF(AF62+AG62<2,AF62+AG62&" bénéficiaire d'une promotion interne sans examen professionnel"&IF(AF63+AG63=0," nommé"," n'ayant pas été nommé"),AF62+AG62&" bénéficiaires d'une promotion interne sans examen professionnel"&IF(AF63+AG63=0," nommés",IF(AF62+AG62=AF63+AG63," n'ayant pas été nommés"," dont "&AG63+AF63&" n'ayant pas été nommé(s)"))))) -> 5 bénéficiaires d'une promotion interne sans examen professionnel nommés | AD27: Æ | AE27: =IF(B20=0," ", IF((AF64+AG64+AF68+AG68)=0,"Aucun lauréat d'un examen professionnel",IF(AF64+AG64+AF68+AG68<2,AF64+AG64+AF68+AG68&" lauréat d'un examen professionnel "&IF(AF65+AG65=0," nommé"," n'ayant pas été nommé"),AF64+AG64+AF68+AG68&" lauréats d'un examen professionnel "&IF(AF65+AG65=0,"nommés",IF(AF64+AG64=AF65+AG65," n'ayant pas été nommés"," dont "&AG65+AF65&" n'ayant pas été nommé(s)"))))) -> 7 lauréats d'un examen professionnel nommés | AI27: Médico-sociale | AK27: 42354.9001 | AM27: s | AO27: 28856.53569 | AQ27: 24125.84615 | GJ27: 28 | GK27: Centre | GL27: Centre de Gestion d'Eure-et-Loir | GO27: Educateurs de jeunes enfants | GP27: ='IND 1.1.1'!I185 -> 7 | GQ27: ='IND 1.2.1'!L48 -> 0 | GR27: 7 | GS27: =RANK(GR27,$GR$1:$GR$60,0)+COUNTIF(GR$1:GR27,GR27)-1 -> 11 | GT27: 11 | GU27: 0.01715686275 | GV27: Educateurs de jeunes enfants | GW27: A | GX27: 7 | GY27: 7 | GZ27: 0
AI28: Police | GJ28: 36 | GK28: Centre | GL28: Centre de Gestion de l'Indre | GO28: Moniteurs-éducateurs et intervenants familiaux | GP28: ='IND 1.1.1'!I190 -> 0 | GQ28: ='IND 1.2.1'!L49 -> 0 | GR28: 0 | GS28: =RANK(GR28,$GR$1:$GR$60,0)+COUNTIF(GR$1:GR28,GR28)-1 -> 33 | GT28: 33 | GU28: 0 | GV28: Moniteurs-éducateurs et intervenants familiaux | GW28: B | GX28: 0 | GY28: 0 | GZ28: 0
B29: =IF($C$29="","","a") -> a | C29: =IF($D$71=0,"",IF($I$69=0,"Aucun contractuel non permanent recruté dans le cadre d’un emploi aidé ",IF($I$69>5,ROUND($I$69/$D$71*100,0)&" % des contractuels non permanents recrutés dans le cadre d’un emploi aidé ",IF($I$69<2,"1 contractuel non permanent recruté dans le cadre d’un emploi aidé",$I$69&" contractuels non permanents recrutés dans le cadre d’un emploi aidé")))) -> 4 contractuels non permanents recrutés dans le cadre d’un emploi aidé | M29: =IF($H$86=0," ",IF(D69<2,"Fonctionnaire","Fonctionnaires")) -> Fonctionnaires | O29: =IF($H$86=0," ",IF(D69<2,"de "&$H$87-2.5&" à "&$H$87+2.5,$H$87)) -> 48.17204301 | AI29: Incendie | GJ29: 37 | GK29: Centre | GL29: Centre de Gestion d'Indre-et-Loire | GO29: ATSEM | GP29: ='IND 1.1.1'!I195 -> 0 | GQ29: ='IND 1.2.1'!L50 -> 0 | GR29: 0 | GS29: =RANK(GR29,$GR$1:$GR$60,0)+COUNTIF(GR$1:GR29,GR29)-1 -> 34 | GT29: 34 | GU29: 0 | GV29: ATSEM | GW29: C | GX29: 0 | GY29: 0 | GZ29: 0
B30: =IF($C$30=" "," ","a") -> a | C30: =IF($D$71=0," ",IF($I$71=0,"Aucun contractuel non permanent recruté comme saisonnier ou occasionnel",(IF($I$71>5,ROUND($I$71/D71*100,0)&" % des contractuels non permanents recrutés comme saisonniers ou occasionnels",IF($I$71<2,$I$71&" contractuel non permanent recruté comme saisonnier ou occasionnel",$I$71&" contractuels non permanents recrutés comme saisonniers ou occasionnels"))))) -> 4 contractuels non permanents recrutés comme saisonniers ou occasionnels | Y30: =IF(AB71+AA71=0,"",IF(AB71=0,"Aucune nomination concerne des femmes","dont "&TEXT(AB72,"#0%")&" des nominations concernent des femmes")) -> dont 20% des nominations concernent des femmes | AE30: =IF(AB73+AA73=0,"",IF(AB73=0,"Aucune nomination concerne des femmes","dont "&TEXT(AB74,"#0%")&" des nominations concernent des femmes")) -> Aucune nomination concerne des femmes | AI30: Animation | AO30: 33517.85714 | AS30: 25573.42167 | AU30: s | AW30: Æ | AX30: =IF(D69+D70=0,"Aucun agent dans la collectivité",IF('IND 4.2.1'!C104+'IND 4.2.1'!D104+'IND 4.2.1'!G104+'IND 4.2.1'!H104=0,"Aucun accident du travail déclaré en 2023",IF('IND 4.2.1'!C104+'IND 4.2.1'!D104+'IND 4.2.1'!G104+'IND 4.2.1'!H104>1,'IND 4.2.1'!C104+'IND 4.2.1'!D104+'IND 4.2.1'!G104+'IND 4.2.1'!H104&" accidents du travail déclarés au total en 2023",'IND 4.2.1'!C104+'IND 4.2.1'!D104+'IND 4.2.1'!G104+'IND 4.2.1'!H104&" seul accident du travail déclaré au total en 2023"))) -> 41 accidents du travail déclarés au total en 2023 | BI30: ="Æ" -> Æ | BJ30: =IF(AND(BV63=0,BX63=0),"Aucune information relative à la participation aux contrats de protection sociale complémentaire ",IF(AND(BV63=1,BX63=1),"La collectivité ne participe ni à la complémentaire santé de ses agents, ni aux contrats de prévoyance",IF(AND(BV63=2,BX63=2),"La collectivité participe à la complémentaire santé et aux contrats de prévoyance",IF(OR(BV63=2),"La collectivité participe financièrement à la complémentaire santé",IF(OR(BX63=2),"La collectivité participe aux contrats de prévoyance ",""))))) -> La collectivité participe à la complémentaire santé et aux contrats de prévoyance | BO30: ="Æ" -> Æ | BP30: =IF(AND('IND 7.1.1-7.1.3'!B13<>"Oui",'IND 7.1.1-7.1.3'!B14<>"Oui",'IND 7.1.1-7.1.3'!B15<>"Oui",'IND 7.1.1-7.1.3'!B16<>"Oui"),"Aucune prestation en faveur de l'action sociale de la collectivité","L’action sociale de la collectivité") -> L’action sociale de la collectivité | BU30: * Les absences pour "autres raisons" correspondent aux autorisations spéciales d'absences (motif familial, concours…) Ne sont pas comptabilisés les jours de formation et les absences pour motif syndical ou de représentation. | GJ30: 41 | GK30: Centre | GL30: Centre de Gestion du Loir-et-Cher | GO30: Agents sociaux | GP30: ='IND 1.1.1'!I202 -> 0 | GQ30: ='IND 1.2.1'!L51 -> 0 | GR30: 0 | GS30: =RANK(GR30,$GR$1:$GR$60,0)+COUNTIF(GR$1:GR30,GR30)-1 -> 35 | GT30: 35 | GU30: 0 | GV30: Agents sociaux | GW30: C | GX30: 0 | GY30: 0 | GZ30: 0
B31: =IF($C$30=" "," ","a") -> a | C31: ="Personnel temporaire intervenu en 2023 : "& IF(SUM('IND 1.3.2'!$E$14:$F$14)=0,"aucun agent du Centre de Gestion et ",IF(SUM('IND 1.3.2'!$E$14:$F$14)=1,"un agent du Centre de Gestion et ",IF(SUM('IND 1.3.2'!$E$14:$F$14)=1,"un agent du Centre de Gestion et ",SUM('IND 1.3.2'!$E$14:$F$14)&" agents du Centre de Gestion et ")))& IF(SUM('IND 1.3.2'!$E$26:$F$26)=0,"aucun intérimaire",IF(SUM('IND 1.3.2'!$E$26:$F$26)=1,"un intérimaire",IF(SUM('IND 1.3.2'!$E$26:$F$26)=1,"un intérimaire ",SUM('IND 1.3.2'!$E$26:$F$26)&" intérimaires"))) -> Personnel temporaire intervenu en 2023 : aucun agent du Centre de Gestion et aucun intérimaire | M31: =IF($I$86=0," ",IF(D70<2,"Contractuel permanent","Contractuels permanents")) -> Contractuels permanents | O31: =IF($I$86=0," ",IF(D70<2,"de "&$I$87-2.5&" à "&$I$87+2.5,$I$87)) -> 35.97222222 | AI31: Toutes filières | AK31: 51515.86207 | AM31: 31623.64341 | AO31: 33418.87303 | AQ31: 26184.46727 | AS31: 29193.94048 | AU31: 25064.16711 | BC31: Æ | BD31: =IF('IND 4.1.1-4.1.2'!C9=1,"ASSISTANT DE PRÉVENTION","ASSISTANTS DE PRÉVENTION") -> ASSISTANTS DE PRÉVENTION | GJ31: 45 | GK31: Centre | GL31: Centre de Gestion du Loiret | GO31: Médecins | GP31: ='IND 1.1.1'!I211 -> 0 | GQ31: ='IND 1.2.1'!L54 -> 0 | GR31: 0 | GS31: =RANK(GR31,$GR$1:$GR$60,0)+COUNTIF(GR$1:GR31,GR31)-1 -> 36 | GT31: 36 | GU31: 0 | GV31: Médecins | GW31: A | GX31: 0 | GY31: 0 | GZ31: 0
X32: Æ | Y32: =IF(B20=0," ", IF((AF66+AG66)=0,"Aucun lauréat d'un concours d'agents déjà fonctionnaires dans la collectivité ",IF(AF66+AG66<2,AF66+AG66&" lauréat d'un concours d'agents déjà fonctionnaires dans la collectivité "&IF(AF67+AG67=0," nommé"," n'ayant pas été nommé"),AF66+AG66&" lauréats d'un concours d'agents déjà fonctionnaires dans la collectivité "&IF(AF67+AG67=0," nommés",IF(AF66+AG66=AF67+AG67," n'ayant pas été nommés"," dont "&AG67+AF67&" n'ayant pas été nommés"))))) -> 2 lauréats d'un concours d'agents déjà fonctionnaires dans la collectivité nommés | AO32: *s : secret statistique appliqué en dessous de 2 ETPR | BD32: =IF('IND 4.1.1-4.1.2'!B9+'IND 4.1.1-4.1.2'!C9=0,"Aucun assistant de prévention désigné dans la collectivité",IF(('IND 4.1.1-4.1.2'!B9+'IND 4.1.1-4.1.2'!C9)<2,'IND 4.1.1-4.1.2'!B9+'IND 4.1.1-4.1.2'!C9&" assistant de prévention désigné dans la collectivité",'IND 4.1.1-4.1.2'!B9+'IND 4.1.1-4.1.2'!C9&" assistants de prévention désignés dans la collectivité")) -> 7 assistants de prévention désignés dans la collectivité | GJ32: 8 | GK32: Champagne | GL32: Centre de Gestion des Ardennes | GO32: Psychologues | GP32: ='IND 1.1.1'!I216 -> 0 | GQ32: ='IND 1.2.1'!L55 -> 2 | GR32: 2 | GS32: =RANK(GR32,$GR$1:$GR$60,0)+COUNTIF(GR$1:GR32,GR32)-1 -> 14 | GT32: 14 | GU32: 0.004901960784 | GV32: Psychologues | GW32: A | GX32: 2 | GY32: 0 | GZ32: 2
M33: =IF($K$86=0," ",IF(D69+D70<2," ","Ensemble des permanents")) -> Ensemble des permanents | O33: =IF($K$86=0," ",IF(D69+D70<2," ",$K$87)) -> 47.09558824 | AW33: =IF(AX33="","",">") -> > | AX33: =IF('IND 4.2.1'!C104+'IND 4.2.1'!D104+'IND 4.2.1'!G104+'IND 4.2.1'!H104=0,"", IF(D69+D70+D71<=100, IF('IND 4.2.1'!C104+'IND 4.2.1'!D104+'IND 4.2.1'!G104+'IND 4.2.1'!H104<2,('IND 4.2.1'!C104+'IND 4.2.1'!D104+'IND 4.2.1'!G104+'IND 4.2.1'!H104)&" accident du travail pour ",('IND 4.2.1'!C104+'IND 4.2.1'!D104+'IND 4.2.1'!G104+'IND 4.2.1'!H104)&" accidents du travail pour ")&IF(D69+D70+D71<1,D69+D70+D71 &" agent en position d'activité au 31 décembre 2023",D69+D70+D71&" agents en position d'activité au 31 décembre 2023"),IF(ROUND((('IND 4.2.1'!C104+'IND 4.2.1'!D104+'IND 4.2.1'!G104+'IND 4.2.1'!H104)/(D69+D70+D71))*100,1)<2,ROUND((('IND 4.2.1'!C104+'IND 4.2.1'!D104+'IND 4.2.1'!G104+'IND 4.2.1'!H104)/(D69+D70+D71))*100,1)&" accident du travail pour 100 agents",ROUND((('IND 4.2.1'!C104+'IND 4.2.1'!D104+'IND 4.2.1'!G104+'IND 4.2.1'!H104)/(D69+D70+D71))*100,1)&" accidents du travail pour 100 agents"))) -> 7,8 accidents du travail pour 100 agents | BP33: =BV67&BV68&BV69&BV70 -> - Prestations servies directement par la collectivité - Prestations servies par l'intermédiaire d'un centre de gestion - Prestations servies par l'intermédiaire d'un organisme à but non lucratif ou d'une association locale | BU33: Æ | BV33: En raison de certains arrondis, la somme des pourcentages peut ne pas être égale à 100 % | GJ33: 10 | GK33: Champagne | GL33: Centre de Gestion de l'Aube | GO33: Sages-femmes | GP33: ='IND 1.1.1'!I221 -> 0 | GQ33: ='IND 1.2.1'!L56 -> 0 | GR33: 0 | GS33: =RANK(GR33,$GR$1:$GR$60,0)+COUNTIF(GR$1:GR33,GR33)-1 -> 37 | GT33: 37 | GU33: 0 | GV33: Sages-femmes | GW33: A | GX33: 0 | GY33: 0 | GZ33: 0
AD34: Æ | AE34: =IF((B20+B21)=0," ",IF(SUM('IND 1.9.7'!$B$8:$C$10)=0,"Aucun agent n'a bénéficié d'un accompagnement par un conseiller en évolution professionnelle",IF(SUM('IND 1.9.7'!$B$8:$C$10)=1,"Un agent a bénéficié d'un accompagnement par un conseiller en évolution professionnelle",SUM('IND 1.9.7'!$B$8:$C$10)& " agents ont bénéficié d'un accompagnement par un conseiller en évolution professionnelle"))) -> 2 agents ont bénéficié d'un accompagnement par un conseiller en évolution professionnelle | AI34: Æ | AJ34: =IF(D69+D70=0,"Aucun agent dans la collectivité",IF(D69+D70=1,"La collectivité consacre " &TEXT((AP10/AL6)*100,"##,0")&" % de son budget de fonctionnement à la rémunération de l'agent permanent",IF(AP12=0,"La collectivité consacre " &TEXT((AP10/AL6)*100,"##,0")&" % de son budget de fonctionnement à la rémunération des agents permanents","La part des primes et indemnités sur les rémunérations annuelles brutes pour l'ensemble des agents permanents est de " & (ROUND(AN44, 4))*100 & " %"))) -> La part des primes et indemnités sur les rémunérations annuelles brutes pour l'ensemble des agents permanents est de 21,11 % | BD34: =IF('IND 4.1.1-4.1.2'!B10+'IND 4.1.1-4.1.2'!C10=0," ",IF('IND 4.1.1-4.1.2'!B10 +'IND 4.1.1-4.1.2'!C10<2,'IND 4.1.1-4.1.2'!B10+'IND 4.1.1-4.1.2'!C10&" conseiller de prévention ",'IND 4.1.1-4.1.2'!B10+'IND 4.1.1-4.1.2'!C10&" conseillers de prévention")) -> 1 conseiller de prévention | BJ34: =IF('IND 7.2.0-7.2.2'!$B$28+'IND 7.2.0-7.2.2'!$C$28=0,"","Montants annuels") -> Montants annuels | BM34: =IF(BM36="","","Santé") -> Santé | BN34: =IF(BN36=""," ","Prévoyance") -> Prévoyance | GJ34: 51 | GK34: Champagne | GL34: Centre de Gestion de la Marne | GO34: CADRES DE SANTE PARAMEDICAUX | GP34: ='IND 1.1.1'!I226 -> 0 | GQ34: ='IND 1.2.1'!L57 -> 0 | GR34: 0 | GS34: =RANK(GR34,$GR$1:$GR$60,0)+COUNTIF(GR$1:GR34,GR34)-1 -> 38 | GT34: 38 | GU34: 0 | GV34: CADRES DE SANTE PARAMEDICAUX | GW34: A | GX34: 0 | GY34: 0 | GZ34: 0
A35: Æ | B35: =IF(D69+D70+D71<2,"Répartition par filière","Répartition par filière et par statut") -> Répartition par filière et par statut | G35: Æ | H35: =IF(D69+D70+D71<2,"Répartition par catégorie","Répartition des agents par catégorie") -> Répartition des agents par catégorie | Y35: =IF(AB75+AA75=0,"",IF(AB75=0,"Aucune nomination concerne des femmes","dont "&TEXT(AB76,"#0%")&" des nominations concernent des femmes")) -> Aucune nomination concerne des femmes | GJ35: 52 | GK35: Champagne | GL35: Centre de Gestion de Haute-Marne | GO35: Puéricultrices cadres de santé | GP35: ='IND 1.1.1'!I230 -> 0 | GQ35: ='IND 1.2.1'!L58 -> 0 | GR35: 0 | GS35: =RANK(GR35,$GR$1:$GR$60,0)+COUNTIF(GR$1:GR35,GR35)-1 -> 39 | GT35: 39 | GU35: 0 | GV35: Puéricultrices cadres de santé | GW35: A | GX35: 0 | GY35: 0 | GZ35: 0
M36: =IF(D71<2,"Tranche d'âge","Âge moyen* "&CHAR(10)&"des agents non permanent") -> Âge moyen* des agents non permanent | BC36: Æ | BD36: FORMATION | BJ36: =IF('IND 7.2.0-7.2.2'!$B$28+'IND 7.2.0-7.2.2'!$C$28=0,"","Montant global des participations") -> Montant global des participations | BM36: =IF('IND 7.2.0-7.2.2'!$B$28=0,"",TEXT('IND 7.2.0-7.2.2'!$B$28,"# ### ### €")) -> 95 043 € | BN36: =IF('IND 7.2.0-7.2.2'!$C$28=0,"",TEXT('IND 7.2.0-7.2.2'!$C$28,"# ### ### €")) -> 143 029 € | GJ36: 2A | GK36: Corse | GL36: Centre de Gestion de Corse du Sud | GO36: PUERICULTRICES (décret n° 92-859 du 28 août 1992 modifié) * | GP36: ='IND 1.1.1'!I234+'IND 1.1.1'!I239 -> 2 | GQ36: ='IND 1.2.1'!L59 -> 0 | GR36: 2 | GS36: =RANK(GR36,$GR$1:$GR$60,0)+COUNTIF(GR$1:GR36,GR36)-1 -> 15 | GT36: 15 | GU36: 0.004901960784 | GV36: PUERICULTRICES (décret n° 92-859 du 28 août 1992 modifié) * | GW36: A | GX36: 2 | GY36: 2 | GZ36: 0
A37: Filière | D37: Titulaire | E37: Contractuel | F37: Tous | X37: Æ | Y37: =IF(B20=0," ",IF('IND 1.9.5 - 1.9.6.1'!$B$21+'IND 1.9.5 - 1.9.6.1'!$C$21=0,"Aucun avancement d'échelon",IF('IND 1.9.5 - 1.9.6.1'!$B$21+'IND 1.9.5 - 1.9.6.1'!$C$21=1,"Un avancement d'échelon",'IND 1.9.5 - 1.9.6.1'!$B$21+'IND 1.9.5 - 1.9.6.1'!$C$21& " avancements d'échelon")))&IF(B20=0," "," et ")& CHAR(10)&IF(B20=0," ",IF('IND 1.9.5 - 1.9.6.1'!$B$24+'IND 1.9.5 - 1.9.6.1'!$C$24=0,"aucun avancement de grade",IF('IND 1.9.5 - 1.9.6.1'!$B$24+'IND 1.9.5 - 1.9.6.1'!$C$24=1,"un avancement de grade",'IND 1.9.5 - 1.9.6.1'!$B$24+'IND 1.9.5 - 1.9.6.1'!$C$24& " avancements de grade"))) -> 185 avancements d'échelon et 35 avancements de grade | AJ37: ="Part des primes et indemnités" & CHAR(10)&" sur les rémunérations :" -> Part des primes et indemnités sur les rémunérations : | AP37: =IF($C$30=" "," ","a") -> a | AQ37: =IF(OR('IND 3.1.1-3.3.1 et 3.4.1-3.4.3'!$F$10="(vide)",'IND 3.1.1-3.3.1 et 3.4.1-3.4.3'!$F$10="Ne sait pas",'IND 3.1.1-3.3.1 et 3.4.1-3.4.3'!$F$10=""),"Aucune information concernant la mise en place du RIFSEEP",IF('IND 3.1.1-3.3.1 et 3.4.1-3.4.3'!$F$10="Oui","Le RIFSEEP a été mis en place pour les fonctionnaires"&IF('IND 3.1.1-3.3.1 et 3.4.1-3.4.3'!$F$61="Oui"," et pour les contractuels"&IF('IND 3.1.1-3.3.1 et 3.4.1-3.4.3'!$F$13="Oui"," ainsi que le CIA",""),""),IF('IND 3.1.1-3.3.1 et 3.4.1-3.4.3'!$F$10="Non","Le RIFSEEP n'a pas été mis en place"))) -> Le RIFSEEP a été mis en place pour les fonctionnaires et pour les contractuels ainsi que le CIA | AW37: =IF(OR(AX37="",AX37=" "),"",">") -> > | AX37: =IF('IND 4.2.1'!C104+'IND 4.2.1'!D104+'IND 4.2.1'!G104+'IND 4.2.1'!H104=0,"", (IF('IND 4.2.1'!C104+'IND 4.2.1'!D104+'IND 4.2.1'!G104+'IND 4.2.1'!H104<2," ",IF('IND 4.2.1'!C104+'IND 4.2.1'!D104+'IND 4.2.1'!G104+'IND 4.2.1'!H104=0,"Les accidents de travail déclarés en 2023 n'ont été suivis d'aucun jour d'arrêt de travail", IF(('IND 4.2.1'!K104+'IND 4.2.1'!L104+'IND 4.2.1'!M104+'IND 4.2.1'!N104)/('IND 4.2.1'!C104+'IND 4.2.1'!D104+'IND 4.2.1'!G104+'IND 4.2.1'!H104)>1, "En moyenne, "& ROUND(('IND 4.2.1'!K104+'IND 4.2.1'!L104+'IND 4.2.1'!M104+'IND 4.2.1'!N104)/('IND 4.2.1'!C104+'IND 4.2.1'!D104+'IND 4.2.1'!G104+'IND 4.2.1'!H104),0)&" jours d'absence consécutifs par accident du travail", "En moyenne, "&ROUND(('IND 4.2.1'!K104+'IND 4.2.1'!L104+'IND 4.2.1'!M104+'IND 4.2.1'!N104)/('IND 4.2.1'!C104+'IND 4.2.1'!D104+'IND 4.2.1'!G104+'IND 4.2.1'!H104),0)&" jour d'absence consécutif par accident du travail"))))) -> En moyenne, 46 jours d'absence consécutifs par accident du travail | BD37: =IF(SUM('IND 4.1.1-4.1.2'!C27:C29)=0,"Aucune formation liée à la prévention n'a été suivie",IF(SUM('IND 4.1.1-4.1.2'!C27:C29)>1,SUM('IND 4.1.1-4.1.2'!C27:C29)&" jours de formation liés à la prévention (habilitations et formations obligatoires)",SUM('IND 4.1.1-4.1.2'!C27:C29)&" jour de formation lié à la prévention (habilitation ou formation obligatoire)")) -> 134 jours de formation liés à la prévention (habilitations et formations obligatoires) | GJ37: 2B | GK37: Corse | GL37: Centre de Gestion de la Haute-Corse | GO37: Aides-soignants | GP37: ='IND 1.1.1'!I256 -> 0 | GQ37: ='IND 1.2.1'!L63 -> 0 | GR37: 0 | GS37: =RANK(GR37,$GR$1:$GR$60,0)+COUNTIF(GR$1:GR37,GR37)-1 -> 40 | GT37: =GS37 -> 40 | GU37: 0 | GV37: Aides-soignants | GW37: B | GX37: 0 | GY37: 0 | GZ37: 0
A38: Administrative | D38: =IFERROR('IND 1.1.1'!$I$49/$D$69,"") -> 0.1801075269 | E38: =IFERROR('IND 1.2.1'!L20/$D$70,"") -> 0.1944444444 | F38: =IFERROR(('IND 1.1.1'!I49+'IND 1.2.1'!L20)/(synthese!$D$69+synthese!$D$70),"") -> 0.181372549 | M38: =IF($J$86=0," ",IF(D71<2,"Contractuel non permanent","Contractuels non permanents")) -> Contractuels non permanents | O38: =IF($J$86=0," ",IF(D71<2,"de "&$J$87-2.5&" à "&$J$87+2.5,$J$87)) -> 41.86440678 | AE38: =IF(SUM('IND 1.9.7'!$B$8:$C$10)=0,"","dont "&TEXT(AG74*100,"##0,0")&" % femmes") -> dont 100,0 % femmes | BV38: Cette fiche synthétique reprend les principaux indicateurs sociaux issus du Rapport Social Unique 2023. Les données utilisées sont extraites du Rapport sur l'État de la Collectivité 2023 transmis en 2024 par la collectivité. Ces données ont pour objectif de bénéficier d'une vue d'ensemble sur les effectifs de la collectivité. | GJ38: 25 | GK38: Franche-Comté | GL38: Centre de Gestion du Doubs | GO38: Cadres de santé infirmiers, rééducateurs et assistants médico-techniques | GP38: ='IND 1.1.1'!I242 -> 0 | GQ38: ='IND 1.2.1'!L60 -> 0 | GR38: 0 | GS38: =RANK(GR38,$GR$1:$GR$60,0)+COUNTIF(GR$1:GR38,GR38)-1 -> 41 | GT38: 41 | GU38: 0 | GV38: Cadres de santé infirmiers, rééducateurs et assistants médico-techniques | GW38: A | GX38: 0 | GY38: 0 | GZ38: 0
A39: Technique | D39: =IFERROR('IND 1.1.1'!$I$90/$D$69,"") -> 0.6370967742 | E39: =IFERROR('IND 1.2.1'!L28/$D$70,"") -> 0.3611111111 | F39: =IFERROR(('IND 1.1.1'!I90+'IND 1.2.1'!L28)/(synthese!$D$69+synthese!$D$70),"") -> 0.612745098 | T39: * L'âge moyen est calculé sur la base des tranches d'âge | AE39: =IF(SUM('IND 1.9.7'!$B$8:$C$10)=0,"","dont "&TEXT(AH80*100,"##0,0")&" % de catégorie C") -> dont 50,0 % de catégorie C | AP39: =IF($C$30=" "," ","a") -> a | AQ39: =IF('IND 3.1.1-3.3.1 et 3.4.1-3.4.3'!$F$145="Oui","Les primes sont maintenues en cas de congé de maladie ordinaire",IF('IND 3.1.1-3.3.1 et 3.4.1-3.4.3'!$F$145="Non","Les primes ne sont pas maintenues en cas de congé de maladie ordinaire","Aucune information sur le maintien des primes en cas de congé de maladie ordinaire")) -> Les primes sont maintenues en cas de congé de maladie ordinaire | BJ39: =IF(OR('IND 7.2.0-7.2.2'!$B$28+'IND 7.2.0-7.2.2'!$C$28=0,'IND 7.2.0-7.2.2'!$B$21+'IND 7.2.0-7.2.2'!$C$21=0),"","Montant moyen par bénéficiaire") -> Montant moyen par bénéficiaire | BM39: =IF('IND 7.2.0-7.2.2'!$B$21=0," ",IF('IND 7.2.0-7.2.2'!$B$28=0, "",TEXT(ROUND('IND 7.2.0-7.2.2'!$B$28/'IND 7.2.0-7.2.2'!$B$21,0),"# ### ### €"))) -> 417 € | BN39: =IF('IND 7.2.0-7.2.2'!$C$21=0,"",IF('IND 7.2.0-7.2.2'!$C$28=0, "",TEXT(ROUND('IND 7.2.0-7.2.2'!$C$28/'IND 7.2.0-7.2.2'!$C$21,0),"# ### ### €"))) -> 359 € | GJ39: 39 | GK39: Franche-Comté | GL39: Centre de Gestion du Jura | GO39: Infirmiers en soins généraux | GP39: ='IND 1.1.1'!I247 -> 1 | GQ39: ='IND 1.2.1'!L61 -> 0 | GR39: 1 | GS39: =RANK(GR39,$GR$1:$GR$60,0)+COUNTIF(GR$1:GR39,GR39)-1 -> 20 | GT39: 20 | GU39: 0.002450980392 | GV39: Infirmiers en soins généraux | GW39: A | GX39: 1 | GY39: 1 | GZ39: 0
A40: Culturelle | D40: =IFERROR('IND 1.1.1'!$I$145/$D$69,"") -> 0.03494623656 | E40: =IFERROR('IND 1.2.1'!L39/$D$70,"") -> 0.1111111111 | F40: =IFERROR(('IND 1.1.1'!I145+'IND 1.2.1'!L39)/(synthese!$D$69+synthese!$D$70),"") -> 0.04166666667 | AJ40: =IF(AP72=0, " ","Fonctionnaires") -> Fonctionnaires | AN40: =IF(AP72=0," ",AS72) -> 0.2153322101 | BD40: =IF($BG$40=" "," ","Coût total des formations :") -> Coût total des formations : | BG40: =IF(SUM('IND 4.1.1-4.1.2'!B27:B29)=0," ",SUM('IND 4.1.1-4.1.2'!B27:B29)) -> 27501 | GJ40: 70 | GK40: Franche-Comté | GL40: Centre de Gestion de Haute-Saône | GO40: Infirmiers | GP40: ='IND 1.1.1'!I251 -> 0 | GQ40: ='IND 1.2.1'!L62 -> 0 | GR40: 0 | GS40: =RANK(GR40,$GR$1:$GR$60,0)+COUNTIF(GR$1:GR40,GR40)-1 -> 42 | GT40: 42 | GU40: 0 | GV40: Infirmiers | GW40: B | GX40: 0 | GY40: 0 | GZ40: 0
A41: Sportive | D41: =IFERROR('IND 1.1.1'!$I$166/$D$69,"") -> 0 | E41: =IFERROR('IND 1.2.1'!L44/$D$70,"") -> 0 | F41: =IFERROR(('IND 1.1.1'!I166+'IND 1.2.1'!L44)/(synthese!$D$69+synthese!$D$70),"") -> 0 | AP41: =IF($C$30=" "," ","a") -> a | AQ41: =IF(SUM('IND 2.2.8'!$B$89:$C$89,'IND 2.2.8'!$F$89:$G$89,'IND 2.2.8'!$H$89:$I$89,'IND 2.2.8'!$L$89:$M$89)=0,"Aucune heure supplémentaire réalisée et rémunérée en 2023",IF(SUM('IND 2.2.8'!$B$89:$C$89,'IND 2.2.8'!$F$89:$G$89,'IND 2.2.8'!$H$89:$I$89,'IND 2.2.8'!$L$89:$M$89)=1,"Une heure supplémentaire réalisée et rémunérée en 2023",SUM('IND 2.2.8'!$B$89:$C$89,'IND 2.2.8'!$F$89:$G$89,'IND 2.2.8'!$H$89:$I$89,'IND 2.2.8'!$L$89:$M$89)&" heures supplémentaires réalisées et rémunérées en 2023")) -> 2780,07 heures supplémentaires réalisées et rémunérées en 2023 | BD41: =IF($BG$40=" "," ","Coût par jour de formation :") -> Coût par jour de formation : | BG41: =IF($BG$40=" "," ",(IF(SUM('IND 4.1.1-4.1.2'!B27:B29)/SUM('IND 4.1.1-4.1.2'!C27:C29)=$BG$40,"- ",SUM('IND 4.1.1-4.1.2'!B27:B29)/SUM('IND 4.1.1-4.1.2'!C27:C29)))) -> 205.2313433 | GJ41: 90 | GK41: Franche-Comté | GL41: Centre de Gestion du Territoire-de-Belfort | GO41: Auxiliaires de puériculture | GP41: ='IND 1.1.1'!I260 -> 27 | GQ41: ='IND 1.2.1'!L64 -> 10 | GR41: 37 | GS41: =RANK(GR41,$GR$1:$GR$60,0)+COUNTIF(GR$1:GR41,GR41)-1 -> 3 | GT41: 3 | GU41: 0.09068627451 | GV41: Auxiliaires de puériculture | GW41: B | GX41: 37 | GY41: 27 | GZ41: 10
A42: Médico-sociale | D42: =IFERROR(('IND 1.1.1'!$I$267+'IND 1.1.1'!$I$291+'IND 1.1.1'!$I$204)/$D$69,"") -> 0.1048387097 | E42: =IFERROR(('IND 1.2.1'!L52+'IND 1.2.1'!L66+'IND 1.2.1'!L72)/$D$70,"") -> 0.3333333333 | F42: =IFERROR(('IND 1.1.1'!$I$267+'IND 1.1.1'!$I$291+'IND 1.1.1'!$I$204+('IND 1.2.1'!L52+'IND 1.2.1'!L66+'IND 1.2.1'!L72))/(synthese!$D$69+synthese!$D$70),"") -> 0.125 | AJ42: =IF(AR72=0," ","Contractuels sur emplois permanents") -> Contractuels sur emplois permanents | AN42: =IF(AR72=0," ",AT72) -> 0.1606970718 | GJ42: 27 | GK42: Haute-Normandie | GL42: Centre de Gestion de l'Eure | GO42: Auxiliaires de soins | GP42: ='IND 1.1.1'!I265 -> 0 | GQ42: ='IND 1.2.1'!L65 -> 0 | GR42: 0 | GS42: =RANK(GR42,$GR$1:$GR$60,0)+COUNTIF(GR$1:GR42,GR42)-1 -> 43 | GT42: 43 | GU42: 0 | GV42: Auxiliaires de soins | GW42: C | GX42: 0 | GY42: 0 | GZ42: 0
A43: Police | D43: =IFERROR('IND 1.1.1'!$I$316/$D$69,"") -> 0 | E43: =IFERROR('IND 1.2.1'!L78/$D$70,"") -> 0 | F43: =IFERROR(('IND 1.1.1'!I316+'IND 1.2.1'!L78)/(synthese!$D$69+synthese!$D$70),"") -> 0 | L43: Æ | M43: =TEXT('IND 1.1.4'!$C$72+'IND 1.1.4'!$D$72+'IND 1.2.4'!$C$71+'IND 1.2.4'!$D$71+'IND 1.3.1'!$F$83,"# ##0,00")&IF('IND 1.1.4'!$C$72+'IND 1.1.4'!$D$72+'IND 1.2.4'!$C$71+'IND 1.2.4'!$D$71+'IND 1.3.1'!$F$83<2," agent en Equivalent Temps Plein Rémunéré (ETPR) sur l'année 2023"," agents en Equivalent Temps Plein Rémunéré (ETPR) sur l'année 2023") -> 429,97 agents en Equivalent Temps Plein Rémunéré (ETPR) sur l'année 2023 | X43: Æ | Y43: =IF(SUM('IND 8.1.1'!$B$11:$C$11,'IND 8.1.1'!$B$15:$C$15,'IND 8.1.1'!$B$21:$C$21,'IND 8.1.1'!$B$24:$C$24,'IND 8.1.1'!$B$31:$B$35,'IND 8.1.1'!$C$31:$C$35,'IND 8.1.1'!$B$40:$C$43)=0,"Aucune sanction disciplinaire prononcée en 2023",IF(SUM('IND 8.1.1'!$B$11:$C$11,'IND 8.1.1'!$B$15:$C$15,'IND 8.1.1'!$B$21:$C$21,'IND 8.1.1'!$B$24:$C$24,'IND 8.1.1'!$B$31:$B$35,'IND 8.1.1'!$C$31:$C$35,'IND 8.1.1'!$B$40:$C$43)=1,"Une sanction disciplinaire prononcée en 2023",SUM('IND 8.1.1'!$B$11:$C$11,'IND 8.1.1'!$B$15:$C$15,'IND 8.1.1'!$B$21:$C$21,'IND 8.1.1'!$B$24:$C$24,'IND 8.1.1'!$B$31:$B$35,'IND 8.1.1'!$C$31:$C$35,'IND 8.1.1'!$B$40:$C$43)&" sanctions disciplinaires prononcées en 2023")) -> 4 sanctions disciplinaires prononcées en 2023 | AP43: =IF($C$30=" "," ","a") -> a | AQ43: =IF(SUM('IND 2.2.8'!$D$89:$E$89,'IND 2.2.8'!$J$89:$K$89)=0,"Aucune heure complémentaire réalisée et rémunérée en 2023",IF(SUM('IND 2.2.8'!$D$89:$E$89,'IND 2.2.8'!$J$89:$K$89)=1,"Une heure complémentaire réalisée et rémunérée en 2023",SUM('IND 2.2.8'!$D$89:$E$89,'IND 2.2.8'!$J$89:$K$89)&" heures complémentaires réalisées et rémunérées en 2023")) -> 793,4 heures complémentaires réalisées et rémunérées en 2023 | AW43: Seules les collectivités de plus de 20 agents équivalent temps plein sont soumises à l'obligation d'emploi de travailleurs handicapés à hauteur de 6 % des effectifs. | BC43: Æ | BD43: DÉPENSES | BY43: L'outil automatisé permettant la réalisation de cette synthèse a été développé par le Comité Technique des Chargés d'études des Observatoires Régionaux des Centres de Gestion. | GJ43: 76 | GK43: Haute-Normandie | GL43: Centre de Gestion de la Seine-Maritime | GO43: Masseurs-kinesitherapeutes, psychomotriciens et orthophonistes | GP43: ='IND 1.1.1'!I274 -> 0 | GQ43: ='IND 1.2.1'!L68 -> 0 | GR43: 0 | GS43: =RANK(GR43,$GR$1:$GR$60,0)+COUNTIF(GR$1:GR43,GR43)-1 -> 44 | GT43: 44 | GU43: 0 | GV43: Masseurs-kinesitherapeutes, psychomotriciens et orthophonistes | GW43: A | GX43: 0 | GY43: 0 | GZ43: 0
A44: Incendie | D44: =IFERROR('IND 1.1.1'!$I$366/$D$69,"") -> 0 | E44: =IFERROR('IND 1.2.1'!L88/$D$70,"") -> 0 | F44: =IFERROR(('IND 1.1.1'!I366+'IND 1.2.1'!L88)/(synthese!$D$69+synthese!$D$70),"") -> 0 | AJ44: =IF($B$21+$B$20=0," ","Ensemble") -> Ensemble | AN44: =IF($B$21+$B$20=0," ",AU72) -> 0.2111463379 | BD44: =IF(SUM('IND 4.1.1-4.1.2'!B30:B31)=0, "Aucune dépense en faveur de la prévention, de la sécurité et de l’amélioration des conditions de travail n'a été effectuée","La collectivité a effectué des dépenses en faveur de la prévention, de la sécurité et de l’amélioration des conditions de travail") -> Aucune dépense en faveur de la prévention, de la sécurité et de l’amélioration des conditions de travail n'a été effectuée | GJ44: 75 | GK44: Ile-de-France | GL44: Centre Interdépartemental de Gestion de la Grande Couronne de la Région d'Ile-de-France | GO44: Pedicures-podologues, ergotherapeutes, orthoptistes et manipulateurs d'electroradiologie medicale | GP44: ='IND 1.1.1'!I279 -> 0 | GQ44: ='IND 1.2.1'!L69 -> 0 | GR44: 0 | GS44: =RANK(GR44,$GR$1:$GR$60,0)+COUNTIF(GR$1:GR44,GR44)-1 -> 45 | GT44: 45 | GU44: 0 | GV44: Pedicures-podologues, ergotherapeutes, orthoptistes et manipulateurs d'electroradiologie medicale | GW44: A | GX44: 0 | GY44: 0 | GZ44: 0
A45: Animation | D45: =IFERROR('IND 1.1.1'!$I$383/$D$69,"") -> 0.04301075269 | E45: =IFERROR('IND 1.2.1'!L92/$D$70,"") -> 0 | F45: =IFERROR(('IND 1.1.1'!I383+'IND 1.2.1'!L92)/(synthese!$D$69+synthese!$D$70),"") -> 0.03921568627 | M45: ="> " & TEXT('IND 1.1.4'!C72+'IND 1.1.4'!D72,"# ##0,00") -> > 355,72 | O45: =IF('IND 1.1.4'!$C$72+'IND 1.1.4'!$D$72<2,"fonctionnaire","fonctionnaires") -> fonctionnaires | S45: Répartition des ETPR permanents par catégorie | Y45: Nombre de sanctions prononcées concernant les fonctionnaires en 2023 | AP45: =IF(AQ45=" "," ","a") -> a | AQ45: =IF($D$70=0," ",AL76) -> La collectivité a adhéré au régime général d'assurance chômage pour l'assurance chômage de ses agents contractuels | BI45: ="Æ" -> Æ | BJ45: Jours de grève | BN45: =IF(BO45=" "," ","Æ") -> Æ | BO45: =IF('IND 6.1.1-6.1.3'!B7=0," ","Comité Social Territorial") -> Comité Social Territorial | GJ45: 77 | GK45: Ile-de-France | GL45: Centre de Gestion de Seine-et-Marne | GO45: Biologistes-vétérinaires-pharmaciens | GP45: ='IND 1.1.1'!I284 -> 0 | GQ45: ='IND 1.2.1'!L70 -> 0 | GR45: =GP45+GQ45 -> 0 | GS45: =RANK(GR45,$GR$1:$GR$60,0)+COUNTIF(GR$1:GR45,GR45)-1 -> 46 | GT45: 46 | GU45: 0 | GV45: =GO45 -> Biologistes-vétérinaires-pharmaciens | GW45: A | GX45: 0 | GY45: 0 | GZ45: 0
A46: Total | D46: =SUM($D$38:$D$45) -> 1 | E46: =SUM($E$38:$E$45) -> 1 | F46: =SUM($F$38:$F$45) -> 1 | M46: ="> " &TEXT('IND 1.2.4'!C71+'IND 1.2.4'!D71,"# ##0,00") -> > 36,83 | O46: =IF('IND 1.2.4'!$C$71+'IND 1.2.4'!$D$71<2,"contractuel permanent","contractuels permanents") -> contractuels permanents | AE46: =IF(SUM('IND 8.1.1'!$B$11:$C$11,'IND 8.1.1'!$B$15:$C$15,'IND 8.1.1'!$B$21:$C$21,'IND 8.1.1'!$B$24:$C$24,'IND 8.1.1'!$B$31:$B$35,'IND 8.1.1'!$C$31:$C$35,'IND 8.1.1'!$B$40:$C$43)=0,"",IF(SUM('IND 8.1.1'!$B$31:$C$35)=0,"Aucune sanction prononcée à l'encontre de fonctionnaires stagiaires ",IF(SUM('IND 8.1.1'!$B$31:$C$35)=1,"Une sanction prononcée à l'encontre d'un fonctionnaire stagiaire",SUM('IND 8.1.1'!$B$31:$C$35)&" sanctions prononcées à l'encontre de fonctionnaires stagiaires"))) -> Aucune sanction prononcée à l'encontre de fonctionnaires stagiaires | GJ46: 78 | GK46: Ile-de-France | GL46: Centre Interdépartemental de Gestion de la Grande Couronne de la Région d'Ile-de-France | GO46: Techniciens paramédicaux | GP46: ='IND 1.1.1'!I289 -> 0 | GQ46: ='IND 1.2.1'!L71 -> 0 | GR46: 0 | GS46: =RANK(GR46,$GR$1:$GR$60,0)+COUNTIF(GR$1:GR46,GR46)-1 -> 47 | GT46: 47 | GU46: 0 | GV46: Techniciens paramédicaux | GW46: B | GX46: 0 | GY46: 0 | GZ46: 0
M47: ="> " &TEXT('IND 1.3.1'!F83,"# ##0,00") -> > 37,42 | O47: =IF('IND 1.3.1'!$F$83<2,"contractuel non permanent","contractuels non permanents") -> contractuels non permanents | AA47: Hommes | AB47: Femmes | AP47: =IF(AQ47=" ","","a") ->  | AQ47: =IF($D$70=0," ",AL81) ->  | AW47: =IF(SUM('IND 1.6.1'!B17:E19)=0,"Aucun travailleur handicapé employé sur emploi permanent ", IF(SUM('IND 1.6.1'!B17:E19)<2,SUM('IND 1.6.1'!B17:E19) &" travailleur handicapé employé sur emploi permanent ", SUM('IND 1.6.1'!B17:E19) &" travailleurs handicapés employés sur emploi permanent ")) -> 37 travailleurs handicapés employés sur emploi permanent | BJ47: =IF('IND 6.1.1-6.1.3'!B59=0,"Aucun jour de grève recensé en 2023",IF('IND 6.1.1-6.1.3'!B59<2,'IND 6.1.1-6.1.3'!B59&" jour de grève recensé en 2023",'IND 6.1.1-6.1.3'!B59&" jours de grève recensés en 2023")) -> 516 jours de grève recensés en 2023 | BO47: =IF('IND 6.1.1-6.1.3'!B7=0," ",IF('IND 6.1.1-6.1.3'!B7<2,'IND 6.1.1-6.1.3'!B7&" réunion en 2023 dans la collectivité",'IND 6.1.1-6.1.3'!B7&" réunions en 2023 dans la collectivité")) -> 4 réunions en 2023 dans la collectivité | GJ47: 91 | GK47: Ile-de-France | GL47: Centre Interdépartemental de Gestion de la Grande Couronne de la Région d'Ile-de-France | GO47: Directeurs de police municipale | GP47: ='IND 1.1.1'!I297 -> 0 | GQ47: ='IND 1.2.1'!L74 -> 0 | GR47: 0 | GS47: =RANK(GR47,$GR$1:$GR$60,0)+COUNTIF(GR$1:GR47,GR47)-1 -> 48 | GT47: 48 | GU47: 0 | GV47: Directeurs de police municipale | GW47: A | GX47: 0 | GY47: 0 | GZ47: 0
A48: Æ | B48: Répartition par genre et par statut | G48: Æ | H48: =IF(H52="","Cadre d'emplois","Les principaux cadres d’emplois") -> Les principaux cadres d’emplois | M48: =TEXT('IND 4.2.1'!$C$10,"# ##0") & IF('IND 4.2.1'!$C$10<2," heure travaillée rémunérée en 2023"," heures travaillées rémunérées en 2023") -> 782 545 heures travaillées rémunérées en 2023 | Y48: Sanctions 1er groupe | AA48: ='IND 8.1.1'!$B$11 -> 4 | AB48: ='IND 8.1.1'!$C$11 -> 0 | BO48: =IF('IND 6.1.1-6.1.3'!B18=0," ",IF('IND 6.1.1-6.1.3'!B18<2,'IND 6.1.1-6.1.3'!B18&" réunion de la F3SCT",'IND 6.1.1-6.1.3'!B18&" réunions de la F3SCT")) -> 4 réunions de la F3SCT | GJ48: 92 | GK48: Ile-de-France | GL48: Centre Interdépartemental de Gestion de la Petite Couronne de la Région d'Ile-de-France | GO48: Chefs de service de police municipale | GP48: ='IND 1.1.1'!I303 -> 0 | GQ48: ='IND 1.2.1'!L75 -> 0 | GR48: 0 | GS48: =RANK(GR48,$GR$1:$GR$60,0)+COUNTIF(GR$1:GR48,GR48)-1 -> 49 | GT48: 49 | GU48: 0 | GV48: Chefs de service de police municipale | GW48: B | GX48: 0 | GY48: 0 | GZ48: 0
Y49: Sanctions 2ème groupe | AA49: ='IND 8.1.1'!$B$15 -> 0 | AB49: ='IND 8.1.1'!$C$15 -> 0 | AE49: =IF(SUM('IND 8.1.1'!$B$11:$C$11,'IND 8.1.1'!$B$15:$C$15,'IND 8.1.1'!$B$21:$C$21,'IND 8.1.1'!$B$24:$C$24,'IND 8.1.1'!$B$31:$B$35,'IND 8.1.1'!$C$31:$C$35,'IND 8.1.1'!$B$40:$C$43)=0,"",IF(SUM('IND 8.1.1'!$B$40:$C$43)=0,"Aucune sanction prononcée à l'encontre d'agents contractuels",IF(SUM('IND 8.1.1'!$B$40:$C$43)=1,"Une sanction prononcée à l'encontre d'un agent contractuel ",SUM('IND 8.1.1'!$B$40:$C$43)&" sanctions prononcées à l'encontre d'agents contractuels"))) -> Aucune sanction prononcée à l'encontre d'agents contractuels | AI49: Æ | AJ49: IFSE et CIA selon la catégorie et le genre | BD49: =IF(SUM('IND 4.1.1-4.1.2'!B30:B31) = 0, " ","Total des dépenses : ") ->  | BG49: =IF(SUM('IND 4.1.1-4.1.2'!B30:B31)= 0, " ",SUM('IND 4.1.1-4.1.2'!B30:B31)) ->  | BI49: =IF(BJ49=" "," ","Æ") ->  | BJ49: =IF('IND 6.1.1-6.1.3'!B8=0, " ", "Commissions Administratives Paritaires ") ->  | GJ49: 93 | GK49: Ile-de-France | GL49: Centre Interdépartemental de Gestion de la Petite Couronne de la Région d'Ile-de-France | GO49: Agents de police municipale | GP49: ='IND 1.1.1'!I309 -> 0 | GQ49: ='IND 1.2.1'!L76 -> 0 | GR49: 0 | GS49: =RANK(GR49,$GR$1:$GR$60,0)+COUNTIF(GR$1:GR49,GR49)-1 -> 50 | GT49: 50 | GU49: 0 | GV49: Agents de police municipale | GW49: C | GX49: 0 | GY49: 0 | GZ49: 0
H50: Cadres d'emplois | K50: % d'agents | Y50: Sanctions 3ème groupe | AA50: ='IND 8.1.1'!$B$21 -> 0 | AB50: ='IND 8.1.1'!$C$21 -> 0 | AJ50: Montant annuel moyen par ETPR | AK50: Fonctionnaires | AQ50: Contractuels sur emploi permanents | AW50: =IF(AX50=" "," ","a") -> a | AX50: =IF(SUM('IND 1.6.1'!B27:C27)=0, "Aucun travailleur handicapé recruté sur emploi non permanent",IF(SUM('IND 1.6.1'!B27:C27)<2,SUM('IND 1.6.1'!B27:C27)& " travailleur handicapé recruté sur emploi non permanent",SUM('IND 1.6.1'!B27:C27) & " travailleurs handicapés recrutés sur emploi non permanent")) -> 1 travailleur handicapé recruté sur emploi non permanent | BX50: Date de publication : | BZ50: =TODAY() -> 2024-12-16 | CD50: Version 1 | GJ50: 94 | GK50: Ile-de-France | GL50: Centre Interdépartemental de Gestion de la Petite Couronne de la Région d'Ile-de-France | GO50: Gardes-champêtres | GP50: ='IND 1.1.1'!I314 -> 0 | GQ50: ='IND 1.2.1'!L77 -> 0 | GR50: 0 | GS50: =RANK(GR50,$GR$1:$GR$60,0)+COUNTIF(GR$1:GR50,GR50)-1 -> 51 | GT50: 51 | GU50: 0 | GV50: Gardes-champêtres | GW50: C | GX50: 0 | GY50: 0 | GZ50: 0
H51: =IF(OR(K51=0,K51=""),"",VLOOKUP(1,$GT$2:$GV$60,3,FALSE)) -> Adjoints techniques | K51: =IF(D69+D70=0,"",VLOOKUP(1,$GT$2:$GU$604,2,FALSE)) -> 0.4387254902 | R51: =U134&U120&U112&U108 -> > 6 agents détachés au sein de la collectivité > Un agent détaché dans une autre structure > 5 agents dans d'autres situations (disponibilité d'office, congés spécial et hors cadre) | Y51: Sanctions 4ème groupe | AA51: ='IND 8.1.1'!$B$24 -> 0 | AB51: ='IND 8.1.1'!$C$24 -> 0 | AK51: Femmes | AN51: Hommes | AQ51: Femmes | AT51: Hommes | BC51: =IF(BD52=" "," ","Æ") -> Æ | BD51: =IF(BD52=" "," ","DOCUMENT DE PRÉVENTION") -> DOCUMENT DE PRÉVENTION | BI51: =IF(BJ53=" "," ","Æ") ->  | BJ51: =IF('IND 6.1.1-6.1.3'!B8=0," ",IF('IND 6.1.1-6.1.3'!B8<2,'IND 6.1.1-6.1.3'!B8&" réunion en 2023 dans la collectivité",'IND 6.1.1-6.1.3'!B8&" réunions en 2023 dans la collectivité")) ->  | GJ51: 95 | GK51: Ile-de-France | GL51: Centre Interdépartemental de Gestion de la Grande Couronne de la Région d'Ile-de-France | GO51: CONTRÔLEURS, COLONELS | GP51: ='IND 1.1.1'!I323 -> 0 | GQ51: ='IND 1.2.1'!L80 -> 0 | GR51: 0 | GS51: =RANK(GR51,$GR$1:$GR$60,0)+COUNTIF(GR$1:GR51,GR51)-1 -> 52 | GT51: 52 | GU51: 0 | GV51: CONTRÔLEURS, COLONELS | GW51: A | GX51: 0 | GY51: 0 | GZ51: 0
H52: =IF(OR(K52=0,K52=""),"",VLOOKUP(2,$GT$2:$GV$60,3,FALSE)) -> Agents de maîtrise | K52: =IF(D69+D70=0,"",VLOOKUP(2,$GT$2:$GU$60,2,FALSE)) -> 0.09068627451 | M52: =IF(U147&U126&U105&U106="","Aucune position particulière",U147&U126&U105&U106) -> > 2 agents mis à disposition dans une autre structure > Un agent en congés parental > 12 agents en disponibilité | AK52: IFSE | AL52: CIA | AM52: Part CIA | AN52: IFSE | AO52: CIA | AP52: Part CIA | AQ52: IFSE | AR52: CIA | AS52: Part CIA | AT52: IFSE | AU52: CIA | AV52: Part CIA | AW52: =IF(AX52=" "," ","a") -> a | AX52: =IF(AZ63=0," ", (IF(AZ63>5,ROUND(((AZ63)/(AZ66))*100,0)&" % sont fonctionnaires*",IF(AZ63<2,AZ63&" travailleur handicapé fonctionnaire ",AZ63&" travailleurs handicapés fonctionnaires ")))) -> 92 % sont fonctionnaires* | BD52: =IF('IND 4.1.4-4.1.8'!$F$9=""," ",(IF('IND 4.1.4-4.1.8'!$F$9="Non","La collectivité ne dispose pas d'un document unique d'évaluation des risques professionnels",IF('IND 4.1.4-4.1.8'!$F$9="En cours","Le document unique d'évaluation des risques professionnels est en cours d'élaboration","La collectivité dispose d'un document unique d'évaluation des risques professionnels")))) -> La collectivité dispose d'un document unique d'évaluation des risques professionnels | GJ52: 11 | GK52: Languedoc | GL52: Centre de Gestion de l'Aude | GO52: Capitaines, commandants, lieutenants-colonels, colonels | GP52: ='IND 1.1.1'!I329 -> 0 | GQ52: ='IND 1.2.1'!L81 -> 0 | GR52: 0 | GS52: =RANK(GR52,$GR$1:$GR$60,0)+COUNTIF(GR$1:GR52,GR52)-1 -> 53 | GT52: 53 | GU52: 0 | GV52: Capitaines, commandants, lieutenants-colonels, colonels | GW52: A | GX52: 0 | GY52: 0 | GZ52: 0
H53: =IF(OR(K53=0,K53=""),"",VLOOKUP(3,$GT$2:$GV$60,3,FALSE)) -> Auxiliaires de puériculture | K53: =IF(D69+D70=0,"",VLOOKUP(3,$GT$2:$GU$60,2,FALSE)) -> 0.09068627451 | X53: =IF(Y53="","","Æ") -> Æ | Y53: =IF(SUM('IND 8.1.1'!$B$48:$C$58)=0,"",IF(Y56="","Motif de la sanction prononcée (fonctionnaires et contractuels en 2023)","Principaux motifs des sanctions prononcées (fonctionnaires et contractuels en 2023)")) -> Principaux motifs des sanctions prononcées (fonctionnaires et contractuels en 2023) | AJ53: Catégorie A | AK53: =AK115 -> 12247.72869 | AL53: =AL115 -> 1212.321095 | AM53: =IF(OR(AK53="-", AK53="", AK53="s", AL53="-", AL53="", AL53="s"), "", AL53 / (AL53 + AK53)) -> 0.09006809892 | AN53: =AN115 -> 16152.92439 | AO53: =AO115 -> 1306.704708 | AP53: =IF(OR(AN53="-", AN53="", AN53="s", AO53="-", AO53="", AO53="s"), "", AO53 / (AO53 + AN53)) -> 0.07484149291 | AQ53: =AQ115 -> 6812.403101 | AR53: =AR115 -> 171.7054264 | AS53: =IF(OR(AQ53="-", AQ53="", AQ53="s", AR53="-", AR53="", AR53="s"), "", AR53 / (AR53 + AQ53)) -> 0.02458516011 | AT53: =AT115 ->  | AU53: =AU115 ->  | AV53: =IF(OR(AT53="-", AT53="", AT53="s", AU53="-", AU53="", AU53="s"), "", AU53 / (AU53 + AT53)) ->  | AW53: =IF(AX53=" "," ","a") -> a | AX53: =IF((AY72)=0," ", IF(AY71>5,ROUND((AY71/(AY72))*100,0) &" % sont en catégorie C*", IF(AY69<2,AY69& " travailleur handicapé en catégorie A, " & AY70 & " en catégorie B, " & AY71 &" en catégorie C", AY69 & " travailleurs handicapés en catégorie A, " & AY70 & " en catégorie B, " & AY71 &" en catégorie C"))) -> 84 % sont en catégorie C* | BJ53: =IF('IND 6.1.1-6.1.3'!B9=0, " ", "Commissions Consultatives Paritaires ") ->  | GJ53: 30 | GK53: Languedoc | GL53: Centre de Gestion du Gard | GO53: Médecins, pharmaciens | GP53: ='IND 1.1.1'!I335 -> 0 | GQ53: ='IND 1.2.1'!L82 -> 0 | GR53: 0 | GS53: =RANK(GR53,$GR$1:$GR$60,0)+COUNTIF(GR$1:GR53,GR53)-1 -> 54 | GT53: 54 | GU53: 0 | GV53: Médecins, pharmaciens | GW53: A | GX53: 0 | GY53: 0 | GZ53: 0
H54: =IF(OR(K54=0,K54=""),"",VLOOKUP(4,$GT$2:$GV$60,3,FALSE)) -> Adjoints administratifs | K54: =IF(D69+D70=0,"",VLOOKUP(4,$GT$2:$GU$60,2,FALSE)) -> 0.08823529412 | AJ54: Catégorie B | AK54: =AK116 -> 5580.781912 | AL54: 560.2449364 | AM54: =IF(OR(AK54="-", AK54="", AK54="s", AL54="-", AL54="", AL54="s"), "", AL54 / (AL54 + AK54)) -> 0.09122984644 | AN54: =AN116 -> 8129.306766 | AO54: 732.8352013 | AP54: =IF(OR(AN54="-", AN54="", AN54="s", AO54="-", AO54="", AO54="s"), "", AO54 / (AO54 + AN54)) -> 0.08269278511 | AQ54: =AQ116 -> 3333.433962 | AR54: 4.905660377 | AS54: =IF(OR(AQ54="-", AQ54="", AQ54="s", AR54="-", AR54="", AR54="s"), "", AR54 / (AR54 + AQ54)) -> 0.001469491104 | AT54: =AT116 -> 5075.107296 | AU54: 403.8626609 | AV54: =IF(OR(AT54="-", AT54="", AT54="s", AU54="-", AU54="", AU54="s"), "", AU54 / (AU54 + AT54)) -> 0.07371142096 | GJ54: 34 | GK54: Languedoc | GL54: Centre de Gestion de l'Hérault | GO54: Lieutenants de sapeurs-pompiers professionnels | GP54: ='IND 1.1.1'!I342 -> 0 | GQ54: ='IND 1.2.1'!L83 -> 0 | GR54: 0 | GS54: =RANK(GR54,$GR$1:$GR$60,0)+COUNTIF(GR$1:GR54,GR54)-1 -> 55 | GT54: 55 | GU54: 0 | GV54: Lieutenants de sapeurs-pompiers professionnels | GW54: B | GX54: 0 | GY54: 0 | GZ54: 0
H55: =IF(OR(K55=0,K55=""),"",VLOOKUP(5,$GT$2:$GV$60,3,FALSE)) -> Techniciens | K55: =IF(D69+D70=0,"",VLOOKUP(5,$GT$2:$GU$60,2,FALSE)) -> 0.05637254902 | Y55: =IF(ISNA(VLOOKUP(1,$BJ$115:$BM$125,2,FALSE))=TRUE,"",VLOOKUP(1,$BJ$115:$BM$125,2,FALSE)) -> Incorrections, violences, insultes, harcèlement moral | AH55: =IF(ISNA(VLOOKUP(1,$BJ$115:$BM$125,4,FALSE))=TRUE,"",VLOOKUP(1,$BJ$115:$BM$125,4,FALSE)) -> 0.5 | AJ55: Catégorie C | AK55: 4027.943441 | AL55: 379.9384012 | AM55: 0.08619523273 | AN55: =AN117 -> 4372.170894 | AO55: 421.24979 | AP55: =IF(OR(AN55="-", AN55="", AN55="s", AO55="-", AO55="", AO55="s"), "", AO55 / (AO55 + AN55)) -> 0.08788083037 | AQ55: =AQ117 -> 2717.582418 | AR55: 61.31868132 | AS55: =IF(OR(AQ55="-", AQ55="", AQ55="s", AR55="-", AR55="", AR55="s"), "", AR55 / (AR55 + AQ55)) -> 0.02206580196 | AT55: =AT117 -> 3163.322884 | AU55: 36.46812957 | AV55: 0.01139703481 | BJ55: =IF('IND 6.1.1-6.1.3'!B9=0," ",IF('IND 6.1.1-6.1.3'!B9<2,'IND 6.1.1-6.1.3'!B9&" réunion en 2023 dans la collectivité",'IND 6.1.1-6.1.3'!B9&" réunions en 2023 dans la collectivité")) ->  | GJ55: 48 | GK55: Languedoc | GL55: Centre de Gestion de la Lozère | GO55: CADRES DE SANTE DES SAPEURS POMPIERS PROFESSIONNELS | GP55: ='IND 1.1.1'!I347 -> 0 | GQ55: ='IND 1.2.1'!L84 -> 0 | GR55: 0 | GS55: =RANK(GR55,$GR$1:$GR$60,0)+COUNTIF(GR$1:GR55,GR55)-1 -> 56 | GT55: 56 | GU55: 0 | GV55: CADRES DE SANTE DES SAPEURS POMPIERS PROFESSIONNELS | GW55: A | GX55: 0 | GY55: 0 | GZ55: 0
Y56: =IF(ISNA(VLOOKUP(2,$BJ$115:$BM$125,2,FALSE))=TRUE,"",VLOOKUP(2,$BJ$115:$BM$125,2,FALSE)) -> Probité, intégrité (détournement, conservation de fonds, malversation, vol, dégradation, dettes, chèque sans provision) | AH56: =IF(ISNA(VLOOKUP(2,$BJ$115:$BM$125,4,FALSE))=TRUE,"",VLOOKUP(2,$BJ$115:$BM$125,4,FALSE)) -> 0.25 | AJ56: *s : secret statistique appliqué en dessous de 2 ETPR | AW56: =IF(AX56=" "," ","a") ->  | AX56: =IF(SUM('IND 1.6.2'!B12:B15)=0," ",TEXT(SUM('IND 1.6.2'!B12:B15),"# ##")& " € de dépenses réalisées couvrant partiellement l’obligation d’emploi ") ->  | BD56: =IF(BG56="","","Dernière mise à jour :") -> Dernière mise à jour : | BG56: =IF('IND 4.1.4-4.1.8'!$F$12=0,"",'IND 4.1.4-4.1.8'!$F$12) -> 2023 | GJ56: 66 | GK56: Languedoc | GL56: Centre de Gestion des Pyrénées-Orientales | GO56: Infirmiers de sapeurs-pompiers professionnels | GP56: ='IND 1.1.1'!I352 -> 0 | GQ56: ='IND 1.2.1'!L85 -> 0 | GR56: 0 | GS56: =RANK(GR56,$GR$1:$GR$60,0)+COUNTIF(GR$1:GR56,GR56)-1 -> 57 | GT56: 57 | GU56: 0 | GV56: Infirmiers de sapeurs-pompiers professionnels | GW56: A | GX56: 0 | GY56: 0 | GZ56: 0
A57: Synthèse des principaux indicateurs du Rapport Social Unique 2023 | Y57: =IF(ISNA(VLOOKUP(3,$BJ$115:$BM$125,2,FALSE))=TRUE,"",VLOOKUP(3,$BJ$115:$BM$125,2,FALSE)) -> Mœurs (dont harcèlement sexuel) | AH57: =IF(ISNA(VLOOKUP(3,$BJ$115:$BM$125,4,FALSE))=TRUE,"",VLOOKUP(3,$BJ$115:$BM$125,4,FALSE)) -> 0.25 | AJ57: =IF($D$70=0," ",AL86) ->  | GJ57: 19 | GK57: Limousin | GL57: Centre de Gestion de la Corrèze | GO57: Sous officiers de sapeurs-pompiers professionnels | GP57: ='IND 1.1.1'!I357 -> 0 | GQ57: ='IND 1.2.1'!L86 -> 0 | GR57: 0 | GS57: =RANK(GR57,$GR$1:$GR$60,0)+COUNTIF(GR$1:GR57,GR57)-1 -> 58 | GT57: 58 | GU57: 0 | GV57: Sous officiers de sapeurs-pompiers professionnels | GW57: C | GX57: 0 | GY57: 0 | GZ57: 0
GJ58: 23 | GK58: Limousin | GL58: Centre de Gestion de la Creuse | GO58: Sapeurs et caporaux de sapeurs-pompiers professionnels | GP58: ='IND 1.1.1'!I364 -> 0 | GQ58: ='IND 1.2.1'!L87 -> 0 | GR58: 0 | GS58: =RANK(GR58,$GR$1:$GR$60,0)+COUNTIF(GR$1:GR58,GR58)-1 -> 59 | GT58: 59 | GU58: 0 | GV58: Sapeurs et caporaux de sapeurs-pompiers professionnels | GW58: C | GX58: 0 | GY58: 0 | GZ58: 0
GJ59: 87 | GK59: Limousin | GL59: Centre de Gestion de Haute-Vienne | GO59: Animateurs | GP59: ='IND 1.1.1'!I374 -> 3 | GQ59: ='IND 1.2.1'!L90 -> 0 | GR59: 3 | GS59: =RANK(GR59,$GR$1:$GR$60,0)+COUNTIF(GR$1:GR59,GR59)-1 -> 13 | GT59: 13 | GU59: 0.007352941176 | GV59: Animateurs | GW59: B | GX59: 3 | GY59: 3 | GZ59: 0
GJ60: 54 | GK60: Lorraine | GL60: Centre de Gestion de Meurthe-et-Moselle | GO60: Adjoints d'animation | GP60: ='IND 1.1.1'!I381 -> 13 | GQ60: ='IND 1.2.1'!L91 -> 0 | GR60: 13 | GS60: =RANK(GR60,$GR$1:$GR$60,0)+COUNTIF(GR$1:GR60,GR60)-1 -> 8 | GT60: 8 | GU60: 0.0318627451 | GV60: Adjoints d'animation | GW60: C | GX60: 13 | GY60: 13 | GZ60: 0
AE61: Nombre de fonctionnaires ayant connu au cours de l'année un avancement de grade à la suite d'une : | AF61: ='IND 1.9.5 - 1.9.6.1'!B29 -> Hommes | AG61: ='IND 1.9.5 - 1.9.6.1'!C29 -> Femmes | BV61: Participation Santé ou prévoyance | GJ61: 55 | GK61: Lorraine | GL61: Centre de Gestion de la Meuse | GO61: SOMME | GP61: =SUM(GP2:GP60) -> 372 | GQ61: =SUM(GQ2:GQ60) -> 36 | GR61: =SUM(GR2:GR60) -> 408 | GU61: =SUM(GU2:GU60) -> 1 | GV61: 0 | GW61: 0 | GX61: 408 | GY61: 372 | GZ61: 36
H62: Permanent | I62: % | J62: Nombre | M62: , | N62: Hommes | O62: Femmes | U62: Temps complet | V62: Temps non complet | AE62: Promotion interne sans examen professionnel | AF62: ='IND 1.9.5 - 1.9.6.1'!B30 -> 4 | AG62: ='IND 1.9.5 - 1.9.6.1'!C30 -> 1 | AL62: % masse salariale sur dép de fonc | AP62: =IF($AL$6=0,0,(AP6/$AL$6)*100) -> 38.06218005 | AX62: Travailleurs handicapés | BV62: Santé | BX62: Prévoyance | GJ62: 57 | GK62: Lorraine | GL62: Centre de Gestion de la Moselle
B63: Catégorie A | D63: =SUMIF(GW2:GW60,"A",GX2:GX60)/GX61 -> 0.112745098 | H63: Hommes | I63: Femmes | J63: Hommes | K63: Femmes | L63: T | M63: moins de 30 ans | N63: =-SUM('IND 1.4.0'!$C$16:$D$18)/('IND 1.4.0'!$D$51+'IND 1.4.0'!$C$51) -> -0.04411764706 | O63: =SUM('IND 1.4.0'!C28:D30)/('IND 1.4.0'!$D$51+'IND 1.4.0'!$C$51) -> 0.03431372549 | S63: =IF(D70=0," ","Contractuels") -> Contractuels | U63: ='IND 1.2.1'!M94/$D$70 -> 0.8055555556 | V63: ='IND 1.2.1'!N94/$D$70 -> 0.1944444444 | AE63: - n'ayant pas entrainé une "nomination stagiaire" | AF63: ='IND 1.9.5 - 1.9.6.1'!B31 -> 0 | AG63: ='IND 1.9.5 - 1.9.6.1'!C31 -> 0 | AX63: Fonctionnaires | AZ63: =SUM('IND 1.6.1'!B17:C19) -> 34 | BV63: =IF(SUM('IND 7.2.0-7.2.2'!$B$24:$B$27)>0,2,IF(AND('IND 7.2.0-7.2.2'!B10="",'IND 7.2.0-7.2.2'!B11="",'IND 7.2.0-7.2.2'!B12=""),0,IF(OR('IND 7.2.0-7.2.2'!B10="Oui",'IND 7.2.0-7.2.2'!B11="Oui",'IND 7.2.0-7.2.2'!B12="Oui"),2,IF(OR('IND 7.2.0-7.2.2'!B10="Non",'IND 7.2.0-7.2.2'!B11="Non",'IND 7.2.0-7.2.2'!B12="Non"),1)))) -> 2 | BX63: =IF(SUM('IND 7.2.0-7.2.2'!$C$24:$C$27)>0,2,IF(AND('IND 7.2.0-7.2.2'!C10="",'IND 7.2.0-7.2.2'!C11="",'IND 7.2.0-7.2.2'!C12=""),0,IF(OR('IND 7.2.0-7.2.2'!C10="Oui",'IND 7.2.0-7.2.2'!C11="Oui",'IND 7.2.0-7.2.2'!C12="Oui"),2,IF(OR('IND 7.2.0-7.2.2'!C10="Non",'IND 7.2.0-7.2.2'!C11="Non",'IND 7.2.0-7.2.2'!C12="Non"),1)))) -> 2 | GJ63: 88 | GK63: Lorraine | GL63: Centre de Gestion des Vosges
B64: Catégorie B | D64: =SUMIF(GW2:GW60,"B",GX2:GX60)/GX61 -> 0.2083333333 | G64: Ensemble | H64: =(('IND 1.1.1'!G385+'IND 1.2.1'!R94+'IND 1.2.1'!T94)/($D$69+$D$70)) -> 0.5465686275 | I64: =(('IND 1.1.1'!H385+'IND 1.2.1'!S94+'IND 1.2.1'!U94)/($D$69+$D$70)) -> 0.4534313725 | J64: =('IND 1.1.1'!G385+'IND 1.2.1'!R94+'IND 1.2.1'!T94) -> 223 | K64: =('IND 1.1.1'!H385+'IND 1.2.1'!S94+'IND 1.2.1'!U94) -> 185 | M64: Entre 30 et 50 ans | N64: =-SUM('IND 1.4.0'!C19:D22)/('IND 1.4.0'!$D$51+'IND 1.4.0'!$C$51) -> -0.2254901961 | O64: =SUM('IND 1.4.0'!C31:D34)/('IND 1.4.0'!$D$51+'IND 1.4.0'!$C$51) -> 0.2279411765 | S64: =IF(D69=0," ","Fonctionnaires") -> Fonctionnaires | U64: ='IND 1.1.1'!$B$385/synthese!$D$69 -> 0.9784946237 | V64: ='IND 1.1.1'!$F$385/synthese!$D$69 -> 0.02150537634 | AE64: Promotion interne suite à un examen professionnel | AF64: ='IND 1.9.5 - 1.9.6.1'!B32 -> 2 | AG64: ='IND 1.9.5 - 1.9.6.1'!C32 -> 0 | AX64: Emploi permanent | AZ64: =SUM('IND 1.6.1'!D17:E19) -> 3 | GJ64: 9 | GK64: Midi-Pyrénées | GL64: Centre de Gestion de l'Ariège
B65: Catégorie C | D65: =SUMIF(GW2:GW60,"C",GX2:GX60)/GX61 -> 0.6789215686 | G65: Contractuels | H65: =('IND 1.2.1'!R94+'IND 1.2.1'!T94)/$D$70 -> 0.2777777778 | I65: =('IND 1.2.1'!S94+'IND 1.2.1'!U94)/$D$70 -> 0.7222222222 | J65: =('IND 1.2.1'!R94+'IND 1.2.1'!T94) -> 10 | K65: =('IND 1.2.1'!S94+'IND 1.2.1'!U94) -> 26 | M65: Plus de 50 ans | N65: =-SUM('IND 1.4.0'!C23:D26)/('IND 1.4.0'!$D$51+'IND 1.4.0'!$C$51) -> -0.2769607843 | O65: =SUM('IND 1.4.0'!C35:D38)/('IND 1.4.0'!$D$51+'IND 1.4.0'!$C$51) -> 0.1911764706 | AE65: - n'ayant pas entrainé une "nomination stagiaire" | AF65: ='IND 1.9.5 - 1.9.6.1'!B33 -> 0 | AG65: ='IND 1.9.5 - 1.9.6.1'!C33 -> 0 | AN65: Part des primes sur rémunérations annuelles butes | AX65: Non permanent | AZ65: =SUM('IND 1.6.1'!B27:C27) -> 1 | GJ65: 12 | GK65: Midi-Pyrénées | GL65: Centre de Gestion de l'Aveyron
G66: Fonctionnaires | H66: ='IND 1.1.1'!$G$385/$D$69 -> 0.5725806452 | I66: ='IND 1.1.1'!$H$385/$D$69 -> 0.4274193548 | J66: ='IND 1.1.1'!$G$385 -> 213 | K66: ='IND 1.1.1'!$H$385 -> 159 | U66: Temps plein | V66: Temps partiel | AE66: Réussite à un concours d'agents déjà fonctionnaires dans la collectivité | AF66: ='IND 1.9.5 - 1.9.6.1'!B34 -> 2 | AG66: ='IND 1.9.5 - 1.9.6.1'!C34 -> 0 | AY66: Total | AZ66: =SUM(AZ63:AZ64) -> 37 | GJ66: 31 | GK66: Midi-Pyrénées | GL66: Centre de Gestion de Haute-Garonne
M67: Total départ de fonctionnaires | Q67: ='IND 1.9.4.0'!F41+'IND 1.9.4.0'!J41 -> 0 | S67: =IF(D70=0," ","Contractuels") -> Contractuels | U67: =SUM('IND 2.3.4'!B94:C94)/SUM('IND 2.3.4'!J94:K94) -> 1 | V67: =SUM('IND 2.3.4'!D94:I94)/SUM('IND 2.3.4'!J94:K94) -> 0 | AE67: - n'ayant pas entrainé "une nomination stagiaire" | AF67: ='IND 1.9.5 - 1.9.6.1'!B35 -> 0 | AG67: ='IND 1.9.5 - 1.9.6.1'!C35 -> 0 | AN67: Prime | AP67: Rémunération ann B | AS67: % | BV67: =IF('IND 7.1.1-7.1.3'!B13="Oui","- "&"Prestations servies directement par la collectivité"&CHAR(10),"") -> - Prestations servies directement par la collectivité | GJ67: 32 | GK67: Midi-Pyrénées | GL67: Centre de Gestion du Gers
B68: Total Agents au 31/12 | M68: Total départ de contractuels | Q68: ='IND 1.9.4.0'!F64+'IND 1.9.4.0'!J64 -> 0 | S68: =IF(D69=0," ","Fonctionnaires") -> Fonctionnaires | U68: =SUM('IND 2.3.2'!B93:C93)/SUM('IND 2.3.2'!J93:K93) -> 0.8956043956 | V68: =SUM('IND 2.3.2'!D93:I93)/SUM('IND 2.3.2'!J93:K93) -> 0.1043956044 | AE68: au choix par voie d'inscription à un tableau annuel d'avancement, établi après une sélection par voie d'examen professionnel | AF68: ='IND 1.9.5 - 1.9.6.1'!B26 -> 3 | AG68: ='IND 1.9.5 - 1.9.6.1'!C26 -> 2 | AN68: Fonctionnaires | AO68: Contractuels | AP68: Fonctionnaires | AR68: Contractuels | AS68: Fonctionnaires | AT68: Contractuels | AU68: Ensemble | AX68: Travailleurs handicapés par catégorie | BV68: =IF('IND 7.1.1-7.1.3'!B14="Oui","- "&"Prestations servies par l'intermédiaire d'un centre de gestion"&CHAR(10),"") -> - Prestations servies par l'intermédiaire d'un centre de gestion | GJ68: 46 | GK68: Midi-Pyrénées | GL68: Centre de Gestion du Lot
B69: Fonct° | D69: ='IND 1.1.1'!$I$385 -> 372 | H69: Emploi aidé | I69: ='IND 1.3.1'!F26 -> 4 | AL69: Catégorie A | AN69: ='IND 3.1.1-3.3.1 et 3.4.1-3.4.3'!D20+'IND 3.1.1-3.3.1 et 3.4.1-3.4.3'!E20+'IND 3.1.1-3.3.1 et 3.4.1-3.4.3'!D24+'IND 3.1.1-3.3.1 et 3.4.1-3.4.3'!E24+'IND 3.1.1-3.3.1 et 3.4.1-3.4.3'!D28+'IND 3.1.1-3.3.1 et 3.4.1-3.4.3'!E28+'IND 3.1.1-3.3.1 et 3.4.1-3.4.3'!D32+'IND 3.1.1-3.3.1 et 3.4.1-3.4.3'!E32+'IND 3.1.1-3.3.1 et 3.4.1-3.4.3'!D36+'IND 3.1.1-3.3.1 et 3.4.1-3.4.3'!E36+'IND 3.1.1-3.3.1 et 3.4.1-3.4.3'!D40+'IND 3.1.1-3.3.1 et 3.4.1-3.4.3'!E40+'IND 3.1.1-3.3.1 et 3.4.1-3.4.3'!D44+'IND 3.1.1-3.3.1 et 3.4.1-3.4.3'!E44+'IND 3.1.1-3.3.1 et 3.4.1-3.4.3'!D48+'IND 3.1.1-3.3.1 et 3.4.1-3.4.3'!E48+'IND 3.1.1-3.3.1 et 3.4.1-3.4.3'!D52+'IND 3.1.1-3.3.1 et 3.4.1-3.4.3'!E52 -> 601061 | AO69: ='IND 3.1.1-3.3.1 et 3.4.1-3.4.3'!D68+'IND 3.1.1-3.3.1 et 3.4.1-3.4.3'!E68+'IND 3.1.1-3.3.1 et 3.4.1-3.4.3'!D72+'IND 3.1.1-3.3.1 et 3.4.1-3.4.3'!E72+'IND 3.1.1-3.3.1 et 3.4.1-3.4.3'!D76+'IND 3.1.1-3.3.1 et 3.4.1-3.4.3'!E76+'IND 3.1.1-3.3.1 et 3.4.1-3.4.3'!D80+'IND 3.1.1-3.3.1 et 3.4.1-3.4.3'!E80+'IND 3.1.1-3.3.1 et 3.4.1-3.4.3'!D84+'IND 3.1.1-3.3.1 et 3.4.1-3.4.3'!E84+'IND 3.1.1-3.3.1 et 3.4.1-3.4.3'!D88+'IND 3.1.1-3.3.1 et 3.4.1-3.4.3'!E88+'IND 3.1.1-3.3.1 et 3.4.1-3.4.3'!D92+'IND 3.1.1-3.3.1 et 3.4.1-3.4.3'!E92+'IND 3.1.1-3.3.1 et 3.4.1-3.4.3'!D96+'IND 3.1.1-3.3.1 et 3.4.1-3.4.3'!E96+'IND 3.1.1-3.3.1 et 3.4.1-3.4.3'!D100+'IND 3.1.1-3.3.1 et 3.4.1-3.4.3'!E100 -> 19887 | AP69: ='IND 3.1.1-3.3.1 et 3.4.1-3.4.3'!B20+'IND 3.1.1-3.3.1 et 3.4.1-3.4.3'!C20+'IND 3.1.1-3.3.1 et 3.4.1-3.4.3'!B24+'IND 3.1.1-3.3.1 et 3.4.1-3.4.3'!C24+'IND 3.1.1-3.3.1 et 3.4.1-3.4.3'!B28+'IND 3.1.1-3.3.1 et 3.4.1-3.4.3'!C28+'IND 3.1.1-3.3.1 et 3.4.1-3.4.3'!B32+'IND 3.1.1-3.3.1 et 3.4.1-3.4.3'!C32+'IND 3.1.1-3.3.1 et 3.4.1-3.4.3'!B36+'IND 3.1.1-3.3.1 et 3.4.1-3.4.3'!C36+'IND 3.1.1-3.3.1 et 3.4.1-3.4.3'!B40+'IND 3.1.1-3.3.1 et 3.4.1-3.4.3'!C40+'IND 3.1.1-3.3.1 et 3.4.1-3.4.3'!B44+'IND 3.1.1-3.3.1 et 3.4.1-3.4.3'!C44+'IND 3.1.1-3.3.1 et 3.4.1-3.4.3'!B48+'IND 3.1.1-3.3.1 et 3.4.1-3.4.3'!C48+'IND 3.1.1-3.3.1 et 3.4.1-3.4.3'!B52+'IND 3.1.1-3.3.1 et 3.4.1-3.4.3'!C52 -> 2016846 | AR69: ='IND 3.1.1-3.3.1 et 3.4.1-3.4.3'!B68+'IND 3.1.1-3.3.1 et 3.4.1-3.4.3'!C68+'IND 3.1.1-3.3.1 et 3.4.1-3.4.3'!B72+'IND 3.1.1-3.3.1 et 3.4.1-3.4.3'!C72+'IND 3.1.1-3.3.1 et 3.4.1-3.4.3'!B76+'IND 3.1.1-3.3.1 et 3.4.1-3.4.3'!C76+'IND 3.1.1-3.3.1 et 3.4.1-3.4.3'!B80+'IND 3.1.1-3.3.1 et 3.4.1-3.4.3'!C80+'IND 3.1.1-3.3.1 et 3.4.1-3.4.3'!B84+'IND 3.1.1-3.3.1 et 3.4.1-3.4.3'!C84+'IND 3.1.1-3.3.1 et 3.4.1-3.4.3'!B88+'IND 3.1.1-3.3.1 et 3.4.1-3.4.3'!C88+'IND 3.1.1-3.3.1 et 3.4.1-3.4.3'!B92+'IND 3.1.1-3.3.1 et 3.4.1-3.4.3'!C92+'IND 3.1.1-3.3.1 et 3.4.1-3.4.3'!B96+'IND 3.1.1-3.3.1 et 3.4.1-3.4.3'!C96+'IND 3.1.1-3.3.1 et 3.4.1-3.4.3'!B100+'IND 3.1.1-3.3.1 et 3.4.1-3.4.3'!C100 -> 81589 | AS69: =IF(AP69=0,"",AN69/AP69) -> 0.2980202752 | AT69: =IF(AR69=0,"",AO69/AR69) -> 0.2437460932 | AU69: =IF((AP69+AR69)=0,"",(AN69+AO69)/(AP69+AR69)) -> 0.2959100472 | AX69: Catégorie A | AY69: =SUM('IND 1.6.1'!B17:E17) -> 3 | BV69: =IF('IND 7.1.1-7.1.3'!B15="Oui","- "&"Prestations servies par l'intermédiaire d'une association nationale"&CHAR(10),"") ->  | GJ69: 65 | GK69: Midi-Pyrénées | GL69: Centre de Gestion des Hautes-Pyrénées
B70: Cont Perm | D70: ='IND 1.2.1'!L94 -> 36 | H70: CDI | I70: ='IND 1.2.1'!R94+'IND 1.2.1'!S94 -> 2 | M70: Graphique % de temps non complet par filières et par statut | AA70: H | AB70: F | AL70: Catégorie B | AN70: ='IND 3.1.1-3.3.1 et 3.4.1-3.4.3'!D21+'IND 3.1.1-3.3.1 et 3.4.1-3.4.3'!E21+'IND 3.1.1-3.3.1 et 3.4.1-3.4.3'!D25+'IND 3.1.1-3.3.1 et 3.4.1-3.4.3'!E25+'IND 3.1.1-3.3.1 et 3.4.1-3.4.3'!D29+'IND 3.1.1-3.3.1 et 3.4.1-3.4.3'!E29+'IND 3.1.1-3.3.1 et 3.4.1-3.4.3'!D33+'IND 3.1.1-3.3.1 et 3.4.1-3.4.3'!E33+'IND 3.1.1-3.3.1 et 3.4.1-3.4.3'!D37+'IND 3.1.1-3.3.1 et 3.4.1-3.4.3'!E37+'IND 3.1.1-3.3.1 et 3.4.1-3.4.3'!D41+'IND 3.1.1-3.3.1 et 3.4.1-3.4.3'!E41+'IND 3.1.1-3.3.1 et 3.4.1-3.4.3'!D45+'IND 3.1.1-3.3.1 et 3.4.1-3.4.3'!E45+'IND 3.1.1-3.3.1 et 3.4.1-3.4.3'!D49+'IND 3.1.1-3.3.1 et 3.4.1-3.4.3'!E49+'IND 3.1.1-3.3.1 et 3.4.1-3.4.3'!D53+'IND 3.1.1-3.3.1 et 3.4.1-3.4.3'!E53+'IND 3.1.1-3.3.1 et 3.4.1-3.4.3'!D56+'IND 3.1.1-3.3.1 et 3.4.1-3.4.3'!E56 -> 518565 | AO70: ='IND 3.1.1-3.3.1 et 3.4.1-3.4.3'!D69+'IND 3.1.1-3.3.1 et 3.4.1-3.4.3'!E69+'IND 3.1.1-3.3.1 et 3.4.1-3.4.3'!D73+'IND 3.1.1-3.3.1 et 3.4.1-3.4.3'!E73+'IND 3.1.1-3.3.1 et 3.4.1-3.4.3'!D77+'IND 3.1.1-3.3.1 et 3.4.1-3.4.3'!E77+'IND 3.1.1-3.3.1 et 3.4.1-3.4.3'!D81+'IND 3.1.1-3.3.1 et 3.4.1-3.4.3'!E81+'IND 3.1.1-3.3.1 et 3.4.1-3.4.3'!D85+'IND 3.1.1-3.3.1 et 3.4.1-3.4.3'!E85+'IND 3.1.1-3.3.1 et 3.4.1-3.4.3'!D89+'IND 3.1.1-3.3.1 et 3.4.1-3.4.3'!E89+'IND 3.1.1-3.3.1 et 3.4.1-3.4.3'!D93+'IND 3.1.1-3.3.1 et 3.4.1-3.4.3'!E93+'IND 3.1.1-3.3.1 et 3.4.1-3.4.3'!D97+'IND 3.1.1-3.3.1 et 3.4.1-3.4.3'!E97+'IND 3.1.1-3.3.1 et 3.4.1-3.4.3'!D101+'IND 3.1.1-3.3.1 et 3.4.1-3.4.3'!E101+'IND 3.1.1-3.3.1 et 3.4.1-3.4.3'!D104+'IND 3.1.1-3.3.1 et 3.4.1-3.4.3'!E104 -> 64535 | AP70: ='IND 3.1.1-3.3.1 et 3.4.1-3.4.3'!B21+'IND 3.1.1-3.3.1 et 3.4.1-3.4.3'!C21+'IND 3.1.1-3.3.1 et 3.4.1-3.4.3'!B25+'IND 3.1.1-3.3.1 et 3.4.1-3.4.3'!C25+'IND 3.1.1-3.3.1 et 3.4.1-3.4.3'!B29+'IND 3.1.1-3.3.1 et 3.4.1-3.4.3'!C29+'IND 3.1.1-3.3.1 et 3.4.1-3.4.3'!B33+'IND 3.1.1-3.3.1 et 3.4.1-3.4.3'!C33+'IND 3.1.1-3.3.1 et 3.4.1-3.4.3'!B37+'IND 3.1.1-3.3.1 et 3.4.1-3.4.3'!C37+'IND 3.1.1-3.3.1 et 3.4.1-3.4.3'!B41+'IND 3.1.1-3.3.1 et 3.4.1-3.4.3'!C41+'IND 3.1.1-3.3.1 et 3.4.1-3.4.3'!B45+'IND 3.1.1-3.3.1 et 3.4.1-3.4.3'!C45+'IND 3.1.1-3.3.1 et 3.4.1-3.4.3'!B49+'IND 3.1.1-3.3.1 et 3.4.1-3.4.3'!C49+'IND 3.1.1-3.3.1 et 3.4.1-3.4.3'!B53+'IND 3.1.1-3.3.1 et 3.4.1-3.4.3'!C53+'IND 3.1.1-3.3.1 et 3.4.1-3.4.3'!B56+'IND 3.1.1-3.3.1 et 3.4.1-3.4.3'!C56 -> 2224026 | AR70: ='IND 3.1.1-3.3.1 et 3.4.1-3.4.3'!B69+'IND 3.1.1-3.3.1 et 3.4.1-3.4.3'!C69+'IND 3.1.1-3.3.1 et 3.4.1-3.4.3'!B73+'IND 3.1.1-3.3.1 et 3.4.1-3.4.3'!C73+'IND 3.1.1-3.3.1 et 3.4.1-3.4.3'!B77+'IND 3.1.1-3.3.1 et 3.4.1-3.4.3'!C77+'IND 3.1.1-3.3.1 et 3.4.1-3.4.3'!B81+'IND 3.1.1-3.3.1 et 3.4.1-3.4.3'!C81+'IND 3.1.1-3.3.1 et 3.4.1-3.4.3'!B85+'IND 3.1.1-3.3.1 et 3.4.1-3.4.3'!C85+'IND 3.1.1-3.3.1 et 3.4.1-3.4.3'!B89+'IND 3.1.1-3.3.1 et 3.4.1-3.4.3'!C89+'IND 3.1.1-3.3.1 et 3.4.1-3.4.3'!B93+'IND 3.1.1-3.3.1 et 3.4.1-3.4.3'!C93+'IND 3.1.1-3.3.1 et 3.4.1-3.4.3'!B97+'IND 3.1.1-3.3.1 et 3.4.1-3.4.3'!C97+'IND 3.1.1-3.3.1 et 3.4.1-3.4.3'!B101+'IND 3.1.1-3.3.1 et 3.4.1-3.4.3'!C101+'IND 3.1.1-3.3.1 et 3.4.1-3.4.3'!B104+'IND 3.1.1-3.3.1 et 3.4.1-3.4.3'!C104 -> 407954 | AS70: =IF(AP70=0,"",AN70/AP70) -> 0.23316499 | AT70: =IF(AR70=0,"",AO70/AR70) -> 0.158191855 | AU70: =IF((AP70+AR70)=0,"",(AN70+AO70)/(AP70+AR70)) -> 0.2215442367 | AX70: Catégorie B | AY70: =SUM('IND 1.6.1'!B18:E18) -> 3 | BV70: =IF('IND 7.1.1-7.1.3'!B16="Oui","- "&"Prestations servies par l'intermédiaire d'un organisme à but non lucratif ou d'une association locale"&CHAR(10),"") -> - Prestations servies par l'intermédiaire d'un organisme à but non lucratif ou d'une association locale | GJ70: 81 | GK70: Midi-Pyrénées | GL70: Centre de Gestion du Tarn
B71: Cont N Perm | D71: ='IND 1.3.1'!F38 -> 118 | H71: saisonniers | I71: ='IND 1.3.1'!F24 -> 4 | V71: Titulaire | W71: Contractuel | Y71: Promotion choix | AA71: =AF62-AF63 -> 4 | AB71: =AG62-AG63 -> 1 | AF71: H | AG71: F | AL71: Catégorie C | AN71: ='IND 3.1.1-3.3.1 et 3.4.1-3.4.3'!D22+'IND 3.1.1-3.3.1 et 3.4.1-3.4.3'!E22+'IND 3.1.1-3.3.1 et 3.4.1-3.4.3'!D26+'IND 3.1.1-3.3.1 et 3.4.1-3.4.3'!E26+'IND 3.1.1-3.3.1 et 3.4.1-3.4.3'!D30+'IND 3.1.1-3.3.1 et 3.4.1-3.4.3'!E30+'IND 3.1.1-3.3.1 et 3.4.1-3.4.3'!D34+'IND 3.1.1-3.3.1 et 3.4.1-3.4.3'!E34+'IND 3.1.1-3.3.1 et 3.4.1-3.4.3'!D38+'IND 3.1.1-3.3.1 et 3.4.1-3.4.3'!E38+'IND 3.1.1-3.3.1 et 3.4.1-3.4.3'!D42+'IND 3.1.1-3.3.1 et 3.4.1-3.4.3'!E42+'IND 3.1.1-3.3.1 et 3.4.1-3.4.3'!D46+'IND 3.1.1-3.3.1 et 3.4.1-3.4.3'!E46+'IND 3.1.1-3.3.1 et 3.4.1-3.4.3'!D50+'IND 3.1.1-3.3.1 et 3.4.1-3.4.3'!E50+'IND 3.1.1-3.3.1 et 3.4.1-3.4.3'!D54+'IND 3.1.1-3.3.1 et 3.4.1-3.4.3'!E54+'IND 3.1.1-3.3.1 et 3.4.1-3.4.3'!D57+'IND 3.1.1-3.3.1 et 3.4.1-3.4.3'!E57 -> 1365295 | AO71: ='IND 3.1.1-3.3.1 et 3.4.1-3.4.3'!D70+'IND 3.1.1-3.3.1 et 3.4.1-3.4.3'!E70+'IND 3.1.1-3.3.1 et 3.4.1-3.4.3'!D74+'IND 3.1.1-3.3.1 et 3.4.1-3.4.3'!E74+'IND 3.1.1-3.3.1 et 3.4.1-3.4.3'!D78+'IND 3.1.1-3.3.1 et 3.4.1-3.4.3'!E78+'IND 3.1.1-3.3.1 et 3.4.1-3.4.3'!D82+'IND 3.1.1-3.3.1 et 3.4.1-3.4.3'!E82+'IND 3.1.1-3.3.1 et 3.4.1-3.4.3'!E86+'IND 3.1.1-3.3.1 et 3.4.1-3.4.3'!D86+'IND 3.1.1-3.3.1 et 3.4.1-3.4.3'!D90+'IND 3.1.1-3.3.1 et 3.4.1-3.4.3'!E90+'IND 3.1.1-3.3.1 et 3.4.1-3.4.3'!D94+'IND 3.1.1-3.3.1 et 3.4.1-3.4.3'!E94+'IND 3.1.1-3.3.1 et 3.4.1-3.4.3'!D98+'IND 3.1.1-3.3.1 et 3.4.1-3.4.3'!E98+'IND 3.1.1-3.3.1 et 3.4.1-3.4.3'!D102+'IND 3.1.1-3.3.1 et 3.4.1-3.4.3'!E102+'IND 3.1.1-3.3.1 et 3.4.1-3.4.3'!D105+'IND 3.1.1-3.3.1 et 3.4.1-3.4.3'!E105 -> 69444 | AP71: ='IND 3.1.1-3.3.1 et 3.4.1-3.4.3'!B22+'IND 3.1.1-3.3.1 et 3.4.1-3.4.3'!C22+'IND 3.1.1-3.3.1 et 3.4.1-3.4.3'!B26+'IND 3.1.1-3.3.1 et 3.4.1-3.4.3'!C26+'IND 3.1.1-3.3.1 et 3.4.1-3.4.3'!B30+'IND 3.1.1-3.3.1 et 3.4.1-3.4.3'!C30+'IND 3.1.1-3.3.1 et 3.4.1-3.4.3'!B34+'IND 3.1.1-3.3.1 et 3.4.1-3.4.3'!C34+'IND 3.1.1-3.3.1 et 3.4.1-3.4.3'!B38+'IND 3.1.1-3.3.1 et 3.4.1-3.4.3'!C38+'IND 3.1.1-3.3.1 et 3.4.1-3.4.3'!B42+'IND 3.1.1-3.3.1 et 3.4.1-3.4.3'!C42+'IND 3.1.1-3.3.1 et 3.4.1-3.4.3'!B46+'IND 3.1.1-3.3.1 et 3.4.1-3.4.3'!C46+'IND 3.1.1-3.3.1 et 3.4.1-3.4.3'!B50+'IND 3.1.1-3.3.1 et 3.4.1-3.4.3'!C50+'IND 3.1.1-3.3.1 et 3.4.1-3.4.3'!B54+'IND 3.1.1-3.3.1 et 3.4.1-3.4.3'!C54+'IND 3.1.1-3.3.1 et 3.4.1-3.4.3'!B57+'IND 3.1.1-3.3.1 et 3.4.1-3.4.3'!C57 -> 7299069 | AR71: ='IND 3.1.1-3.3.1 et 3.4.1-3.4.3'!B70+'IND 3.1.1-3.3.1 et 3.4.1-3.4.3'!C70+'IND 3.1.1-3.3.1 et 3.4.1-3.4.3'!B74+'IND 3.1.1-3.3.1 et 3.4.1-3.4.3'!C74+'IND 3.1.1-3.3.1 et 3.4.1-3.4.3'!B78+'IND 3.1.1-3.3.1 et 3.4.1-3.4.3'!C78+'IND 3.1.1-3.3.1 et 3.4.1-3.4.3'!B82+'IND 3.1.1-3.3.1 et 3.4.1-3.4.3'!C82+'IND 3.1.1-3.3.1 et 3.4.1-3.4.3'!B86+'IND 3.1.1-3.3.1 et 3.4.1-3.4.3'!C86+'IND 3.1.1-3.3.1 et 3.4.1-3.4.3'!B90+'IND 3.1.1-3.3.1 et 3.4.1-3.4.3'!C90+'IND 3.1.1-3.3.1 et 3.4.1-3.4.3'!B94+'IND 3.1.1-3.3.1 et 3.4.1-3.4.3'!C94+'IND 3.1.1-3.3.1 et 3.4.1-3.4.3'!B98+'IND 3.1.1-3.3.1 et 3.4.1-3.4.3'!C98+'IND 3.1.1-3.3.1 et 3.4.1-3.4.3'!B102+'IND 3.1.1-3.3.1 et 3.4.1-3.4.3'!C102+'IND 3.1.1-3.3.1 et 3.4.1-3.4.3'!B105+'IND 3.1.1-3.3.1 et 3.4.1-3.4.3'!C105 -> 467948 | AS71: 0.1870505677 | AT71: 0.1484011044 | AU71: 0.184722011 | AX71: Catégorie C | AY71: =SUM('IND 1.6.1'!B19:E19) -> 31 | GJ71: 82 | GK71: Midi-Pyrénées | GL71: Centre de Gestion du Tarn-et-Garonne
L72: Rang | M72: Filière | N72: Titulaire | O72: Contractuel | S72: Nb agent Temps non complet | V72: ='IND 1.1.1'!$F$385 -> 8 | W72: ='IND 1.2.1'!N94 -> 7 | Y72: % | AB72: =AB71/(AA71+AB71) -> 0.2 | AE72: CEP | AF72: =SUM('IND 1.9.7'!$B$8:$B$10) -> 0 | AG72: =SUM('IND 1.9.7'!$C$8:$C$10) -> 2 | AL72: Total | AN72: =SUM(AN69:AN71) -> 2484921 | AO72: =SUM(AO69:AO71) -> 153866 | AP72: =SUM(AP69:AQ71) -> 11539941 | AR72: =SUM(AR69:AR71) -> 957491 | AS72: 0.2153322101 | AT72: 0.1606970718 | AU72: 0.2111463379 | AX72: Total | AY72: =SUM(AY69:AY71) -> 37 | BV72: (*) Chèques vacances, restauration, aide à la famille, subventions pour séjours d'enfants, prestation pour enfant en situation de handicap, autres… | GJ72: 59 | GK72: Nord | GL72: Centre de Gestion du Nord
H73: Ensemble | L73: =IF(N73>0,RANK(N73,$N$72:$N$80,0)+COUNTIF(N$73:N74,N73)-1,"") ->  | M73: Administrative | N73: =IFERROR('IND 1.1.1'!$F$49/('IND 1.1.1'!$F$49+'IND 1.1.1'!$B$49),"") -> 0 | O73: =IFERROR('IND 1.2.1'!$N$20/('IND 1.2.1'!$M$20+'IND 1.2.1'!$N$20),"") -> 0 | S73: Nb agent Temps partiel | V73: =SUM('IND 2.3.2'!$D$93:$I$93) -> 38 | W73: =SUM('IND 2.3.4'!$D$94:$I$94) -> 0 | Y73: examen pro | AA73: =AF64-AF65 -> 2 | AB73: =AG64-AG65 -> 0 | AE73: Permanent | GJ73: 62 | GK73: Nord | GL73: Centre de Gestion du Pas-de-Calais
B74: Emploi fonctionnel | D74: =SUM('IND 1.1.0'!B21:K21,'IND 1.1.0'!B36:K36,'IND 1.1.0'!B51:C51) -> 6 | G74: Tranche d'âge | H74: Titulaires | I74: Permanents | J74: N-perma | K74: Ensemble | L74: =IF(N74>0,RANK(N74,$N$72:$N$80,0)+COUNTIF(N$73:N75,N74)-1,"") -> 2 | M74: Technique | N74: =IFERROR('IND 1.1.1'!$F$90/('IND 1.1.1'!$F$90+'IND 1.1.1'!$B$90),"") -> 0.0253164557 | O74: =IFERROR('IND 1.2.1'!$N$28/('IND 1.2.1'!$M$28+'IND 1.2.1'!$N$28),"") -> 0.07692307692 | Y74: % | AB74: =AB73/(AA73+AB73) -> 0 | AE74: % | AG74: =+AG72/SUM(AF72:AG72) -> 1 | AX74: Jours de carence | BF74: N | GJ74: 50 | GK74: Normandie | GL74: Centre de Gestion de la Manche
B75: dt cont | D75: ='IND 1.1.0'!B51+'IND 1.1.0'!C51 -> 0 | G75: moins de 20 ans | H75: =17.5*'IND 1.4.0'!$C$40 -> 0 | I75: =17.5*'IND 1.4.0'!$D$40 -> 35 | J75: =17.5*'IND 1.4.0'!$E$40 -> 227.5 | K75: =SUM($H75:$I75) -> 35 | L75: =IF(N75>0,RANK(N75,$N$72:$N$80,0)+COUNTIF(N$73:N76,N75)-1,"") ->  | M75: Culturelle | N75: =IFERROR('IND 1.1.1'!$F$145/('IND 1.1.1'!$F$145+'IND 1.1.1'!$B$145),"") -> 0 | O75: =IFERROR('IND 1.2.1'!$N$39/('IND 1.2.1'!$M$39+'IND 1.2.1'!$N$39),"") -> 0.25 | Y75: Concours | AA75: =AF66-AF67 -> 2 | AB75: =AG66-AG67 -> 0 | AX75: Nombre total d'agents rémunérés et potentiellement soumis au jour de carence | BF75: =SUM('IND 2.1.8'!E10:E15,'IND 2.1.8'!E19:E24) -> 408 | GJ75: 44 | GK75: Pays-de-la-Loire | GL75: Centre de Gestion de Loire-Atlantique
B76: dt femme | D76: ='IND 1.1.0'!C21+'IND 1.1.0'!E21+'IND 1.1.0'!G21+'IND 1.1.0'!I21+'IND 1.1.0'!K21+'IND 1.1.0'!C35+'IND 1.1.0'!E36+'IND 1.1.0'!G36+'IND 1.1.0'!I36+'IND 1.1.0'!K36+'IND 1.1.0'!C51 -> 3 | G76: 20 à 24 ans | H76: =22.5*'IND 1.4.0'!$C$41 -> 180 | I76: =22.5*'IND 1.4.0'!$D$41 -> 135 | J76: =22.5*'IND 1.4.0'!$E$41 -> 427.5 | K76: 315 | L76: =IF(N76>0,RANK(N76,$N$72:$N$80,0)+COUNTIF(N$73:N77,N76)-1,"") ->  | M76: Sportive | N76: =IFERROR('IND 1.1.1'!$F$166/('IND 1.1.1'!$F$166+'IND 1.1.1'!$B$166),"") ->  | O76: =IFERROR('IND 1.2.1'!$N$44/('IND 1.2.1'!$M$44+'IND 1.2.1'!$N$44),"") ->  | Y76: % | AB76: =AB75/(AA75+AB75) -> 0 | AK76: Cotise ass chomage | AL76: =IF('IND 3.1.1-3.3.1 et 3.4.1-3.4.3'!$A$138="Vous êtes en auto-assurance avec convention de gestion avec Pôle Emploi","La collectivité est en auto-assurance avec convention de gestion avec Pôle Emploi pour l'assurance chômage de ses agents contractuels",IF('IND 3.1.1-3.3.1 et 3.4.1-3.4.3'!$A$138="Vous êtes en auto-assurance sans convention de gestion avec Pôle Emploi","La collectivité est en auto-assurance sans convention de gestion avec Pôle Emploi pour l'assurance chômage de ses agents contractuels",IF('IND 3.1.1-3.3.1 et 3.4.1-3.4.3'!$A$138="Vous avez adhéré au régime d'assurance chômage","La collectivité a adhéré au régime général d'assurance chômage pour l'assurance chômage de ses agents contractuels"," "))) -> La collectivité a adhéré au régime général d'assurance chômage pour l'assurance chômage de ses agents contractuels | AX76: Nombre d'agents auxquels a été appliqué au moins un jour de carence | BF76: =SUM('IND 2.1.8'!F10:F15,'IND 2.1.8'!F19:F24) -> 182 | GJ76: 49 | GK76: Pays-de-la-Loire | GL76: Centre de Gestion de Maine-et-Loire
G77: 25 - 29 ans | H77: =27.5*'IND 1.4.0'!$C$42 -> 275 | I77: =27.5*'IND 1.4.0'!$D$42 -> 165 | J77: =27.5*'IND 1.4.0'!$E$42 -> 137.5 | K77: 440 | L77: =IF(N77>0,RANK(N77,$N$72:$N$80,0)+COUNTIF(N$73:N78,N77)-1,"") -> 1 | M77: Médico-sociale | N77: =IFERROR(('IND 1.1.1'!$F$204+'IND 1.1.1'!$F$267+'IND 1.1.1'!$F$291)/('IND 1.1.1'!$F$204+'IND 1.1.1'!$F$267+'IND 1.1.1'!$F$291+'IND 1.1.1'!$B$204+'IND 1.1.1'!$B$267+'IND 1.1.1'!$B$291),"") -> 0.05128205128 | O77: =IFERROR(('IND 1.2.1'!$N$52+'IND 1.2.1'!$N$66+'IND 1.2.1'!$N$72)/('IND 1.2.1'!$N$52+'IND 1.2.1'!$N$66+'IND 1.2.1'!$N$72+'IND 1.2.1'!$M$52+'IND 1.2.1'!$M$66+'IND 1.2.1'!$M$72),"") -> 0.4166666667 | Y77: fonc | AA77: ='IND 1.1.1'!$G$385 -> 213 | AB77: ='IND 1.1.1'!$H$385 -> 159 | AF77: A | AG77: B | AH77: C | GJ77: 53 | GK77: Pays-de-la-Loire | GL77: Centre de Gestion de la Mayenne
G78: 30 - 34 ans | H78: =32.5*'IND 1.4.0'!$C$43 -> 780 | I78: =32.5*'IND 1.4.0'!$D$43 -> 130 | J78: =32.5*'IND 1.4.0'!$E$43 -> 227.5 | K78: 910 | L78: =IF(N78>0,RANK(N78,$N$72:$N$80,0)+COUNTIF(N$73:N79,N78)-1,"") ->  | M78: Police | N78: =IFERROR('IND 1.1.1'!$F$316/('IND 1.1.1'!$F$316+'IND 1.1.1'!$B$316),"") ->  | O78: =IFERROR('IND 1.2.1'!$N$78/('IND 1.2.1'!$M$78+'IND 1.2.1'!$N$78),"") ->  | AE78: CEP | AF78: =SUM('IND 1.9.7'!$B$8:$C$8) -> 0 | AG78: =SUM('IND 1.9.7'!$B$9:$C$9) -> 1 | AH78: =SUM('IND 1.9.7'!$B$10:$C$10) -> 1 | GJ78: 72 | GK78: Pays-de-la-Loire | GL78: Centre de Gestion de la Sarthe
G79: 35 - 39 ans | H79: =37.5*'IND 1.4.0'!$C$44 -> 1312.5 | I79: =37.5*'IND 1.4.0'!$D$44 -> 225 | J79: =37.5*'IND 1.4.0'!$E$44 -> 450 | K79: 1537.5 | L79: =IF(N79>0,RANK(N79,$N$72:$N$80,0)+COUNTIF(N$73:N80,N79)-1,"") ->  | M79: Incendie | N79: =IFERROR('IND 1.1.1'!$F$366/('IND 1.1.1'!$F$366+'IND 1.1.1'!$B$366),"") ->  | O79: =IFERROR('IND 1.2.1'!$N$88/('IND 1.2.1'!$M$88+'IND 1.2.1'!$N$88),"") ->  | AE79: Permanent | GJ79: 85 | GK79: Pays-de-la-Loire | GL79: Centre de Gestion de la Vendée
B80: ETPR | G80: 40 - 44 ans | H80: =42.5*'IND 1.4.0'!$C$45 -> 2125 | I80: =42.5*'IND 1.4.0'!$D$45 -> 170 | J80: =42.5*'IND 1.4.0'!$E$45 -> 297.5 | K80: 2295 | L80: =IF(N80>0,RANK(N80,$N$72:$N$80,0)+COUNTIF(N$73:N81,N80)-1,"") ->  | M80: Animation | N80: =IFERROR('IND 1.1.1'!$F$383/('IND 1.1.1'!$F$383+'IND 1.1.1'!$B$383),"") -> 0 | O80: =IFERROR('IND 1.2.1'!$N$92/('IND 1.2.1'!$M$92+'IND 1.2.1'!$N$92),"") ->  | AE80: % | AH80: =AH78/SUM(AF78:AH78) -> 0.5 | GJ80: 2 | GK80: Picardie | GL80: Centre de Gestion de l'Aisne
D81: H | E81: F | F81: T | G81: 45 - 49 ans | H81: =47.5*'IND 1.4.0'!$C$46 -> 2850 | I81: =47.5*'IND 1.4.0'!$D$46 -> 95 | J81: =47.5*'IND 1.4.0'!$E$46 -> 332.5 | K81: 2945 | AK81: Nbre d'allocataire (contractuels | AL81: =IF('IND 3.1.1-3.3.1 et 3.4.1-3.4.3'!$B$141=0," ", IF('IND 3.1.1-3.3.1 et 3.4.1-3.4.3'!$B$141=1,"Cette année, "&'IND 3.1.1-3.3.1 et 3.4.1-3.4.3'!$B$141&" allocataire a bénéficié de l'indemnisation du chômage (ancien contractuel)", IF('IND 3.1.1-3.3.1 et 3.4.1-3.4.3'!$B$141>1,"Cette année, "&'IND 3.1.1-3.3.1 et 3.4.1-3.4.3'!$B$141&" allocataires ont bénéficié de l'indemnisation du chômage (anciens contractuels)"))) ->  | GJ81: 60 | GK81: Picardie | GL81: Centre de Gestion de l'Oise
B82: Catégorie C | D82: =IF('IND 1.1.4'!$C$35+'IND 1.1.4'!$C$39+'IND 1.1.4'!$C$43+'IND 1.1.4'!$C$47+'IND 1.1.4'!$C$51+'IND 1.1.4'!$C$55+'IND 1.1.4'!$C$59+'IND 1.1.4'!$C$63+'IND 1.1.4'!$C$67+'IND 1.1.4'!$C$70+'IND 1.2.4'!$C$34+'IND 1.2.4'!$C$38+'IND 1.2.4'!$C$42+'IND 1.2.4'!$C$46+'IND 1.2.4'!$C$50+'IND 1.2.4'!$C$54+'IND 1.2.4'!$C$58+'IND 1.2.4'!$C$62+'IND 1.2.4'!$C$66+'IND 1.2.4'!$C$69=0,"",'IND 1.1.4'!$C$35+'IND 1.1.4'!$C$39+'IND 1.1.4'!$C$43+'IND 1.1.4'!$C$47+'IND 1.1.4'!$C$51+'IND 1.1.4'!$C$55+'IND 1.1.4'!$C$59+'IND 1.1.4'!$C$63+'IND 1.1.4'!$C$67+'IND 1.1.4'!$C$70+'IND 1.2.4'!$C$34+'IND 1.2.4'!$C$38+'IND 1.2.4'!$C$42+'IND 1.2.4'!$C$46+'IND 1.2.4'!$C$50+'IND 1.2.4'!$C$54+'IND 1.2.4'!$C$58+'IND 1.2.4'!$C$62+'IND 1.2.4'!$C$66+'IND 1.2.4'!$C$69) -> 188.16 | E82: =IF('IND 1.1.4'!$D$35+'IND 1.1.4'!$D$39+'IND 1.1.4'!$D$43+'IND 1.1.4'!$D$47+'IND 1.1.4'!$D$51+'IND 1.1.4'!$D$55+'IND 1.1.4'!$D$59+'IND 1.1.4'!$D$63+'IND 1.1.4'!$D$67+'IND 1.1.4'!$D$70+'IND 1.2.4'!$D$34+'IND 1.2.4'!$D$38+'IND 1.2.4'!$D$42+'IND 1.2.4'!$D$46+'IND 1.2.4'!$D$50+'IND 1.2.4'!$D$54+'IND 1.2.4'!$D$58+'IND 1.2.4'!$D$62+'IND 1.2.4'!$D$66+'IND 1.2.4'!$D$69=0,"",'IND 1.1.4'!$D$35+'IND 1.1.4'!$D$39+'IND 1.1.4'!$D$43+'IND 1.1.4'!$D$47+'IND 1.1.4'!$D$51+'IND 1.1.4'!$D$55+'IND 1.1.4'!$D$59+'IND 1.1.4'!$D$63+'IND 1.1.4'!$D$67+'IND 1.1.4'!$D$70+'IND 1.2.4'!$D$34+'IND 1.2.4'!$D$38+'IND 1.2.4'!$D$42+'IND 1.2.4'!$D$46+'IND 1.2.4'!$D$50+'IND 1.2.4'!$D$54+'IND 1.2.4'!$D$58+'IND 1.2.4'!$D$62+'IND 1.2.4'!$D$66+'IND 1.2.4'!$D$69) -> 80.53 | F82: =IF(SUM(D82:E82)=0,"",SUM(D82:E82)) -> 268.69 | G82: 50 - 54 ans | H82: =52.5*'IND 1.4.0'!$C$47 -> 4042.5 | I82: =52.5*'IND 1.4.0'!$D$47 -> 52.5 | J82: =52.5*'IND 1.4.0'!$E$47 -> 682.5 | K82: 4095 | M82: Graphique % Temps partiel hommes / femmes | Y82: Départs | GJ82: 80 | GK82: Picardie | GL82: Centre de Gestion de la Somme
B83: Catégorie B | D83: ='IND 1.1.4'!$C$34+'IND 1.1.4'!$C$38+'IND 1.1.4'!$C$42+'IND 1.1.4'!$C$46+'IND 1.1.4'!$C$50+'IND 1.1.4'!$C$54+'IND 1.1.4'!$C$58+'IND 1.1.4'!$C$62+'IND 1.1.4'!$C$66+'IND 1.1.4'!$C$69+'IND 1.2.4'!$C$33+'IND 1.2.4'!$C$37+'IND 1.2.4'!$C$41+'IND 1.2.4'!$C$45+'IND 1.2.4'!$C$49+'IND 1.2.4'!$C$53+'IND 1.2.4'!$C$57+'IND 1.2.4'!$C$61+'IND 1.2.4'!$C$65+'IND 1.2.4'!$C$68 -> 26.42 | E83: ='IND 1.1.4'!$D$34+'IND 1.1.4'!$D$38+'IND 1.1.4'!$D$42+'IND 1.1.4'!$D$46+'IND 1.1.4'!$D$50+'IND 1.1.4'!$D$54+'IND 1.1.4'!$D$58+'IND 1.1.4'!$D$62+'IND 1.1.4'!$D$66+'IND 1.1.4'!$D$69+'IND 1.2.4'!$D$33+'IND 1.2.4'!$D$37+'IND 1.2.4'!$D$41+'IND 1.2.4'!$D$45+'IND 1.2.4'!$D$49+'IND 1.2.4'!$D$53+'IND 1.2.4'!$D$57+'IND 1.2.4'!$D$61+'IND 1.2.4'!$D$65+'IND 1.2.4'!$D$68 -> 55.71 | F83: =IF(SUM(D83:E83)=0,"",SUM(D83:E83)) -> 82.13 | G83: 55 - 59 ans | H83: =57.5*'IND 1.4.0'!$C$48 -> 4542.5 | I83: =57.5*'IND 1.4.0'!$D$48 -> 287.5 | J83: =57.5*'IND 1.4.0'!$E$48 -> 805 | K83: 4830 | AA83: Rang | AE83: % - FC +C | AF83: Fonctionnaires | AG83: Contractuels | GJ83: 16 | GK83: Poitou-Charente | GL83: Centre de Gestion de la Charente
B84: Catégorie A | D84: ='IND 1.1.4'!$C$33+'IND 1.1.4'!$C$37+'IND 1.1.4'!$C$41+'IND 1.1.4'!$C$45+'IND 1.1.4'!$C$49+'IND 1.1.4'!$C$53+'IND 1.1.4'!$C$57+'IND 1.1.4'!$C$61+'IND 1.1.4'!$C$65+'IND 1.2.4'!$C$32+'IND 1.2.4'!$C$36+'IND 1.2.4'!$C$40+'IND 1.2.4'!$C$44+'IND 1.2.4'!$C$48+'IND 1.2.4'!$C$52+'IND 1.2.4'!$C$56+'IND 1.2.4'!$C$60+'IND 1.2.4'!$C$64 -> 7.01 | E84: ='IND 1.1.4'!$D$33+'IND 1.1.4'!$D$37+'IND 1.1.4'!$D$41+'IND 1.1.4'!$D$45+'IND 1.1.4'!$D$49+'IND 1.1.4'!$D$53+'IND 1.1.4'!$D$57+'IND 1.1.4'!$D$61+'IND 1.1.4'!$D$65+'IND 1.2.4'!$D$32+'IND 1.2.4'!$D$36+'IND 1.2.4'!$D$40+'IND 1.2.4'!$D$44+'IND 1.2.4'!$D$48+'IND 1.2.4'!$D$52+'IND 1.2.4'!$D$56+'IND 1.2.4'!$D$60+'IND 1.2.4'!$D$64 -> 34.72 | F84: 41.73 | G84: 60 - 64 ans | H84: =62.5*'IND 1.4.0'!$C$49 -> 1812.5 | I84: =62.5*'IND 1.4.0'!$D$49 -> 0 | J84: =62.5*'IND 1.4.0'!$E$49 -> 812.5 | K84: 1812.5 | N84: Temps plein | O84: Temps partiel | Y84: Départs "temporaires" | Z84: Rémunéré | AB84: Mise à disposition | AE84: =IF($D$69+$D$70>0,(AF84+AG84)/($AF$106+$AG$106),"") -> 0 | GJ84: 17 | GK84: Poitou-Charente | GL84: Centre de Gestion de la Charente Maritime
G85: 65 ans ou plus | H85: =67.5*'IND 1.4.0'!$C$50 -> 0 | I85: =67.5*'IND 1.4.0'!$D$50 -> 0 | J85: =67.5*'IND 1.4.0'!$E$50 -> 540 | K85: 0 | M85: Hommes | N85: =IF(('IND 2.3.2'!J93+'IND 2.3.4'!J94)=0,0%,('IND 2.3.2'!B93+'IND 2.3.4'!B94)/('IND 2.3.2'!J93+'IND 2.3.4'!J94)) -> 1 | O85: =IF(('IND 2.3.2'!J93+'IND 2.3.4'!J94)=0,0%,1-N85) -> 0 | AB85: Décharge de service | AE85: 0 | GJ85: 79 | GK85: Poitou-Charente | GL85: Centre de Gestion des Deux-Sèvres
F86: =IF(F82="","",TEXT(F82,"#,00")&" ETPR") -> 268,69 ETPR | G86: TOTAL | H86: =SUM(H75:H85) -> 17920 | I86: =SUM(I75:I85) -> 1295 | J86: 4940 | K86: 19215 | M86: Femmes | N86: =('IND 2.3.2'!C93+'IND 2.3.4'!C94)/('IND 2.3.2'!K93+'IND 2.3.4'!K94) -> 0.7764705882 | O86: =1-N86 -> 0.2235294118 | AB86: Congé spécial | AE86: 0 | AK86: Nbre d'allocataire (fonctionaires) | AL86: =IF('IND 3.1.1-3.3.1 et 3.4.1-3.4.3'!$B$131+'IND 3.1.1-3.3.1 et 3.4.1-3.4.3'!$B$132=0," ", IF('IND 3.1.1-3.3.1 et 3.4.1-3.4.3'!$B$131+'IND 3.1.1-3.3.1 et 3.4.1-3.4.3'!$B$132=1,"Cette année, "&'IND 3.1.1-3.3.1 et 3.4.1-3.4.3'!$B$131+'IND 3.1.1-3.3.1 et 3.4.1-3.4.3'!$B$132&" allocataire a bénéficié de l'indemnisation du chômage (ancien fonctionnaire)", IF('IND 3.1.1-3.3.1 et 3.4.1-3.4.3'!$B$131+'IND 3.1.1-3.3.1 et 3.4.1-3.4.3'!$B$132>1,"Cette année, "&'IND 3.1.1-3.3.1 et 3.4.1-3.4.3'!$B$131+'IND 3.1.1-3.3.1 et 3.4.1-3.4.3'!$B$132&" allocataires ont bénéficié de l'indemnisation du chômage (anciens fonctionnaires)"))) ->  | GJ86: 86 | GK86: Poitou-Charente | GL86: Centre de Gestion de la Vienne
F87: =IF(F83="","",TEXT(F83,"#,00")&" ETPR") -> 82,13 ETPR | G87: MOYENNE | H87: =$H$86/'IND 1.4.0'!$C$51 -> 48.17204301 | I87: =$I$86/'IND 1.4.0'!$D$51 -> 35.97222222 | J87: =$J$86/'IND 1.4.0'!$E$51 -> 41.86440678 | K87: =$K$86/('IND 1.4.0'!$C$51+'IND 1.4.0'!$D$51) -> 47.09558824 | Z87: Non rémunéré | AA87: =IF(AE87=0,"",RANK(AE87,$AE$87:$AE$105,0)+COUNTIF($AE$87:AE87,AE87)-1) -> 7 | AB87: Congé formation indemnisé | AE87: 0.03636363636 | AF87: ='IND 1.9.4.0'!F23+'IND 1.9.4.0'!J23 -> 2 | AG87: ='IND 1.9.4.0'!F52+'IND 1.9.4.0'!J52 -> 0 | GJ87: 4 | GK87: Provence-Alpes-Côte d'Azur | GL87: Centre de Gestion des Alpes de Haute-Provence
F88: 41,73 ETPR | AA88: =IF(AE88=0,"",RANK(AE88,$AE$87:$AE$105,0)+COUNTIF($AE$87:AE88,AE88)-1) ->  | AB88: Congé formation > à un an | AE88: 0 | AF88: ='IND 1.9.4.0'!F24+'IND 1.9.4.0'!J24 -> 0 | AG88: ='IND 1.9.4.0'!F53+'IND 1.9.4.0'!J53 -> 0 | GJ88: 5 | GK88: Provence-Alpes-Côte d'Azur | GL88: Centre de Gestion des Hautes-Alpes
G89: =IF(O29<>"",O29,O31) -> 48.17204301 | AA89: =IF(AE89=0,"",RANK(AE89,$AE$87:$AE$105,0)+COUNTIF($AE$87:AE89,AE89)-1) ->  | AB89: Détachement | AE89: 0 | AF89: ='IND 1.9.4.0'!F25+'IND 1.9.4.0'!J25 -> 0 | BR89: Répartition des jours de formation | GJ89: 6 | GK89: Provence-Alpes-Côte d'Azur | GL89: Centre de Gestion des Alpes-Maritimes
AA90: =IF(AE90=0,"",RANK(AE90,$AE$87:$AE$105,0)+COUNTIF($AE$87:AE90,AE90)-1) -> 3 | AB90: Mise en disponibilité | AE90: 0.07272727273 | AF90: ='IND 1.9.4.0'!F26+'IND 1.9.4.0'!J26 -> 4 | BR90: Catégorie A | BS90: =IF($D$69+$D$70=0, " ",BS97/BS102) -> 0.1734693878 | GJ90: 13 | GK90: Provence-Alpes-Côte d'Azur | GL90: Centre de Gestion des Bouches du Rhône
AA91: =IF(AE91=0,"",RANK(AE91,$AE$87:$AE$105,0)+COUNTIF($AE$87:AE91,AE91)-1) -> 8 | AB91: Congé parental | AE91: 0.01818181818 | AF91: ='IND 1.9.4.0'!F29+'IND 1.9.4.0'!J29 -> 1 | AG91: ='IND 1.9.4.0'!F54+'IND 1.9.4.0'!J54 -> 0 | BR91: Catégorie B | BS91: =IF($D$69+$D$70=0, " ",BS98/BS102) -> 0.2050092764 | GJ91: 83 | GK91: Provence-Alpes-Côte d'Azur | GL91: Centre de Gestion du Var
AA92: =IF(AE92=0,"",RANK(AE92,$AE$87:$AE$105,0)+COUNTIF($AE$87:AE92,AE92)-1) ->  | AB92: Congés sans traitement | AE92: 0 | AG92: ='IND 1.9.4.0'!F55+'IND 1.9.4.0'!J55 -> 0 | BJ92: AJOUT RIFSEEP ? | BK92: CIA ? | BL92: HS / HC | BR92: Catégorie C | BS92: =IF($D$69+$D$70=0, " ",BS99/BS102) -> 0.6215213358 | GJ92: 84 | GK92: Provence-Alpes-Côte d'Azur | GL92: Centre de Gestion du Vaucluse
Y93: Départs "définitifs" | AA93: =IF(AE93=0,"",RANK(AE93,$AE$87:$AE$105,0)+COUNTIF($AE$87:AE93,AE93)-1) -> 5 | AB93: Mutation | AE93: 0.05454545455 | AF93: ='IND 1.9.4.0'!F30+'IND 1.9.4.0'!J30 -> 3 | GJ93: 1 | GK93: Rhône-Alpes | GL93: Centre de Gestion de l'Ain
AA94: =IF(AE94=0,"",RANK(AE94,$AE$87:$AE$105,0)+COUNTIF($AE$87:AE94,AE94)-1) ->  | AB94: Fin de détachement | AE94: 0 | AF94: ='IND 1.9.4.0'!F31+'IND 1.9.4.0'!J31 -> 0 | GJ94: 7 | GK94: Rhône-Alpes | GL94: Centre de Gestion de l'Ardèche
AA95: =IF(AE95=0,"",RANK(AE95,$AE$87:$AE$105,0)+COUNTIF($AE$87:AE95,AE95)-1) ->  | AB95: Décharge d'emploi et de fonction | AE95: 0 | AF95: ='IND 1.9.4.0'!F32+'IND 1.9.4.0'!J32 -> 0 | AJ95: Montant annuel | AK95: Fonctionnaires | AQ95: Contractuels sur emploi permanents | BR95: Nombre de jours de formation | GJ95: 26 | GK95: Rhône-Alpes | GL95: Centre de Gestion de la Drôme
AA96: =IF(AE96=0,"",RANK(AE96,$AE$87:$AE$105,0)+COUNTIF($AE$87:AE96,AE96)-1) ->  | AB96: Agent pris en charge par le CNFPT ou le CDG | AE96: 0 | AF96: ='IND 1.9.4.0'!F33+'IND 1.9.4.0'!J33 -> 0 | AK96: Femmes | AN96: Hommes | AQ96: Femmes | AT96: Hommes | BJ96: Agent sur emploi permanent ayant participé à au moins une formation | BR96: Emploi permanent | GJ96: 38 | GK96: Rhône-Alpes | GL96: Centre de Gestion de l'Isère
AA97: =IF(AE97=0,"",RANK(AE97,$AE$87:$AE$105,0)+COUNTIF($AE$87:AE97,AE97)-1) -> 4 | AB97: Démission | AE97: 0.07272727273 | AF97: ='IND 1.9.4.0'!F34+'IND 1.9.4.0'!J34 -> 3 | AG97: ='IND 1.9.4.0'!F56+'IND 1.9.4.0'!J56 -> 1 | AK97: IFSE | AL97: CIA | AM97: Part CIA | AN97: IFSE | AO97: CIA | AP97: Part CIA | AQ97: IFSE | AR97: CIA | AS97: Part CIA | AT97: IFSE | AU97: CIA | AV97: Part CIA | BQ97: Catégorie A | BS97: =IF($D$69+$D$70=0,0,('IND 5.1.1'!$F$35+'IND 5.1.1'!$F$69)) -> 187 | GJ97: 42 | GK97: Rhône-Alpes | GL97: Centre de Gestion de la Loire
AA98: =IF(AE98=0,"",RANK(AE98,$AE$87:$AE$105,0)+COUNTIF($AE$87:AE98,AE98)-1) -> 1 | AB98: Fin de contrats remplacants | AE98: 0.4545454545 | AG98: =IF('IND 1.9.4.0'!F57=0,'IND 1.9.4.0'!F58,'IND 1.9.4.0'!F57)+IF('IND 1.9.4.0'!J57=0,'IND 1.9.4.0'!J58,'IND 1.9.4.0'!J57) -> 25 | AJ98: Catégorie A | AK98: ='IND 3.1.1-3.3.1 et 3.4.1-3.4.3'!G20+'IND 3.1.1-3.3.1 et 3.4.1-3.4.3'!G24+'IND 3.1.1-3.3.1 et 3.4.1-3.4.3'!G28+'IND 3.1.1-3.3.1 et 3.4.1-3.4.3'!G32+'IND 3.1.1-3.3.1 et 3.4.1-3.4.3'!G36+'IND 3.1.1-3.3.1 et 3.4.1-3.4.3'!G40+'IND 3.1.1-3.3.1 et 3.4.1-3.4.3'!G44+'IND 3.1.1-3.3.1 et 3.4.1-3.4.3'!G48+'IND 3.1.1-3.3.1 et 3.4.1-3.4.3'!G52 -> 393642 | AL98: ='IND 3.1.1-3.3.1 et 3.4.1-3.4.3'!I20+'IND 3.1.1-3.3.1 et 3.4.1-3.4.3'!I24+'IND 3.1.1-3.3.1 et 3.4.1-3.4.3'!I28+'IND 3.1.1-3.3.1 et 3.4.1-3.4.3'!I32+'IND 3.1.1-3.3.1 et 3.4.1-3.4.3'!I36+'IND 3.1.1-3.3.1 et 3.4.1-3.4.3'!I40+'IND 3.1.1-3.3.1 et 3.4.1-3.4.3'!I44+'IND 3.1.1-3.3.1 et 3.4.1-3.4.3'!I48+'IND 3.1.1-3.3.1 et 3.4.1-3.4.3'!I52 -> 38964 | AM98: =IF(OR(AK98="-",AK98=0),"",AL98/(AL98+AK98)) -> 0.09006809892 | AN98: ='IND 3.1.1-3.3.1 et 3.4.1-3.4.3'!F20+'IND 3.1.1-3.3.1 et 3.4.1-3.4.3'!F24+'IND 3.1.1-3.3.1 et 3.4.1-3.4.3'!F28+'IND 3.1.1-3.3.1 et 3.4.1-3.4.3'!F32+'IND 3.1.1-3.3.1 et 3.4.1-3.4.3'!F36+'IND 3.1.1-3.3.1 et 3.4.1-3.4.3'!F40+'IND 3.1.1-3.3.1 et 3.4.1-3.4.3'!F44+'IND 3.1.1-3.3.1 et 3.4.1-3.4.3'!F48+'IND 3.1.1-3.3.1 et 3.4.1-3.4.3'!F52 -> 113232 | AO98: ='IND 3.1.1-3.3.1 et 3.4.1-3.4.3'!H20+'IND 3.1.1-3.3.1 et 3.4.1-3.4.3'!H24+'IND 3.1.1-3.3.1 et 3.4.1-3.4.3'!H28+'IND 3.1.1-3.3.1 et 3.4.1-3.4.3'!H32+'IND 3.1.1-3.3.1 et 3.4.1-3.4.3'!H36+'IND 3.1.1-3.3.1 et 3.4.1-3.4.3'!H40+'IND 3.1.1-3.3.1 et 3.4.1-3.4.3'!H44+'IND 3.1.1-3.3.1 et 3.4.1-3.4.3'!H48+'IND 3.1.1-3.3.1 et 3.4.1-3.4.3'!H52 -> 9160 | AP98: =IF(OR(AN98="-",AN98=0),"",AO98/(AO98+AN98)) -> 0.07484149291 | AQ98: ='IND 3.1.1-3.3.1 et 3.4.1-3.4.3'!G68+'IND 3.1.1-3.3.1 et 3.4.1-3.4.3'!G72+'IND 3.1.1-3.3.1 et 3.4.1-3.4.3'!G76+'IND 3.1.1-3.3.1 et 3.4.1-3.4.3'!G80+'IND 3.1.1-3.3.1 et 3.4.1-3.4.3'!G84+'IND 3.1.1-3.3.1 et 3.4.1-3.4.3'!G88+'IND 3.1.1-3.3.1 et 3.4.1-3.4.3'!G92+'IND 3.1.1-3.3.1 et 3.4.1-3.4.3'!G96+'IND 3.1.1-3.3.1 et 3.4.1-3.4.3'!G100 -> 17576 | AR98: ='IND 3.1.1-3.3.1 et 3.4.1-3.4.3'!I68+'IND 3.1.1-3.3.1 et 3.4.1-3.4.3'!I72+'IND 3.1.1-3.3.1 et 3.4.1-3.4.3'!I76+'IND 3.1.1-3.3.1 et 3.4.1-3.4.3'!I80+'IND 3.1.1-3.3.1 et 3.4.1-3.4.3'!I84+'IND 3.1.1-3.3.1 et 3.4.1-3.4.3'!I88+'IND 3.1.1-3.3.1 et 3.4.1-3.4.3'!I92+'IND 3.1.1-3.3.1 et 3.4.1-3.4.3'!I96+'IND 3.1.1-3.3.1 et 3.4.1-3.4.3'!I100 -> 443 | AS98: =IF(OR(AQ98="-",AQ98=0),"",AR98/(AR98+AQ98)) -> 0.02458516011 | AT98: ='IND 3.1.1-3.3.1 et 3.4.1-3.4.3'!F68+'IND 3.1.1-3.3.1 et 3.4.1-3.4.3'!F72+'IND 3.1.1-3.3.1 et 3.4.1-3.4.3'!F76+'IND 3.1.1-3.3.1 et 3.4.1-3.4.3'!F80+'IND 3.1.1-3.3.1 et 3.4.1-3.4.3'!F84+'IND 3.1.1-3.3.1 et 3.4.1-3.4.3'!F88+'IND 3.1.1-3.3.1 et 3.4.1-3.4.3'!F92+'IND 3.1.1-3.3.1 et 3.4.1-3.4.3'!F96+'IND 3.1.1-3.3.1 et 3.4.1-3.4.3'!F100 -> 0 | AU98: ='IND 3.1.1-3.3.1 et 3.4.1-3.4.3'!H68+'IND 3.1.1-3.3.1 et 3.4.1-3.4.3'!H72+'IND 3.1.1-3.3.1 et 3.4.1-3.4.3'!H76+'IND 3.1.1-3.3.1 et 3.4.1-3.4.3'!H80+'IND 3.1.1-3.3.1 et 3.4.1-3.4.3'!H84+'IND 3.1.1-3.3.1 et 3.4.1-3.4.3'!H88+'IND 3.1.1-3.3.1 et 3.4.1-3.4.3'!H92+'IND 3.1.1-3.3.1 et 3.4.1-3.4.3'!H96+'IND 3.1.1-3.3.1 et 3.4.1-3.4.3'!H100 -> 0 | AV98: =IF(OR(AT98="-",AT98=0),"",AU98/(AU98+AT98)) ->  | BK98: Fonctionnaires | BL98: Contractuels | BQ98: Catégorie B | BS98: =IF($D$69+$D$70=0,0,('IND 5.1.1'!$F$43+'IND 5.1.1'!$F$77)) -> 221 | GJ98: 69 | GK98: Rhône-Alpes | GL98: Centre de Gestion du Rhône
AA99: =IF(AE99=0,"",RANK(AE99,$AE$87:$AE$105,0)+COUNTIF($AE$87:AE99,AE99)-1) ->  | AJ99: Catégorie B | AK99: ='IND 3.1.1-3.3.1 et 3.4.1-3.4.3'!G21+'IND 3.1.1-3.3.1 et 3.4.1-3.4.3'!G25+'IND 3.1.1-3.3.1 et 3.4.1-3.4.3'!G29+'IND 3.1.1-3.3.1 et 3.4.1-3.4.3'!G33+'IND 3.1.1-3.3.1 et 3.4.1-3.4.3'!G37+'IND 3.1.1-3.3.1 et 3.4.1-3.4.3'!G41+'IND 3.1.1-3.3.1 et 3.4.1-3.4.3'!G45+'IND 3.1.1-3.3.1 et 3.4.1-3.4.3'!G49+'IND 3.1.1-3.3.1 et 3.4.1-3.4.3'!G53+'IND 3.1.1-3.3.1 et 3.4.1-3.4.3'!G56 -> 236960 | AL99: ='IND 3.1.1-3.3.1 et 3.4.1-3.4.3'!I21+'IND 3.1.1-3.3.1 et 3.4.1-3.4.3'!I25+'IND 3.1.1-3.3.1 et 3.4.1-3.4.3'!I29+'IND 3.1.1-3.3.1 et 3.4.1-3.4.3'!I33+'IND 3.1.1-3.3.1 et 3.4.1-3.4.3'!I37+'IND 3.1.1-3.3.1 et 3.4.1-3.4.3'!I41+'IND 3.1.1-3.3.1 et 3.4.1-3.4.3'!I45+'IND 3.1.1-3.3.1 et 3.4.1-3.4.3'!I49+'IND 3.1.1-3.3.1 et 3.4.1-3.4.3'!I53+'IND 3.1.1-3.3.1 et 3.4.1-3.4.3'!I56 -> 23788 | AM99: =IF(OR(AK99="-",AK99=0),"",AL99/(AL99+AK99)) -> 0.09122984644 | AN99: ='IND 3.1.1-3.3.1 et 3.4.1-3.4.3'!F21+'IND 3.1.1-3.3.1 et 3.4.1-3.4.3'!F25+'IND 3.1.1-3.3.1 et 3.4.1-3.4.3'!F29+'IND 3.1.1-3.3.1 et 3.4.1-3.4.3'!F33+'IND 3.1.1-3.3.1 et 3.4.1-3.4.3'!F37+'IND 3.1.1-3.3.1 et 3.4.1-3.4.3'!F41+'IND 3.1.1-3.3.1 et 3.4.1-3.4.3'!F45+'IND 3.1.1-3.3.1 et 3.4.1-3.4.3'!F49+'IND 3.1.1-3.3.1 et 3.4.1-3.4.3'!F53+'IND 3.1.1-3.3.1 et 3.4.1-3.4.3'!F56 -> 195835 | AO99: ='IND 3.1.1-3.3.1 et 3.4.1-3.4.3'!H21+'IND 3.1.1-3.3.1 et 3.4.1-3.4.3'!H25+'IND 3.1.1-3.3.1 et 3.4.1-3.4.3'!H29+'IND 3.1.1-3.3.1 et 3.4.1-3.4.3'!H33+'IND 3.1.1-3.3.1 et 3.4.1-3.4.3'!H37+'IND 3.1.1-3.3.1 et 3.4.1-3.4.3'!H41+'IND 3.1.1-3.3.1 et 3.4.1-3.4.3'!H45+'IND 3.1.1-3.3.1 et 3.4.1-3.4.3'!H49+'IND 3.1.1-3.3.1 et 3.4.1-3.4.3'!H53+'IND 3.1.1-3.3.1 et 3.4.1-3.4.3'!H56 -> 17654 | AP99: =IF(OR(AN99="-",AN99=0),"",AO99/(AO99+AN99)) -> 0.08269278511 | AQ99: ='IND 3.1.1-3.3.1 et 3.4.1-3.4.3'!G69+'IND 3.1.1-3.3.1 et 3.4.1-3.4.3'!G73+'IND 3.1.1-3.3.1 et 3.4.1-3.4.3'!G77+'IND 3.1.1-3.3.1 et 3.4.1-3.4.3'!G81+'IND 3.1.1-3.3.1 et 3.4.1-3.4.3'!G85+'IND 3.1.1-3.3.1 et 3.4.1-3.4.3'!G89+'IND 3.1.1-3.3.1 et 3.4.1-3.4.3'!G93+'IND 3.1.1-3.3.1 et 3.4.1-3.4.3'!G97+'IND 3.1.1-3.3.1 et 3.4.1-3.4.3'!G101+'IND 3.1.1-3.3.1 et 3.4.1-3.4.3'!G104 -> 44168 | AR99: ='IND 3.1.1-3.3.1 et 3.4.1-3.4.3'!I69+'IND 3.1.1-3.3.1 et 3.4.1-3.4.3'!I73+'IND 3.1.1-3.3.1 et 3.4.1-3.4.3'!I77+'IND 3.1.1-3.3.1 et 3.4.1-3.4.3'!I81+'IND 3.1.1-3.3.1 et 3.4.1-3.4.3'!I85+'IND 3.1.1-3.3.1 et 3.4.1-3.4.3'!I89+'IND 3.1.1-3.3.1 et 3.4.1-3.4.3'!I93+'IND 3.1.1-3.3.1 et 3.4.1-3.4.3'!I97+'IND 3.1.1-3.3.1 et 3.4.1-3.4.3'!I101+'IND 3.1.1-3.3.1 et 3.4.1-3.4.3'!I104 -> 65 | AS99: =IF(OR(AQ99="-",AQ99=0),"",AR99/(AR99+AQ99)) -> 0.001469491104 | AT99: ='IND 3.1.1-3.3.1 et 3.4.1-3.4.3'!F69+'IND 3.1.1-3.3.1 et 3.4.1-3.4.3'!F73+'IND 3.1.1-3.3.1 et 3.4.1-3.4.3'!F77+'IND 3.1.1-3.3.1 et 3.4.1-3.4.3'!F81+'IND 3.1.1-3.3.1 et 3.4.1-3.4.3'!F85+'IND 3.1.1-3.3.1 et 3.4.1-3.4.3'!F89+'IND 3.1.1-3.3.1 et 3.4.1-3.4.3'!F93+'IND 3.1.1-3.3.1 et 3.4.1-3.4.3'!F97+'IND 3.1.1-3.3.1 et 3.4.1-3.4.3'!F101+'IND 3.1.1-3.3.1 et 3.4.1-3.4.3'!F104 -> 11825 | AU99: ='IND 3.1.1-3.3.1 et 3.4.1-3.4.3'!H69+'IND 3.1.1-3.3.1 et 3.4.1-3.4.3'!H73+'IND 3.1.1-3.3.1 et 3.4.1-3.4.3'!H77+'IND 3.1.1-3.3.1 et 3.4.1-3.4.3'!H81+'IND 3.1.1-3.3.1 et 3.4.1-3.4.3'!H85+'IND 3.1.1-3.3.1 et 3.4.1-3.4.3'!H89+'IND 3.1.1-3.3.1 et 3.4.1-3.4.3'!H93+'IND 3.1.1-3.3.1 et 3.4.1-3.4.3'!H97+'IND 3.1.1-3.3.1 et 3.4.1-3.4.3'!H101+'IND 3.1.1-3.3.1 et 3.4.1-3.4.3'!H104 -> 941 | AV99: =IF(OR(AT99="-",AT99=0),"",AU99/(AU99+AT99)) -> 0.07371142096 | BJ99: Catégorie A | BK99: =IF($D$69=0," ",IF(('IND 5.1.1'!$B$12+'IND 5.1.1'!$C$12)/SUMIF(GW2:GW60,"A",GY2:GY60)>100%,100%,('IND 5.1.1'!$B$12+'IND 5.1.1'!$C$12)/SUMIF(GW2:GW60,"A",GY2:GY60))) -> 0.8095238095 | BL99: =IF($D$70=0," ",IF(('IND 5.1.1'!$D$12+'IND 5.1.1'!$E$12)/SUMIF(GW2:GW60,"A",GZ2:GZ60)>100%,100%,('IND 5.1.1'!$D$12+'IND 5.1.1'!$E$12)/SUMIF(GW2:GW60,"A",GZ2:GZ60))) -> 0.25 | BQ99: Catégorie C | BS99: =IF($D$69+$D$70=0,0,('IND 5.1.1'!$F$51+'IND 5.1.1'!$F$85)) -> 670 | GJ99: 73 | GK99: Rhône-Alpes | GL99: Centre de Gestion de la Savoie
AA100: =IF(AE100=0,"",RANK(AE100,$AE$87:$AE$105,0)+COUNTIF($AE$87:AE100,AE100)-1) -> 2 | AB100: Départ à la retraite | AE100: =IF($D$69+$D$70>0,(AF100+AG100)/($AF$106+$AG$106),"") -> 0.2363636364 | AF100: ='IND 1.9.4.0'!F35+'IND 1.9.4.0'!J35 -> 13 | AG100: ='IND 1.9.4.0'!F59+'IND 1.9.4.0'!J59 -> 0 | AJ100: Catégorie C | AK100: ='IND 3.1.1-3.3.1 et 3.4.1-3.4.3'!G22+'IND 3.1.1-3.3.1 et 3.4.1-3.4.3'!G26+'IND 3.1.1-3.3.1 et 3.4.1-3.4.3'!G30+'IND 3.1.1-3.3.1 et 3.4.1-3.4.3'!G34+'IND 3.1.1-3.3.1 et 3.4.1-3.4.3'!G38+'IND 3.1.1-3.3.1 et 3.4.1-3.4.3'!G42++'IND 3.1.1-3.3.1 et 3.4.1-3.4.3'!G46+'IND 3.1.1-3.3.1 et 3.4.1-3.4.3'!G50+'IND 3.1.1-3.3.1 et 3.4.1-3.4.3'!G54+'IND 3.1.1-3.3.1 et 3.4.1-3.4.3'!G57 -> 287716 | AL100: ='IND 3.1.1-3.3.1 et 3.4.1-3.4.3'!I22+'IND 3.1.1-3.3.1 et 3.4.1-3.4.3'!I26+'IND 3.1.1-3.3.1 et 3.4.1-3.4.3'!I30+'IND 3.1.1-3.3.1 et 3.4.1-3.4.3'!I34+'IND 3.1.1-3.3.1 et 3.4.1-3.4.3'!I38+'IND 3.1.1-3.3.1 et 3.4.1-3.4.3'!I42+'IND 3.1.1-3.3.1 et 3.4.1-3.4.3'!I46+'IND 3.1.1-3.3.1 et 3.4.1-3.4.3'!I50+'IND 3.1.1-3.3.1 et 3.4.1-3.4.3'!I54+'IND 3.1.1-3.3.1 et 3.4.1-3.4.3'!I57 -> 27139 | AM100: 0.08619523273 | AN100: ='IND 3.1.1-3.3.1 et 3.4.1-3.4.3'!F22+'IND 3.1.1-3.3.1 et 3.4.1-3.4.3'!F26+'IND 3.1.1-3.3.1 et 3.4.1-3.4.3'!F30+'IND 3.1.1-3.3.1 et 3.4.1-3.4.3'!F34+'IND 3.1.1-3.3.1 et 3.4.1-3.4.3'!F38+'IND 3.1.1-3.3.1 et 3.4.1-3.4.3'!F42+'IND 3.1.1-3.3.1 et 3.4.1-3.4.3'!F50+'IND 3.1.1-3.3.1 et 3.4.1-3.4.3'!F54+'IND 3.1.1-3.3.1 et 3.4.1-3.4.3'!F57 -> 780826 | AO100: ='IND 3.1.1-3.3.1 et 3.4.1-3.4.3'!H22+'IND 3.1.1-3.3.1 et 3.4.1-3.4.3'!H26+'IND 3.1.1-3.3.1 et 3.4.1-3.4.3'!H30+'IND 3.1.1-3.3.1 et 3.4.1-3.4.3'!H34+'IND 3.1.1-3.3.1 et 3.4.1-3.4.3'!H38+'IND 3.1.1-3.3.1 et 3.4.1-3.4.3'!H42+'IND 3.1.1-3.3.1 et 3.4.1-3.4.3'!H46+'IND 3.1.1-3.3.1 et 3.4.1-3.4.3'!H50+'IND 3.1.1-3.3.1 et 3.4.1-3.4.3'!H54+'IND 3.1.1-3.3.1 et 3.4.1-3.4.3'!H57 -> 75231 | AP100: 0.08788083037 | AQ100: ='IND 3.1.1-3.3.1 et 3.4.1-3.4.3'!G70+'IND 3.1.1-3.3.1 et 3.4.1-3.4.3'!G74+'IND 3.1.1-3.3.1 et 3.4.1-3.4.3'!G78+'IND 3.1.1-3.3.1 et 3.4.1-3.4.3'!G82+'IND 3.1.1-3.3.1 et 3.4.1-3.4.3'!G86+'IND 3.1.1-3.3.1 et 3.4.1-3.4.3'!G90+'IND 3.1.1-3.3.1 et 3.4.1-3.4.3'!G94+'IND 3.1.1-3.3.1 et 3.4.1-3.4.3'!G98+'IND 3.1.1-3.3.1 et 3.4.1-3.4.3'!G102+'IND 3.1.1-3.3.1 et 3.4.1-3.4.3'!G105 -> 24730 | AR100: ='IND 3.1.1-3.3.1 et 3.4.1-3.4.3'!I70+'IND 3.1.1-3.3.1 et 3.4.1-3.4.3'!I74+'IND 3.1.1-3.3.1 et 3.4.1-3.4.3'!I78+'IND 3.1.1-3.3.1 et 3.4.1-3.4.3'!I82+'IND 3.1.1-3.3.1 et 3.4.1-3.4.3'!I86+'IND 3.1.1-3.3.1 et 3.4.1-3.4.3'!I90+'IND 3.1.1-3.3.1 et 3.4.1-3.4.3'!I94+'IND 3.1.1-3.3.1 et 3.4.1-3.4.3'!I98+'IND 3.1.1-3.3.1 et 3.4.1-3.4.3'!I102+'IND 3.1.1-3.3.1 et 3.4.1-3.4.3'!I105 -> 558 | AS100: 0.02206580196 | AT100: ='IND 3.1.1-3.3.1 et 3.4.1-3.4.3'!F70+'IND 3.1.1-3.3.1 et 3.4.1-3.4.3'!F74+'IND 3.1.1-3.3.1 et 3.4.1-3.4.3'!F78+'IND 3.1.1-3.3.1 et 3.4.1-3.4.3'!F82+'IND 3.1.1-3.3.1 et 3.4.1-3.4.3'!F86+'IND 3.1.1-3.3.1 et 3.4.1-3.4.3'!F90+'IND 3.1.1-3.3.1 et 3.4.1-3.4.3'!F94+'IND 3.1.1-3.3.1 et 3.4.1-3.4.3'!F98+'IND 3.1.1-3.3.1 et 3.4.1-3.4.3'!F102+'IND 3.1.1-3.3.1 et 3.4.1-3.4.3'!F105 -> 30273 | AU100: ='IND 3.1.1-3.3.1 et 3.4.1-3.4.3'!H70+'IND 3.1.1-3.3.1 et 3.4.1-3.4.3'!H74+'IND 3.1.1-3.3.1 et 3.4.1-3.4.3'!H78+'IND 3.1.1-3.3.1 et 3.4.1-3.4.3'!H82+'IND 3.1.1-3.3.1 et 3.4.1-3.4.3'!H86+'IND 3.1.1-3.3.1 et 3.4.1-3.4.3'!H90+'IND 3.1.1-3.3.1 et 3.4.1-3.4.3'!H94+'IND 3.1.1-3.3.1 et 3.4.1-3.4.3'!H98+'IND 3.1.1-3.3.1 et 3.4.1-3.4.3'!H102+'IND 3.1.1-3.3.1 et 3.4.1-3.4.3'!H105 -> 349 | AV100: 0.01139703481 | BJ100: Catégorie B | BK100: =IF($D$69=0," ",IF(('IND 5.1.1'!$B$13+'IND 5.1.1'!$C$13)/SUMIF(GW2:GW60,"B",GY2:GY60)>100%,100%,('IND 5.1.1'!$B$13+'IND 5.1.1'!$C$13)/SUMIF(GW2:GW60,"B",GY2:GY60))) -> 0.8285714286 | BL100: =IF($D$70=0," ",IF(('IND 5.1.1'!$D$13+'IND 5.1.1'!$E$13)/SUMIF(GW2:GW60,"B",GZ2:GZ60)>100%,100%,('IND 5.1.1'!$D$13+'IND 5.1.1'!$E$13)/SUMIF(GW2:GW60,"B",GZ2:GZ60))) -> 0.4 | BQ100: Total jours format° hors hors catégorie | BS100: =SUM(BS97:BS99) -> 1078 | GJ100: 74 | GK100: Rhône-Alpes | GL100: Centre de Gestion de la Haute-Savoie
AA101: =IF(AE101=0,"",RANK(AE101,$AE$87:$AE$105,0)+COUNTIF($AE$87:AE101,AE101)-1) ->  | AB101: Licenciement | AE101: 0 | AF101: ='IND 1.9.4.0'!F36+'IND 1.9.4.0'!J36 -> 0 | AG101: ='IND 1.9.4.0'!F60+'IND 1.9.4.0'!J60 -> 0 | BJ101: Catégorie C | BK101: =IF($D$69=0," ",IF(('IND 5.1.1'!$B$14+'IND 5.1.1'!$C$14)/SUMIF(GW2:GW60,"c",GY2:GY60)>100%,100%,('IND 5.1.1'!$B$14+'IND 5.1.1'!$C$14)/SUMIF(GW2:GW60,"c",GY2:GY60))) -> 0.6 | BL101: =IF($D$70=0," ",IF(('IND 5.1.1'!$D$14+'IND 5.1.1'!$E$14)/SUMIF(GW2:GW60,"C",GZ2:GZ60)>100%,100%,('IND 5.1.1'!$D$14+'IND 5.1.1'!$E$14)/SUMIF(GW2:GW60,"C",GZ2:GZ60))) -> 0.2352941176 | GJ101: 971 | GK101: Guadeloupe | GL101: Centre de Gestion de la Guadeloupe
M102: 1.4.1 Nombre d'agents originaires de la collectivité | AA102: =IF(AE102=0,"",RANK(AE102,$AE$87:$AE$105,0)+COUNTIF($AE$87:AE102,AE102)-1) -> 6 | AB102: Décès | AE102: 0.05454545455 | AF102: ='IND 1.9.4.0'!F37+'IND 1.9.4.0'!J37 -> 3 | AG102: ='IND 1.9.4.0'!F61+'IND 1.9.4.0'!J61 -> 0 | BJ102: Total | BK102: =IF((D69+D70)=0,"",'IND 5.1.1'!$F$15/(D69+D70)) -> 0.6348039216 | BQ102: Total toutes catégories | BS102: =('IND 5.1.1'!$F$55+'IND 5.1.1'!$F$89) -> 1078 | GJ102: 972 | GK102: Martinique | GL102: Centre dee Gestion de la Martinique
N103: 1 | O103: 2 | P103: 0 | Q103: sexe | AA103: =IF(AE103=0,"",RANK(AE103,$AE$87:$AE$105,0)+COUNTIF($AE$87:AE103,AE103)-1) ->  | AB103: Autres cas | AE103: 0 | AF103: ='IND 1.9.4.0'!F41+'IND 1.9.4.0'!J41 -> 0 | AG103: ='IND 1.9.4.0'!F65+'IND 1.9.4.0'!J65 -> 0 | GJ103: 973 | GK103: Guyane | GL103: Centre de Gestion de la Guyane
M104: au 31/12/2021 | N104: Hommes | O104: Femmes | P104: Total | Q104: position1 | T104: 7 lignes | AA104: =IF(AE104=0,"",RANK(AE104,$AE$87:$AE$105,0)+COUNTIF($AE$87:AE104,AE104)-1) ->  | AB104: Transfert de compétence | AE104: 0 | AF104: ='IND 1.9.4.0'!F38+'IND 1.9.4.0'!J38 -> 0 | AG104: ='IND 1.9.4.0'!F62+'IND 1.9.4.0'!J62 -> 0 | AJ104: ETPR | AK104: Fonctionnaires | AQ104: Contractuels sur emploi permanents | BJ104: VAE | GJ104: 974 | GK104: Réunion | GL104: Centre de Gestion de la Réunion
M105: En congé parental (article 75) Fonctionnaires et contractuels | Q105: 10 | T105: 3 | U105: =IF(SUM('IND 1.4.1-1.4.2-1.4.4'!$B$10:$C$10)=0,"",IF(SUM('IND 1.4.1-1.4.2-1.4.4'!$B$10:$C$10)=1,"> Un agent en congés parental"&CHAR(10),"> "&SUM('IND 1.4.1-1.4.2-1.4.4'!$B$10:$C$10)&" agents en congés parental"&CHAR(10))) -> > Un agent en congés parental | AA105: =IF(AE105=0,"",RANK(AE105,$AE$87:$AE$105,0)+COUNTIF($AE$87:AE105,AE105)-1) ->  | AB105: Rupture conventionnelle | AE105: 0 | AF105: ='IND 1.9.4.0'!F39+'IND 1.9.4.0'!J39 -> 0 | AG105: ='IND 1.9.4.0'!F64+'IND 1.9.4.0'!J64 -> 0 | AK105: Femmes | AN105: Hommes | AQ105: Femmes | AT105: Hommes | GJ105: 976 | GK105: Mayotte | GL105: Centre de Gestion de Mayotte
M106: En disponibilité (article 72) hors ceux mis en disponibilité d'office ou bénéficiaires d'un congé équivalent pour les contractuels Fonctionnaires et contractuels | Q106: 20 | T106: 4 | U106: =IF(SUM('IND 1.4.1-1.4.2-1.4.4'!$B$11:$C$11)=0,"",IF(SUM('IND 1.4.1-1.4.2-1.4.4'!$B$11:$C$11)=1,"> Un agent en disponibilité"&CHAR(10),"> "&SUM('IND 1.4.1-1.4.2-1.4.4'!$B$11:$C$11)&" agents en disponibilité"&CHAR(10))) -> > 12 agents en disponibilité | AB106: Totaux | AF106: =SUM(AF86:AF105) -> 29 | AG106: =SUM(AG86:AG105) -> 26 | AK106: ETPR | AL106: ETPR | AM106: ETPR | AN106: ETPR | AO106: ETPR | AP106: ETPR | AQ106: ETPR | AR106: ETPR | AS106: ETPR | AT106: ETPR | AU106: ETPR | AV106: ETPR | BR106: Répartition des jours de formations
AB107: Légende | AC107: 3 | AD107: Départs fonctionnaire | AJ107: Catégorie A | AK107: ='IND 1.1.4'!D33+'IND 1.1.4'!D37+'IND 1.1.4'!D41+'IND 1.1.4'!D45+'IND 1.1.4'!D49+'IND 1.1.4'!D53+'IND 1.1.4'!D57+'IND 1.1.4'!D61+'IND 1.1.4'!D65 -> 32.14 | AL107: ='IND 1.1.4'!D33+'IND 1.1.4'!D37+'IND 1.1.4'!D41+'IND 1.1.4'!D45+'IND 1.1.4'!D49+'IND 1.1.4'!D53+'IND 1.1.4'!D57+'IND 1.1.4'!D61+'IND 1.1.4'!D65 -> 32.14 | AN107: ='IND 1.1.4'!C33+'IND 1.1.4'!C37+'IND 1.1.4'!C41+'IND 1.1.4'!C45+'IND 1.1.4'!C49+'IND 1.1.4'!C53+'IND 1.1.4'!C57+'IND 1.1.4'!C61+'IND 1.1.4'!C65 -> 7.01 | AO107: ='IND 1.1.4'!C33+'IND 1.1.4'!C37+'IND 1.1.4'!C41+'IND 1.1.4'!C45+'IND 1.1.4'!C49+'IND 1.1.4'!C53+'IND 1.1.4'!C57+'IND 1.1.4'!C61+'IND 1.1.4'!C65 -> 7.01 | AQ107: ='IND 1.2.4'!D32+'IND 1.2.4'!D36+'IND 1.2.4'!D40+'IND 1.2.4'!D44+'IND 1.2.4'!D48+'IND 1.2.4'!D52+'IND 1.2.4'!D56+'IND 1.2.4'!D60+'IND 1.2.4'!D64 -> 2.58 | AR107: =AQ107 -> 2.58 | AT107: ='IND 1.2.4'!C32+'IND 1.2.4'!C36+'IND 1.2.4'!C40+'IND 1.2.4'!C44+'IND 1.2.4'!C48+'IND 1.2.4'!C52+'IND 1.2.4'!C56+'IND 1.2.4'!C60+'IND 1.2.4'!C64 -> 0 | AU107: =AT107 -> 0 | BL107: Coûts de formation | BQ107: CNFPT | BS107: =IF(BS102=0,"",('IND 5.1.1'!$B$55+'IND 5.1.1'!$C$55+'IND 5.1.1'!$B$89+'IND 5.1.1'!$C$89)/('IND 5.1.1'!$F$55+'IND 5.1.1'!$F$89)) -> 0.7050092764
M108: En disponibilité d'office ou bénéficiaires d'un congé équivalent Fonctionnaires et contractuels | P108: =N108+O108 -> 0 | Q108: 22 | T108: 8 | U108: =IF(SUM('IND 1.4.1-1.4.2-1.4.4'!$B$13:$C$15)=0,"",IF(SUM('IND 1.4.1-1.4.2-1.4.4'!$B$13:$C$15)=1,"> Un agent dans une autre situation (disponibilité d'office, congés spécial ou hors cadre)"&CHAR(10),"> "&SUM(SUM('IND 1.4.1-1.4.2-1.4.4'!$B$13:$C$15))&" agents dans d'autres situations (disponibilité d'office, congés spécial et hors cadre)"&CHAR(10))) -> > 5 agents dans d'autres situations (disponibilité d'office, congés spécial et hors cadre) | AB108: Légende | AC108: 4 | AD108: Départs de contractuels | AJ108: Catégorie B | AK108: ='IND 1.1.4'!D34+'IND 1.1.4'!D38+'IND 1.1.4'!D42+'IND 1.1.4'!D46+'IND 1.1.4'!D50+'IND 1.1.4'!D54+'IND 1.1.4'!D58+'IND 1.1.4'!D62+'IND 1.1.4'!D66+'IND 1.1.4'!D69 -> 42.46 | AL108: ='IND 1.1.4'!D34+'IND 1.1.4'!D38+'IND 1.1.4'!D42+'IND 1.1.4'!D46+'IND 1.1.4'!D50+'IND 1.1.4'!D54+'IND 1.1.4'!D58+'IND 1.1.4'!D62+'IND 1.1.4'!D66+'IND 1.1.4'!D69 -> 42.46 | AN108: ='IND 1.1.4'!C34+'IND 1.1.4'!C38+'IND 1.1.4'!C42+'IND 1.1.4'!C46+'IND 1.1.4'!C50+'IND 1.1.4'!C54+'IND 1.1.4'!C58+'IND 1.1.4'!C62+'IND 1.1.4'!C66+'IND 1.1.4'!C69 -> 24.09 | AO108: ='IND 1.1.4'!C34+'IND 1.1.4'!C38+'IND 1.1.4'!C42+'IND 1.1.4'!C46+'IND 1.1.4'!C50+'IND 1.1.4'!C54+'IND 1.1.4'!C58+'IND 1.1.4'!C62+'IND 1.1.4'!C66+'IND 1.1.4'!C69 -> 24.09 | AQ108: ='IND 1.2.4'!D33+'IND 1.2.4'!D37+'IND 1.2.4'!D41+'IND 1.2.4'!D45+'IND 1.2.4'!D49+'IND 1.2.4'!D53+'IND 1.2.4'!D57+'IND 1.2.4'!D61+'IND 1.2.4'!D65+'IND 1.2.4'!D68 -> 13.25 | AR108: =AQ108 -> 13.25 | AT108: ='IND 1.2.4'!C33+'IND 1.2.4'!C37+'IND 1.2.4'!C41+'IND 1.2.4'!C45+'IND 1.2.4'!C49+'IND 1.2.4'!C53+'IND 1.2.4'!C57+'IND 1.2.4'!C61+'IND 1.2.4'!C65+'IND 1.2.4'!C68 -> 2.33 | AU108: =AT108 -> 2.33 | BK108: CNFPT | BM108: ='IND 5.1.4'!$D$11+'IND 5.1.4'!$D$12 -> 93165 | BQ108: Autres organismes | BS108: =IF(BS102=0,"",('IND 5.1.1'!$E$55+'IND 5.1.1'!$E$89)/('IND 5.1.1'!$F$55+'IND 5.1.1'!$F$89)) -> 0.2949907236
M109: En position hors cadres (article 70) Fonctionnaires uniquement | P109: 0 | Q109: 79 | AJ109: Catégorie C | AK109: ='IND 1.1.4'!D35+'IND 1.1.4'!D39+'IND 1.1.4'!D43+'IND 1.1.4'!D47+'IND 1.1.4'!D51+'IND 1.1.4'!D55+'IND 1.1.4'!D59+'IND 1.1.4'!D63+'IND 1.1.4'!D67+'IND 1.1.4'!D70 -> 71.43 | AL109: ='IND 1.1.4'!D35+'IND 1.1.4'!D39+'IND 1.1.4'!D43+'IND 1.1.4'!D47+'IND 1.1.4'!D51+'IND 1.1.4'!D55+'IND 1.1.4'!D59+'IND 1.1.4'!D63+'IND 1.1.4'!D67+'IND 1.1.4'!D70 -> 71.43 | AN109: ='IND 1.1.4'!C35+'IND 1.1.4'!C39+'IND 1.1.4'!C43+'IND 1.1.4'!C47+'IND 1.1.4'!C51+'IND 1.1.4'!C55+'IND 1.1.4'!C59+'IND 1.1.4'!C63+'IND 1.1.4'!C67+'IND 1.1.4'!C70 -> 178.59 | AO109: ='IND 1.1.4'!C35+'IND 1.1.4'!C39+'IND 1.1.4'!C43+'IND 1.1.4'!C47+'IND 1.1.4'!C51+'IND 1.1.4'!C55+'IND 1.1.4'!C59+'IND 1.1.4'!C63+'IND 1.1.4'!C67+'IND 1.1.4'!C70 -> 178.59 | AQ109: ='IND 1.2.4'!D34+'IND 1.2.4'!D38+'IND 1.2.4'!D42+'IND 1.2.4'!D46+'IND 1.2.4'!D50+'IND 1.2.4'!D54+'IND 1.2.4'!D58+'IND 1.2.4'!D62+'IND 1.2.4'!D66+'IND 1.2.4'!D69 -> 9.1 | AR109: 9.1 | AT109: ='IND 1.2.4'!C34+'IND 1.2.4'!C38+'IND 1.2.4'!C42+'IND 1.2.4'!C46+'IND 1.2.4'!C50+'IND 1.2.4'!C54+'IND 1.2.4'!C58+'IND 1.2.4'!C62+'IND 1.2.4'!C66+'IND 1.2.4'!C69 -> 9.57 | AU109: 9.57 | BK109: Autres organismes | BM109: ='IND 5.1.4'!$D$13 -> 64291 | BQ109: Interne | BS109: =IF(BS102=0,"",('IND 5.1.1'!$D$55+'IND 5.1.1'!$D$89)/('IND 5.1.1'!$F$55+'IND 5.1.1'!$F$89)) -> 0
M110: En congé spécial (article 99) Fonctionnaires uniquement | P110: 0 | Q110: 80 | Y110: 1.5.4 | Z110: Nomimation stagiaire au sein de la collectivité (Contractuel permanent) | AG110: ='IND 1.9.5 - 1.9.6.1'!B17+'IND 1.9.5 - 1.9.6.1'!C17 -> 17 | BK110: Frais | BM110: ='IND 5.1.4'!$D$14 -> 9018
Z111: Nomimation stagiaire au sein de la collectivité (Contractuel non permanent) | AG111: ='IND 1.9.5 - 1.9.6.1'!B18+'IND 1.9.5 - 1.9.6.1'!C18 -> 2 | BK111: Coût de la formation des apprentis | BM111: ='IND 5.1.4'!D15 -> 40338
M112: Détachés dans une autre structure (article 64) Fonctionnaires uniquement : | N112: Hommes | O112: Femmes | P112: Total | T112: 7 | U112: =IF(SUM('IND 1.4.1-1.4.2-1.4.4'!$B$18:$C$22)=0,"",IF(SUM('IND 1.4.1-1.4.2-1.4.4'!$B$18:$C$22)=1,"> Un agent détaché dans une autre structure"&CHAR(10),"> "&SUM('IND 1.4.1-1.4.2-1.4.4'!$B$18:$C$22)&" agents détachés dans une autre structure"&CHAR(10))) -> > Un agent détaché dans une autre structure | AJ112: ETPR | AK112: Fonctionnaires | AQ112: Contractuels sur emploi permanents | BK112: total max | BM112: =SUM(BM108:BM111) -> 206812
M113: Fonction publique d'Etat | P113: =N113+O113 -> 0 | Q113: 41 | Y113: Arrivées hors conctractuels déjà présents | AK113: Femmes | AN113: Hommes | AQ113: Femmes | AT113: Hommes
M114: Fonction publique hospitalière | P114: =N114+O114 -> 0 | Q114: 42 | AA114: Rang | AE114: % FC + C | AF114: Fonctionnaires | AG114: Contractuels | AK114: IFSE | AL114: CIA | AM114: Part CIA | AN114: IFSE | AO114: CIA | AP114: Part CIA | AQ114: IFSE | AR114: CIA | AS114: Part CIA | AT114: IFSE | AU114: CIA | AV114: Part CIA | BJ114: Rang
M115: Autre collectivité | P115: =N115+O115 -> 0 | Q115: 43 | Y115: Arrivée de fonctionnaires hors contractuels permanents déjà présents | Z115: agents non rémunérés | AA115: =IF(AE115=0,"",RANK(AE115,$AE$115:$AE$124,0)+COUNTIF($AE$115:AE115,AE115)-1) -> 2 | AB115: Recrutement direct | AE115: =(AF115+AG115)/($AF$126+$AG$126) -> 0.1875 | AF115: ='IND 1.9.2'!B96+'IND 1.9.2'!F96 -> 3 | AJ115: Catégorie A | AK115: =IF(OR(AK98=0,AK107=0),"",IF(AK107<2,"s",AK98/AK107)) -> 12247.72869 | AL115: =IF(OR(AL98=0,AL107=0),"",IF(AL107<2,"s",AL98/AL107)) -> 1212.321095 | AN115: =IF(OR(AN98=0,AN107=0),"",IF(AN107<2,"s",AN98/AN107)) -> 16152.92439 | AO115: 1306.704708 | AQ115: 6812.403101 | AR115: 171.7054264 | AW115: =IF(AW107=0,"",AW98/AW107) ->  | BJ115: =IF(BL115=0,"",RANK(BL115,$BL$114:$BL$125,0)+COUNTIF(BL$114:BL115,BL115)-1) -> 2 | BK115: Probité, intégrité (détournement, conservation de fonds, malversation, vol, dégradation, dettes, chèque sans provision) | BL115: ='IND 8.1.1'!B48+'IND 8.1.1'!C48 -> 1 | BM115: =BL115/SUM($BL$115:$BL$125) -> 0.25
M116: Autres structures* | P116: =N116+O116 -> 0 | Q116: 44 | AA116: =IF(AE116=0,"",RANK(AE116,$AE$115:$AE$124,0)+COUNTIF($AE$115:AE116,AE116)-1) ->  | AB116: Voie de concours, sélection professionnelle | AE116: =(AF116+AG116)/($AF$126+$AG$126) -> 0 | AF116: ='IND 1.9.2'!H96+'IND 1.9.2'!J96 -> 0 | AJ116: Catégorie B | AK116: =IF(OR(AK99=0,AK108=0),"",IF(AK108<2,"s",AK99/AK108)) -> 5580.781912 | AL116: 560.2449364 | AN116: =IF(OR(AN99=0,AN108=0),"",IF(AN108<2,"s",AN99/AN108)) -> 8129.306766 | AO116: 732.8352013 | AQ116: 3333.433962 | AR116: 4.905660377 | AT116: 5075.107296 | AU116: 403.8626609 | AW116: =IF(AW108=0,"",AW99/AW108) ->  | BJ116: =IF(BL116=0,"",RANK(BL116,$BL$114:$BL$125,0)+COUNTIF(BL$114:BL116,BL116)-1) ->  | BK116: Qualité de service (manquement aux sujétions du service, négligence, désobéissance hiérarchique, absence irrégulière, abandon de poste) | BL116: ='IND 8.1.1'!B49+'IND 8.1.1'!C49 -> 0 | BM116: =BL116/SUM($BL$115:$BL$125) -> 0
AA117: =IF(AE117=0,"",RANK(AE117,$AE$115:$AE$124,0)+COUNTIF($AE$115:AE117,AE117)-1) ->  | AJ117: Catégorie C | AK117: =IF(OR(AK100=0,AK109=0),"",IF(AK109<2,"s",AK100/AK109)) -> 4027.943441 | AL117: 379.9384012 | AN117: =IF(OR(AN100=0,AN109=0),"",IF(AN109<2,"s",AN100/AN109)) -> 4372.170894 | AO117: 421.24979 | AQ117: 2717.582418 | AR117: 61.31868132 | AT117: 3163.322884 | AU117: 36.46812957 | BJ117: =IF(BL117=0,"",RANK(BL117,$BL$114:$BL$125,0)+COUNTIF(BL$114:BL117,BL117)-1) ->  | BK117: Atteinte à la discrétion professionnelle, au secret professionnel, au secret des correspondances, à la vie privée, à la liberté individuelle | BL117: ='IND 8.1.1'!B50+'IND 8.1.1'!C50 -> 0 | BM117: 0
M118: *Par exemple : fonction publique d'un Etat de l'Union européenne (FPEUE). | AA118: =IF(AE118=0,"",RANK(AE118,$AE$115:$AE$124,0)+COUNTIF($AE$115:AE118,AE118)-1) ->  | AB118: Intégration directe | AE118: =(AF118+AG118)/($AF$126+$AG$126) -> 0 | AF118: ='IND 1.9.2'!M96 -> 0 | BJ118: =IF(BL118=0,"",RANK(BL118,$BL$114:$BL$125,0)+COUNTIF(BL$114:BL118,BL118)-1) -> 1 | BK118: Incorrections, violences, insultes, harcèlement moral | BL118: ='IND 8.1.1'!B51+'IND 8.1.1'!C51 -> 2 | BM118: 0.5
AA119: =IF(AE119=0,"",RANK(AE119,$AE$115:$AE$124,0)+COUNTIF($AE$115:AE119,AE119)-1) -> 3 | AB119: Voie de mutation | AE119: 0.125 | AF119: ='IND 1.9.2'!N96 -> 2 | BJ119: =IF(BL119=0,"",RANK(BL119,$BL$114:$BL$125,0)+COUNTIF(BL$114:BL119,BL119)-1) ->  | BK119: Ivresse | BL119: ='IND 8.1.1'!B52+'IND 8.1.1'!C52 -> 0 | BM119: 0
M120: Détachés au sein de leur propre collectivité : Fonctionnaires uniquement | N120: Hommes | O120: Femmes | P120: Total | T120: 6 | U120: =IF(SUM('IND 1.4.1-1.4.2-1.4.4'!$B$26:$C$28)=0,"",IF(SUM('IND 1.4.1-1.4.2-1.4.4'!$B$26:$C$28)=1,"> Un agent détaché au sein de la collectivité"&CHAR(10),"> "&SUM('IND 1.4.1-1.4.2-1.4.4'!$B$26:$C$28)&" agents détachés au sein de la collectivité"&CHAR(10))) -> > 6 agents détachés au sein de la collectivité | AA120: =IF(AE120=0,"",RANK(AE120,$AE$115:$AE$124,0)+COUNTIF($AE$115:AE120,AE120)-1) ->  | AB120: Voie de détachement | AE120: 0 | AF120: =SUM('IND 1.9.2'!O96:R96) -> 0 | BJ120: =IF(BL120=0,"",RANK(BL120,$BL$114:$BL$125,0)+COUNTIF(BL$114:BL120,BL120)-1) -> 3 | BK120: Mœurs (dont harcèlement sexuel) | BL120: ='IND 8.1.1'!B53+'IND 8.1.1'!C53 -> 1 | BM120: 0.25
M121: Détachés sur un emploi fonctionnel dans leur collectivité | P121: =N121+O121 -> 0 | Q121: 51 | AA121: =IF(AE121=0,"",RANK(AE121,$AE$115:$AE$124,0)+COUNTIF($AE$115:AE121,AE121)-1) ->  | AB121: Transfert de compétence | AE121: 0 | AF121: ='IND 1.9.2'!S96 -> 0 | BJ121: =IF(BL121=0,"",RANK(BL121,$BL$114:$BL$125,0)+COUNTIF(BL$114:BL121,BL121)-1) ->  | BK121: Manquement à l'obligation de laïcité, atteinte au principe de neutralité, discrimination, manquement à l'obligation de réserve | BL121: ='IND 8.1.1'!B54+'IND 8.1.1'!C54 -> 0 | BM121: 0
M122: Détachés sur un emploi de cabinet dans leur collectivité | P122: =N122+O122 -> 0 | Q122: 52 | AA122: =IF(AE122=0,"",RANK(AE122,$AE$115:$AE$124,0)+COUNTIF($AE$115:AE122,AE122)-1) ->  | AB122: Réintégration et retour | AE122: 0 | AF122: ='IND 1.9.2'!T96+'IND 1.9.2'!U96 -> 0 | AG122: ='IND 1.9.3'!F13 -> 0 | BJ122: =IF(BL122=0,"",RANK(BL122,$BL$114:$BL$125,0)+COUNTIF(BL$114:BL122,BL122)-1) ->  | BK122: Conflit d'intérêt, trafic d'influence, prise illégale d'intérêts | BL122: ='IND 8.1.1'!B55+'IND 8.1.1'!C55 -> 0 | BM122: 0
M123: Changement de filière | P123: =N123+O123 -> 0 | Q123: 53 | AA123: =IF(AE123=0,"",RANK(AE123,$AE$115:$AE$124,0)+COUNTIF($AE$115:AE123,AE123)-1) -> 4 | AB123: Arrivées de contractuels | AE123: 0.0625 | AG123: ='IND 1.9.3'!F101 -> 1 | BJ123: =IF(BL123=0,"",RANK(BL123,$BL$114:$BL$125,0)+COUNTIF(BL$114:BL123,BL123)-1) ->  | BK123: Exercice d'une activité privée rémunérée sans autorisation | BL123: ='IND 8.1.1'!B56+'IND 8.1.1'!C56 -> 0 | BM123: 0
AA124: =IF(AE124=0,"",RANK(AE124,$AE$115:$AE$124,0)+COUNTIF($AE$115:AE124,AE124)-1) -> 1 | AB124: Remplacements (contractuels) | AE124: 0.625 | AG124: ='IND 1.9.3'!F12 -> 10 | BJ124: =IF(BL124=0,"",RANK(BL124,$BL$114:$BL$125,0)+COUNTIF(BL$114:BL124,BL124)-1) ->  | BK124: Comportement privé affectant le renom du service, condamnation pénale (pour manquements non mentionnés dans les colonnes précédentes) | BL124: ='IND 8.1.1'!B57+'IND 8.1.1'!C57 -> 0 | BM124: 0
M125: Mis à disposition dans une autre structure (articles 61 et 136) Fonctionnaires et contractuels | N125: Hommes | O125: Femmes | P125: Total | Z125: agents rémunérés | AB125: Retours d'agents en positions particulières ayant été rémunérés pendant la période d'absence | AE125: 0 | AF125: ='IND 1.9.2'!V96 -> 0 | AG125: ='IND 1.9.3'!F14 -> 0 | BJ125: =IF(BL125=0,"",RANK(BL125,$BL$114:$BL$125,0)+COUNTIF(BL$114:BL125,BL125)-1) ->  | BK125: Autres | BL125: ='IND 8.1.1'!B58+'IND 8.1.1'!C58 -> 0 | BM125: 0
M126: Ensemble | P126: =N126+O126 -> 0 | Q126: 70 | T126: 2 | U126: =IF(SUM('IND 1.4.1-1.4.2-1.4.4'!$B$31:$C$31)=0,"",IF(SUM('IND 1.4.1-1.4.2-1.4.4'!$B$31:$C$31)=1,"> Un agent mis à disposition dans une autre structure"&CHAR(10),"> "&SUM('IND 1.4.1-1.4.2-1.4.4'!$B$31:$C$31)&" agents mis à disposition dans une autre structure"&CHAR(10))) -> > 2 agents mis à disposition dans une autre structure | AB126: Totaux | AF126: =SUM(AF115:AF124) -> 5 | AG126: =SUM(AG115:AG124) -> 11
M127: dont mis à disposition d'une organisation syndicale | P127: =N127+O127 -> 0 | Q127: 71
Y128: 1.5.2 | AA128: 5 | AB128: recrutement direct | AF128: ='IND 1.9.2'!D96 -> 15
AB129: lauréat concours | AF129: ='IND 1.9.2'!I96 -> 2
AB130: Article 38 | AF130: ='IND 1.9.2'!K96+'IND 1.9.2'!L96 -> 0
M131: 1.4.2 Nombre d'agents originaires d'une autre structure
AB132: Légende | AC132: 1 | AD132: Arrivées fonctionnaire
M133: au 31/12/2021 | N133: Emploi non fonctionnel | P133: Emploi fonctionnel | R133: Emploi de cabinet | AB133: Légende | AC133: 2 | AD133: Arrivées de contractuels
N134: Hommes | O134: Femmes | P134: Hommes | Q134: Femmes | R134: Hommes | S134: Femmes | T134: 5 | U134: =IF(SUM(synthese!Valeur_142)=0,"",IF(SUM(synthese!Valeur_142)=1,"> Un agent détaché dans la collectivité et originaire d'une autre structure"&CHAR(10),"> "&SUM(synthese!Valeur_142)&" agents détachés dans la collectivité et originaires d'une autre structure"&CHAR(10))) -> 
M135: Détachés dans votre collectivité et issus de :
M136: Fonction publique d'Etat
M137: Fonction publique hospitalière
M138: Autre collectivité | Z138: Effectif 31/12/N-1 | AA138: Arrivée | AC138: Contractuels nommés stagiaires | AE138: Départ | AG138: Effectif 31/12/N | AH138: Variation
M139: Autres structures*
N140: 1 | O140: 2 | P140: 1 | Q140: 2 | R140: 1 | S140: 2 | X140: Emploi permanent | Z140: =AG140+AE140-AA140 -> 447 | AA140: =SUM(AF115:AG124) -> 16 | AC140: - | AE140: =SUM(AF87:AG105) -> 55 | AG140: =D69+D70 -> 408 | AH140: =IF(AND(Z140=0,AG140=0),"",IF(AND(Z140=0,AG140<>0),IF(AG140<2,"1 agent",AG140 & " agents"),(AG140-Z140)/Z140)) -> -0.08724832215
M141: *par exemple : fonction publique d'un Etat de l'Union européenne (FPEUE).
X142: Fonctionnaire | Z142: =AG142+AE142-AC142-AA142 -> 379 | AA142: =SUM(AF115:AF124) -> 5 | AC142: =SUM(AF128:AF130) -> 17 | AE142: =SUM(AF87:AF105) -> 29 | AG142: =D69 -> 372 | AH142: =IF(AND(Z142=0,AG142=0),"",IF(AND(Z142=0,AG142<>0),IF(AG142<2,"1 agent",AG142 & " agents"),(AG142-Z142)/Z142)) -> -0.01846965699
M143: 1.4.3 Nombre d'agents originaires d'une autre structure mis à disposition (*)
N144: 1 | O144: 1 | P144: 2 | Q144: 2 | R144: statut1 | X144: Contractuels | Z144: =AG144+AC144+AE144-AA144 -> 68 | AA144: =SUM(AG115:AG124) -> 11 | AC144: =SUM(AF128:AF130) -> 17 | AE144: =SUM(AG87:AG105) -> 26 | AG144: =D70 -> 36 | AH144: =IF(AND(Z144=0,AG144=0),"",IF(AND(Z144=0,AG144<>0),IF(AG144<2,"1 agent",AG144 & " agents"),(AG144-Z144)/Z144)) -> -0.4705882353
M145: au 31/12/2021 | N145: Fonctionnaires | P145: Contractuels sur emploi permanent | R145: position3 | AI145: Rémunération
N146: Hommes | O146: Femmes | P146: Hommes | Q146: Femmes | AK146: Catégorie A | AO146: Catégorie B | AR146: Catégorie C
M147: Mis à disposition de votre collectivité | R147: 1 | T147: 1 | U147: =IF(SUM('IND 1.4.1-1.4.2-1.4.4'!$B$52:$E$52)=0,"",IF(SUM('IND 1.4.1-1.4.2-1.4.4'!$B$52:$E$52)=1,"> Un agent mis à disposition dans la collectivité"&CHAR(10),"> "&SUM('IND 1.4.1-1.4.2-1.4.4'!$B$52:$E$52)&" agents mis à disposition dans la collectivité"&CHAR(10))) ->  | AK147: Titulaire | AN147: Contractuel | AO147: Titulaire | AP147: Contractuel | AR147: Titulaire | AT147: Contractuel
M148: dont originaire de la fonction publique d'Etat | R148: 2 | AI148: Administrative | AK148: =SUM('IND 3.1.1-3.3.1 et 3.4.1-3.4.3'!$B$20:$C$20) -> 897380 | AN148: =SUM('IND 3.1.1-3.3.1 et 3.4.1-3.4.3'!$B$68:$C$68) -> 56980 | AO148: =SUM('IND 3.1.1-3.3.1 et 3.4.1-3.4.3'!$B$21:$C$21) -> 496036 | AP148: =SUM('IND 3.1.1-3.3.1 et 3.4.1-3.4.3'!$B$69:$C$69) -> 99135 | AR148: =SUM('IND 3.1.1-3.3.1 et 3.4.1-3.4.3'!$B$22:$C$22) -> 924247 | AT148: =SUM('IND 3.1.1-3.3.1 et 3.4.1-3.4.3'!$B$70:$C$70) -> 37256
N149: 1 | O149: 2 | P149: 1 | Q149: 2 | R149: sexe | AI149: Technique | AK149: =SUM('IND 3.1.1-3.3.1 et 3.4.1-3.4.3'!$B$24:$C$24) -> 612746 | AN149: =SUM('IND 3.1.1-3.3.1 et 3.4.1-3.4.3'!$B$72:$C$72) -> 0 | AO149: =SUM('IND 3.1.1-3.3.1 et 3.4.1-3.4.3'!$B$25:$C$25) -> 785067 | AP149: =SUM('IND 3.1.1-3.3.1 et 3.4.1-3.4.3'!$B$73:$C$73) -> 57668 | AR149: =SUM('IND 3.1.1-3.3.1 et 3.4.1-3.4.3'!$B$26:$C$26) -> 5846750 | AT149: =SUM('IND 3.1.1-3.3.1 et 3.4.1-3.4.3'!$B$74:$C$74) -> 357798
M150: (*) Décret n° 2008-580 du 18 juin 2008 relatif au régime de la mise à disposition applicable aux collectivités territoriales et aux établissements publics administratifs locaux. | AI150: Culturelle | AK150: =SUM('IND 3.1.1-3.3.1 et 3.4.1-3.4.3'!$B$28:$C$28) -> 61570 | AN150: =SUM('IND 3.1.1-3.3.1 et 3.4.1-3.4.3'!$B$76:$C$76) -> 0 | AO150: =SUM('IND 3.1.1-3.3.1 et 3.4.1-3.4.3'!$B$29:$C$29) -> 129391 | AP150: =SUM('IND 3.1.1-3.3.1 et 3.4.1-3.4.3'!$B$77:$C$77) -> 15924 | AR150: =SUM('IND 3.1.1-3.3.1 et 3.4.1-3.4.3'!$B$30:$C$30) -> 199965 | AT150: =SUM('IND 3.1.1-3.3.1 et 3.4.1-3.4.3'!$B$78:$C$78) -> 62696
AI151: Sportive | AK151: =SUM('IND 3.1.1-3.3.1 et 3.4.1-3.4.3'!$B$32:$C$32) -> 0 | AN151: =SUM('IND 3.1.1-3.3.1 et 3.4.1-3.4.3'!$B$80:$C$80) -> 0 | AO151: =SUM('IND 3.1.1-3.3.1 et 3.4.1-3.4.3'!$B$33:$C$33) -> 0 | AP151: =SUM('IND 3.1.1-3.3.1 et 3.4.1-3.4.3'!$B$81:$C$81) -> 0 | AR151: =SUM('IND 3.1.1-3.3.1 et 3.4.1-3.4.3'!$B$34:$C$34) -> 0 | AT151: =SUM('IND 3.1.1-3.3.1 et 3.4.1-3.4.3'!$B$82:$C$82) -> 0
M152: 1.4.4 Fonctionnaires pris en charge par le CDG ou le CNFPT (articles 53 et 97) | AI152: Médico-sociale | AK152: =SUM('IND 3.1.1-3.3.1 et 3.4.1-3.4.3'!$B$36:$C$36)+SUM('IND 3.1.1-3.3.1 et 3.4.1-3.4.3'!$B40:$C$40)+SUM('IND 3.1.1-3.3.1 et 3.4.1-3.4.3'!$B$44:$C$44) -> 445150 | AN152: =SUM('IND 3.1.1-3.3.1 et 3.4.1-3.4.3'!$B$84:$C$84)+SUM('IND 3.1.1-3.3.1 et 3.4.1-3.4.3'!$B88:$C$88)+SUM('IND 3.1.1-3.3.1 et 3.4.1-3.4.3'!$B$92:$C$92) -> 24609 | AO152: =SUM('IND 3.1.1-3.3.1 et 3.4.1-3.4.3'!$B$37:$C$37)+SUM('IND 3.1.1-3.3.1 et 3.4.1-3.4.3'!$B41:$C$41)+SUM('IND 3.1.1-3.3.1 et 3.4.1-3.4.3'!$B$45:$C$45) -> 719682 | AP152: =SUM('IND 3.1.1-3.3.1 et 3.4.1-3.4.3'!$B$85:$C$85)+SUM('IND 3.1.1-3.3.1 et 3.4.1-3.4.3'!$B89:$C$89)+SUM('IND 3.1.1-3.3.1 et 3.4.1-3.4.3'!$B$93:$C$93) -> 235227 | AR152: =SUM('IND 3.1.1-3.3.1 et 3.4.1-3.4.3'!$B$38:$C$38)+SUM('IND 3.1.1-3.3.1 et 3.4.1-3.4.3'!$B42:$C$42)+SUM('IND 3.1.1-3.3.1 et 3.4.1-3.4.3'!$B$46:$C$46) -> 0 | AT152: =SUM('IND 3.1.1-3.3.1 et 3.4.1-3.4.3'!$B$86:$C$86)+SUM('IND 3.1.1-3.3.1 et 3.4.1-3.4.3'!$B90:$C$90)+SUM('IND 3.1.1-3.3.1 et 3.4.1-3.4.3'!$B$94:$C$94) -> 0
AI153: Police | AK153: =SUM('IND 3.1.1-3.3.1 et 3.4.1-3.4.3'!$B$48:$C$48) -> 0 | AN153: =SUM('IND 3.1.1-3.3.1 et 3.4.1-3.4.3'!$B$96:$C$96) -> 0 | AO153: =SUM('IND 3.1.1-3.3.1 et 3.4.1-3.4.3'!$B$49:$C$49) -> 0 | AP153: =SUM('IND 3.1.1-3.3.1 et 3.4.1-3.4.3'!$B$97:$C$97) -> 0 | AR153: =SUM('IND 3.1.1-3.3.1 et 3.4.1-3.4.3'!$B$50:$C$50) -> 0 | AT153: =SUM('IND 3.1.1-3.3.1 et 3.4.1-3.4.3'!$B$98:$C$98) -> 0
M154: Remarque : seuls le CNFPT et les CDG doivent renseigner cet indicateur | AI154: Incendie | AK154: =SUM('IND 3.1.1-3.3.1 et 3.4.1-3.4.3'!$B$52:$C$52) -> 0 | AN154: =SUM('IND 3.1.1-3.3.1 et 3.4.1-3.4.3'!$B$100:$C$100) -> 0 | AO154: =SUM('IND 3.1.1-3.3.1 et 3.4.1-3.4.3'!$B$53:$C$53) -> 0 | AP154: =SUM('IND 3.1.1-3.3.1 et 3.4.1-3.4.3'!$B$101:$C$101) -> 0 | AR154: =SUM('IND 3.1.1-3.3.1 et 3.4.1-3.4.3'!$B$54:$C$54) -> 0 | AT154: =SUM('IND 3.1.1-3.3.1 et 3.4.1-3.4.3'!$B$102:$C$102) -> 0
N155: 1 | O155: 2 | P155: 0 | Q155: sexe | AI155: Animation | AO155: =SUM('IND 3.1.1-3.3.1 et 3.4.1-3.4.3'!$B$56:$C$56) -> 93850 | AP155: =SUM('IND 3.1.1-3.3.1 et 3.4.1-3.4.3'!$B$104:$C$104) -> 0 | AR155: =SUM('IND 3.1.1-3.3.1 et 3.4.1-3.4.3'!$B$57:$C$57) -> 328107 | AT155: =SUM('IND 3.1.1-3.3.1 et 3.4.1-3.4.3'!$B$105:$C$105) -> 10198
M156: au 31/12/2021 | N156: Hommes | O156: Femmes | P156: Total | Q156: position4 | AI156: total | AK156: =SUM(AK148:AL155) -> 2016846 | AN156: =SUM(AN148:AN155) -> 81589 | AO156: =SUM(AO148:AO155) -> 2224026 | AP156: =SUM(AP148:AQ155) -> 407954 | AR156: =SUM(AR148:AR155) -> 7299069 | AT156: =SUM(AT148:AT155) -> 467948 | AU156: =SUM(AU148:AU155) -> 0
M157: Depuis moins d'1 an | P157: =SUM(N157:O157) -> 0 | Q157: 1
M158: De 1 an à moins de 2 ans | P158: =SUM(N158:O158) -> 0 | Q158: 2 | AI158: ETPR
M159: De 2 ans à moins de 5 ans | P159: =SUM(N159:O159) -> 0 | Q159: 3 | AK159: Catégorie A | AO159: Catégorie B | AR159: Catégorie C
M160: 5 ans et plus | P160: =SUM(N160:O160) -> 0 | Q160: 4 | AK160: Titulaire | AN160: Contractuel | AO160: Titulaire | AP160: Contractuel | AR160: Titulaire | AT160: Contractuel
AI161: Administrative | AK161: =SUM('IND 1.1.4'!$C$33:$D$33) -> 16.83 | AN161: =SUM('IND 1.2.4'!$C$32:$D$32) -> 2.03 | AO161: =SUM('IND 1.1.4'!$C$34:$D$34) -> 14.45 | AP161: =SUM('IND 1.2.4'!$C$33:$D$33) -> 3.33 | AR161: =SUM('IND 1.1.4'!$C$35:$D$35) -> 30.2 | AT161: =SUM('IND 1.2.4'!$C$34:$D$34) -> 1.36
AI162: Technique | AK162: =SUM('IND 1.1.4'!$C$37:$D$37) -> 10.81 | AN162: =SUM('IND 1.2.4'!$C$36:$D$36) -> 0 | AO162: =SUM('IND 1.1.4'!$C$38:$D$38) -> 21.24 | AP162: =SUM('IND 1.2.4'!$C$37:$D$37) -> 2 | AR162: =SUM('IND 1.1.4'!$C$39:$D$39) -> 199.55 | AT162: =SUM('IND 1.2.4'!$C$38:$D$38) -> 14.3
AI163: Culturelle | AK163: =SUM('IND 1.1.4'!$C$41:$D$41) -> 1 | AN163: =SUM('IND 1.2.4'!$C$40:$D$40) -> 0 | AO163: =SUM('IND 1.1.4'!$C$42:$D$42) -> 3.12 | AP163: =SUM('IND 1.2.4'!$C$41:$D$41) -> 0.5 | AR163: =SUM('IND 1.1.4'!$C$43:$D$43) -> 7.44 | AT163: =SUM('IND 1.2.4'!$C$42:$D$42) -> 2.6
AI164: Sportive | AK164: =SUM('IND 1.1.4'!$C$45:$D$45) -> 0 | AN164: =SUM('IND 1.2.4'!$C$44:$D$44) -> 0 | AO164: =SUM('IND 1.1.4'!$C$46:$D$46) -> 0 | AP164: =SUM('IND 1.2.4'!$C$45:$D$45) -> 0 | AR164: =SUM('IND 1.1.4'!$C$47:$D$47) -> 0 | AT164: =SUM('IND 1.2.4'!$C$46:$D$46) -> 0
AI165: Médico-sociale | AK165: =SUM('IND 1.1.4'!$C$49:$D$49)+SUM('IND 1.1.4'!$C$53:$D$53)+SUM('IND 1.1.4'!$C$57:$D$57) -> 10.51 | AN165: =SUM('IND 1.2.4'!$C$48:$D$48)+SUM('IND 1.2.4'!$C$52:$D$52)+SUM('IND 1.2.4'!$C$56:$D$56) -> 0.55 | AO165: =SUM('IND 1.1.4'!$C$50:$D$50)+SUM('IND 1.1.4'!$C$54:$D$54)+SUM('IND 1.1.4'!$C$58:$D$58) -> 24.94 | AP165: =SUM('IND 1.2.4'!$C$49:$D$49)+SUM('IND 1.2.4'!$C$53:$D$53)+SUM('IND 1.2.4'!$C$57:$D$57) -> 9.75 | AR165: =SUM('IND 1.1.4'!$C$51:$D$51)+SUM('IND 1.1.4'!$C$55:$D$55)+SUM('IND 1.1.4'!$C$59:$D$59) -> 0 | AT165: =SUM('IND 1.2.4'!$C$50:$D$50)+SUM('IND 1.2.4'!$C$54:$D$54)+SUM('IND 1.2.4'!$C$58:$D$58) -> 0
AI166: Police | AK166: =SUM('IND 1.1.4'!$C$61:$D$61) -> 0 | AN166: =SUM('IND 1.2.4'!$C$60:$D$60) -> 0 | AO166: =SUM('IND 1.1.4'!$C$62:$D$62) -> 0 | AP166: =SUM('IND 1.2.4'!$C$61:$D$61) -> 0 | AR166: =SUM('IND 1.1.4'!$C$63:$D$63) -> 0 | AT166: =SUM('IND 1.2.4'!$C$62:$D$62) -> 0
AI167: Incendie | AK167: =SUM('IND 1.1.4'!$C$65:$D$65) -> 0 | AN167: =SUM('IND 1.2.4'!$C$64:$D$64) -> 0 | AO167: =SUM('IND 1.1.4'!$C$66:$D$66) -> 0 | AP167: =SUM('IND 1.2.4'!$C$65:$D$65) -> 0 | AR167: =SUM('IND 1.1.4'!$C$67:$D$67) -> 0 | AT167: =SUM('IND 1.2.4'!$C$66:$D$66) -> 0
AI168: Animation | AO168: =SUM('IND 1.1.4'!$C$69:$D$69) -> 2.8 | AP168: =SUM('IND 1.2.4'!$C$68:$D$68) -> 0 | AR168: =SUM('IND 1.1.4'!$C$70:$D$70) -> 12.83 | AT168: =SUM('IND 1.2.4'!$C$69:$D$69) -> 0.41
AI169: total | AK169: =SUM(AK161:AL168) -> 39.15 | AN169: =SUM(AN161:AN168) -> 2.58 | AO169: =SUM(AO161:AO168) -> 66.55 | AP169: =SUM(AP161:AQ168) -> 15.58 | AR169: =SUM(AR161:AR168) -> 250.02 | AT169: =SUM(AT161:AT168) -> 18.67 | AU169: =SUM(AU161:AU168) -> 0
AJ173: RIFSEEP
AJ174: Contractuels | AK174: =IF('IND 3.1.1-3.3.1 et 3.4.1-3.4.3'!$F$61="Oui","et pour les contractuels","") -> et pour les contractuels

Sheet INDEX_NOTE
C2: CC DE LACQ-ORTHEZ
B3: 72/100
I4: Contact : | M4: >>> Documentation explicative
I5: dgcl-index@dgcl.gouv.fr
B8: Score global | J8: 72/100
B9: 1/ Écart global de rémunération entre les femmes et les hommes, pour les fonctionnaires | J9: 47/50 | L9: Indicateur 1 calculable
B10: 2/ Écart global de rémunération entre les femmes et les hommes, pour les agents contractuels sur emploi permanent | J10: 15/15 | L10: Indicateur 2 calculable
B11: 3/ Écart de taux de promotion de grade entre les femmes et les hommes (taux de promus / promouvables) | J11: 0/25 | L11: Indicateur 3 calculable
B12: 4/ Nombre d’agents publics du sexe sous-représenté parmi les dix agents publics ayant perçu les plus hautes rémunérations | J12: 10/10 | L12: Indicateur4 calculable
A14: Décret n° 2024-802 du 13 juillet 2024 relatif aux modalités de calcul des indicateurs relatifs à la mesure et à la réduction des écarts de rémunération entre les femmes et les hommes dans la fonction publique territoriale
B41: indicateurs | H41: score (points*) | I41: Votre score (points*)
B42: 4/ Nombre d’agents publics du sexe sous-représenté parmi les dix agents publics ayant perçu les plus hautes rémunérations | H42: 10 | I42: 10 | J42: 0 | K42: 10/10
B43: 3/ Écart de taux de promotion de grade entre les femmes et les hommes (taux de promus / promouvables) | H43: 25 | I43: 0 | J43: 25 | K43: 0/25
B44: 2/ Écart global de rémunération entre les femmes et les hommes, pour les agents contractuels sur emploi permanent | H44: 15 | I44: 15 | J44: 0 | K44: 15/15
B45: 1/ Écart global de rémunération entre les femmes et les hommes, pour les fonctionnaires | H45: 50 | I45: 47 | J45: 3 | K45: 47/50
B46: Score global | H46: 100 | I46: 72 | J46: 28 | K46: 72/100

Sheet INDEX_CALCULABLE
B1: Indicateur 1 : | K1: Indicateur 2 :
B2: Écart global de rémunération en équivalent temps plein entre les femmes et les hommes, pour les fonctionnaires, par filières et catégorie hiérarchiques équivalentes | K2: Écart global de rémunération en équivalent temps plein entre les femmes et les hommes, pour les agents contractuels sur emploi permanent, par filières et catégorie hiérarchiques équivalentes
B4: Nombre de fonctionnaires hommes : | E4: ='IND 1.1.1'!G385 -> 213 | F4: =IF(AND(E4>=10,E7>=10),"Indicateur 1 calculable","Indicateur 1 non calculable") -> Indicateur 1 calculable | K4: Nombre de contractuels hommes : | N4: ='IND 1.2.1'!R94+'IND 1.2.1'!T94 -> 10 | O4: =IF(AND(N4>=10,N6>=10),"Indicateur 2 calculable","Indicateur 2 non calculable") -> Indicateur 2 calculable
B5: IND 1.1.1'!G385 | K5: IND 1.2.1'!R94+'IND 1.2.1'!T94
K6: Nombre de contractuels femmes : | N6: ='IND 1.2.1'!S94+'IND 1.2.1'!U94 -> 26
B7: Nombre de fonctionnaires femmes : | E7: ='IND 1.1.1'!H385 -> 159 | K7: IND 1.2.1'!S94+'IND 1.2.1'!U94 | Q7: cf INDEX_AIDE | S7: >>> Documentation explicative
B8: IND 1.1.1'!H385 | H8: cf INDEX_AIDE
B16: Indicateur 1 | C16: =IF(SUM(res_ind1!B14:C42)=0,"",res_ind1!B8) -> 0.02872873092 | D16: =IF(C16="","","d'écart en valeur absolue ") -> d'écart en valeur absolue | K16: Indicateur 2 | L16: =IF(SUM(res_ind2!B14:C42)=0,"",res_ind2!B8) -> 0.002047242204 | M16: =IF(L16="","","d'écart en valeur absolue ") -> d'écart en valeur absolue
B19: Indicateur 3 : | K19: Indicateur 4 :
B20: Écart de taux de promotion de grade entre les femmes et les hommes | K20: Nombre d’agents publics du sexe sous-représenté parmi les dix agents publics ayant perçu les plus hautes rémunérations
B22: Nombre d'hommes promus : | E22: ='IND 1.9.5 - 1.9.6.1'!B25+'IND 1.9.5 - 1.9.6.1'!B26 -> 22 | F22: =IF(AND(E22>=10,E24>=10,'res_ind3&4'!D7<>""),"Indicateur 3 calculable","Indicateur 3 non calculable") -> Indicateur 3 calculable | K22: Nombre d'hommes : | N22: ='IND 3.4.0.1'!D9 -> 4 | O22: =IF(N22+N24<>10,"Indicateur 4 non saisi ou incomplet","Indicateur4 calculable") -> Indicateur4 calculable
B23: IND 1.9.5 - 1.9.6.1'!B25+'IND 1.9.5 - 1.9.6.1'!B26
B24: Nombre de femmes promus : | E24: ='IND 1.9.5 - 1.9.6.1'!C25+'IND 1.9.5 - 1.9.6.1'!C26 -> 13 | K24: Nombre de femmes : | N24: ='IND 3.4.0.1'!E9 -> 6
B25: IND 1.9.5 - 1.9.6.1'!C25+'IND 1.9.5 - 1.9.6.1'!C26 | H25: cf INDEX_AIDE | Q25: cf INDEX_AIDE
T31: =IF(AND(U32=1,U33=1,U34=1),"Scénario normal",IF(AND(U32=1,U33=0,U34=0),"Scénario 1",IF(AND(U32=0,U33=1,U34=0),"Scénario 2",IF(AND(U32=1,U33=1,U34=0),"Scénario 3",IF(AND(U32=1,U33=0,U34=1),"Scénario 4","Index non calculable"))))) -> Scénario normal | U31: Calculable
B32: Indicateur 3 | C32: ='res_ind3&4'!D7 -> 0.3221706454 | E32: en pourcentage | K32: Indicateur 4 | L32: ='res_ind3&4'!K11 -> 4 | T32: Indicateur 1 : | U32: =IF(AND(E4>=10,E7>=10),1,0) -> 1
T33: Indicateur 2 : | U33: =IF(AND(N4>=10,N6>=10),1,0) -> 1
T34: Indicateur 3 : | U34: =IF(AND(E22>=10,E24>=10,'res_ind3&4'!D7<>""),1,0) -> 1

Sheet INDEX_AIDE
A1: Aide pour vérifier si la collectivité est bien concernée par l'index et en cas d'incohérence
N3: >>> Documentation explicative
A6: Etape 1 : Obligation de produire un index.
A7: L'obligation pour les employeurs de produire un index répond à trois conditions cumulatives:
A8: La première condition dépend de la nature juridique de la structure, ainsi un index doit être établi chaque année par les régions, les départements et le Conseil national de la fonction publique territoriale. Pour les communes et les établissements publics de coopération intercommunale cette condition s'accompagne d'un seuil de plus de 40 000 habitants en 2022 et 2023.
A9: Dans le cas des communes surclassées démographiquement, c'est la population sur pondérée qui est prise en compte.
A10: La deuxième condition est relative au nombre d'agents de la structure. Pour qu'une des structures mentionnées ci-dessus produise un index, celle-ci doit avoir rémunéré au moins 50 agents permanents en 2022 et 2023, et que la structure existe depuis le 1er janvier 2022.
A11: La deuxième conditon est controlé via les indicateur 1.1.1 et 1.2.1. s'il y a interrogation à ce sujet, vérifiez si les totaux des fonctionnaires et contractuels sur emploi permanent sont bien cohérents.
A12: La troisième et dernière condition est qu'il y ait au moins deux des quatres indicateurs de l'index qui soient calculables.
A13: Le résultat de ces tests est visible dans l'onglet "INDEX_CALCULABLE".
A15: Etape 2 : Indicateurs calculables
A16: Indicateur 1 calculable : Il faut que la collectivité rémunère en 2023 au moins 10 fonctionnaires femmes et 10 fonctionnaires hommes.
A17: La vérification que l'indicateur 1 soit calculable est réalisée via l'indicateur 1.1.1.
A18: Indicateur 2 calculable : Il faut que la collectivité rémunère en 2023 au moins 10 femmes et 10 hommes contractuels sur emploi permanent.
A19: La vérification que l'indicateur 2 soit calculable est réalisée via l'indicateur 1.2.1.
A20: Indicateur 3 calculable : Il faut que la collectivité promeut en 2023 au moins 10 femmes et 10 hommes promus sur avancement de grade (au choix, examen professionnel).
A21: La vérification que l'indicateur 3 soit calculable est réalisée via l'indicateur 1.9.6.1.A
A22: Indicateur 4 calculable : il est calculable pour toutes les collectivités qui remplissent les deux premières conditions de l'étape 1.
A23: Les données sur l'indicateur 4 sont dans l'indicateur 3.4.0.1.
A25: Etape 3 : Incohérences vérifiables sur les résultats des indicateurs
A26: Indicateur 1 :
A27: Tous les écarts sexués et la décomposition des différentes rémunérations par filière/catégorie/genre sont disponibles via l'onglet "res_ind1".
A28: La première vérification à réaliser est de s'assurer de la cohérence des rémunérations mensuelles moyennes par filière/catégorie/genre.
A29: S'il y a incohérence à ce niveau, cela peut provenir des ETPR renseignés dans l'indicateur 1.1.4 et/ou des rémunérations de l'indicateur 3.1.1 via les colonnes 3.1.1.1 "Montant total des rémunérations annuelles brutes (hors charges patronales)", en soustrayant la sur-rémunération outre-mer (3.1.1.10) s'il y en a.
A30: Le montant 3.1.1.1 est y compris la sur-rémunération outre-mer, une erreur possible est d'avoir renseigné le 3.1.1.1 hors sur-rémunération outre-mer.
A31: La seconde vérification, une fois la première effectuée, est de controler la répartion entre traitement fixe et primes et indemnités
A32: Le traitement est calculé en soustrayant le total des primes et indemnités des montants bruts totaux via l'indicateur 3.1.1.
A33: Le total des primes et indemnités est calculée en sommant les colonnes 3.1.1.2, 3.1.1.5, 3.1.1.6 et 3.1.1.7 de l'indicateur 3.1.1.
A34: La part des primes par filière/catégorie/genre calculée dans l'onglet "res_ind1" (colonnes Q et R), permet une première vérification.
A35: La décomposition primes et indemnités en rémunération mensuelle moyenne (colonnes S à AD) permet une deuxième vérification.
A36: Une erreur possible est d'avoir comptabilisé dans les colonnes 3.1.1.2, la NBI, le CTI ou les heures supplémentaire ; elles seraient alors comptées deux fois.
A37: Attention également à ne pas renseigner la sur-rémunération outre-mer dans les colonnes 3.1.1.2.
A38: Indicateur 2 :
A39: Tous les écarts sexués et la décomposition des différentes rémunérations par filière/catégorie/genre sont disponibles via l'onglet "res_ind2".
A40: La première vérification à réaliser est de s'assurer de la cohérence des rémunérations mensuelles moyennes par filière/catégorie/genre.
A41: S'il y a incohérence à ce niveau, cela peut provenir des ETPR renseignés dans l'indicateur 1.2.4 et/ou des rémunérations de l'indicateur 3.2.1 via les B et C "Montant total des rémunérations annuelles brutes (hors charges patronales)", en soustrayant la sur-rémunération outre-mer (colones C et D) s'il y en a.
A42: Le colonnes B et C sont y compris la sur-rémunération outre-mer, une erreur possible est d'avoir renseigné ces colonnes hors sur-rémunération outre-mer.
A43: La seconde vérification, une fois la première effectuée, est de controler la répartion entre traitement fixe et primes et indemnités
A44: Le traitement est calculé en soustrayant le total des primes et indemnités des montants bruts totaux via l'indicateur 3.2.1.
A45: Le total des primes et indemnités est calculée en sommant les colonnes D, E et J à M de l'indicateur 3.2.1.
A46: La part des primes par filière/catégorie/genre calculée dans l'onglet "res_ind2" (colonnes Q et R), permet une première vérification.
A47: La décomposition primes et indemnités en rémunération mensuelle moyenne (colonnes S à AB) permet une deuxième vérification.
A48: Une erreur possible est d'avoir comptabilisé dans les colonnes D et E, le CTI ou les heures supplémentaire ; elles seraient alors comptées deux fois.
A49: Attention également à ne pas renseigner la sur-rémunération outre-mer dans les colonnes D et E.
A50: Indicateur 3 :
A51: Tous les taux de promotion, par type d'avancement de grade sont disponibles via l'onglet "res_ind3&4".
A52: La première vérification à réaliser est de s'assurer de la cohérence des taux de promotion par type d'avancement de grade, s'ils sont trop faibles ou trop élevés.
A53: Si les taux de promotion sont trop faibles ou trop élevés, cela provient d'une erreur dans le nombre de promus (1.9.6.1.A) et/ou de promouvables (1.9.6.1.C).
A54: Indicateur 4 :
A55: Le nombre d'agents du genre le moins représenté parmi les 10 plus hautes rémunérations est disponible via l'onglet "res_ind3&4".
A56: Attention à vérifier que la somme du nombre d'hommes et de femmes du 3.4.0.1 est bien égale à 10.

Sheet INDEX_SEUIL
A1: Position | C1: Scénario total | D1: Scénario 1 | E1: Scénario 2 | F1: Scénario 3 | G1: Scénario 4
B2: Indicateur 1 : écart de rémunération fonctionnaire (%)
B3: plancher | C3: note
A4: =IF(AND(ABS(INDEX_CALCULABLE!$C$16)*100>=INDEX_SEUIL!B4,ABS(INDEX_CALCULABLE!$C$16)*100<INDEX_SEUIL!B5),"Ind 1","") ->  | B4: 0 | C4: 50 | D4: 80 | F4: 70 | G4: 70
A5: =IF(AND(ABS(INDEX_CALCULABLE!$C$16)*100>=INDEX_SEUIL!B5,ABS(INDEX_CALCULABLE!$C$16)*100<INDEX_SEUIL!B6),"Ind 1","") ->  | B5: 0.1 | C5: 49 | D5: 78 | F5: 68 | G5: 68
A6: =IF(AND(ABS(INDEX_CALCULABLE!$C$16)*100>=INDEX_SEUIL!B6,ABS(INDEX_CALCULABLE!$C$16)*100<INDEX_SEUIL!B7),"Ind 1","") ->  | B6: 1.1 | C6: 48 | D6: 76 | F6: 67 | G6: 67
A7: =IF(AND(ABS(INDEX_CALCULABLE!$C$16)*100>=INDEX_SEUIL!B7,ABS(INDEX_CALCULABLE!$C$16)*100<INDEX_SEUIL!B8),"Ind 1","") -> Ind 1 | B7: 2.1 | C7: 47 | D7: 75 | F7: 65 | G7: 65
A8: =IF(AND(ABS(INDEX_CALCULABLE!$C$16)*100>=INDEX_SEUIL!B8,ABS(INDEX_CALCULABLE!$C$16)*100<INDEX_SEUIL!B9),"Ind 1","") ->  | B8: 3.1 | C8: 46 | D8: 73 | F8: 64 | G8: 64 | I8: >>> Documentation explicative
A9: =IF(AND(ABS(INDEX_CALCULABLE!$C$16)*100>=INDEX_SEUIL!B9,ABS(INDEX_CALCULABLE!$C$16)*100<INDEX_SEUIL!B10),"Ind 1","") ->  | B9: 4.1 | C9: 45 | D9: 72 | F9: 63 | G9: 63
A10: =IF(AND(ABS(INDEX_CALCULABLE!$C$16)*100>=INDEX_SEUIL!B10,ABS(INDEX_CALCULABLE!$C$16)*100<INDEX_SEUIL!B11),"Ind 1","") ->  | B10: 5.1 | C10: 44 | D10: 70 | F10: 61 | G10: 61
A11: =IF(AND(ABS(INDEX_CALCULABLE!$C$16)*100>=INDEX_SEUIL!B11,ABS(INDEX_CALCULABLE!$C$16)*100<INDEX_SEUIL!B12),"Ind 1","") ->  | B11: 6.1 | C11: 43 | D11: 68 | F11: 60 | G11: 60
A12: =IF(AND(ABS(INDEX_CALCULABLE!$C$16)*100>=INDEX_SEUIL!B12,ABS(INDEX_CALCULABLE!$C$16)*100<INDEX_SEUIL!B13),"Ind 1","") ->  | B12: 7.1 | C12: 42 | D12: 67 | F12: 58 | G12: 58
A13: =IF(AND(ABS(INDEX_CALCULABLE!$C$16)*100>=INDEX_SEUIL!B13,ABS(INDEX_CALCULABLE!$C$16)*100<INDEX_SEUIL!B14),"Ind 1","") ->  | B13: 8.1 | C13: 40 | D13: 64 | F13: 56 | G13: 56
A14: =IF(AND(ABS(INDEX_CALCULABLE!$C$16)*100>=INDEX_SEUIL!B14,ABS(INDEX_CALCULABLE!$C$16)*100<INDEX_SEUIL!B15),"Ind 1","") ->  | B14: 9.1 | C14: 38 | D14: 60 | F14: 53 | G14: 53
A15: =IF(AND(ABS(INDEX_CALCULABLE!$C$16)*100>=INDEX_SEUIL!B15,ABS(INDEX_CALCULABLE!$C$16)*100<INDEX_SEUIL!B16),"Ind 1","") ->  | B15: 10.1 | C15: 36 | D15: 57 | F15: 50 | G15: 50
A16: =IF(AND(ABS(INDEX_CALCULABLE!$C$16)*100>=INDEX_SEUIL!B16,ABS(INDEX_CALCULABLE!$C$16)*100<INDEX_SEUIL!B17),"Ind 1","") ->  | B16: 11.1 | C16: 34 | D16: 54 | F16: 47 | G16: 47
A17: =IF(AND(ABS(INDEX_CALCULABLE!$C$16)*100>=INDEX_SEUIL!B17,ABS(INDEX_CALCULABLE!$C$16)*100<INDEX_SEUIL!B18),"Ind 1","") ->  | B17: 12.1 | C17: 32 | D17: 51 | F17: 44 | G17: 44
A18: =IF(AND(ABS(INDEX_CALCULABLE!$C$16)*100>=INDEX_SEUIL!B18,ABS(INDEX_CALCULABLE!$C$16)*100<INDEX_SEUIL!B19),"Ind 1","") ->  | B18: 13.1 | C18: 30 | D18: 48 | F18: 42 | G18: 42
A19: =IF(AND(ABS(INDEX_CALCULABLE!$C$16)*100>=INDEX_SEUIL!B19,ABS(INDEX_CALCULABLE!$C$16)*100<INDEX_SEUIL!B20),"Ind 1","") ->  | B19: 14.1 | C19: 28 | D19: 44 | F19: 39 | G19: 39
A20: =IF(AND(ABS(INDEX_CALCULABLE!$C$16)*100>=INDEX_SEUIL!B20,ABS(INDEX_CALCULABLE!$C$16)*100<INDEX_SEUIL!B21),"Ind 1","") ->  | B20: 15.1 | C20: 25 | D20: 40 | F20: 35 | G20: 35
A21: =IF(AND(ABS(INDEX_CALCULABLE!$C$16)*100>=INDEX_SEUIL!B21,ABS(INDEX_CALCULABLE!$C$16)*100<INDEX_SEUIL!B22),"Ind 1","") ->  | B21: 16.1 | C21: 22 | D21: 35 | F21: 30 | G21: 30
A22: =IF(AND(ABS(INDEX_CALCULABLE!$C$16)*100>=INDEX_SEUIL!B22,ABS(INDEX_CALCULABLE!$C$16)*100<INDEX_SEUIL!B23),"Ind 1","") ->  | B22: 17.1 | C22: 19 | D22: 30 | F22: 26 | G22: 26
A23: =IF(AND(ABS(INDEX_CALCULABLE!$C$16)*100>=INDEX_SEUIL!B23,ABS(INDEX_CALCULABLE!$C$16)*100<INDEX_SEUIL!B24),"Ind 1","") ->  | B23: 18.1 | C23: 16 | D23: 25 | F23: 22 | G23: 22
A24: =IF(AND(ABS(INDEX_CALCULABLE!$C$16)*100>=INDEX_SEUIL!B24,ABS(INDEX_CALCULABLE!$C$16)*100<INDEX_SEUIL!B25),"Ind 1","") ->  | B24: 19.1 | C24: 13 | D24: 20 | F24: 18 | G24: 18
A25: =IF(AND(ABS(INDEX_CALCULABLE!$C$16)*100>=INDEX_SEUIL!B25,ABS(INDEX_CALCULABLE!$C$16)*100<INDEX_SEUIL!B26),"Ind 1","") ->  | B25: 20.1 | C25: 10 | D25: 16 | F25: 14 | G25: 14
A26: =IF(AND(ABS(INDEX_CALCULABLE!$C$16)*100>=INDEX_SEUIL!B26,ABS(INDEX_CALCULABLE!$C$16)*100<INDEX_SEUIL!B27),"Ind 1","") ->  | B26: 22.1 | C26: 7 | D26: 11 | F26: 9 | G26: 9
A27: =IF(AND(ABS(INDEX_CALCULABLE!$C$16)*100>=INDEX_SEUIL!B27,ABS(INDEX_CALCULABLE!$C$16)*100<INDEX_SEUIL!B28),"Ind 1","") ->  | B27: 24.1 | C27: 4 | D27: 6 | F27: 5 | G27: 5
A28: =IF(AND(ABS(INDEX_CALCULABLE!$C$16)*100>=INDEX_SEUIL!B28,ABS(INDEX_CALCULABLE!$C$16)*100<INDEX_SEUIL!B29),"Ind 1","") ->  | B28: 27.1 | C28: 1 | D28: 1 | F28: 1 | G28: 1
A29: =IF(AND(ABS(INDEX_CALCULABLE!$C$16)*100>=INDEX_SEUIL!B29,ABS(INDEX_CALCULABLE!$C$16)*100<INDEX_SEUIL!B30),"Ind 1","") ->  | B29: 30.1 | C29: 0 | D29: 0 | F29: 0 | G29: 0
A30: =IF(AND(ABS(INDEX_CALCULABLE!$C$16)*100>=INDEX_SEUIL!B30,ABS(INDEX_CALCULABLE!$C$16)*100<INDEX_SEUIL!B31),"Ind 1","") ->  | B30: 100000
B31: Indicateur 2 : écart de rémunération contractuel (%)
A32: =IF(AND(ABS(INDEX_CALCULABLE!$L$16)*100>=INDEX_SEUIL!B32,ABS(INDEX_CALCULABLE!$L$16)*100<INDEX_SEUIL!B33),"Ind 2","") -> Ind 2 | B32: 0 | C32: 15 | E32: 80 | F32: 15
A33: =IF(AND(ABS(INDEX_CALCULABLE!$L$16)*100>=INDEX_SEUIL!B33,ABS(INDEX_CALCULABLE!$L$16)*100<INDEX_SEUIL!B34),"Ind 2","") ->  | B33: 3.1 | C33: 14 | E33: 74 | F33: 14
A34: =IF(AND(ABS(INDEX_CALCULABLE!$L$16)*100>=INDEX_SEUIL!B34,ABS(INDEX_CALCULABLE!$L$16)*100<INDEX_SEUIL!B35),"Ind 2","") ->  | B34: 4.5 | C34: 13 | E34: 69 | F34: 13
A35: =IF(AND(ABS(INDEX_CALCULABLE!$L$16)*100>=INDEX_SEUIL!B35,ABS(INDEX_CALCULABLE!$L$16)*100<INDEX_SEUIL!B36),"Ind 2","") ->  | B35: 6.1 | C35: 12 | E35: 64 | F35: 12
A36: =IF(AND(ABS(INDEX_CALCULABLE!$L$16)*100>=INDEX_SEUIL!B36,ABS(INDEX_CALCULABLE!$L$16)*100<INDEX_SEUIL!B37),"Ind 2","") ->  | B36: 8.1 | C36: 11 | E36: 58 | F36: 11
A37: =IF(AND(ABS(INDEX_CALCULABLE!$L$16)*100>=INDEX_SEUIL!B37,ABS(INDEX_CALCULABLE!$L$16)*100<INDEX_SEUIL!B38),"Ind 2","") ->  | B37: 10.1 | C37: 10 | E37: 53 | F37: 10
A38: =IF(AND(ABS(INDEX_CALCULABLE!$L$16)*100>=INDEX_SEUIL!B38,ABS(INDEX_CALCULABLE!$L$16)*100<INDEX_SEUIL!B39),"Ind 2","") ->  | B38: 12.1 | C38: 8 | E38: 42 | F38: 8
A39: =IF(AND(ABS(INDEX_CALCULABLE!$L$16)*100>=INDEX_SEUIL!B39,ABS(INDEX_CALCULABLE!$L$16)*100<INDEX_SEUIL!B40),"Ind 2","") ->  | B39: 14.1 | C39: 6 | E39: 32 | F39: 6
A40: =IF(AND(ABS(INDEX_CALCULABLE!$L$16)*100>=INDEX_SEUIL!B40,ABS(INDEX_CALCULABLE!$L$16)*100<INDEX_SEUIL!B41),"Ind 2","") ->  | B40: 15.1 | C40: 5 | E40: 26 | F40: 5
A41: =IF(AND(ABS(INDEX_CALCULABLE!$L$16)*100>=INDEX_SEUIL!B41,ABS(INDEX_CALCULABLE!$L$16)*100<INDEX_SEUIL!B42),"Ind 2","") ->  | B41: 17.1 | C41: 3 | E41: 16 | F41: 3
A42: =IF(AND(ABS(INDEX_CALCULABLE!$L$16)*100>=INDEX_SEUIL!B42,ABS(INDEX_CALCULABLE!$L$16)*100<INDEX_SEUIL!B43),"Ind 2","") ->  | B42: 18.1 | C42: 1 | E42: 5 | F42: 1
A43: =IF(AND(ABS(INDEX_CALCULABLE!$L$16)*100>=INDEX_SEUIL!B43,ABS(INDEX_CALCULABLE!$L$16)*100<INDEX_SEUIL!B44),"Ind 2","") ->  | B43: 19.1 | C43: 0 | E43: 0 | F43: 0
B44: 1000000
B45: Indicateur 3 : écart de taux de promotion
A46: =IF(AND(ABS(INDEX_CALCULABLE!$C$32)*100>=INDEX_SEUIL!B46,ABS(INDEX_CALCULABLE!$C$32)*100<INDEX_SEUIL!B47),"Ind 3","") ->  | B46: 0 | C46: 25 | G46: 15
A47: =IF(AND(ABS(INDEX_CALCULABLE!$C$32)*100>=INDEX_SEUIL!B47,ABS(INDEX_CALCULABLE!$C$32)*100<INDEX_SEUIL!B48),"Ind 3","") ->  | B47: 2.1 | C47: 17 | G47: 10
A48: =IF(AND(ABS(INDEX_CALCULABLE!$C$32)*100>=INDEX_SEUIL!B48,ABS(INDEX_CALCULABLE!$C$32)*100<INDEX_SEUIL!B49),"Ind 3","") ->  | B48: 3.1 | C48: 14 | G48: 8
A49: =IF(AND(ABS(INDEX_CALCULABLE!$C$32)*100>=INDEX_SEUIL!B49,ABS(INDEX_CALCULABLE!$C$32)*100<INDEX_SEUIL!B50),"Ind 3","") ->  | B49: 4.1 | C49: 11 | G49: 6
A50: =IF(AND(ABS(INDEX_CALCULABLE!$C$32)*100>=INDEX_SEUIL!B50,ABS(INDEX_CALCULABLE!$C$32)*100<INDEX_SEUIL!B51),"Ind 3","") ->  | B50: 5.1 | C50: 8 | G50: 4
A51: =IF(AND(ABS(INDEX_CALCULABLE!$C$32)*100>=INDEX_SEUIL!B51,ABS(INDEX_CALCULABLE!$C$32)*100<INDEX_SEUIL!B52),"Ind 3","") ->  | B51: 7.5 | C51: 4 | G51: 2
A52: =IF(AND(ABS(INDEX_CALCULABLE!$C$32)*100>=INDEX_SEUIL!B52,ABS(INDEX_CALCULABLE!$C$32)*100<INDEX_SEUIL!B53),"Ind 3","") -> Ind 3 | B52: 10.1 | C52: 0 | G52: 0
A53: =IF(AND(ABS(INDEX_CALCULABLE!$C$32)*100>=INDEX_SEUIL!B53,ABS(INDEX_CALCULABLE!$C$32)*100<INDEX_SEUIL!B54),"Ind 3","") ->  | B53: 1000000
B54: Indicateur 4 : nombre de salariés du sexe sous-représenté parmi les 10 plus hautes rémunérations
B55: plancher | C55: note
A56: =IF(MIN(INDEX_CALCULABLE!$N$22,INDEX_CALCULABLE!$N$24)=INDEX_SEUIL!B56,"Ind 4","") ->  | B56: 0 | C56: 0 | D56: 0 | E56: 0 | F56: 0 | G56: 0
A57: =IF(MIN(INDEX_CALCULABLE!$N$22,INDEX_CALCULABLE!$N$24)=INDEX_SEUIL!B57,"Ind 4","") ->  | B57: 1 | C57: 1 | D57: 2 | E57: 2 | F57: 1 | G57: 1
A58: =IF(MIN(INDEX_CALCULABLE!$N$22,INDEX_CALCULABLE!$N$24)=INDEX_SEUIL!B58,"Ind 4","") ->  | B58: 2 | C58: 4 | D58: 8 | E58: 8 | F58: 6 | G58: 6
A59: =IF(MIN(INDEX_CALCULABLE!$N$22,INDEX_CALCULABLE!$N$24)=INDEX_SEUIL!B59,"Ind 4","") ->  | B59: 3 | C59: 7 | D59: 14 | E59: 14 | F59: 10 | G59: 10
A60: =IF(MIN(INDEX_CALCULABLE!$N$22,INDEX_CALCULABLE!$N$24)=INDEX_SEUIL!B60,"Ind 4","") -> Ind 4 | B60: 4 | C60: 10 | D60: 20 | E60: 20 | F60: 15 | G60: 15
A61: =IF(MIN(INDEX_CALCULABLE!$N$22,INDEX_CALCULABLE!$N$24)=INDEX_SEUIL!B61,"Ind 4","") ->  | B61: 5 | C61: 10 | D61: 20 | E61: 20 | F61: 15 | G61: 15

Sheet res_ind1
F2: En € | I2: en % | L2: En €
F3: Total | G3: Traitement | H3: Primes | I3: Total | J3: Traitement | K3: Primes | L3: autres | M3: IFSE | N3: CIA | O3: NBI | P3: CTI | Q3: Heures sup
A4: Résultats en ETPR | B4: écart employeur F-H | F4: =SUMPRODUCT(C14:C42,E14:E42)/SUM(E14:E42)-SUMPRODUCT(B14:B42,D14:D42)/SUM(D14:D42) -> 181.1697325 | G4: =SUMPRODUCT(J14:J42,E14:E42)/SUM(E14:E42)-SUMPRODUCT(I14:I42,D14:D42)/SUM(D14:D42) -> 100.6808048 | H4: =SUMPRODUCT(N14:N42,E14:E42)/SUM(E14:E42)-SUMPRODUCT(M14:M42,D14:D42)/SUM(D14:D42) -> 80.48892766 | I4: =F4/$B$12 -> 0.06891073128 | J4: =G4/$B$12 -> 0.03829551323 | K4: 0.03061521806 | L4: =SUMPRODUCT(T14:T42,E14:E42)/SUM(E14:E42)-SUMPRODUCT(S14:S42,D14:D42)/SUM(D14:D42) -> -9.957852649 | M4: =SUMPRODUCT(V14:V42,E14:E42)/SUM(E14:E42)-SUMPRODUCT(U14:U42,D14:D42)/SUM(D14:D42) -> 90.90981445 | N4: =SUMPRODUCT(X14:X42,E14:E42)/SUM(E14:E42)-SUMPRODUCT(W14:W42,D14:D42)/SUM(D14:D42) -> 10.74319498 | O4: =SUMPRODUCT(Z14:Z42,E14:E42)/SUM(E14:E42)-SUMPRODUCT(Y14:Y42,D14:D42)/SUM(D14:D42) -> -0.541533916 | P4: =SUMPRODUCT(AB14:AB42,E14:E42)/SUM(E14:E42)-SUMPRODUCT(AA14:AA42,D14:D42)/SUM(D14:D42) -> 0 | Q4: =SUMPRODUCT(AD14:AD42,E14:E42)/SUM(E14:E42)-SUMPRODUCT(AC14:AC42,D14:D42)/SUM(D14:D42) -> -10.6646952
B5: dont effet inter filière/catégorie hiérarchique | F5: =SUM(G14:G42) -> 493.9263176 | G5: =SUM(K14:K42) -> 337.9081305 | H5: =SUM(O14:O42) -> 156.018187 | I5: =F5/$B$12 -> 0.1878725727 | J5: 0.1285286237 | K5: 0.05934394898 | L5: =SUM(AE14:AE42) -> 1.741457572 | M5: =SUM(AG14:AG42) -> 136.8536119 | N5: =SUM(AI14:AI42) -> 8.308118394 | O5: =SUM(AK14:AK42) -> 13.65027869 | P5: =SUM(AM14:AM42) -> 0 | Q5: =SUM(AO14:AO42) -> -4.535279535
B6: dont effet intra filière/catégorie hiérarchique | F6: =SUM(H14:H42) -> -312.7565851 | G6: =SUM(L14:L42) -> -237.2273257 | H6: =SUM(P14:P42) -> -75.52925937 | I6: -0.1189618414 | J6: -0.09023311052 | K6: -0.02872873092 | L6: =SUM(AF14:AF42) -> -11.69931022 | M6: =SUM(AH14:AH42) -> -45.94379746 | N6: =SUM(AJ14:AJ42) -> 2.435076587 | O6: =SUM(AL14:AL42) -> -14.19181261 | P6: =SUM(AN14:AN42) -> 0 | Q6: =SUM(AP14:AP42) -> -6.129415666
A8: Taux utilisé pour l'indicateur 1 | B8: =ABS(K6) -> 0.02872873092 | C8: il s'agit de l'écart en valeur absolu de prime par filière/catégorie | L8: >>> Documentation explicative | AE8: autres primes et indemnités mensuelles moyennes | AO8: heures supplémentaires ou complémentaires
B10: Rémunération totale (hors sur-rémunération outre-mer) | I10: dont partie traitement | M10: dont total indemnités et primes (hors sur-rémunération outre-mer) | S10: Décomposition primes et indemnités (hors sur-rémunération outre-mer) | AG10: IFSE | AI10: CIA | AK10: NBI | AM10: CTI
B11: rémunération mensuelle moyenne | D11: effectifs (en ETPR) | F11: part des femmes (ETPR) | G11: Part dans l'effet inter filière/ catégorie hiérarchique | H11: Part dans l'effet intra filière/ catégorie hiérarchique | I11: Traitement mensuel moyen | K11: Part dans l'effet inter filière/ catégorie hiérarchique | L11: Part dans l'effet intra filière/ catégorie hiérarchique | M11: Primes et indemnités mensuelles moyennes | O11: Part dans l'effet inter filière/ catégorie hiérarchique | P11: Part dans l'effet intra filière/ catégorie hiérarchique | Q11: part de primes | S11: autres primes et indemnités mensuelles moyennes | U11: IFSE | W11: CIA | Y11: NBI | AA11: CTI | AC11: heures supplémentaires ou complémentaires | AE11: Part dans l'effet inter filière/ catégorie hiérarchique | AF11: Part dans l'effet intra filière/ catégorie hiérarchique | AG11: Part dans l'effet inter filière/ catégorie hiérarchique | AH11: Part dans l'effet intra filière/ catégorie hiérarchique | AI11: Part dans l'effet inter filière/ catégorie hiérarchique | AJ11: Part dans l'effet intra filière/ catégorie hiérarchique | AK11: Part dans l'effet inter filière/ catégorie hiérarchique | AL11: Part dans l'effet intra filière/ catégorie hiérarchique | AM11: Part dans l'effet inter filière/ catégorie hiérarchique | AN11: Part dans l'effet intra filière/ catégorie hiérarchique | AO11: Part dans l'effet inter filière/ catégorie hiérarchique | AP11: Part dans l'effet intra filière/ catégorie hiérarchique
A12: Totaux en ligne -> | B12: =SUMPRODUCT(B14:B42,D14:D42)/SUM(D14:D42) -> 2629.049629 | C12: =SUMPRODUCT(C14:C42,E14:E42)/SUM(E14:E42) -> 2810.219361 | D12: =SUM(D14:D42) -> 209.69 | E12: =SUM(E14:E42) -> 146.03 | F12: =SUM(E14:E42)/SUM(D14:E42) -> 0.4105195097 | I12: =SUMPRODUCT(I14:I42,D14:D42)/SUM(D14:D42) -> 2047.046831 | J12: =SUMPRODUCT(J14:J42,E14:E42)/SUM(E14:E42) -> 2147.727636 | M12: =SUMPRODUCT(M14:M42,D14:D42)/SUM(D14:D42) -> 582.0027978 | N12: =SUMPRODUCT(N14:N42,E14:E42)/SUM(E14:E42) -> 662.4917254 | Q12: =M12/B12 -> 0.2213738346 | R12: =N12/C12 -> 0.2357437766 | S12: =SUMPRODUCT(S14:S42,D14:D42)/SUM(D14:D42) -> 70.80094425 | T12: =SUMPRODUCT(T14:T42,E14:E42)/SUM(E14:E42) -> 60.8430916 | U12: =SUMPRODUCT(U14:U42,D14:D42)/SUM(D14:D42) -> 433.1366144 | V12: =SUMPRODUCT(V14:V42,E14:E42)/SUM(E14:E42) -> 524.0464288 | W12: =SUMPRODUCT(W14:W42,D14:D42)/SUM(D14:D42) -> 40.55391292 | X12: =SUMPRODUCT(X14:X42,E14:E42)/SUM(E14:E42) -> 51.2971079 | Y12: =SUMPRODUCT(Y14:Y42,D14:D42)/SUM(D14:D42) -> 21.0533009 | Z12: =SUMPRODUCT(Z14:Z42,E14:E42)/SUM(E14:E42) -> 20.51176699 | AA12: =SUMPRODUCT(AA14:AA42,D14:D42)/SUM(D14:D42) -> 0 | AB12: =SUMPRODUCT(AB14:AB42,E14:E42)/SUM(E14:E42) -> 0 | AC12: =SUMPRODUCT(AC14:AC42,D14:D42)/SUM(D14:D42) -> 16.45802534 | AD12: =SUMPRODUCT(AD14:AD42,E14:E42)/SUM(E14:E42) -> 5.793330138
A13: Filière/catégorie hiérarchique de l'employeur | B13: hommes | C13: femmes | D13: hommes | E13: femmes | I13: hommes | J13: femmes | M13: hommes | N13: femmes | Q13: hommes | R13: femmes | S13: hommes | T13: femmes | U13: hommes | V13: femmes | W13: hommes | X13: femmes | Y13: hommes | Z13: femmes | AA13: hommes | AB13: femmes | AC13: hommes | AD13: femmes
A14: Filière administrative - catégorie A | B14: =source_tot!B4 -> 6374.791667 | C14: =source_tot!C4 -> 4182.878175 | D14: =source_tot!U4 -> 2 | E14: =source_tot!V4 -> 14.83 | F14: =IF(D14+E14<>0,E14/(D14+E14),0) -> 0.881164587 | G14: =(C14-($B$12*$D$12+$C$12*$E$12)/($D$12+$E$12))*E14/SUM($E$14:$E$42)-(B14-($B$12*$D$12+$C$12*$E$12)/($D$12+$E$12))*D14/SUM($D$14:$D$42)-H14 -> 218.9330465 | H14: =IF(OR(D14=0,E14=0),0,(C14-B14)*(D14+E14)/SUM($D$14:$E$42)) -> -103.7048917 | I14: =source_tot!D4 -> 4104.708333 | J14: =source_tot!E4 -> 2913.795235 | K14: =(J14-($I$12*$D$12+$J$12*$E$12)/($D$12+$E$12))*E14/SUM($E$14:$E$42)-(I14-($I$12*$D$12+$J$12*$E$12)/($D$12+$E$12))*D14/SUM($D$14:$D$42)-L14 -> 120.9383217 | L14: =IF(OR(D14=0,E14=0),0,(J14-I14)*(D14+E14)/SUM($D$14:$E$42)) -> -56.3450676 | M14: =source_tot!F4 -> 2270.083333 | N14: =source_tot!G4 -> 1269.08294 | O14: =(N14-($M$12*$D$12+$N$12*$E$12)/($D$12+$E$12))*E14/SUM($E$14:$E$42)-(M14-($M$12*$D$12+$N$12*$E$12)/($D$12+$E$12))*D14/SUM($D$14:$D$42)-P14 -> 97.99472471 | P14: =IF(OR(D14=0,E14=0),0,(N14-M14)*(D14+E14)/SUM($D$14:$E$42)) -> -47.35982408 | Q14: =IF(M14<>0,M14/B14,0) -> 0.3561031406 | R14: =IF(N14<>0,N14/C14,0) -> 0.3033994506 | S14: =source_tot!H4 -> 289.5416667 | T14: =source_tot!I4 -> 61.71611598 | U14: =source_tot!J4 -> 1655 | V14: =source_tot!K4 -> 1050.854125 | W14: =source_tot!L4 -> 93.875 | X14: =source_tot!M4 -> 114.4133513 | Y14: =source_tot!N4 -> 231.6666667 | Z14: =source_tot!O4 -> 42.09934817 | AA14: =source_tot!P4 -> 0 | AB14: =source_tot!Q4 -> 0 | AC14: =source_tot!R4 -> 0 | AD14: =source_tot!S4 -> 0 | AE14: =(T14-($S$12*$D$12+$T$12*$E$12)/($D$12+$E$12))*E14/SUM($E$14:$E$42)-(S14-($S$12*$D$12+$T$12*$E$12)/($D$12+$E$12))*D14/SUM($D$14:$D$42)-AF14 -> 8.146218949 | AF14: =IF(OR(D14=0,E14=0),0,(T14-S14)*(D14+E14)/SUM($D$14:$E$42)) -> -10.77899477 | AG14: =(V14-($U$12*$D$12+$V$12*$E$12)/($D$12+$E$12))*E14/SUM($E$14:$E$42)-(U14-($U$12*$D$12+$V$12*$E$12)/($D$12+$E$12))*D14/SUM($D$14:$D$42)-AH14 -> 76.22754511 | AH14: =IF(OR(D14=0,E14=0),0,(V14-U14)*(D14+E14)/SUM($D$14:$E$42)) -> -28.58364749 | AI14: =(X14-($W$12*$D$12+$X$12*$E$12)/($D$12+$E$12))*E14/SUM($E$14:$E$42)-(W14-($W$12*$D$12+$X$12*$E$12)/($D$12+$E$12))*D14/SUM($D$14:$D$42)-AJ14 -> 5.614645339 | AJ14: =IF(OR(D14=0,E14=0),0,(X14-W14)*(D14+E14)/SUM($D$14:$E$42)) -> 0.9717206022 | AK14: =(Z14-($Y$12*$D$12+$Z$12*$E$12)/($D$12+$E$12))*E14/SUM($E$14:$E$42)-(Y14-($Y$12*$D$12+$Z$12*$E$12)/($D$12+$E$12))*D14/SUM($D$14:$D$42)-AL14 -> 9.117871976 | AL14: =IF(OR(D14=0,E14=0),0,(Z14-Y14)*(D14+E14)/SUM($D$14:$E$42)) -> -8.968902424 | AM14: =(AB14-($AA$12*$D$12+$AB$12*$E$12)/($D$12+$E$12))*E14/SUM($E$14:$E$42)-(AA14-($AA$12*$D$12+$AB$12*$E$12)/($D$12+$E$12))*D14/SUM($D$14:$D$42)-AN14 -> 0 | AN14: =IF(OR(D14=0,E14=0),0,(AB14-AA14)*(D14+E14)/SUM($D$14:$E$42)) -> 0 | AO14: =(AD14-($AC$12*$D$12+$AD$12*$E$12)/($D$12+$E$12))*E14/SUM($E$14:$E$42)-(AC14-($AC$12*$D$12+$AD$12*$E$12)/($D$12+$E$12))*D14/SUM($D$14:$D$42)-AP14 -> -1.111556667 | AP14: =IF(OR(D14=0,E14=0),0,(AD14-AC14)*(D14+E14)/SUM($D$14:$E$42)) -> 0
A15: Filière administrative - catégorie B | B15: =source_tot!B5 -> 2992.405063 | C15: =source_tot!C5 -> 2778.961136 | D15: =source_tot!U5 -> 5.53 | E15: =source_tot!V5 -> 8.92 | F15: =IF(D15+E15<>0,E15/(D15+E15),0) -> 0.6173010381 | G15: 5.663483116 | H15: -8.670484508 | I15: =source_tot!D5 -> 2073.327306 | J15: =source_tot!E5 -> 2030.325112 | K15: =(J15-($I$12*$D$12+$J$12*$E$12)/($D$12+$E$12))*E15/SUM($E$14:$E$42)-(I15-($I$12*$D$12+$J$12*$E$12)/($D$12+$E$12))*D15/SUM($D$14:$D$42)-L15 -> -1.40232446 | L15: -1.746828112 | M15: =source_tot!F5 -> 919.0777577 | N15: =source_tot!G5 -> 748.6360239 | O15: =(N15-($M$12*$D$12+$N$12*$E$12)/($D$12+$E$12))*E15/SUM($E$14:$E$42)-(M15-($M$12*$D$12+$N$12*$E$12)/($D$12+$E$12))*D15/SUM($D$14:$D$42)-P15 -> 7.065807576 | P15: -6.923656395 | Q15: =IF(M15<>0,M15/B15,0) -> 0.3071368141 | R15: 0.2693942043 | S15: =source_tot!H5 -> 119.5298373 | T15: =source_tot!I5 -> 56.34342302 | U15: =source_tot!J5 -> 672.1820374 | V15: =source_tot!K5 -> 594.0396114 | W15: =source_tot!L5 -> 68.1283906 | X15: =source_tot!M5 -> 67.88116592 | Y15: =source_tot!N5 -> 26.41651597 | Z15: =source_tot!O5 -> 5.465246637 | AA15: =source_tot!P5 -> 0 | AB15: =source_tot!Q5 -> 0 | AC15: =source_tot!R5 -> 32.82097649 | AD15: =source_tot!S5 -> 24.90657698 | AE15: 0.540438506 | AF15: -2.566748245 | AG15: 5.403186191 | AH15: -3.174288924 | AI15: 0.7989952333 | AJ15: -0.01004272065 | AK15: -0.2348148428 | AL15: -0.8510790563 | AM15: 0 | AN15: 0 | AO15: 0.5580024887 | AP15: -0.3214974501
A16: Filière administrative - catégorie C | B16: =source_tot!B6 -> 4117.291667 | C16: =source_tot!C6 -> 2439.219858 | D16: =source_tot!U6 -> 2 | E16: =source_tot!V6 -> 28.2 | F16: 0.9337748344 | G16: 77.95941495 | H16: -142.465334 | I16: =source_tot!D6 -> 3651.166667 | J16: =source_tot!E6 -> 1959.140071 | K16: 103.7870505 | L16: -143.6500708 | M16: =source_tot!F6 -> 466.125 | N16: =source_tot!G6 -> 480.0797872 | O16: -25.82763554 | P16: 1.1847368 | Q16: 0.1132115569 | R16: 0.1968169395 | S16: =source_tot!H6 -> 12.125 | T16: =source_tot!I6 -> 56.95921986 | U16: =source_tot!J6 -> 425.0416667 | V16: =source_tot!K6 -> 361.6223404 | W16: =source_tot!L6 -> 21 | X16: =source_tot!M6 -> 31.84397163 | Y16: =source_tot!N6 -> 0 | Z16: =source_tot!O6 -> 16.29432624 | AA16: =source_tot!P6 -> 0 | AB16: =source_tot!Q6 -> 0 | AC16: =source_tot!R6 -> 7.958333333 | AD16: =source_tot!S6 -> 13.35992908 | AE16: -5.169263544 | AF16: 3.806346114 | AG16: -15.19979074 | AH16: -5.384188835 | AI16: -3.225727386 | AJ16: 0.9206340472 | AK16: -2.060755674 | AL16: 1.383359531 | AM16: 0 | AN16: 0 | AO16: -0.1720981898 | AP16: 0.4585859426
A17: Filière technique - catégorie A | B17: =source_tot!B7 -> 4632.119095 | C17: =source_tot!C7 -> 4802.62931 | D17: =source_tot!U7 -> 5.01 | E17: =source_tot!V7 -> 5.8 | F17: 0.5365402405 | G17: 32.11314021 | H17: 5.181646875 | I17: =source_tot!D7 -> 3045.658683 | J17: =source_tot!E7 -> 3119.324713 | K17: 15.83661218 | L17: 2.238642147 | M17: =source_tot!F7 -> 1586.460413 | N17: =source_tot!G7 -> 1683.304598 | O17: 16.27652803 | P17: 2.943004728 | Q17: 0.3424912831 | R17: 0.3504964654 | S17: =source_tot!H7 -> 194.2947438 | T17: =source_tot!I7 -> 71.49425287 | U17: =source_tot!J7 -> 1222.754491 | V17: =source_tot!K7 -> 1412.844828 | W17: =source_tot!L7 -> 114.8868929 | X17: =source_tot!M7 -> 142.3563218 | Y17: =source_tot!N7 -> 48.76912841 | Z17: =source_tot!O7 -> 56.6091954 | AA17: =source_tot!P7 -> 0 | AB17: =source_tot!Q7 -> 0 | AC17: =source_tot!R7 -> 5.755156354 | AD17: =source_tot!S7 -> 0 | AE17: 0.873457405 | AF17: -3.731792723 | AG17: 13.67876513 | AH17: 5.776668555 | AI17: 1.362814969 | AJ17: 0.834770401 | AK17: 0.5152720887 | AL17: 0.2382523451 | AM17: 0 | AN17: 0 | AO17: -0.1537815652 | AP17: -0.1748938496
A18: Filière technique - catégorie B | B18: =source_tot!B8 -> 3102.119883 | C18: =source_tot!C8 -> 2946.527778 | D18: =source_tot!U8 -> 18.24 | E18: =source_tot!V8 -> 3 | F18: 0.1412429379 | G18: -20.39618118 | H18: -9.290386584 | I18: =source_tot!D8 -> 2265.346308 | J18: =source_tot!E8 -> 2259.555556 | K18: -11.53127839 | L18: -0.3457651864 | M18: =source_tot!F8 -> 836.7735746 | N18: =source_tot!G8 -> 686.9722222 | O18: -8.864902795 | P18: -8.944621398 | Q18: 0.2697425006 | R18: 0.2331463587 | S18: =source_tot!H8 -> 53.9747807 | T18: =source_tot!I8 -> 0 | U18: =source_tot!J8 -> 678.4493787 | V18: =source_tot!K8 -> 622.2777778 | W18: =source_tot!L8 -> 60.00091374 | X18: =source_tot!M8 -> 64.69444444 | Y18: =source_tot!N8 -> 24.3877924 | Z18: =source_tot!O8 -> 0 | AA18: =source_tot!P8 -> 0 | AB18: =source_tot!Q8 -> 0 | AC18: =source_tot!R8 -> 19.96070906 | AD18: =source_tot!S8 -> 0 | AE18: 2.960338885 | AF18: -3.222827904 | AG18: -11.6193764 | AH18: -3.353999783 | AI18: -1.182894028 | AJ18: 0.2802501746 | AK18: 0.7188557836 | AL18: -1.456192259 | AM18: 0 | AN18: 0 | AO18: 0.2581729639 | AP18: -1.191851626
A19: Filière technique - catégorie C | B19: =source_tot!B9 -> 2453.223893 | C19: =source_tot!C9 -> 2356.743879 | D19: =source_tot!U9 -> 175.59 | E19: =source_tot!V9 -> 23.96 | F19: 0.1200701579 | G19: 206.7528916 | H19: -54.12286858 | I19: =source_tot!D9 -> 1954.475388 | J19: =source_tot!E9 -> 1882.526433 | K19: 118.7136963 | L19: -40.36155946 | M19: =source_tot!F9 -> 498.748505 | N19: =source_tot!G9 -> 474.2174457 | O19: 88.03919531 | P19: -13.76130913 | Q19: 0.2033032967 | R19: 0.2012172175 | S19: =source_tot!H9 -> 65.82664161 | T19: =source_tot!I9 -> 75.42431831 | U19: =source_tot!J9 -> 363.9657725 | V19: =source_tot!K9 -> 345.6594324 | W19: =source_tot!L9 -> 35.28627295 | X19: =source_tot!M9 -> 33.27420701 | Y19: =source_tot!N9 -> 17.37760313 | Z19: =source_tot!O9 -> 12.59738453 | AA19: =source_tot!P9 -> 0 | AB19: =source_tot!Q9 -> 0 | AC19: =source_tot!R9 -> 16.29221482 | AD19: =source_tot!S9 -> 7.262103506 | AE19: -3.212486242 | AF19: 5.384055958 | AG19: 78.96655431 | AH19: -10.26939778 | AI19: 7.314768202 | AJ19: -1.128718535 | AK19: 4.222440798 | AL19: -2.681582766 | AM19: 0 | AN19: 0 | AO19: 0.7479182402 | AP19: -5.065666008
A20: Filière culturelle - catégorie A | B20: =source_tot!B10 -> 0 | C20: =source_tot!C10 -> 5130.833333 | D20: =source_tot!U10 -> 0 | E20: =source_tot!V10 -> 1 | F20: 1 | G20: 16.62268024 | H20: 0 | I20: =source_tot!D10 -> 0 | J20: =source_tot!E10 -> 3641.166667 | K20: 10.63335206 | L20: 0 | M20: =source_tot!F10 -> 0 | N20: =source_tot!G10 -> 1489.666667 | O20: 5.989328178 | P20: 0 | Q20: 0 | R20: 0.2903362027 | S20: =source_tot!H10 -> 0 | T20: =source_tot!I10 -> 136.8333333 | U20: =source_tot!J10 -> 0 | V20: =source_tot!K10 -> 1101 | W20: =source_tot!L10 -> 0 | X20: =source_tot!M10 -> 115 | Y20: =source_tot!N10 -> 0 | Z20: =source_tot!O10 -> 136.8333333 | AA20: =source_tot!P10 -> 0 | AB20: =source_tot!Q10 -> 0 | AC20: =source_tot!R10 -> 0 | AD20: =source_tot!S10 -> 0 | AE20: 0.4801772367 | AF20: 0 | AG20: 4.317901343 | AH20: 0 | AI20: 0.4795986848 | AJ20: 0 | AK20: 0.7943733662 | AL20: 0 | AM20: 0 | AN20: 0 | AO20: -0.08272245356 | AP20: 0
A21: Filière culturelle - catégorie B | B21: =source_tot!B11 -> 3072.916667 | C21: =source_tot!C11 -> 3499.732143 | D21: =source_tot!U11 -> 0.32 | E21: =source_tot!V11 -> 2.8 | F21: 0.8974358974 | G21: 10.9610941 | H21: 3.7435744 | I21: =source_tot!D11 -> 2259.635417 | J21: =source_tot!E11 -> 2616.39881 | K21: 6.733840426 | L21: 3.12915154 | M21: =source_tot!F11 -> 813.28125 | N21: =source_tot!G11 -> 883.3333333 | O21: 4.227253669 | P21: 0.6144228607 | Q21: 0.2646610169 | R21: 0.2524002687 | S21: =source_tot!H11 -> 52.34375 | T21: =source_tot!I11 -> 41.13095238 | U21: =source_tot!J11 -> 710.9375 | V21: =source_tot!K11 -> 733.1845238 | W21: =source_tot!L11 -> 0 | X21: =source_tot!M11 -> 70.11904762 | Y21: =source_tot!N11 -> 50 | Z21: =source_tot!O11 -> 38.89880952 | AA21: =source_tot!P11 -> 0 | AB21: =source_tot!Q11 -> 0 | AC21: =source_tot!R11 -> 0 | AD21: =source_tot!S11 -> 0 | AE21: -0.3702395454 | AF21: -0.09834681371 | AG21: 4.47546167 | AH21: 0.1951273875 | AI21: -0.06406947476 | AJ21: 0.6150102006 | AK21: 0.3992891186 | AL21: -0.09736791377 | AM21: 0 | AN21: 0 | AO21: -0.2131880988 | AP21: 0
A22: Filière culturelle - catégorie C | B22: =source_tot!B12 -> 0 | C22: =source_tot!C12 -> 2239.751344 | D22: =source_tot!U12 -> 0 | E22: =source_tot!V12 -> 7.44 | F22: 1 | G22: -23.62336259 | H22: 0 | I22: =source_tot!D12 -> 0 | J22: =source_tot!E12 -> 1774.238351 | K22: -16.00493709 | L22: 0 | M22: =source_tot!F12 -> 0 | N22: =source_tot!G12 -> 465.5129928 | O22: -7.6184255 | P22: 0 | Q22: 0 | R22: 0.2078413722 | S22: =source_tot!H12 -> 0 | T22: =source_tot!I12 -> 99.19354839 | U22: =source_tot!J12 -> 0 | V22: =source_tot!K12 -> 296.5725806 | W22: =source_tot!L12 -> 0 | X22: =source_tot!M12 -> 28.43862007 | Y22: =source_tot!N12 -> 0 | Z22: =source_tot!O12 -> 38.79928315 | AA22: =source_tot!P12 -> 0 | AB22: =source_tot!Q12 -> 0 | AC22: =source_tot!R12 -> 0 | AD22: =source_tot!S12 -> 2.508960573 | AE22: 1.654830494 | AF22: 0 | AG22: -8.859132296 | AH22: 0 | AI22: -0.8419526456 | AJ22: 0 | AK22: 0.9154563864 | AL22: 0 | AM22: 0 | AN22: 0 | AO22: -0.4876274392 | AP22: 0
A23: Filière sportive - catégorie A | B23: =source_tot!B13 -> 0 | C23: =source_tot!C13 -> 0 | D23: =source_tot!U13 -> 0 | E23: =source_tot!V13 -> 0 | F23: 0 | G23: 0 | H23: 0 | I23: =source_tot!D13 -> 0 | J23: =source_tot!E13 -> 0 | K23: 0 | L23: 0 | M23: =source_tot!F13 -> 0 | N23: =source_tot!G13 -> 0 | O23: 0 | P23: 0 | Q23: 0 | R23: 0 | S23: =source_tot!H13 -> 0 | T23: =source_tot!I13 -> 0 | U23: =source_tot!J13 -> 0 | V23: =source_tot!K13 -> 0 | W23: =source_tot!L13 -> 0 | X23: =source_tot!M13 -> 0 | Y23: =source_tot!N13 -> 0 | Z23: =source_tot!O13 -> 0 | AA23: =source_tot!P13 -> 0 | AB23: =source_tot!Q13 -> 0 | AC23: =source_tot!R13 -> 0 | AD23: =source_tot!S13 -> 0 | AE23: 0 | AF23: 0 | AG23: 0 | AH23: 0 | AI23: 0 | AJ23: 0 | AK23: 0 | AL23: 0 | AM23: 0 | AN23: 0 | AO23: 0 | AP23: 0
A24: Filière sportive - catégorie B | B24: =source_tot!B14 -> 0 | C24: =source_tot!C14 -> 0 | D24: =source_tot!U14 -> 0 | E24: =source_tot!V14 -> 0 | F24: 0 | G24: 0 | H24: 0 | I24: =source_tot!D14 -> 0 | J24: =source_tot!E14 -> 0 | K24: 0 | L24: 0 | M24: =source_tot!F14 -> 0 | N24: =source_tot!G14 -> 0 | O24: 0 | P24: 0 | Q24: 0 | R24: 0 | S24: =source_tot!H14 -> 0 | T24: =source_tot!I14 -> 0 | U24: =source_tot!J14 -> 0 | V24: =source_tot!K14 -> 0 | W24: =source_tot!L14 -> 0 | X24: =source_tot!M14 -> 0 | Y24: =source_tot!N14 -> 0 | Z24: =source_tot!O14 -> 0 | AA24: =source_tot!P14 -> 0 | AB24: =source_tot!Q14 -> 0 | AC24: =source_tot!R14 -> 0 | AD24: =source_tot!S14 -> 0 | AE24: 0 | AF24: 0 | AG24: 0 | AH24: 0 | AI24: 0 | AJ24: 0 | AK24: 0 | AL24: 0 | AM24: 0 | AN24: 0 | AO24: 0 | AP24: 0
A25: Filière sportive - catégorie C | B25: =source_tot!B15 -> 0 | C25: =source_tot!C15 -> 0 | D25: =source_tot!U15 -> 0 | E25: =source_tot!V15 -> 0 | F25: 0 | G25: 0 | H25: 0 | I25: =source_tot!D15 -> 0 | J25: =source_tot!E15 -> 0 | K25: 0 | L25: 0 | M25: =source_tot!F15 -> 0 | N25: =source_tot!G15 -> 0 | O25: 0 | P25: 0 | Q25: 0 | R25: 0 | S25: =source_tot!H15 -> 0 | T25: =source_tot!I15 -> 0 | U25: =source_tot!J15 -> 0 | V25: =source_tot!K15 -> 0 | W25: =source_tot!L15 -> 0 | X25: =source_tot!M15 -> 0 | Y25: =source_tot!N15 -> 0 | Z25: =source_tot!O15 -> 0 | AA25: =source_tot!P15 -> 0 | AB25: =source_tot!Q15 -> 0 | AC25: =source_tot!R15 -> 0 | AD25: =source_tot!S15 -> 0 | AE25: 0 | AF25: 0 | AG25: 0 | AH25: 0 | AI25: 0 | AJ25: 0 | AK25: 0 | AL25: 0 | AM25: 0 | AN25: 0 | AO25: 0 | AP25: 0
A26: Filière sociale - catégorie A | B26: =source_tot!B16 -> 0 | C26: =source_tot!C16 -> 3399.133811 | D26: =source_tot!U16 -> 0 | E26: =source_tot!V16 -> 8.37 | F26: 1 | G26: 39.87602997 | H26: 0 | I26: =source_tot!D16 -> 0 | J26: =source_tot!E16 -> 2501.304261 | K26: 23.66767502 | L26: 0 | M26: =source_tot!F16 -> 0 | N26: =source_tot!G16 -> 897.82955 | O26: 16.20835495 | P26: 0 | Q26: 0 | R26: 0.2641348061 | S26: =source_tot!H16 -> 0 | T26: =source_tot!I16 -> 72.50099562 | U26: =source_tot!J16 -> 0 | V26: =source_tot!K16 -> 737.5248905 | W26: =source_tot!L16 -> 0 | X26: =source_tot!M16 -> 53.20589407 | Y26: =source_tot!N16 -> 0 | Z26: =source_tot!O16 -> 34.59776981 | AA26: =source_tot!P16 -> 0 | AB26: =source_tot!Q16 -> 0 | AC26: =source_tot!R16 -> 0 | AD26: =source_tot!S16 -> 0 | AE26: 0.3317475353 | AF26: 0 | AG26: 15.30753515 | AH26: 0 | AI26: 0.4723888611 | AJ26: 0 | AK26: 0.789070338 | AL26: 0 | AM26: 0 | AN26: 0 | AO26: -0.6923869363 | AP26: 0
A27: Filière sociale - catégorie B | B27: =source_tot!B17 -> 0 | C27: =source_tot!C17 -> 0 | D27: =source_tot!U17 -> 0 | E27: =source_tot!V17 -> 0 | F27: 0 | G27: 0 | H27: 0 | I27: =source_tot!D17 -> 0 | J27: =source_tot!E17 -> 0 | K27: 0 | L27: 0 | M27: =source_tot!F17 -> 0 | N27: =source_tot!G17 -> 0 | O27: 0 | P27: 0 | Q27: 0 | R27: 0 | S27: =source_tot!H17 -> 0 | T27: =source_tot!I17 -> 0 | U27: =source_tot!J17 -> 0 | V27: =source_tot!K17 -> 0 | W27: =source_tot!L17 -> 0 | X27: =source_tot!M17 -> 0 | Y27: =source_tot!N17 -> 0 | Z27: =source_tot!O17 -> 0 | AA27: =source_tot!P17 -> 0 | AB27: =source_tot!Q17 -> 0 | AC27: =source_tot!R17 -> 0 | AD27: =source_tot!S17 -> 0 | AE27: 0 | AF27: 0 | AG27: 0 | AH27: 0 | AI27: 0 | AJ27: 0 | AK27: 0 | AL27: 0 | AM27: 0 | AN27: 0 | AO27: 0 | AP27: 0
A28: Filière sociale - catégorie C | B28: =source_tot!B18 -> 0 | C28: =source_tot!C18 -> 0 | D28: =source_tot!U18 -> 0 | E28: =source_tot!V18 -> 0 | F28: 0 | G28: 0 | H28: 0 | I28: =source_tot!D18 -> 0 | J28: =source_tot!E18 -> 0 | K28: 0 | L28: 0 | M28: =source_tot!F18 -> 0 | N28: =source_tot!G18 -> 0 | O28: 0 | P28: 0 | Q28: 0 | R28: 0 | S28: =source_tot!H18 -> 0 | T28: =source_tot!I18 -> 0 | U28: =source_tot!J18 -> 0 | V28: =source_tot!K18 -> 0 | W28: =source_tot!L18 -> 0 | X28: =source_tot!M18 -> 0 | Y28: =source_tot!N18 -> 0 | Z28: =source_tot!O18 -> 0 | AA28: =source_tot!P18 -> 0 | AB28: =source_tot!Q18 -> 0 | AC28: =source_tot!R18 -> 0 | AD28: =source_tot!S18 -> 0 | AE28: 0 | AF28: 0 | AG28: 0 | AH28: 0 | AI28: 0 | AJ28: 0 | AK28: 0 | AL28: 0 | AM28: 0 | AN28: 0 | AO28: 0 | AP28: 0
A29: Filière médico-sociale - catégorie A | B29: =source_tot!B19 -> 0 | C29: =source_tot!C19 -> 4039.758567 | D29: =source_tot!U19 -> 0 | E29: =source_tot!V19 -> 2.14 | F29: 1 | G29: 19.5833554 | H29: 0 | I29: =source_tot!D19 -> 0 | J29: =source_tot!E19 -> 2984.11215 | K29: 13.12655284 | L29: 0 | M29: =source_tot!F19 -> 0 | N29: =source_tot!G19 -> 1055.646417 | O29: 6.456802556 | P29: 0 | Q29: 0 | R29: 0.2613142345 | S29: =source_tot!H19 -> 0 | T29: =source_tot!I19 -> 99.29906542 | U29: =source_tot!J19 -> 0 | V29: =source_tot!K19 -> 818.1074766 | W29: =source_tot!L19 -> 0 | X29: =source_tot!M19 -> 76.75233645 | Y29: =source_tot!N19 -> 0 | Z29: =source_tot!O19 -> 61.48753894 | AA29: =source_tot!P19 -> 0 | AB29: =source_tot!Q19 -> 0 | AC29: =source_tot!R19 -> 0 | AD29: =source_tot!S19 -> 0 | AE29: 0.4775324924 | AF29: 0 | AG29: 5.094653872 | AH29: 0 | AI29: 0.4658399187 | AJ29: 0 | AK29: 0.5958023235 | AL29: 0 | AM29: 0 | AN29: 0 | AO29: -0.1770260506 | AP29: 0
A30: Filière médico-sociale - catégorie B | B30: =source_tot!B20 -> 0 | C30: =source_tot!C20 -> 2404.711307 | D30: =source_tot!U20 -> 0 | E30: =source_tot!V20 -> 24.94 | F30: 1 | G30: -51.01607933 | H30: 0 | I30: =source_tot!D20 -> 0 | J30: =source_tot!E20 -> 1965.881449 | K30: -20.92084238 | L30: 0 | M30: =source_tot!F20 -> 0 | N30: =source_tot!G20 -> 438.8298583 | O30: -30.09523695 | P30: 0 | Q30: 0 | R30: 0.1824875431 | S30: =source_tot!H20 -> 0 | T30: =source_tot!I20 -> 39.68190323 | U30: =source_tot!J20 -> 0 | V30: =source_tot!K20 -> 357.695135 | W30: =source_tot!L20 -> 0 | X30: =source_tot!M20 -> 33.83787757 | Y30: =source_tot!N20 -> 0 | Z30: =source_tot!O20 -> 7.614942529 | AA30: =source_tot!P20 -> 0 | AB30: =source_tot!Q20 -> 0 | AC30: =source_tot!R20 -> 0 | AD30: =source_tot!S20 -> 0 | AE30: -4.616563972 | AF30: 0 | AG30: -19.25821812 | AH30: 0 | AI30: -1.90022997 | AJ30: 0 | AK30: -2.257126896 | AL30: 0 | AM30: 0 | AN30: 0 | AO30: -2.063097992 | AP30: 0
A31: Filière médico-sociale - catégorie C | B31: =source_tot!B21 -> 0 | C31: =source_tot!C21 -> 0 | D31: =source_tot!U21 -> 0 | E31: =source_tot!V21 -> 0 | F31: 0 | G31: 0 | H31: 0 | I31: =source_tot!D21 -> 0 | J31: =source_tot!E21 -> 0 | K31: 0 | L31: 0 | M31: =source_tot!F21 -> 0 | N31: =source_tot!G21 -> 0 | O31: 0 | P31: 0 | Q31: 0 | R31: 0 | S31: =source_tot!H21 -> 0 | T31: =source_tot!I21 -> 0 | U31: =source_tot!J21 -> 0 | V31: =source_tot!K21 -> 0 | W31: =source_tot!L21 -> 0 | X31: =source_tot!M21 -> 0 | Y31: =source_tot!N21 -> 0 | Z31: =source_tot!O21 -> 0 | AA31: =source_tot!P21 -> 0 | AB31: =source_tot!Q21 -> 0 | AC31: =source_tot!R21 -> 0 | AD31: =source_tot!S21 -> 0 | AE31: 0 | AF31: 0 | AG31: 0 | AH31: 0 | AI31: 0 | AJ31: 0 | AK31: 0 | AL31: 0 | AM31: 0 | AN31: 0 | AO31: 0 | AP31: 0
A32: Filière médico-technique - catégorie A | B32: =source_tot!B22 -> 0 | C32: =source_tot!C22 -> 0 | D32: =source_tot!U22 -> 0 | E32: =source_tot!V22 -> 0 | F32: 0 | G32: 0 | H32: 0 | I32: =source_tot!D22 -> 0 | J32: =source_tot!E22 -> 0 | K32: 0 | L32: 0 | M32: =source_tot!F22 -> 0 | N32: =source_tot!G22 -> 0 | O32: 0 | P32: 0 | Q32: 0 | R32: 0 | S32: =source_tot!H22 -> 0 | T32: =source_tot!I22 -> 0 | U32: =source_tot!J22 -> 0 | V32: =source_tot!K22 -> 0 | W32: =source_tot!L22 -> 0 | X32: =source_tot!M22 -> 0 | Y32: =source_tot!N22 -> 0 | Z32: =source_tot!O22 -> 0 | AA32: =source_tot!P22 -> 0 | AB32: =source_tot!Q22 -> 0 | AC32: =source_tot!R22 -> 0 | AD32: =source_tot!S22 -> 0 | AE32: 0 | AF32: 0 | AG32: 0 | AH32: 0 | AI32: 0 | AJ32: 0 | AK32: 0 | AL32: 0 | AM32: 0 | AN32: 0 | AO32: 0 | AP32: 0
A33: Filière médico-technique - catégorie B | B33: =source_tot!B23 -> 0 | C33: =source_tot!C23 -> 0 | D33: =source_tot!U23 -> 0 | E33: =source_tot!V23 -> 0 | F33: 0 | G33: 0 | H33: 0 | I33: =source_tot!D23 -> 0 | J33: =source_tot!E23 -> 0 | K33: 0 | L33: 0 | M33: =source_tot!F23 -> 0 | N33: =source_tot!G23 -> 0 | O33: 0 | P33: 0 | Q33: 0 | R33: 0 | S33: =source_tot!H23 -> 0 | T33: =source_tot!I23 -> 0 | U33: =source_tot!J23 -> 0 | V33: =source_tot!K23 -> 0 | W33: =source_tot!L23 -> 0 | X33: =source_tot!M23 -> 0 | Y33: =source_tot!N23 -> 0 | Z33: =source_tot!O23 -> 0 | AA33: =source_tot!P23 -> 0 | AB33: =source_tot!Q23 -> 0 | AC33: =source_tot!R23 -> 0 | AD33: =source_tot!S23 -> 0 | AE33: 0 | AF33: 0 | AG33: 0 | AH33: 0 | AI33: 0 | AJ33: 0 | AK33: 0 | AL33: 0 | AM33: 0 | AN33: 0 | AO33: 0 | AP33: 0
A34: Filière médico-technique - catégorie C | B34: =source_tot!B24 -> 0 | C34: =source_tot!C24 -> 0 | D34: =source_tot!U24 -> 0 | E34: =source_tot!V24 -> 0 | F34: 0 | G34: 0 | H34: 0 | I34: =source_tot!D24 -> 0 | J34: =source_tot!E24 -> 0 | K34: 0 | L34: 0 | M34: =source_tot!F24 -> 0 | N34: =source_tot!G24 -> 0 | O34: 0 | P34: 0 | Q34: 0 | R34: 0 | S34: =source_tot!H24 -> 0 | T34: =source_tot!I24 -> 0 | U34: =source_tot!J24 -> 0 | V34: =source_tot!K24 -> 0 | W34: =source_tot!L24 -> 0 | X34: =source_tot!M24 -> 0 | Y34: =source_tot!N24 -> 0 | Z34: =source_tot!O24 -> 0 | AA34: =source_tot!P24 -> 0 | AB34: =source_tot!Q24 -> 0 | AC34: =source_tot!R24 -> 0 | AD34: =source_tot!S24 -> 0 | AE34: 0 | AF34: 0 | AG34: 0 | AH34: 0 | AI34: 0 | AJ34: 0 | AK34: 0 | AL34: 0 | AM34: 0 | AN34: 0 | AO34: 0 | AP34: 0
A35: Filière police municipale - catégorie A | B35: =source_tot!B25 -> 0 | C35: =source_tot!C25 -> 0 | D35: =source_tot!U25 -> 0 | E35: =source_tot!V25 -> 0 | F35: 0 | G35: 0 | H35: 0 | I35: =source_tot!D25 -> 0 | J35: =source_tot!E25 -> 0 | K35: 0 | L35: 0 | M35: =source_tot!F25 -> 0 | N35: =source_tot!G25 -> 0 | O35: 0 | P35: 0 | Q35: 0 | R35: 0 | S35: =source_tot!H25 -> 0 | T35: =source_tot!I25 -> 0 | U35: =source_tot!J25 -> 0 | V35: =source_tot!K25 -> 0 | W35: =source_tot!L25 -> 0 | X35: =source_tot!M25 -> 0 | Y35: =source_tot!N25 -> 0 | Z35: =source_tot!O25 -> 0 | AA35: =source_tot!P25 -> 0 | AB35: =source_tot!Q25 -> 0 | AC35: =source_tot!R25 -> 0 | AD35: =source_tot!S25 -> 0 | AE35: 0 | AF35: 0 | AG35: 0 | AH35: 0 | AI35: 0 | AJ35: 0 | AK35: 0 | AL35: 0 | AM35: 0 | AN35: 0 | AO35: 0 | AP35: 0
A36: Filière police municipale - catégorie B | B36: =source_tot!B26 -> 0 | C36: =source_tot!C26 -> 0 | D36: =source_tot!U26 -> 0 | E36: =source_tot!V26 -> 0 | F36: 0 | G36: 0 | H36: 0 | I36: =source_tot!D26 -> 0 | J36: =source_tot!E26 -> 0 | K36: 0 | L36: 0 | M36: =source_tot!F26 -> 0 | N36: =source_tot!G26 -> 0 | O36: 0 | P36: 0 | Q36: 0 | R36: 0 | S36: =source_tot!H26 -> 0 | T36: =source_tot!I26 -> 0 | U36: =source_tot!J26 -> 0 | V36: =source_tot!K26 -> 0 | W36: =source_tot!L26 -> 0 | X36: =source_tot!M26 -> 0 | Y36: =source_tot!N26 -> 0 | Z36: =source_tot!O26 -> 0 | AA36: =source_tot!P26 -> 0 | AB36: =source_tot!Q26 -> 0 | AC36: =source_tot!R26 -> 0 | AD36: =source_tot!S26 -> 0 | AE36: 0 | AF36: 0 | AG36: 0 | AH36: 0 | AI36: 0 | AJ36: 0 | AK36: 0 | AL36: 0 | AM36: 0 | AN36: 0 | AO36: 0 | AP36: 0
A37: Filière police municipale - catégorie C | B37: =source_tot!B27 -> 0 | C37: =source_tot!C27 -> 0 | D37: =source_tot!U27 -> 0 | E37: =source_tot!V27 -> 0 | F37: 0 | G37: 0 | H37: 0 | I37: =source_tot!D27 -> 0 | J37: =source_tot!E27 -> 0 | K37: 0 | L37: 0 | M37: =source_tot!F27 -> 0 | N37: =source_tot!G27 -> 0 | O37: 0 | P37: 0 | Q37: 0 | R37: 0 | S37: =source_tot!H27 -> 0 | T37: =source_tot!I27 -> 0 | U37: =source_tot!J27 -> 0 | V37: =source_tot!K27 -> 0 | W37: =source_tot!L27 -> 0 | X37: =source_tot!M27 -> 0 | Y37: =source_tot!N27 -> 0 | Z37: =source_tot!O27 -> 0 | AA37: =source_tot!P27 -> 0 | AB37: =source_tot!Q27 -> 0 | AC37: =source_tot!R27 -> 0 | AD37: =source_tot!S27 -> 0 | AE37: 0 | AF37: 0 | AG37: 0 | AH37: 0 | AI37: 0 | AJ37: 0 | AK37: 0 | AL37: 0 | AM37: 0 | AN37: 0 | AO37: 0 | AP37: 0
A38: Filière incendie et secours- catégorie A | B38: =source_tot!B28 -> 0 | C38: =source_tot!C28 -> 0 | D38: =source_tot!U28 -> 0 | E38: =source_tot!V28 -> 0 | F38: 0 | G38: 0 | H38: 0 | I38: =source_tot!D28 -> 0 | J38: =source_tot!E28 -> 0 | K38: 0 | L38: 0 | M38: =source_tot!F28 -> 0 | N38: =source_tot!G28 -> 0 | O38: 0 | P38: 0 | Q38: 0 | R38: 0 | S38: =source_tot!H28 -> 0 | T38: =source_tot!I28 -> 0 | U38: =source_tot!J28 -> 0 | V38: =source_tot!K28 -> 0 | W38: =source_tot!L28 -> 0 | X38: =source_tot!M28 -> 0 | Y38: =source_tot!N28 -> 0 | Z38: =source_tot!O28 -> 0 | AA38: =source_tot!P28 -> 0 | AB38: =source_tot!Q28 -> 0 | AC38: =source_tot!R28 -> 0 | AD38: =source_tot!S28 -> 0 | AE38: 0 | AF38: 0 | AG38: 0 | AH38: 0 | AI38: 0 | AJ38: 0 | AK38: 0 | AL38: 0 | AM38: 0 | AN38: 0 | AO38: 0 | AP38: 0
A39: Filière incendie et secours - catégorie B | B39: =source_tot!B29 -> 0 | C39: =source_tot!C29 -> 0 | D39: =source_tot!U29 -> 0 | E39: =source_tot!V29 -> 0 | F39: 0 | G39: 0 | H39: 0 | I39: =source_tot!D29 -> 0 | J39: =source_tot!E29 -> 0 | K39: 0 | L39: 0 | M39: =source_tot!F29 -> 0 | N39: =source_tot!G29 -> 0 | O39: 0 | P39: 0 | Q39: 0 | R39: 0 | S39: =source_tot!H29 -> 0 | T39: =source_tot!I29 -> 0 | U39: =source_tot!J29 -> 0 | V39: =source_tot!K29 -> 0 | W39: =source_tot!L29 -> 0 | X39: =source_tot!M29 -> 0 | Y39: =source_tot!N29 -> 0 | Z39: =source_tot!O29 -> 0 | AA39: =source_tot!P29 -> 0 | AB39: =source_tot!Q29 -> 0 | AC39: =source_tot!R29 -> 0 | AD39: =source_tot!S29 -> 0 | AE39: 0 | AF39: 0 | AG39: 0 | AH39: 0 | AI39: 0 | AJ39: 0 | AK39: 0 | AL39: 0 | AM39: 0 | AN39: 0 | AO39: 0 | AP39: 0
A40: Filière incendie et secours - catégorie C | B40: =source_tot!B30 -> 0 | C40: =source_tot!C30 -> 0 | D40: =source_tot!U30 -> 0 | E40: =source_tot!V30 -> 0 | F40: 0 | G40: 0 | H40: 0 | I40: =source_tot!D30 -> 0 | J40: =source_tot!E30 -> 0 | K40: 0 | L40: 0 | M40: =source_tot!F30 -> 0 | N40: =source_tot!G30 -> 0 | O40: 0 | P40: 0 | Q40: 0 | R40: 0 | S40: =source_tot!H30 -> 0 | T40: =source_tot!I30 -> 0 | U40: =source_tot!J30 -> 0 | V40: =source_tot!K30 -> 0 | W40: =source_tot!L30 -> 0 | X40: =source_tot!M30 -> 0 | Y40: =source_tot!N30 -> 0 | Z40: =source_tot!O30 -> 0 | AA40: =source_tot!P30 -> 0 | AB40: =source_tot!Q30 -> 0 | AC40: =source_tot!R30 -> 0 | AD40: =source_tot!S30 -> 0 | AE40: 0 | AF40: 0 | AG40: 0 | AH40: 0 | AI40: 0 | AJ40: 0 | AK40: 0 | AL40: 0 | AM40: 0 | AN40: 0 | AO40: 0 | AP40: 0
A41: Filière animation - catégorie B | B41: =source_tot!B31 -> 0 | C41: =source_tot!C31 -> 2793.154762 | D41: =source_tot!U31 -> 0 | E41: =source_tot!V31 -> 2.8 | F41: 1 | G41: 1.72052308 | H41: 0 | I41: =source_tot!D31 -> 0 | J41: =source_tot!E31 -> 1985.625 | K41: -1.970205738 | L41: 0 | M41: =source_tot!F31 -> 0 | N41: =source_tot!G31 -> 807.5297619 | O41: 3.690728817 | P41: 0 | Q41: 0 | R41: 0.2891102824 | S41: =source_tot!H31 -> 0 | T41: =source_tot!I31 -> 151.547619 | U41: =source_tot!J31 -> 0 | V41: =source_tot!K31 -> 573.9880952 | W41: =source_tot!L31 -> 0 | X41: =source_tot!M31 -> 50.89285714 | Y41: =source_tot!N31 -> 0 | Z41: =source_tot!O31 -> 31.10119048 | AA41: =source_tot!P31 -> 0 | AB41: =source_tot!Q31 -> 0 | AC41: =source_tot!R31 -> 0 | AD41: =source_tot!S31 -> 0 | AE41: 1.626630071 | AF41: 0 | AG41: 1.985122506 | AH41: 0 | AI41: 0.1136768379 | AJ41: 0 | AK41: 0.1969222726 | AL41: 0 | AM41: 0 | AN41: 0 | AO41: -0.23162287 | AP41: 0
A42: Filière animation - catégorie C | B42: =source_tot!B32 -> 2218.75 | C42: =source_tot!C32 -> 2123.710904 | D42: =source_tot!U32 -> 1 | E42: =source_tot!V32 -> 11.83 | F42: 0.9220576773 | G42: -41.22371847 | H42: -3.427840986 | I42: =source_tot!D32 -> 1779.916667 | J42: =source_tot!E32 -> 1775.873485 | K42: -23.69938249 | L42: -0.1458282203 | M42: =source_tot!F32 -> 438.8333333 | N42: =source_tot!G32 -> 347.837419 | O42: -17.52433598 | P42: -3.282012766 | Q42: 0.1977840376 | R42: 0.1637875561 | S42: =source_tot!H32 -> 48.75 | T42: =source_tot!I32 -> 35.13665821 | U42: =source_tot!J32 -> 310 | V42: =source_tot!K32 -> 278.1135531 | W42: =source_tot!L32 -> 31.33333333 | X42: =source_tot!M32 -> 29.98732037 | Y42: =source_tot!N32 -> 48.75 | Z42: =source_tot!O32 -> 0 | AA42: =source_tot!P32 -> 0 | AB42: =source_tot!Q32 -> 0 | AC42: =source_tot!R32 -> 0 | AD42: =source_tot!S32 -> 4.599887292 | AE42: -1.981360698 | AF42: -0.4910018417 | AG42: -13.66659582 | AH42: -1.150070599 | AI42: -1.099736147 | AJ42: -0.0485475832 | AK42: -0.06237834472 | AL42: -1.758300067 | AM42: 0 | AN42: 0 | AO42: -0.7142649666 | AP42: 0.1659073259

Sheet res_ind2
F2: En € | I2: en % | L2: En €
F3: Total | G3: Traitement | H3: Primes | I3: Total | J3: Traitement | K3: Primes | L3: autres | M3: IFSE | N3: CIA | O3: CTI | P3: Heures sup
A4: Résultats en ETPR | B4: écart employeur F-H | F4: =SUMPRODUCT(C14:C42,E14:E42)/SUM(E14:E42)-SUMPRODUCT(B14:B42,D14:D42)/SUM(D14:D42) -> -103.3489653 | G4: =SUMPRODUCT(J14:J42,E14:E42)/SUM(E14:E42)-SUMPRODUCT(I14:I42,D14:D42)/SUM(D14:D42) -> -121.5334899 | H4: =SUMPRODUCT(N14:N42,E14:E42)/SUM(E14:E42)-SUMPRODUCT(M14:M42,D14:D42)/SUM(D14:D42) -> 18.18452451 | I4: =F4/$B$12 -> -0.04621175488 | J4: =G4/$B$12 -> -0.0543428357 | K4: 0.008131080815 | L4: =SUMPRODUCT(T14:T42,E14:E42)/SUM(E14:E42)-SUMPRODUCT(S14:S42,D14:D42)/SUM(D14:D42) -> 17.48811799 | M4: =SUMPRODUCT(V14:V42,E14:E42)/SUM(E14:E42)-SUMPRODUCT(U14:U42,D14:D42)/SUM(D14:D42) -> -5.747898036 | N4: =SUMPRODUCT(X14:X42,E14:E42)/SUM(E14:E42)-SUMPRODUCT(W14:W42,D14:D42)/SUM(D14:D42) -> -5.470302842 | O4: =SUMPRODUCT(Z14:Z42,E14:E42)/SUM(E14:E42)-SUMPRODUCT(Y14:Y42,D14:D42)/SUM(D14:D42) -> 0 | P4: =SUMPRODUCT(AB14:AB42,E14:E42)/SUM(E14:E42)-SUMPRODUCT(AA14:AA42,D14:D42)/SUM(D14:D42) -> 11.9146074
B5: dont effet inter filière/catégorie hiérarchique | F5: =SUM(G14:G42) -> 1.452372124 | G5: =SUM(K14:K42) -> -12.15365577 | H5: =SUM(O14:O42) -> 13.60602789 | I5: =F5/$B$12 -> 0.0006494178664 | J5: -0.005434420745 | K5: 0.006083838612 | L5: =SUM(AC14:AC42) -> 10.94227356 | M5: =SUM(AE14:AE42) -> 3.436462371 | N5: =SUM(AG14:AG42) -> -3.227679864 | O5: =SUM(AI14:AI42) -> 0 | P5: =SUM(AK14:AK42) -> 2.454971822
B6: dont effet intra filière/catégorie hiérarchique | F6: =SUM(H14:H42) -> -104.8013375 | G6: =SUM(L14:L42) -> -109.3798341 | H6: =SUM(P14:P42) -> 4.57849662 | I6: -0.04686117275 | J6: -0.04890841495 | K6: 0.002047242204 | L6: =SUM(AD14:AD42) -> 6.545844428 | M6: =SUM(AF14:AF42) -> -9.184360407 | N6: =SUM(AH14:AH42) -> -2.242622978 | O6: =SUM(AJ14:AJ42) -> 0 | P6: =SUM(AL14:AL42) -> 9.459635578
A8: Taux utilisé pour l'indicateur 2 | B8: =ABS(K6) -> 0.002047242204 | C8: il s'agit de l'écart en valeur absolu de prime par filière/catégorie | I8: >>> Documentation explicative | AC8: autres primes et indemnités mensuelles moyennes | AK8: heures supplémentaires ou complémentaires
B10: Rémunération totale (hors sur-rémunération outre-mer) | I10: dont partie traitement | M10: dont total indemnités et primes (hors sur-rémunération outre-mer) | S10: Décomposition primes et indemnités (hors sur-rémunération outre-mer) | AE10: IFSE | AG10: CIA | AI10: CTI
B11: rémunération mensuelle moyenne | D11: effectifs (en ETPR) | F11: part des femmes (ETPR) | G11: Part dans l'effet inter filière/ catégorie hiérarchique | H11: Part dans l'effet intra filière/ catégorie hiérarchique | I11: Traitement mensuel moyen | K11: Part dans l'effet inter filière/ catégorie hiérarchique | L11: Part dans l'effet intra filière/ catégorie hiérarchique | M11: Primes et indemnités mensuelles moyennes | O11: Part dans l'effet inter filière/ catégorie hiérarchique | P11: Part dans l'effet intra filière/ catégorie hiérarchique | Q11: part de primes | S11: autres primes et indemnités mensuelles moyennes | U11: IFSE | W11: CIA | Y11: CTI | AA11: heures supplémentaires ou complémentaires | AC11: Part dans l'effet inter filière/ catégorie hiérarchique | AD11: Part dans l'effet intra filière/ catégorie hiérarchique | AE11: Part dans l'effet inter filière/ catégorie hiérarchique | AF11: Part dans l'effet intra filière/ catégorie hiérarchique | AG11: Part dans l'effet inter filière/ catégorie hiérarchique | AH11: Part dans l'effet intra filière/ catégorie hiérarchique | AI11: Part dans l'effet inter filière/ catégorie hiérarchique | AJ11: Part dans l'effet intra filière/ catégorie hiérarchique | AK11: Part dans l'effet inter filière/ catégorie hiérarchique | AL11: Part dans l'effet intra filière/ catégorie hiérarchique
A12: Totaux en ligne -> | B12: =SUMPRODUCT(B14:B42,D14:D42)/SUM(D14:D42) -> 2236.421569 | C12: =SUMPRODUCT(C14:C42,E14:E42)/SUM(E14:E42) -> 2133.072603 | D12: =SUM(D14:D42) -> 11.9 | E12: =SUM(E14:E42) -> 24.93 | F12: =SUM(E14:E42)/SUM(D14:E42) -> 0.6768938365 | I12: =SUMPRODUCT(I14:I42,D14:D42)/SUM(D14:D42) -> 1867.696078 | J12: =SUMPRODUCT(J14:J42,E14:E42)/SUM(E14:E42) -> 1746.162589 | M12: =SUMPRODUCT(M14:M42,D14:D42)/SUM(D14:D42) -> 368.7254902 | N12: =SUMPRODUCT(N14:N42,E14:E42)/SUM(E14:E42) -> 386.9100147 | Q12: =M12/B12 -> 0.1648729807 | R12: =N12/C12 -> 0.1813862379 | S12: =SUMPRODUCT(S14:S42,D14:D42)/SUM(D14:D42) -> 40.06302521 | T12: =SUMPRODUCT(T14:T42,E14:E42)/SUM(E14:E42) -> 57.5511432 | U12: =SUMPRODUCT(U14:U42,D14:D42)/SUM(D14:D42) -> 294.8039216 | V12: =SUMPRODUCT(V14:V42,E14:E42)/SUM(E14:E42) -> 289.0560235 | W12: =SUMPRODUCT(W14:W42,D14:D42)/SUM(D14:D42) -> 9.033613445 | X12: =SUMPRODUCT(X14:X42,E14:E42)/SUM(E14:E42) -> 3.563310603 | Y12: =SUMPRODUCT(Y14:Y42,D14:D42)/SUM(D14:D42) -> 0 | Z12: =SUMPRODUCT(Z14:Z42,E14:E42)/SUM(E14:E42) -> 0 | AA12: =SUMPRODUCT(AA14:AA42,D14:D42)/SUM(D14:D42) -> 24.82492997 | AB12: =SUMPRODUCT(AB14:AB42,E14:E42)/SUM(E14:E42) -> 36.73953737
A13: Filière/catégorie hiérarchique de l'employeur | B13: hommes | C13: femmes | D13: hommes | E13: femmes | I13: hommes | J13: femmes | M13: hommes | N13: femmes | Q13: hommes | R13: femmes | S13: hommes | T13: femmes | U13: hommes | V13: femmes | W13: hommes | X13: femmes | Y13: hommes | Z13: femmes | AA13: hommes | AB13: femmes
A14: Filière administrative - catégorie A | B14: ='source_tot 2'!B4 -> 0 | C14: ='source_tot 2'!C4 -> 2339.08046 | D14: ='source_tot 2'!S4 -> 0 | E14: ='source_tot 2'!T4 -> 2.03 | F14: =IF(D14+E14<>0,E14/(D14+E14),0) -> 1 | G14: =(C14-($B$12*$D$12+$C$12*$E$12)/($D$12+$E$12))*E14/SUM($E$14:$E$42)-(B14-($B$12*$D$12+$C$12*$E$12)/($D$12+$E$12))*D14/SUM($D$14:$D$42)-H14 -> 14.05570769 | H14: =IF(OR(D14=0,E14=0),0,(C14-B14)*(D14+E14)/SUM($D$14:$E$42)) -> 0 | I14: ='source_tot 2'!D4 -> 0 | J14: ='source_tot 2'!E4 -> 1778.16092 | K14: =(J14-($I$12*$D$12+$J$12*$E$12)/($D$12+$E$12))*E14/SUM($E$14:$E$42)-(I14-($I$12*$D$12+$J$12*$E$12)/($D$12+$E$12))*D14/SUM($D$14:$D$42)-L14 -> -0.5919724836 | L14: =IF(OR(D14=0,E14=0),0,(J14-I14)*(D14+E14)/SUM($D$14:$E$42)) -> 0 | M14: ='source_tot 2'!F4 -> 0 | N14: ='source_tot 2'!G4 -> 560.9195402 | O14: =(N14-($M$12*$D$12+$N$12*$E$12)/($D$12+$E$12))*E14/SUM($E$14:$E$42)-(M14-($M$12*$D$12+$N$12*$E$12)/($D$12+$E$12))*D14/SUM($D$14:$D$42)-P14 -> 14.64768017 | P14: =IF(OR(D14=0,E14=0),0,(N14-M14)*(D14+E14)/SUM($D$14:$E$42)) -> 0 | Q14: =IF(M14<>0,M14/B14,0) -> 0 | R14: =IF(N14<>0,N14/C14,0) -> 0.2398034398 | S14: ='source_tot 2'!H4 -> 0 | T14: ='source_tot 2'!I4 -> 0.8620689655 | U14: ='source_tot 2'!J4 -> 0 | V14: ='source_tot 2'!K4 -> 553.0788177 | W14: ='source_tot 2'!L4 -> 0 | X14: ='source_tot 2'!M4 -> 6.97865353 | Y14: ='source_tot 2'!N4 -> 0 | Z14: ='source_tot 2'!O4 -> 0 | AA14: ='source_tot 2'!P4 -> 0 | AB14: ='source_tot 2'!Q4 -> 0 | AC14: =(T14-($S$12*$D$12+$T$12*$E$12)/($D$12+$E$12))*E14/SUM($E$14:$E$42)-(S14-($S$12*$D$12+$T$12*$E$12)/($D$12+$E$12))*D14/SUM($D$14:$D$42)-AD14 -> -4.155967417 | AD14: =IF(OR(D14=0,E14=0),0,(T14-S14)*(D14+E14)/SUM($D$14:$E$42)) -> 0 | AE14: =(V14-($U$12*$D$12+$V$12*$E$12)/($D$12+$E$12))*E14/SUM($E$14:$E$42)-(U14-($U$12*$D$12+$V$12*$E$12)/($D$12+$E$12))*D14/SUM($D$14:$D$42)-AF14 -> 21.34762111 | AF14: =IF(OR(D14=0,E14=0),0,(V14-U14)*(D14+E14)/SUM($D$14:$E$42)) -> 0 | AG14: =(X14-($W$12*$D$12+$X$12*$E$12)/($D$12+$E$12))*E14/SUM($E$14:$E$42)-(W14-($W$12*$D$12+$X$12*$E$12)/($D$12+$E$12))*D14/SUM($D$14:$D$42)-AH14 -> 0.1341814824 | AH14: =IF(OR(D14=0,E14=0),0,(X14-W14)*(D14+E14)/SUM($D$14:$E$42)) -> 0 | AI14: =(Z14-($Y$12*$D$12+$Z$12*$E$12)/($D$12+$E$12))*E14/SUM($E$14:$E$42)-(Y14-($Y$12*$D$12+$Z$12*$E$12)/($D$12+$E$12))*D14/SUM($D$14:$D$42)-AJ14 -> 0 | AJ14: =IF(OR(D14=0,E14=0),0,(Z14-Y14)*(D14+E14)/SUM($D$14:$E$42)) -> 0 | AK14: =(AB14-($AA$12*$D$12+$AB$12*$E$12)/($D$12+$E$12))*E14/SUM($E$14:$E$42)-(AA14-($AA$12*$D$12+$AB$12*$E$12)/($D$12+$E$12))*D14/SUM($D$14:$D$42)-AL14 -> -2.678155002 | AL14: =IF(OR(D14=0,E14=0),0,(AB14-AA14)*(D14+E14)/SUM($D$14:$E$42)) -> 0
A15: Filière administrative - catégorie B | B15: ='source_tot 2'!B5 -> 2602.568922 | C15: ='source_tot 2'!C5 -> 2399.916667 | D15: ='source_tot 2'!S5 -> 1.33 | E15: ='source_tot 2'!T5 -> 2 | F15: =IF(D15+E15<>0,E15/(D15+E15),0) -> 0.6006006006 | G15: -11.68955484 | H15: -18.32288926 | I15: ='source_tot 2'!D5 -> 2340.350877 | J15: ='source_tot 2'!E5 -> 1813.875 | K15: =(J15-($I$12*$D$12+$J$12*$E$12)/($D$12+$E$12))*E15/SUM($E$14:$E$42)-(I15-($I$12*$D$12+$J$12*$E$12)/($D$12+$E$12))*D15/SUM($D$14:$D$42)-L15 -> -12.13701485 | L15: -47.60153872 | M15: ='source_tot 2'!F5 -> 262.2180451 | N15: ='source_tot 2'!G5 -> 586.0416667 | O15: =(N15-($M$12*$D$12+$N$12*$E$12)/($D$12+$E$12))*E15/SUM($E$14:$E$42)-(M15-($M$12*$D$12+$N$12*$E$12)/($D$12+$E$12))*D15/SUM($D$14:$D$42)-P15 -> 0.4474600064 | P15: 29.27864946 | Q15: =IF(M15<>0,M15/B15,0) -> 0.100753545 | R15: 0.2441925067 | S15: ='source_tot 2'!H5 -> 0 | T15: ='source_tot 2'!I5 -> 2.083333333 | U15: ='source_tot 2'!J5 -> 214.5989975 | V15: ='source_tot 2'!K5 -> 581.25 | W15: ='source_tot 2'!L5 -> 47.61904762 | X15: ='source_tot 2'!M5 -> 2.708333333 | Y15: ='source_tot 2'!N5 -> 0 | Z15: ='source_tot 2'!O5 -> 0 | AA15: ='source_tot 2'!P5 -> 0 | AB15: ='source_tot 2'!Q5 -> 0 | AC15: 1.615718869 | AD15: 0.1883654629 | AE15: -1.329508592 | AF15: 33.1509052 | AG15: -0.8760988051 | AH15: -4.060621194 | AI15: 0 | AJ15: 0 | AK15: 1.037348534 | AL15: 0
A16: Filière administrative - catégorie C | B16: ='source_tot 2'!B6 -> 0 | C16: ='source_tot 2'!C6 -> 2282.843137 | D16: ='source_tot 2'!S6 -> 0 | E16: ='source_tot 2'!T6 -> 1.36 | F16: 1 | G16: 6.348731285 | H16: 0 | I16: ='source_tot 2'!D6 -> 0 | J16: ='source_tot 2'!E6 -> 1773.039216 | K16: -0.6759954209 | L16: 0 | M16: ='source_tot 2'!F6 -> 0 | N16: ='source_tot 2'!G6 -> 509.8039216 | O16: 7.024726706 | P16: 0 | Q16: 0 | R16: 0.2233197337 | S16: ='source_tot 2'!H6 -> 0 | T16: ='source_tot 2'!I6 -> 54.3504902 | U16: ='source_tot 2'!J6 -> 0 | V16: ='source_tot 2'!K6 -> 451.1642157 | W16: ='source_tot 2'!L6 -> 0 | X16: ='source_tot 2'!M6 -> 0 | Y16: ='source_tot 2'!N6 -> 0 | Z16: ='source_tot 2'!O6 -> 0 | AA16: ='source_tot 2'!P6 -> 0 | AB16: ='source_tot 2'!Q6 -> 4.289215686 | AC16: 0.1336469057 | AD16: 0 | AE16: 8.742132964 | AF16: 0 | AG16: -0.290809742 | AH16: 0 | AI16: 0 | AJ16: 0 | AK16: -1.560243421 | AL16: 0
A17: Filière technique - catégorie A | B17: ='source_tot 2'!B7 -> 0 | C17: ='source_tot 2'!C7 -> 0 | D17: ='source_tot 2'!S7 -> 0 | E17: ='source_tot 2'!T7 -> 0 | F17: 0 | G17: 0 | H17: 0 | I17: ='source_tot 2'!D7 -> 0 | J17: ='source_tot 2'!E7 -> 0 | K17: 0 | L17: 0 | M17: ='source_tot 2'!F7 -> 0 | N17: ='source_tot 2'!G7 -> 0 | O17: 0 | P17: 0 | Q17: 0 | R17: 0 | S17: ='source_tot 2'!H7 -> 0 | T17: ='source_tot 2'!I7 -> 0 | U17: ='source_tot 2'!J7 -> 0 | V17: ='source_tot 2'!K7 -> 0 | W17: ='source_tot 2'!L7 -> 0 | X17: ='source_tot 2'!M7 -> 0 | Y17: ='source_tot 2'!N7 -> 0 | Z17: ='source_tot 2'!O7 -> 0 | AA17: ='source_tot 2'!P7 -> 0 | AB17: ='source_tot 2'!Q7 -> 0 | AC17: 0 | AD17: 0 | AE17: 0 | AF17: 0 | AG17: 0 | AH17: 0 | AI17: 0 | AJ17: 0 | AK17: 0 | AL17: 0
A18: Filière technique - catégorie B | B18: ='source_tot 2'!B8 -> 3188.583333 | C18: ='source_tot 2'!C8 -> 1617.083333 | D18: ='source_tot 2'!S8 -> 1 | E18: ='source_tot 2'!T8 -> 1 | F18: 0.5 | G18: -22.59121468 | H18: -85.33803964 | I18: ='source_tot 2'!D8 -> 2473.5 | J18: ='source_tot 2'!E8 -> 1231.166667 | K18: -12.5906392 | L18: -67.46311883 | M18: ='source_tot 2'!F8 -> 715.0833333 | N18: ='source_tot 2'!G8 -> 385.9166667 | O18: -10.00057548 | P18: -17.87492081 | Q18: 0.224263649 | R18: 0.2386498325 | S18: ='source_tot 2'!H8 -> 0 | T18: ='source_tot 2'!I8 -> 0 | U18: ='source_tot 2'!J8 -> 700 | V18: ='source_tot 2'!K8 -> 385.9166667 | W18: ='source_tot 2'!L8 -> 15.08333333 | X18: ='source_tot 2'!M8 -> 0 | Y18: ='source_tot 2'!N8 -> 0 | Z18: ='source_tot 2'!O8 -> 0 | AA18: ='source_tot 2'!P8 -> 0 | AB18: ='source_tot 2'!Q8 -> 0 | AC18: 2.279542845 | AD18: 0 | AE18: -13.51039072 | AF18: -17.05584216 | AG18: -0.2142927292 | AH18: -0.8190786497 | AI18: 0 | AJ18: 0 | AK18: 1.444565123 | AL18: 0
A19: Filière technique - catégorie C | B19: ='source_tot 2'!B9 -> 2086.041449 | C19: ='source_tot 2'!C9 -> 2083.104299 | D19: ='source_tot 2'!S9 -> 9.57 | E19: ='source_tot 2'!T9 -> 4.73 | F19: 0.3307692308 | G19: 50.00121243 | H19: -1.140408565 | I19: ='source_tot 2'!D9 -> 1738.706026 | J19: ='source_tot 2'!E9 -> 1753.347428 | K19: 25.8041053 | L19: 5.684823472 | M19: ='source_tot 2'!F9 -> 347.3354232 | N19: ='source_tot 2'!G9 -> 329.756871 | O19: 24.19710713 | P19: -6.825232037 | Q19: 0.1665045646 | R19: 0.1583007011 | S19: ='source_tot 2'!H9 -> 49.81713689 | T19: ='source_tot 2'!I9 -> 66.19097956 | U19: ='source_tot 2'!J9 -> 263.6102403 | V19: ='source_tot 2'!K9 -> 198.5024665 | W19: ='source_tot 2'!L9 -> 3.039010798 | X19: ='source_tot 2'!M9 -> 9.830866808 | Y19: ='source_tot 2'!N9 -> 0 | Z19: ='source_tot 2'!O9 -> 0 | AA19: ='source_tot 2'!P9 -> 30.86903518 | AB19: ='source_tot 2'!Q9 -> 55.23255814 | AC19: -1.970607837 | AD19: 6.357478965 | AE19: 29.70330871 | AF19: -25.27942344 | AG19: 0.05978664073 | AH19: 2.637076865 | AI19: 0 | AJ19: 0 | AK19: -3.595380382 | AL19: 9.459635578
A20: Filière culturelle - catégorie A | B20: ='source_tot 2'!B10 -> 0 | C20: ='source_tot 2'!C10 -> 0 | D20: ='source_tot 2'!S10 -> 0 | E20: ='source_tot 2'!T10 -> 0 | F20: 0 | G20: 0 | H20: 0 | I20: ='source_tot 2'!D10 -> 0 | J20: ='source_tot 2'!E10 -> 0 | K20: 0 | L20: 0 | M20: ='source_tot 2'!F10 -> 0 | N20: ='source_tot 2'!G10 -> 0 | O20: 0 | P20: 0 | Q20: 0 | R20: 0 | S20: ='source_tot 2'!H10 -> 0 | T20: ='source_tot 2'!I10 -> 0 | U20: ='source_tot 2'!J10 -> 0 | V20: ='source_tot 2'!K10 -> 0 | W20: ='source_tot 2'!L10 -> 0 | X20: ='source_tot 2'!M10 -> 0 | Y20: ='source_tot 2'!N10 -> 0 | Z20: ='source_tot 2'!O10 -> 0 | AA20: ='source_tot 2'!P10 -> 0 | AB20: ='source_tot 2'!Q10 -> 0 | AC20: 0 | AD20: 0 | AE20: 0 | AF20: 0 | AG20: 0 | AH20: 0 | AI20: 0 | AJ20: 0 | AK20: 0 | AL20: 0
A21: Filière culturelle - catégorie B | B21: ='source_tot 2'!B11 -> 0 | C21: ='source_tot 2'!C11 -> 2654 | D21: ='source_tot 2'!S11 -> 0 | E21: ='source_tot 2'!T11 -> 0.5 | F21: 1 | G21: 9.778072784 | H21: 0 | I21: ='source_tot 2'!D11 -> 0 | J21: ='source_tot 2'!E11 -> 2063.5 | K21: 5.576999434 | L21: 0 | M21: ='source_tot 2'!F11 -> 0 | N21: ='source_tot 2'!G11 -> 590.5 | O21: 4.20107335 | P21: 0 | Q21: 0 | R21: 0.2224943482 | S21: ='source_tot 2'!H11 -> 0 | T21: ='source_tot 2'!I11 -> 14 | U21: ='source_tot 2'!J11 -> 0 | V21: ='source_tot 2'!K11 -> 562.5 | W21: ='source_tot 2'!L11 -> 0 | X21: ='source_tot 2'!M11 -> 0 | Y21: ='source_tot 2'!N11 -> 0 | Z21: ='source_tot 2'!O11 -> 0 | AA21: ='source_tot 2'!P11 -> 0 | AB21: ='source_tot 2'!Q11 -> 14 | AC21: -0.7601408843 | AD21: 0 | AE21: 5.446987469 | AF21: 0 | AG21: -0.1069153463 | AH21: 0 | AI21: 0 | AJ21: 0 | AK21: -0.3788578878 | AL21: 0
A22: Filière culturelle - catégorie C | B22: ='source_tot 2'!B12 -> 0 | C22: ='source_tot 2'!C12 -> 2009.487179 | D22: ='source_tot 2'!S12 -> 0 | E22: ='source_tot 2'!T12 -> 2.6 | F22: 1 | G22: -16.37156397 | H22: 0 | I22: ='source_tot 2'!D12 -> 0 | J22: ='source_tot 2'!E12 -> 1787.980769 | K22: 0.265940579 | L22: 0 | M22: ='source_tot 2'!F12 -> 0 | N22: ='source_tot 2'!G12 -> 221.5064103 | O22: -16.63750455 | P22: 0 | Q22: 0 | R22: 0.1102303177 | S22: ='source_tot 2'!H12 -> 0 | T22: ='source_tot 2'!I12 -> 25.99358974 | U22: ='source_tot 2'!J12 -> 0 | V22: ='source_tot 2'!K12 -> 195.5128205 | W22: ='source_tot 2'!L12 -> 0 | X22: ='source_tot 2'!M12 -> 0 | Y22: ='source_tot 2'!N12 -> 0 | Z22: ='source_tot 2'!O12 -> 0 | AA22: ='source_tot 2'!P12 -> 0 | AB22: ='source_tot 2'!Q12 -> 0 | AC22: -2.701896925 | AD22: 0 | AE22: -9.949498563 | AF22: 0 | AG22: -0.5559598008 | AH22: 0 | AI22: 0 | AJ22: 0 | AK22: -3.430149264 | AL22: 0
A23: Filière sportive - catégorie A | B23: ='source_tot 2'!B13 -> 0 | C23: ='source_tot 2'!C13 -> 0 | D23: ='source_tot 2'!S13 -> 0 | E23: ='source_tot 2'!T13 -> 0 | F23: 0 | G23: 0 | H23: 0 | I23: ='source_tot 2'!D13 -> 0 | J23: ='source_tot 2'!E13 -> 0 | K23: 0 | L23: 0 | M23: ='source_tot 2'!F13 -> 0 | N23: ='source_tot 2'!G13 -> 0 | O23: 0 | P23: 0 | Q23: 0 | R23: 0 | S23: ='source_tot 2'!H13 -> 0 | T23: ='source_tot 2'!I13 -> 0 | U23: ='source_tot 2'!J13 -> 0 | V23: ='source_tot 2'!K13 -> 0 | W23: ='source_tot 2'!L13 -> 0 | X23: ='source_tot 2'!M13 -> 0 | Y23: ='source_tot 2'!N13 -> 0 | Z23: ='source_tot 2'!O13 -> 0 | AA23: ='source_tot 2'!P13 -> 0 | AB23: ='source_tot 2'!Q13 -> 0 | AC23: 0 | AD23: 0 | AE23: 0 | AF23: 0 | AG23: 0 | AH23: 0 | AI23: 0 | AJ23: 0 | AK23: 0 | AL23: 0
A24: Filière sportive - catégorie B | B24: ='source_tot 2'!B14 -> 0 | C24: ='source_tot 2'!C14 -> 0 | D24: ='source_tot 2'!S14 -> 0 | E24: ='source_tot 2'!T14 -> 0 | F24: 0 | G24: 0 | H24: 0 | I24: ='source_tot 2'!D14 -> 0 | J24: ='source_tot 2'!E14 -> 0 | K24: 0 | L24: 0 | M24: ='source_tot 2'!F14 -> 0 | N24: ='source_tot 2'!G14 -> 0 | O24: 0 | P24: 0 | Q24: 0 | R24: 0 | S24: ='source_tot 2'!H14 -> 0 | T24: ='source_tot 2'!I14 -> 0 | U24: ='source_tot 2'!J14 -> 0 | V24: ='source_tot 2'!K14 -> 0 | W24: ='source_tot 2'!L14 -> 0 | X24: ='source_tot 2'!M14 -> 0 | Y24: ='source_tot 2'!N14 -> 0 | Z24: ='source_tot 2'!O14 -> 0 | AA24: ='source_tot 2'!P14 -> 0 | AB24: ='source_tot 2'!Q14 -> 0 | AC24: 0 | AD24: 0 | AE24: 0 | AF24: 0 | AG24: 0 | AH24: 0 | AI24: 0 | AJ24: 0 | AK24: 0 | AL24: 0
A25: Filière sportive - catégorie C | B25: ='source_tot 2'!B15 -> 0 | C25: ='source_tot 2'!C15 -> 0 | D25: ='source_tot 2'!S15 -> 0 | E25: ='source_tot 2'!T15 -> 0 | F25: 0 | G25: 0 | H25: 0 | I25: ='source_tot 2'!D15 -> 0 | J25: ='source_tot 2'!E15 -> 0 | K25: 0 | L25: 0 | M25: ='source_tot 2'!F15 -> 0 | N25: ='source_tot 2'!G15 -> 0 | O25: 0 | P25: 0 | Q25: 0 | R25: 0 | S25: ='source_tot 2'!H15 -> 0 | T25: ='source_tot 2'!I15 -> 0 | U25: ='source_tot 2'!J15 -> 0 | V25: ='source_tot 2'!K15 -> 0 | W25: ='source_tot 2'!L15 -> 0 | X25: ='source_tot 2'!M15 -> 0 | Y25: ='source_tot 2'!N15 -> 0 | Z25: ='source_tot 2'!O15 -> 0 | AA25: ='source_tot 2'!P15 -> 0 | AB25: ='source_tot 2'!Q15 -> 0 | AC25: 0 | AD25: 0 | AE25: 0 | AF25: 0 | AG25: 0 | AH25: 0 | AI25: 0 | AJ25: 0 | AK25: 0 | AL25: 0
A26: Filière sociale - catégorie A | B26: ='source_tot 2'!B16 -> 0 | C26: ='source_tot 2'!C16 -> 3196.25 | D26: ='source_tot 2'!S16 -> 0 | E26: ='source_tot 2'!T16 -> 0.2 | F26: 1 | G26: 8.261409619 | H26: 0 | I26: ='source_tot 2'!D16 -> 0 | J26: ='source_tot 2'!E16 -> 1374.583333 | K26: -3.296008623 | L26: 0 | M26: ='source_tot 2'!F16 -> 0 | N26: ='source_tot 2'!G16 -> 1821.666667 | O26: 11.55741824 | P26: 0 | Q26: 0 | R26: 0.5699387303 | S26: ='source_tot 2'!H16 -> 0 | T26: ='source_tot 2'!I16 -> 699.5833333 | U26: ='source_tot 2'!J16 -> 0 | V26: ='source_tot 2'!K16 -> 422.0833333 | W26: ='source_tot 2'!L16 -> 0 | X26: ='source_tot 2'!M16 -> 0 | Y26: ='source_tot 2'!N16 -> 0 | Z26: ='source_tot 2'!O16 -> 0 | AA26: ='source_tot 2'!P16 -> 0 | AB26: ='source_tot 2'!Q16 -> 700 | AC26: 5.1960105 | AD26: 0 | AE26: 1.052307489 | AF26: 0 | AG26: -0.04276613853 | AH26: 0 | AI26: 0 | AJ26: 0 | AK26: 5.351866392 | AL26: 0
A27: Filière sociale - catégorie B | B27: ='source_tot 2'!B17 -> 0 | C27: ='source_tot 2'!C17 -> 0 | D27: ='source_tot 2'!S17 -> 0 | E27: ='source_tot 2'!T17 -> 0 | F27: 0 | G27: 0 | H27: 0 | I27: ='source_tot 2'!D17 -> 0 | J27: ='source_tot 2'!E17 -> 0 | K27: 0 | L27: 0 | M27: ='source_tot 2'!F17 -> 0 | N27: ='source_tot 2'!G17 -> 0 | O27: 0 | P27: 0 | Q27: 0 | R27: 0 | S27: ='source_tot 2'!H17 -> 0 | T27: ='source_tot 2'!I17 -> 0 | U27: ='source_tot 2'!J17 -> 0 | V27: ='source_tot 2'!K17 -> 0 | W27: ='source_tot 2'!L17 -> 0 | X27: ='source_tot 2'!M17 -> 0 | Y27: ='source_tot 2'!N17 -> 0 | Z27: ='source_tot 2'!O17 -> 0 | AA27: ='source_tot 2'!P17 -> 0 | AB27: ='source_tot 2'!Q17 -> 0 | AC27: 0 | AD27: 0 | AE27: 0 | AF27: 0 | AG27: 0 | AH27: 0 | AI27: 0 | AJ27: 0 | AK27: 0 | AL27: 0
A28: Filière sociale - catégorie C | B28: ='source_tot 2'!B18 -> 0 | C28: ='source_tot 2'!C18 -> 0 | D28: ='source_tot 2'!S18 -> 0 | E28: ='source_tot 2'!T18 -> 0 | F28: 0 | G28: 0 | H28: 0 | I28: ='source_tot 2'!D18 -> 0 | J28: ='source_tot 2'!E18 -> 0 | K28: 0 | L28: 0 | M28: ='source_tot 2'!F18 -> 0 | N28: ='source_tot 2'!G18 -> 0 | O28: 0 | P28: 0 | Q28: 0 | R28: 0 | S28: ='source_tot 2'!H18 -> 0 | T28: ='source_tot 2'!I18 -> 0 | U28: ='source_tot 2'!J18 -> 0 | V28: ='source_tot 2'!K18 -> 0 | W28: ='source_tot 2'!L18 -> 0 | X28: ='source_tot 2'!M18 -> 0 | Y28: ='source_tot 2'!N18 -> 0 | Z28: ='source_tot 2'!O18 -> 0 | AA28: ='source_tot 2'!P18 -> 0 | AB28: ='source_tot 2'!Q18 -> 0 | AC28: 0 | AD28: 0 | AE28: 0 | AF28: 0 | AG28: 0 | AH28: 0 | AI28: 0 | AJ28: 0 | AK28: 0 | AL28: 0
A29: Filière médico-sociale - catégorie A | B29: ='source_tot 2'!B19 -> 0 | C29: ='source_tot 2'!C19 -> 4032.857143 | D29: ='source_tot 2'!S19 -> 0 | E29: ='source_tot 2'!T19 -> 0.35 | F29: 1 | G29: 26.20285392 | H29: 0 | I29: ='source_tot 2'!D19 -> 0 | J29: ='source_tot 2'!E19 -> 3152.142857 | K29: 19.18769423 | L29: 0 | M29: ='source_tot 2'!F19 -> 0 | N29: ='source_tot 2'!G19 -> 880.7142857 | O29: 7.015159689 | P29: 0 | Q29: 0 | R29: 0.2183846971 | S29: ='source_tot 2'!H19 -> 0 | T29: ='source_tot 2'!I19 -> 40 | U29: ='source_tot 2'!J19 -> 0 | V29: ='source_tot 2'!K19 -> 735.7142857 | W29: ='source_tot 2'!L19 -> 0 | X29: ='source_tot 2'!M19 -> 65 | Y29: ='source_tot 2'!N19 -> 0 | Z29: ='source_tot 2'!O19 -> 0 | AA29: ='source_tot 2'!P19 -> 0 | AB29: ='source_tot 2'!Q19 -> 40 | AC29: -0.1670765572 | AD29: 0 | AE29: 6.244700293 | AF29: 0 | AG29: 0.837714412 | AH29: 0 | AI29: 0 | AJ29: 0 | AK29: 0.09982154032 | AL29: 0
A30: Filière médico-sociale - catégorie B | B30: ='source_tot 2'!B20 -> 0 | C30: ='source_tot 2'!C20 -> 2010.487179 | D30: ='source_tot 2'!S20 -> 0 | E30: ='source_tot 2'!T20 -> 9.75 | F30: 1 | G30: -61.00226984 | H30: 0 | I30: ='source_tot 2'!D20 -> 0 | J30: ='source_tot 2'!E20 -> 1727.495726 | K30: -22.65812462 | L30: 0 | M30: ='source_tot 2'!F20 -> 0 | N30: ='source_tot 2'!G20 -> 282.991453 | O30: -38.34414522 | P30: 0 | Q30: 0 | R30: 0.1407576511 | S30: ='source_tot 2'!H20 -> 0 | T30: ='source_tot 2'!I20 -> 63.26495726 | U30: ='source_tot 2'!J20 -> 0 | V30: ='source_tot 2'!K20 -> 189.8461538 | W30: ='source_tot 2'!L20 -> 0 | X30: ='source_tot 2'!M20 -> 0 | Y30: ='source_tot 2'!N20 -> 0 | Z30: ='source_tot 2'!O20 -> 0 | AA30: ='source_tot 2'!P20 -> 0 | AB30: ='source_tot 2'!Q20 -> 29.88034188 | AC30: 4.444534478 | AD30: 0 | AE30: -39.52682499 | AF30: 0 | AG30: -2.084849253 | AH30: 0 | AI30: 0 | AJ30: 0 | AK30: -1.177005453 | AL30: 0
A31: Filière médico-sociale - catégorie C | B31: ='source_tot 2'!B21 -> 0 | C31: ='source_tot 2'!C21 -> 0 | D31: ='source_tot 2'!S21 -> 0 | E31: ='source_tot 2'!T21 -> 0 | F31: 0 | G31: 0 | H31: 0 | I31: ='source_tot 2'!D21 -> 0 | J31: ='source_tot 2'!E21 -> 0 | K31: 0 | L31: 0 | M31: ='source_tot 2'!F21 -> 0 | N31: ='source_tot 2'!G21 -> 0 | O31: 0 | P31: 0 | Q31: 0 | R31: 0 | S31: ='source_tot 2'!H21 -> 0 | T31: ='source_tot 2'!I21 -> 0 | U31: ='source_tot 2'!J21 -> 0 | V31: ='source_tot 2'!K21 -> 0 | W31: ='source_tot 2'!L21 -> 0 | X31: ='source_tot 2'!M21 -> 0 | Y31: ='source_tot 2'!N21 -> 0 | Z31: ='source_tot 2'!O21 -> 0 | AA31: ='source_tot 2'!P21 -> 0 | AB31: ='source_tot 2'!Q21 -> 0 | AC31: 0 | AD31: 0 | AE31: 0 | AF31: 0 | AG31: 0 | AH31: 0 | AI31: 0 | AJ31: 0 | AK31: 0 | AL31: 0
A32: Filière médico-technique - catégorie A | B32: ='source_tot 2'!B22 -> 0 | C32: ='source_tot 2'!C22 -> 0 | D32: ='source_tot 2'!S22 -> 0 | E32: ='source_tot 2'!T22 -> 0 | F32: 0 | G32: 0 | H32: 0 | I32: ='source_tot 2'!D22 -> 0 | J32: ='source_tot 2'!E22 -> 0 | K32: 0 | L32: 0 | M32: ='source_tot 2'!F22 -> 0 | N32: ='source_tot 2'!G22 -> 0 | O32: 0 | P32: 0 | Q32: 0 | R32: 0 | S32: ='source_tot 2'!H22 -> 0 | T32: ='source_tot 2'!I22 -> 0 | U32: ='source_tot 2'!J22 -> 0 | V32: ='source_tot 2'!K22 -> 0 | W32: ='source_tot 2'!L22 -> 0 | X32: ='source_tot 2'!M22 -> 0 | Y32: ='source_tot 2'!N22 -> 0 | Z32: ='source_tot 2'!O22 -> 0 | AA32: ='source_tot 2'!P22 -> 0 | AB32: ='source_tot 2'!Q22 -> 0 | AC32: 0 | AD32: 0 | AE32: 0 | AF32: 0 | AG32: 0 | AH32: 0 | AI32: 0 | AJ32: 0 | AK32: 0 | AL32: 0
A33: Filière médico-technique - catégorie B | B33: ='source_tot 2'!B23 -> 0 | C33: ='source_tot 2'!C23 -> 0 | D33: ='source_tot 2'!S23 -> 0 | E33: ='source_tot 2'!T23 -> 0 | F33: 0 | G33: 0 | H33: 0 | I33: ='source_tot 2'!D23 -> 0 | J33: ='source_tot 2'!E23 -> 0 | K33: 0 | L33: 0 | M33: ='source_tot 2'!F23 -> 0 | N33: ='source_tot 2'!G23 -> 0 | O33: 0 | P33: 0 | Q33: 0 | R33: 0 | S33: ='source_tot 2'!H23 -> 0 | T33: ='source_tot 2'!I23 -> 0 | U33: ='source_tot 2'!J23 -> 0 | V33: ='source_tot 2'!K23 -> 0 | W33: ='source_tot 2'!L23 -> 0 | X33: ='source_tot 2'!M23 -> 0 | Y33: ='source_tot 2'!N23 -> 0 | Z33: ='source_tot 2'!O23 -> 0 | AA33: ='source_tot 2'!P23 -> 0 | AB33: ='source_tot 2'!Q23 -> 0 | AC33: 0 | AD33: 0 | AE33: 0 | AF33: 0 | AG33: 0 | AH33: 0 | AI33: 0 | AJ33: 0 | AK33: 0 | AL33: 0
A34: Filière médico-technique - catégorie C | B34: ='source_tot 2'!B24 -> 0 | C34: ='source_tot 2'!C24 -> 0 | D34: ='source_tot 2'!S24 -> 0 | E34: ='source_tot 2'!T24 -> 0 | F34: 0 | G34: 0 | H34: 0 | I34: ='source_tot 2'!D24 -> 0 | J34: ='source_tot 2'!E24 -> 0 | K34: 0 | L34: 0 | M34: ='source_tot 2'!F24 -> 0 | N34: ='source_tot 2'!G24 -> 0 | O34: 0 | P34: 0 | Q34: 0 | R34: 0 | S34: ='source_tot 2'!H24 -> 0 | T34: ='source_tot 2'!I24 -> 0 | U34: ='source_tot 2'!J24 -> 0 | V34: ='source_tot 2'!K24 -> 0 | W34: ='source_tot 2'!L24 -> 0 | X34: ='source_tot 2'!M24 -> 0 | Y34: ='source_tot 2'!N24 -> 0 | Z34: ='source_tot 2'!O24 -> 0 | AA34: ='source_tot 2'!P24 -> 0 | AB34: ='source_tot 2'!Q24 -> 0 | AC34: 0 | AD34: 0 | AE34: 0 | AF34: 0 | AG34: 0 | AH34: 0 | AI34: 0 | AJ34: 0 | AK34: 0 | AL34: 0
A35: Filière police municipale - catégorie A | B35: ='source_tot 2'!B25 -> 0 | C35: ='source_tot 2'!C25 -> 0 | D35: ='source_tot 2'!S25 -> 0 | E35: ='source_tot 2'!T25 -> 0 | F35: 0 | G35: 0 | H35: 0 | I35: ='source_tot 2'!D25 -> 0 | J35: ='source_tot 2'!E25 -> 0 | K35: 0 | L35: 0 | M35: ='source_tot 2'!F25 -> 0 | N35: ='source_tot 2'!G25 -> 0 | O35: 0 | P35: 0 | Q35: 0 | R35: 0 | S35: ='source_tot 2'!H25 -> 0 | T35: ='source_tot 2'!I25 -> 0 | U35: ='source_tot 2'!J25 -> 0 | V35: ='source_tot 2'!K25 -> 0 | W35: ='source_tot 2'!L25 -> 0 | X35: ='source_tot 2'!M25 -> 0 | Y35: ='source_tot 2'!N25 -> 0 | Z35: ='source_tot 2'!O25 -> 0 | AA35: ='source_tot 2'!P25 -> 0 | AB35: ='source_tot 2'!Q25 -> 0 | AC35: 0 | AD35: 0 | AE35: 0 | AF35: 0 | AG35: 0 | AH35: 0 | AI35: 0 | AJ35: 0 | AK35: 0 | AL35: 0
A36: Filière police municipale - catégorie B | B36: ='source_tot 2'!B26 -> 0 | C36: ='source_tot 2'!C26 -> 0 | D36: ='source_tot 2'!S26 -> 0 | E36: ='source_tot 2'!T26 -> 0 | F36: 0 | G36: 0 | H36: 0 | I36: ='source_tot 2'!D26 -> 0 | J36: ='source_tot 2'!E26 -> 0 | K36: 0 | L36: 0 | M36: ='source_tot 2'!F26 -> 0 | N36: ='source_tot 2'!G26 -> 0 | O36: 0 | P36: 0 | Q36: 0 | R36: 0 | S36: ='source_tot 2'!H26 -> 0 | T36: ='source_tot 2'!I26 -> 0 | U36: ='source_tot 2'!J26 -> 0 | V36: ='source_tot 2'!K26 -> 0 | W36: ='source_tot 2'!L26 -> 0 | X36: ='source_tot 2'!M26 -> 0 | Y36: ='source_tot 2'!N26 -> 0 | Z36: ='source_tot 2'!O26 -> 0 | AA36: ='source_tot 2'!P26 -> 0 | AB36: ='source_tot 2'!Q26 -> 0 | AC36: 0 | AD36: 0 | AE36: 0 | AF36: 0 | AG36: 0 | AH36: 0 | AI36: 0 | AJ36: 0 | AK36: 0 | AL36: 0
A37: Filière police municipale - catégorie C | B37: ='source_tot 2'!B27 -> 0 | C37: ='source_tot 2'!C27 -> 0 | D37: ='source_tot 2'!S27 -> 0 | E37: ='source_tot 2'!T27 -> 0 | F37: 0 | G37: 0 | H37: 0 | I37: ='source_tot 2'!D27 -> 0 | J37: ='source_tot 2'!E27 -> 0 | K37: 0 | L37: 0 | M37: ='source_tot 2'!F27 -> 0 | N37: ='source_tot 2'!G27 -> 0 | O37: 0 | P37: 0 | Q37: 0 | R37: 0 | S37: ='source_tot 2'!H27 -> 0 | T37: ='source_tot 2'!I27 -> 0 | U37: ='source_tot 2'!J27 -> 0 | V37: ='source_tot 2'!K27 -> 0 | W37: ='source_tot 2'!L27 -> 0 | X37: ='source_tot 2'!M27 -> 0 | Y37: ='source_tot 2'!N27 -> 0 | Z37: ='source_tot 2'!O27 -> 0 | AA37: ='source_tot 2'!P27 -> 0 | AB37: ='source_tot 2'!Q27 -> 0 | AC37: 0 | AD37: 0 | AE37: 0 | AF37: 0 | AG37: 0 | AH37: 0 | AI37: 0 | AJ37: 0 | AK37: 0 | AL37: 0
A38: Filière incendie et secours- catégorie A | B38: ='source_tot 2'!B28 -> 0 | C38: ='source_tot 2'!C28 -> 0 | D38: ='source_tot 2'!S28 -> 0 | E38: ='source_tot 2'!T28 -> 0 | F38: 0 | G38: 0 | H38: 0 | I38: ='source_tot 2'!D28 -> 0 | J38: ='source_tot 2'!E28 -> 0 | K38: 0 | L38: 0 | M38: ='source_tot 2'!F28 -> 0 | N38: ='source_tot 2'!G28 -> 0 | O38: 0 | P38: 0 | Q38: 0 | R38: 0 | S38: ='source_tot 2'!H28 -> 0 | T38: ='source_tot 2'!I28 -> 0 | U38: ='source_tot 2'!J28 -> 0 | V38: ='source_tot 2'!K28 -> 0 | W38: ='source_tot 2'!L28 -> 0 | X38: ='source_tot 2'!M28 -> 0 | Y38: ='source_tot 2'!N28 -> 0 | Z38: ='source_tot 2'!O28 -> 0 | AA38: ='source_tot 2'!P28 -> 0 | AB38: ='source_tot 2'!Q28 -> 0 | AC38: 0 | AD38: 0 | AE38: 0 | AF38: 0 | AG38: 0 | AH38: 0 | AI38: 0 | AJ38: 0 | AK38: 0 | AL38: 0
A39: Filière incendie et secours - catégorie B | B39: ='source_tot 2'!B29 -> 0 | C39: ='source_tot 2'!C29 -> 0 | D39: ='source_tot 2'!S29 -> 0 | E39: ='source_tot 2'!T29 -> 0 | F39: 0 | G39: 0 | H39: 0 | I39: ='source_tot 2'!D29 -> 0 | J39: ='source_tot 2'!E29 -> 0 | K39: 0 | L39: 0 | M39: ='source_tot 2'!F29 -> 0 | N39: ='source_tot 2'!G29 -> 0 | O39: 0 | P39: 0 | Q39: 0 | R39: 0 | S39: ='source_tot 2'!H29 -> 0 | T39: ='source_tot 2'!I29 -> 0 | U39: ='source_tot 2'!J29 -> 0 | V39: ='source_tot 2'!K29 -> 0 | W39: ='source_tot 2'!L29 -> 0 | X39: ='source_tot 2'!M29 -> 0 | Y39: ='source_tot 2'!N29 -> 0 | Z39: ='source_tot 2'!O29 -> 0 | AA39: ='source_tot 2'!P29 -> 0 | AB39: ='source_tot 2'!Q29 -> 0 | AC39: 0 | AD39: 0 | AE39: 0 | AF39: 0 | AG39: 0 | AH39: 0 | AI39: 0 | AJ39: 0 | AK39: 0 | AL39: 0
A40: Filière incendie et secours - catégorie C | B40: ='source_tot 2'!B30 -> 0 | C40: ='source_tot 2'!C30 -> 0 | D40: ='source_tot 2'!S30 -> 0 | E40: ='source_tot 2'!T30 -> 0 | F40: 0 | G40: 0 | H40: 0 | I40: ='source_tot 2'!D30 -> 0 | J40: ='source_tot 2'!E30 -> 0 | K40: 0 | L40: 0 | M40: ='source_tot 2'!F30 -> 0 | N40: ='source_tot 2'!G30 -> 0 | O40: 0 | P40: 0 | Q40: 0 | R40: 0 | S40: ='source_tot 2'!H30 -> 0 | T40: ='source_tot 2'!I30 -> 0 | U40: ='source_tot 2'!J30 -> 0 | V40: ='source_tot 2'!K30 -> 0 | W40: ='source_tot 2'!L30 -> 0 | X40: ='source_tot 2'!M30 -> 0 | Y40: ='source_tot 2'!N30 -> 0 | Z40: ='source_tot 2'!O30 -> 0 | AA40: ='source_tot 2'!P30 -> 0 | AB40: ='source_tot 2'!Q30 -> 0 | AC40: 0 | AD40: 0 | AE40: 0 | AF40: 0 | AG40: 0 | AH40: 0 | AI40: 0 | AJ40: 0 | AK40: 0 | AL40: 0
A41: Filière animation - catégorie B | B41: ='source_tot 2'!B31 -> 0 | C41: ='source_tot 2'!C31 -> 0 | D41: ='source_tot 2'!S31 -> 0 | E41: ='source_tot 2'!T31 -> 0 | F41: 0 | G41: 0 | H41: 0 | I41: ='source_tot 2'!D31 -> 0 | J41: ='source_tot 2'!E31 -> 0 | K41: 0 | L41: 0 | M41: ='source_tot 2'!F31 -> 0 | N41: ='source_tot 2'!G31 -> 0 | O41: 0 | P41: 0 | Q41: 0 | R41: 0 | S41: ='source_tot 2'!H31 -> 0 | T41: ='source_tot 2'!I31 -> 0 | U41: ='source_tot 2'!J31 -> 0 | V41: ='source_tot 2'!K31 -> 0 | W41: ='source_tot 2'!L31 -> 0 | X41: ='source_tot 2'!M31 -> 0 | Y41: ='source_tot 2'!N31 -> 0 | Z41: ='source_tot 2'!O31 -> 0 | AA41: ='source_tot 2'!P31 -> 0 | AB41: ='source_tot 2'!Q31 -> 0 | AC41: 0 | AD41: 0 | AE41: 0 | AF41: 0 | AG41: 0 | AH41: 0 | AI41: 0 | AJ41: 0 | AK41: 0 | AL41: 0
A42: Filière animation - catégorie C | B42: ='source_tot 2'!B32 -> 0 | C42: ='source_tot 2'!C32 -> 2072.764228 | D42: ='source_tot 2'!S32 -> 0 | E42: ='source_tot 2'!T32 -> 0.41 | F42: 1 | G42: -1.541012273 | H42: 0 | I42: ='source_tot 2'!D32 -> 0 | J42: ='source_tot 2'!E32 -> 1114.227642 | K42: -11.03864011 | L42: 0 | M42: ='source_tot 2'!F32 -> 0 | N42: ='source_tot 2'!G32 -> 958.5365854 | O42: 9.497627841 | P42: 0 | Q42: 0 | R42: 0.4624436164 | S42: ='source_tot 2'!H32 -> 0 | T42: ='source_tot 2'!I32 -> 479.2682927 | U42: ='source_tot 2'!J32 -> 0 | V42: ='source_tot 2'!K32 -> 0 | W42: ='source_tot 2'!L32 -> 0 | X42: ='source_tot 2'!M32 -> 0 | Y42: ='source_tot 2'!N32 -> 0 | Z42: ='source_tot 2'!O32 -> 0 | AA42: ='source_tot 2'!P32 -> 0 | AB42: ='source_tot 2'!Q32 -> 479.2682927 | AC42: 7.028509585 | AD42: 0 | AE42: -4.784372803 | AF42: 0 | AG42: -0.08767058398 | AH42: 0 | AI42: 0 | AJ42: 0 | AK42: 7.341161642 | AL42: 0

Sheet res_ind3&4
A1: Indicateur 3
A3: Taux de promotion de grade au choix par voie d'inscription à un tableau annuel d'avancement | I3: hommes | J3: femmes | K3: écart
A4: appréciation de la valeur professionnelle et des acquis de l'expérience professionnelle | I4: =IF('IND 1.9.5 - 1.9.6.1'!B41=0,"",'IND 1.9.5 - 1.9.6.1'!B25/'IND 1.9.5 - 1.9.6.1'!B41) -> 0.7307692308 | J4: =IF('IND 1.9.5 - 1.9.6.1'!C41=0,"",'IND 1.9.5 - 1.9.6.1'!C25/'IND 1.9.5 - 1.9.6.1'!C41) -> 0.3793103448 | K4: =IF(OR(I4="",J4=""),"",J4-I4) -> -0.3514588859
A5: voie d'examen professionnel | I5: =IF('IND 1.9.5 - 1.9.6.1'!B42=0,"",'IND 1.9.5 - 1.9.6.1'!B26/'IND 1.9.5 - 1.9.6.1'!B42) -> 1 | J5: =IF('IND 1.9.5 - 1.9.6.1'!C42=0,"",'IND 1.9.5 - 1.9.6.1'!C26/'IND 1.9.5 - 1.9.6.1'!C42) -> 1 | K5: =IF(OR(I5="",J5=""),"",J5-I5) -> 0
K6: =IF(AND(K4="",K5=""),"",IF(AND(K4<>"",K5=""),K4,IF(AND(K4="",K5<>""),K5,IF(SUM('IND 1.9.5 - 1.9.6.1'!B41:C42)=0,0,(K4*('IND 1.9.5 - 1.9.6.1'!B41+'IND 1.9.5 - 1.9.6.1'!C41)+K5*('IND 1.9.5 - 1.9.6.1'!B42+'IND 1.9.5 - 1.9.6.1'!C42))/SUM('IND 1.9.5 - 1.9.6.1'!B41:C42))))) -> -0.3221706454
A7: Taux utilisé pour l'indicateur 3 | D7: =IF(K6="","",ABS(K6)) -> 0.3221706454 | E7: il s'agit de l'écart en valeur absolu des taux d'avancement au choix
A9: Indicateur 4 | M9: >>> Documentation explicative
A11: Nombre d'agents publics du sexe sous-représenté parmi les dix agents publics ayant perçu les plus hautes rémunérations | K11: =MIN('IND 3.4.0.1'!D9,'IND 3.4.0.1'!E9) -> 4
A13: Nombre utilisé pour l'indicateur 4 | D13: =K11 -> 4

Sheet IND 1.1.0
A1: 1.1.0 | B1: Nombre d'agents occupant un emploi fonctionnel rémunérés au 31/12/2023, par statut d'origine, cadre d'emplois, sexe et grade de détachement
A2: Champ : les tableaux qui suivent concernent les fonctionnaires et contractuels occupant un emploi permanent fonctionnel rémunérés au 31/12/2023.
C5: Répartition par sexe et tranche d'âge des effectifs des fonctionnaires et des contractuels présents dans les effectifs au 31/12/2023
A8: Tableau 1.1.0.a : Fonctionnaires de la Fonction Publique Territoriale | L8: Retour au sommaire
A9: Emplois fonctionnels | B9: Fonctionnaires de la Fonction Publique Territoriale
B10: Administrateurs | D10: Attachés | F10: Ingénieurs en chef | H10: Ingénieurs | J10: Autres
B11: Hommes | C11: Femmes | D11: Hommes | E11: Femmes | F11: Hommes | G11: Femmes | H11: Hommes | I11: Femmes | J11: Hommes | K11: Femmes
A12: Emplois fonctionnels administratifs :
A13: Directeur général des services ou directeur | B13: 0 | C13: 0 | D13: 1 | E13: 0 | F13: 0 | G13: 0 | H13: 0 | I13: 0 | J13: 0 | K13: 0
A14: Directeur général adjoint des services ou directeur adjoint | B14: 0 | C14: 0 | D14: 1 | E14: 2 | F14: 0 | G14: 1 | H14: 1 | I14: 0 | J14: 0 | K14: 0
A15: Emplois fonctionnels techniques :
A16: Directeur général des services techniques | B16: 0 | C16: 0 | D16: 0 | E16: 0 | F16: 0 | G16: 0 | H16: 0 | I16: 0 | J16: 0 | K16: 0
A17: Directeur des services techniques | B17: 0 | C17: 0 | D17: 0 | E17: 0 | F17: 0 | G17: 0 | H17: 0 | I17: 0 | J17: 0 | K17: 0
A18: Emplois fonctionnels d'incendie et secours :
A19: Directeur départemental des services d'incendie et secours | B19: 0 | C19: 0 | D19: 0 | E19: 0 | F19: 0 | G19: 0 | H19: 0 | I19: 0 | J19: 0 | K19: 0
A20: Directeur départemental adjoint des services d'incendie et secours | B20: 0 | C20: 0 | D20: 0 | E20: 0 | F20: 0 | G20: 0 | H20: 0 | I20: 0 | J20: 0 | K20: 0
A21: TOTAL | B21: =B13+B14+B16+B17+B19+B20 -> 0 | C21: =C13+C14+C16+C17+C19+C20 -> 0 | D21: 2 | E21: 2 | F21: 0 | G21: 1 | H21: 1 | I21: 0 | J21: 0 | K21: 0
A23: Tableau 1.1.0.b : Fonctionnaires issus d'une autre administration (FPE, FPH)
A24: Emplois fonctionnels | B24: Fonctionnaires issus d'une autre administration (FPE, FPH)
B25: Administrateurs | D25: Attachés | F25: Ingénieurs en chef | H25: Ingénieurs | J25: Autres
B26: Hommes | C26: Femmes | D26: Hommes | E26: Femmes | F26: Hommes | G26: Femmes | H26: Hommes | I26: Femmes | J26: Hommes | K26: Femmes
A27: Emplois fonctionnels administratifs :
A28: Directeur général des services ou directeur | B28: 0 | C28: 0 | D28: 0 | E28: 0 | F28: 0 | G28: 0 | H28: 0 | I28: 0 | J28: 0 | K28: 0
A29: Directeur général adjoint des services ou directeur adjoint | B29: 0 | C29: 0 | D29: 0 | E29: 0 | F29: 0 | G29: 0 | H29: 0 | I29: 0 | J29: 0 | K29: 0
A30: Emplois fonctionnels techniques :
A31: Directeur général des services techniques | B31: 0 | C31: 0 | D31: 0 | E31: 0 | F31: 0 | G31: 0 | H31: 0 | I31: 0 | J31: 0 | K31: 0
A32: Directeur des services techniques | B32: 0 | C32: 0 | D32: 0 | E32: 0 | F32: 0 | G32: 0 | H32: 0 | I32: 0 | J32: 0 | K32: 0
A33: Emplois fonctionnels d'incendie et secours :
A34: Directeur départemental des services d'incendie et secours | B34: 0 | C34: 0 | D34: 0 | E34: 0 | F34: 0 | G34: 0 | H34: 0 | I34: 0 | J34: 0 | K34: 0
A35: Directeur départemental adjoint des services d'incendie et secours | B35: 0 | C35: 0 | D35: 0 | E35: 0 | F35: 0 | G35: 0 | H35: 0 | I35: 0 | J35: 0 | K35: 0
A36: TOTAL | B36: =B28+B29+B31+B32+B34+B35 -> 0 | C36: =C28+C29+C31+C32+C34+C35 -> 0 | D36: 0 | E36: 0 | F36: 0 | G36: 0 | H36: 0 | I36: 0 | J36: 0 | K36: 0
A38: Tableau 1.1.0.c : Contractuels sur emplois permanents
A39: Emplois fonctionnels | B39: Contractuels sur emplois permanents
B41: Hommes | C41: Femmes
A42: Emplois fonctionnels administratifs :
A43: Directeur général des services ou directeur | B43: 0 | C43: 0
A44: Directeur général adjoint des services ou directeur adjoint | B44: 0 | C44: 0
A45: Emplois fonctionnels techniques :
A46: Directeur général des services techniques | B46: 0 | C46: 0
A47: Directeur des services techniques | B47: 0 | C47: 0
A48: Emplois fonctionnels d'incendie et secours :
A49: Directeur départemental des services d'incendie et secours | B49: 0 | C49: 0
A50: Directeur départemental adjoint des services d'incendie et secours | B50: 0 | C50: 0
A51: TOTAL | B51: =B43+B44+B46+B47+B49+B50 -> 0 | C51: =C43+C44+C46+C47+C49+C50 -> 0

Sheet MAPP (hidden)
A1: Ordre | B1: Thématique (DGCL) | C1: Rubrique (Appli) | D1: Numéro de l'indicateur | E1: nom onglet TALEND IORGA | F1: nom onglet MODELE | G1: map iorga colonne | H1: map iorga ligne | I1: reprise ligne | J1: recherchev | K1: map modèle colonne | L1: map modele ligne | M1: question ? | N1: valeur défaut | O1: nb ligne | P1: vérif tableau
A2: 1 | B2: Emploi | C2: Effectifs | D2: IND 1.1.0 | E2: 110 | F2: IND 1.1.0 | G2: E | H2: 1 | I2: =IF(H2=1,J2,H2+J2-1) ->  | J2: =VLOOKUP(VLOOKUP(E2,Feuil1!B:C,2,FALSE),Data!AD:AG,4,FALSE) ->  | K2: Q | L2: 2 | N2: 0 | O2: 1 | P2: =IF(ISNA(J2),"KO",IF(ISNA(VLOOKUP(E2&"_"&H2,Data!AH:AH,1,FALSE)),"KO","OK")) -> KO
A3: 1 | B3: Emploi | C3: Effectifs | D3: IND 1.1.0 | E3: 110 | F3: IND 1.1.0 | G3: E | H3: 1 | I3: =IF(H3=1,J3,H3+J3-1) -> 1 | J3: =VLOOKUP(VLOOKUP(E3,Feuil1!B:C,2,FALSE),Data!AD:AG,4,FALSE) -> 1 | K3: B | L3: 13 | N3: 1 | O3: =H3 -> 1 | P3: =IF(ISNA(J3),"KO",IF(ISNA(VLOOKUP(E3&"_"&H3,Data!AH:AH,1,FALSE)),"KO","OK")) -> OK
A4: 1 | B4: Emploi | C4: Effectifs | D4: IND 1.1.0 | E4: 110 | F4: IND 1.1.0 | G4: F | H4: 1 | I4: =IF(H4=1,J4,H4+J4-1) -> 1 | J4: =VLOOKUP(VLOOKUP(E4,Feuil1!B:C,2,FALSE),Data!AD:AG,4,FALSE) -> 1 | K4: C | L4: 13 | N4: 2 | O4: =H4 -> 1 | P4: =IF(ISNA(J4),"KO",IF(ISNA(VLOOKUP(E4&"_"&H4,Data!AH:AH,1,FALSE)),"KO","OK")) -> OK
A5: 1 | B5: Emploi | C5: Effectifs | D5: IND 1.1.0 | E5: 110 | F5: IND 1.1.0 | G5: G | H5: 1 | I5: 1 | J5: =VLOOKUP(VLOOKUP(E5,Feuil1!B:C,2,FALSE),Data!AD:AG,4,FALSE) -> 1 | K5: D | L5: 13 | N5: 3 | O5: 1 | P5: =IF(ISNA(J5),"KO",IF(ISNA(VLOOKUP(E5&"_"&H5,Data!AH:AH,1,FALSE)),"KO","OK")) -> OK
A6: 1 | B6: Emploi | C6: Effectifs | D6: IND 1.1.0 | E6: 110 | F6: IND 1.1.0 | G6: H | H6: 1 | I6: 1 | J6: =VLOOKUP(VLOOKUP(E6,Feuil1!B:C,2,FALSE),Data!AD:AG,4,FALSE) -> 1 | K6: E | L6: 13 | N6: 4 | O6: 1 | P6: =IF(ISNA(J6),"KO",IF(ISNA(VLOOKUP(E6&"_"&H6,Data!AH:AH,1,FALSE)),"KO","OK")) -> OK
A7: 1 | B7: Emploi | C7: Effectifs | D7: IND 1.1.0 | E7: 110 | F7: IND 1.1.0 | G7: I | H7: 1 | I7: 1 | J7: =VLOOKUP(VLOOKUP(E7,Feuil1!B:C,2,FALSE),Data!AD:AG,4,FALSE) -> 1 | K7: F | L7: 13 | N7: 5 | O7: 1 | P7: =IF(ISNA(J7),"KO",IF(ISNA(VLOOKUP(E7&"_"&H7,Data!AH:AH,1,FALSE)),"KO","OK")) -> OK
